Workbook

Sheet NAMPULA
F1: ANO HIDROLOGICO 2012-13 | J1: ANO HIDROLOGICO 2013-14 | S1: ANO HIDROLOGICO 2014-15 | AH1: ANO HIDROLOGICO 2015-16 | AY1: ANO HIDROLOGICO 2016-17 | BP1: ANO HIDROLOGICO 2017-18 | CG1: ANO HIDROLOGICO 2018-19 | CX1: ANO HIDROLOGICO 2019-20 | DN1: ANO HIDROLOGICO 2020-21 | ED1: ANO HIDROLOGICO 2021-22 | ES1: ANO HIDROLOGICO 2022-23 | FH1: ANO HIDROLOGICO 2023-24
C2: NPA | D2: NME | E2: V.MORTO | F2: Nivel | G2: Precipitação | H2: Cota | I2: DESCARGAS | J2: COTA | K2: Niveis | L2: Precipitação | M2: V.TOTAL (Mm³) | N2: V.UTIL (Mm³) | O2: CAUDAL DESCARREGADO | Q2: TOTAL % | R2: UTIL % | S2: COTA | T2: Niveis | U2: Precipitação | V2: VOLUME TOTAL | W2: Volume Util (Mm³) | X2: CAUDAL DESCARREGADO | Z2: % TOTAL | AA2: % UTIL | AB2: Leitura dos Contadores do FIGAG | AD2: Leitura do Contador (M³/Dia) | AE2: Total de Volume captado | AF2: NPA | AH2: COTA | AI2: Niveis | AJ2: Precipitação | AK2: Precipitação | AL2: VOLUME TOTAL | AM2: Volume Util (Mm³) | AN2: CAUDAL DESCARREGADO | AP2: % TOTAL | AQ2: % UTIL | AR2: VARICAODO VOLUME | AS2: variação do caudal descarregado | AT2: Leitura dos Contadores do FIGAG | AV2: Leitura do Contador (M³/Dia) | AW2: Total de Volume captado | AY2: COTA | AZ2: Niveis | BA2: Precipitação | BB2: Precipitação | BC2: VOLUME TOTAL | BD2: Volume Util (Mm³) | BE2: CAUDAL DESCARREGADO | BG2: % TOTAL | BH2: % UTIL | BI2: VARICAODO VOLUME | BJ2: variação do caudal descarregado | BK2: Leitura dos Contadores do FIGAG | BM2: Leitura do Contador (M³/Dia) | BN2: Total de Volume captado | BP2: COTA | BQ2: Niveis | BR2: Precipitação | BS2: Precipitação | BT2: VOLUME TOTAL | BU2: Volume Util (Mm³) | BV2: CAUDAL DESCARREGADO | BX2: % TOTAL | BY2: % UTIL | BZ2: VARICAO DO VOLUME | CA2: variação do caudal descarregado | CB2: Leitura dos Contadores do FIGAG | CD2: Leitura do Contador (M³/Dia) | CE2: Total de Volume captado | CG2: COTA | CH2: Niveis | CI2: Precipitação | CJ2: Precipitação | CK2: VOLUME TOTAL | CL2: Volume Util (Mm³) | CM2: CAUDAL DESCARREGADO | CO2: % TOTAL | CP2: % UTIL | CQ2: VARICAO DO VOLUME | CR2: variação do caudal descarregado | CS2: Leitura dos Contadores do FIGAG | CU2: Leitura do Contador (M³/Dia) | CV2: Total de Volume captado | CW2: Total de Volume captado (M³/Mes) | CX2: COTA | CY2: Niveis | CZ2: Precipitação | DB2: VOLUME TOTAL (Mm3) | DC2: Volume Util (Mm³) | DD2: CAUDAL DESCARREGADO | DF2: % TOTAL | DG2: % UTIL | DH2: VARICAO DO VOLUME | DI2: variação do caudal descarregado | DJ2: Leitura dos Contadores do FIGAG | DL2: Leitura do Contador (M³/Dia) | DM2: Total de Volume captado | DN2: COTA | DO2: Niveis | DP2: Precipitação | DR2: VOLUME TOTAL (Mm3) | DS2: Volume Util (Mm³) | DT2: CAUDAL DESCARREGADO | DV2: % TOTAL | DW2: % UTIL | DX2: VARICAO DO VOLUME | DY2: variação do caudal descarregado | DZ2: Leitura dos Contadores do FIGAG | EB2: Leitura do Contador (M³/Dia) | EC2: Total de Volume captado | ED2: COTA | EE2: Niveis | EF2: Precipitação | EH2: VOLUME TOTAL (Mm3) | EI2: Volume Util (Mm³) | EJ2: CAUDAL DESCARREGADO | EL2: % TOTAL | EM2: % UTIL | EN2: VARICAO DO VOLUME | EO2: variação do caudal descarregado | EP2: Leitura dos Contadores do FIGAG | ER2: Total de Volume captado | ES2: COTA | ET2: Niveis | EU2: Precipitação | EW2: VOLUME TOTAL (Mm3) | EX2: Volume Util (Mm³) | EY2: CAUDAL DESCARREGADO | FA2: % TOTAL | FB2: % UTIL | FC2: VARICAO DO VOLUME | FD2: variação do caudal descarregado | FE2: Leitura dos Contadores do FIGAG | FG2: Total de Volume captado | FH2: COTA | FI2: Niveis | FJ2: Precipitação | FL2: VOLUME TOTAL (Mm3) | FM2: Volume Util (Mm³) | FN2: CAUDAL DESCARREGADO | FP2: % TOTAL | FQ2: % UTIL | FR2: VARICAO DO VOLUME | FS2: variação do caudal descarregado | FT2: Leitura dos Contadores do FIGAG | FV2: Total de Volume captado | FW2: COTA | FX2: Niveis | FY2: Precipitação | GA2: VOLUME TOTAL (Mm3) | GB2: Volume Util (Mm³) | GC2: CAUDAL DESCARREGADO | GE2: % TOTAL | GF2: % UTIL | GG2: VARICAO DO VOLUME | GH2: variação do caudal descarregado | GI2: Leitura dos Contadores do FIGAG | GK2: Total de Volume captado
F3: 2012/13 | G3: P-423 | H3: 2012/13 | I3: 2012/13 | J3: 2013/14 | K3: 2013/14 | L3: P-423 | O3: DESCARGAS (m3/s) | P3: DESCARGAS (m3/d) | S3: 2014/15 | T3: 2014/15 | U3: P-423 | X3: DESCARGAS (m3/s) | Y3: DESCARGAS (m3/d) | AB3: ETA 1 | AC3: ETA 2 | AH3: 2015/16 | AI3: 2015/16 | AJ3: P-423 | AK3: P-609 | AN3: DESCARGAS (m3/s) | AO3: DESCARGAS (m3/d) | AT3: ETA 1 | AU3: ETA 2 | AY3: 2016/17 | AZ3: 2016/17 | BA3: P-423/2016-17 | BB3: P-609/2016-17 | BE3: DESCARGAS (m3/s) | BF3: DESCARGAS (m3/d) | BK3: ETA 1 | BL3: ETA 2 | BP3: 2017/18 | BQ3: 2017/18 | BR3: P-423/2017-18 | BS3: P-609/2017-18 | BV3: DESCARGAS (m3/s) | BW3: DESCARGAS (m3/d) | CB3: ETA 1 | CC3: ETA 2 | CG3: 2018/19 | CH3: 2018/19 | CI3: P-423/2018-19 | CJ3: P-609/2018-19 | CM3: DESCARGAS (m3/s) | CN3: DESCARGAS (m3/d) | CS3: ETA 1 | CT3: ETA 2 | CX3: 2019/20 | CY3: 2019/20 | CZ3: P-423/19-20 | DA3: P-609/2019-20 | DD3: DESCARGAS (m3/s) | DE3: DESCARGAS (m3/d) | DJ3: ETA 1 | DK3: ETA 2 | DN3: 2020/21 | DO3: 2020/21 | DP3: P-423 | DQ3: P-609 | DT3: DESCARGAS (m3/s) | DU3: DESCARGAS (m3/d) | DZ3: ETA 1 | EA3: ETA 2 | ED3: 2021/22 | EE3: 2021/22 | EF3: P-423 | EG3: P-609 | EJ3: DESCARGAS (m3/s) | EK3: DESCARGAS (m3/d) | EP3: ETA 1 | EQ3: ETA 2 | ES3: 2022/23 | ET3: 2022/23 | EU3: P-423 | EV3: P-609 | EY3: DESCARGAS (m3/s) | FE3: ETA 1 | FF3: ETA 2 | FH3: 2023/24 | FI3: 2023/24 | FJ3: P-423 | FK3: P-609 | FN3: DESCARGAS (m3/s) | FT3: ETA 1 | FU3: ETA 2 | FW3: 2024/25 | FX3: 2024/25 | FY3: P-423 | FZ3: P-609 | GC3: DESCARGAS (m3/s) | GI3: ETA 1 | GJ3: ETA 2
A4: 2023-10-01 | B4: =A4 -> 2023-10-01 | C4: 336 | D4: 327 | E4: 0.353 | F4: 8.42 | H4: =336-(9.86-F4) -> 334.56 | J4: =336-(9.86-K4) -> 333.61 | K4: 7.47 | N4: =M4-E4 -> -0.353 | Q4: =(M4/3.9)*100 -> 0 | R4: =N4/3.25 -> -0.1086153846 | S4: =336-(9.86-T4) -> 334.45 | T4: 8.31 | W4: =V4-E4 -> -0.353 | Z4: =(V4/3.9)*100 -> 0 | AA4: =(W4/3.25)*100 -> -10.86153846 | AB4: 2308120 | AC4: 6398707 | AD4: 25416 | AE4: 25416 | AF4: 336 | AH4: =336-(9.86-AI4) -> 334.55 | AI4: 8.41 | AM4: =AL4-E4 -> -0.353 | AN4: =((AH4-336)^(3/2))*1.838*133 ->  | AO4: =AN4*24*3600 ->  | AP4: =(AL4/3.9)*100 -> 0 | AQ4: =(AM4/3.25)*100 -> -10.86153846 | AR4: =AP4-Z4 -> 0 | AS4: =AN4-X4 ->  | AT4: 6784154 | AU4: 2088151 | AV4: =AT4+AU4-(#REF!+#REF!) ->  | AW4: =AV4 ->  | AY4: =336-(9.86-AZ4) -> 334.97 | AZ4: 8.83 | BC4: 3.326 | BD4: =BC4-V4 -> 3.326 | BE4: =((AY4-336)^(3/2))*1.838*133 ->  | BF4: =BE4*24*3600 ->  | BG4: =(BC4/3.9)*100 -> 85.28205128 | BH4: =(BD4/3.25)*100 -> 102.3384615 | BI4: =BG4-AP4 -> 85.28205128 | BJ4: =BE4-AN4 ->  | BK4: 2251926 | BL4: 8822556 | BM4: =BK4+BL4-(2236439+8804978) -> 33065 | BN4: =BM4 -> 33065 | BP4: =336-(9.86-BQ4) -> 332.98 | BQ4: 6.84 | BT4: 2.185 | BU4: =BT4-E4 -> 1.832 | BV4: =((BP4-336)^(3/2))*1.838*133 ->  | BW4: =BV4*24*3600 ->  | BX4: =(BT4/3.9)*100 -> 56.02564103 | BY4: =(BU4/3.25)*100 -> 56.36923077 | BZ4: =BX4-BG4 -> -29.25641026 | CA4: =BV4-BE4 ->  | CB4: 6586093 | CD4: =CB4+CC4-(6550189+0) -> 35904 | CE4: =CD4 -> 35904 | CG4: =336-(9.86-CH4) -> 335.11 | CH4: 8.97 | CK4: 3.258 | CL4: =CK4-E4 -> 2.905 | CM4: =((CG4-336)^(3/2))*1.838*133 ->  | CN4: =CM4*24*3600 ->  | CO4: =(CK4/3.9)*100 -> 83.53846154 | CP4: =(CL4/3.25)*100 -> 89.38461538 | CQ4: =CO4-BX4 -> 27.51282051 | CR4: =CM4-BU4 ->  | CS4: 1640707 | CT4: 4400273 | CU4: =CS4+CT4- (1626025+4377946) -> 37009 | CV4: =CU4 -> 37009 | CX4: =336-(9.86-CY4) -> 335.54 | CY4: 9.4 | DB4: 3.33 | DC4: =DB4-0.353 -> 2.977 | DD4: =((CX4-336)^(3/2))*1.838*133 ->  | DE4: =DD4*24*3600 ->  | DF4: =(DB4/3.8)*100 -> 87.63157895 | DG4: =DF4-0.353 -> 87.27857895 | DH4: =DF4-CO4 -> 4.093117409 | DI4: =DD4-CL4 ->  | DJ4: 65518406 | DK4: 2687412 | DL4: =(DJ4+DK4)-(65502786+2664549) -> 38483 | DM4: =DL4 -> 38483 | DN4: =336-(9.86-DO4) -> 331.54 | DO4: 5.4 | DR4: 1.695 | DS4: =DR4-0.353 -> 1.342 | DT4: =((DN4-336)^(3/2))*1.838*133 ->  | DU4: =DT4*24*3600 ->  | DV4: =(DR4/3.8)*100 -> 44.60526316 | DW4: =DV4-0.353 -> 44.25226316 | DX4: =DV4-DF4 -> -43.02631579 | DY4: =DT4-DB4 ->  | DZ4: 13655 | EA4: 22201 | EB4: =(DZ4+EA4)-(65502786+2664549) -> -68131479 | EC4: =EB4 -> -68131479 | ED4: =336-(9.86-EE4) -> 334.26 | EE4: 8.12 | EF4: 0 | EG4: 0 | EH4: 2.491 | EI4: =EH4-0.353 -> 2.138 | EJ4: =((ED4-336)^(3/2))*1.838*133 ->  | EK4: =EJ4*24*3600 ->  | EL4: =(EH4/3.8)*100 -> 65.55263158 | EM4: =EL4-0.353 -> 65.19963158 | EN4: =EL4-DV4 -> 20.94736842 | EO4: =EJ4-DR4 ->  | EP4: 12541 | EQ4: 17994 | ER4: =SUM(EP4+EQ4) -> 30535 | ES4: =336-(9.86-ET4) -> 334.4 | ET4: 8.26 | EW4: 2.78 | EX4: =EW4-0.353 -> 2.427 | EY4: =((ES4-336)^(3/2))*1.838*133 ->  | EZ4: =EY4*24*3600 ->  | FA4: =(EW4/3.8)*100 -> 73.15789474 | FB4: =(EX4/3.447)*100 -> 70.40905135 | FC4: =FA4-EL4 -> 7.605263158 | FD4: =EY4-EH4 ->  | FE4: 8524 | FF4: 16567 | FG4: =SUM(FE4+FF4) -> 25091 | FH4: =336-(9.86-FI4) -> 335.36 | FI4: 9.22 | FJ4: 0 | FK4: 0 | FL4: 3.32 | FM4: =FL4-0.353 -> 2.967 | FN4: =((FH4-336)^(3/2))*1.838*133 ->  | FO4: =FN4*24*3600 ->  | FP4: =(FL4/3.8)*100 -> 87.36842105 | FQ4: =(FM4/3.447)*100 -> 86.07484769 | FR4: =FP4-FA4 -> 14.21052632 | FS4: =FN4-EW4 ->  | FT4: 11135 | FU4: 13645 | FV4: =SUM(FT4+FU4) -> 24780 | FW4: =336-(9.86-FX4) -> 333.63 | FX4: 7.49 | FY4: 0 | FZ4: 0 | GA4: 2.51 | GB4: =GA4-0.353 -> 2.157 | GC4: =((FW4-336)^(3/2))*1.838*133 ->  | GD4: =GC4*24*3600 ->  | GE4: =(GA4/3.8)*100 -> 66.05263158 | GF4: =(GB4/3.447)*100 -> 62.57615318 | GG4: =GE4-FP4 -> -21.31578947 | GH4: =GC4-FL4 ->  | GI4: 11587 | GJ4: 13373 | GK4: =SUM(GI4+GJ4) -> 24960
A5: =A4+1 -> 2023-10-02 | B5: =A5 -> 2023-10-02 | C5: 336 | D5: 327 | E5: 0.353 | F5: 8.39 | H5: =336-(9.86-F5) -> 334.53 | J5: =336-(9.86-K5) -> 333.57 | K5: 7.43 | N5: =M5-E5 -> -0.353 | Q5: 0 | R5: =N5/3.25 -> -0.1086153846 | S5: =336-(9.86-T5) -> 334.4 | T5: 8.26 | Z5: =(V5/3.9)*100 -> 0 | AA5: =(W5/3.25)*100 -> 0 | AB5: 2311164 | AC5: 6418208 | AD5: =AB5+AC5-(AB4+AC4) -> 22545 | AE5: =AE4+AD5 -> 47961 | AF5: 336 | AH5: =336-(9.86-AI5) -> 334.53 | AI5: 8.39 | AM5: -0.353 | AN5: =((AH5-336)^(3/2))*1.838*133 ->  | AO5: =AN5*24*3600 ->  | AP5: =(AL5/3.9)*100 -> 0 | AQ5: =(AM5/3.25)*100 -> -10.86153846 | AR5: 0 | AS5: =AN5-X5 ->  | AT5: 6791458 | AU5: 2107910 | AV5: =AT5+AU5-(AT4+AU4) -> 27063 | AW5: =AV5 -> 27063 | AY5: 334.86 | AZ5: 8.72 | BC5: 2.98 | BD5: 2.98 | BE5: =((AY5-336)^(3/2))*1.838*133 ->  | BF5: =BE5*24*3600 ->  | BG5: =(BC5/3.9)*100 -> 76.41025641 | BH5: =(BD5/3.25)*100 -> 91.69230769 | BI5: 76.41025641 | BJ5: =BE5-AN5 ->  | BK5: 2268250 | BL5: 8842024 | BM5: =BK5+BL5-(BK4+BL4) -> 35792 | BN5: =BM5 -> 35792 | BP5: =336-(9.86-BQ5) -> 332.93 | BQ5: 6.79 | BT5: 2.2 | BU5: =BT5-E5 -> 1.847 | BV5: =((BP5-336)^(3/2))*1.838*133 ->  | BW5: =BV5*24*3600 ->  | BX5: =(BT5/3.9)*100 -> 56.41025641 | BY5: =(BU5/3.25)*100 -> 56.83076923 | BZ5: -20 | CA5: =BV5-BE5 ->  | CB5: 6610856 | CD5: =CB5+CC5-(CB4+CC4) -> 24763 | CE5: =CD5 -> 24763 | CG5: 335.06 | CH5: 8.92 | CK5: 3.254 | CL5: 2.901 | CM5: =((CG5-336)^(3/2))*1.838*133 ->  | CN5: =CM5*24*3600 ->  | CO5: =(CK5/3.9)*100 -> 83.43589744 | CP5: =(CL5/3.25)*100 -> 89.26153846 | CQ5: =CO5-BX5 -> 27.02564103 | CR5: =CM5-BU5 ->  | CS5: 1655813 | CT5: 4425361 | CU5: =CS5+CT5- (1640707+4400273) -> 40194 | CV5: =CU5 -> 40194 | CX5: 335.52 | CY5: 9.38 | DB5: 3.326 | DC5: =DB5-0.353 -> 2.973 | DD5: =((CX5-336)^(3/2))*1.838*133 ->  | DE5: =DD5*24*3600 ->  | DF5: 87.52631579 | DG5: 87.17331579 | DH5: =DF5-CO5 -> 4.090418354 | DI5: =DD5-CL5 ->  | DJ5: 65532482 | DK5: 2721441 | DL5: 38105 | DM5: =DL5 -> 38105 | DN5: 331.45 | DO5: 5.31 | DR5: 1.685 | DS5: =DR5-0.353 -> 1.332 | DT5: =((DN5-336)^(3/2))*1.838*133 ->  | DU5: =DT5*24*3600 ->  | DV5: 44.34210526 | DW5: 43.98910526 | DX5: =DV5-DF5 -> -43.18421053 | DY5: =DT5-DB5 ->  | EB5: =(DZ5+EA5)-(65502786+2664549) -> -68167335 | EC5: -68167335 | ED5: 334.24 | EE5: 8.1 | EF5: 0 | EG5: 0 | EI5: =EH5-0.353 -> -0.353 | EJ5: =((ED5-336)^(3/2))*1.838*133 ->  | EK5: =EJ5*24*3600 ->  | EL5: 0 | EM5: -0.353 | EN5: -44.34210526 | EP5: 12457 | EQ5: 18086 | ER5: 30543 | ES5: 334.39 | ET5: 8.25 | EW5: 2.775 | EX5: =EW5-0.353 -> 2.422 | EY5: =((ES5-336)^(3/2))*1.838*133 ->  | EZ5: =EY5*24*3600 ->  | FA5: 73.02631579 | FB5: =(EX5/3.447)*100 -> 70.26399768 | FC5: 73.02631579 | FE5: 12334 | FF5: 26067 | FG5: =SUM(FE5+FF5) -> 38401 | FH5: =336-(9.86-FI5) -> 335.34 | FI5: 9.2 | FJ5: 0 | FK5: 0 | FL5: 3.318 | FM5: =FL5-0.353 -> 2.965 | FN5: =((FH5-336)^(3/2))*1.838*133 ->  | FO5: =FN5*24*3600 ->  | FP5: 87.31578947 | FQ5: 86.01682623 | FR5: 14.28947368 | FT5: 11282 | FU5: 13668 | FV5: 24950 | FW5: =336-(9.86-FX5) -> 333.58 | FX5: 7.44 | FY5: 0 | FZ5: 0 | GA5: 2.49 | GB5: =GA5-0.353 -> 2.137 | GC5: =((FW5-336)^(3/2))*1.838*133 ->  | GD5: =GC5*24*3600 ->  | GE5: =(GA5/3.8)*100 -> 65.52631579 | GF5: =(GB5/3.447)*100 -> 61.9959385 | GG5: =GE5-FP5 -> -21.78947368 | GH5: =GC5-FL5 ->  | GI5: 11270 | GJ5: 14170 | GK5: =SUM(GI5+GJ5) -> 25440
A6: =A5+1 -> 2023-10-03 | B6: 2023-10-03 | C6: 336 | D6: 327 | E6: 0.353 | F6: 8.34 | H6: 334.48 | J6: 333.53 | K6: 7.39 | N6: -0.353 | Q6: 0 | R6: -0.1086153846 | S6: 334.35 | T6: 8.21 | Z6: 0 | AA6: 0 | AB6: 2322127 | AC6: 6438269 | AD6: =AB6+AC6-(AB5+AC5) -> 31024 | AE6: =AE5+AD6 -> 78985 | AF6: 336 | AH6: 334.45 | AI6: 8.31 | AM6: -0.353 | AP6: 0 | AQ6: -10.86153846 | AR6: 0 | AT6: 6797905 | AU6: 2127577 | AV6: =AT6+AU6-(AT5+AU5) -> 26114 | AW6: 26114 | AY6: 334.87 | AZ6: 8.73 | BC6: 2.976 | BD6: 2.976 | BE6: =((AY6-336)^(3/2))*1.838*133 ->  | BG6: 76.30769231 | BH6: 91.56923077 | BI6: 76.30769231 | BK6: 2283040 | BL6: 8860154 | BM6: 32920 | BN6: =BM6 -> 32920 | BP6: =336-(9.86-BQ6) -> 332.88 | BQ6: 6.74 | BT6: 2.14 | BU6: 1.787 | BX6: 54.87179487 | BY6: 54.98461538 | BZ6: -21.43589744 | CB6: 6629950 | CD6: 19094 | CE6: =CD6 -> 19094 | CG6: 335.03 | CH6: 8.89 | CK6: 3.25 | CL6: 2.897 | CO6: 83.33333333 | CP6: 89.13846154 | CQ6: 28.46153846 | CS6: 1671068 | CT6: 4450143 | CU6: =CS6+CT6- (CS5+CT5) -> 40037 | CV6: 40037 | CX6: 335.52 | CY6: 9.38 | CZ6: 19 | DA6: 19 | DB6: 3.326 | DC6: 2.973 | DF6: 87.52631579 | DG6: 87.17331579 | DH6: =DF6-CO6 -> 4.192982456 | DJ6: 65543772 | DK6: 2740480 | DL6: =DJ6+DK6- (DJ5+DK5) -> 30329 | DM6: 30329 | DN6: 331.39 | DO6: 5.25 | DR6: 1.62 | DS6: 1.267 | DV6: 42.63157895 | DW6: 42.27857895 | DX6: -44.89473684 | EB6: -68167335 | EC6: -68167335 | ED6: 334.22 | EE6: 8.08 | EF6: 0 | EG6: 0 | EI6: -0.353 | EL6: 0 | EM6: -0.353 | EN6: -42.63157895 | EP6: 12743 | EQ6: 18448 | ER6: 31191 | ES6: 334.35 | ET6: 8.21 | EW6: 2.765 | EX6: 2.412 | FA6: 72.76315789 | FB6: 69.97389034 | FC6: 72.76315789 | FE6: 13128 | FF6: 27802 | FG6: 40930 | FH6: =336-(9.86-FI6) -> 335.31 | FI6: 9.17 | FJ6: 0 | FK6: 0 | FL6: 3.316 | FM6: 2.963 | FP6: 87.26315789 | FQ6: 85.95880476 | FR6: 14.5 | FT6: 11405 | FU6: 13315 | FV6: 24720 | FW6: =336-(9.86-FX6) -> 333.53 | FX6: 7.39 | FY6: 0 | FZ6: 0 | GA6: 2.45 | GB6: =GA6-0.353 -> 2.097 | GC6: =((FW6-336)^(3/2))*1.838*133 ->  | GD6: =GC6*24*3600 ->  | GE6: =(GA6/3.8)*100 -> 64.47368421 | GF6: =(GB6/3.447)*100 -> 60.83550914 | GG6: =GE6-FP6 -> -22.78947368 | GH6: =GC6-FL6 ->  | GI6: 10514 | GJ6: 11926 | GK6: 22440
A7: 2023-10-04 | B7: 2023-10-04 | C7: 336 | D7: 327 | E7: 0.353 | F7: 8.27 | H7: 334.41 | J7: 333.51 | K7: 7.37 | N7: -0.353 | Q7: 0 | R7: -0.1086153846 | S7: 334.31 | T7: 8.17 | Z7: 0 | AA7: 0 | AB7: 2326747 | AC7: 6460108 | AD7: 26459 | AE7: =AE6+AD7 -> 105444 | AF7: 336 | AH7: 334.43 | AI7: 8.29 | AM7: -0.353 | AP7: 0 | AQ7: -10.86153846 | AR7: 0 | AT7: 6805203 | AU7: 2144780 | AV7: 24501 | AW7: 24501 | AY7: 334.83 | AZ7: 8.69 | BC7: 2.972 | BD7: 2.972 | BG7: 76.20512821 | BH7: 91.44615385 | BI7: 76.20512821 | BK7: 2297629 | BL7: 8877584 | BM7: =BK7+BL7-(BK6+BL6) -> 32019 | BN7: 32019 | BP7: 332.84 | BQ7: 6.7 | BT7: 2.136 | BU7: 1.486 | BX7: 54.76923077 | BY7: 45.72307692 | BZ7: -21.43589744 | CB7: 6651360 | CD7: 21410 | CE7: =CD7 -> 21410 | CG7: 334.98 | CH7: 8.84 | CK7: 3.246 | CL7: 2.893 | CO7: 83.23076923 | CP7: 89.01538462 | CQ7: 28.46153846 | CS7: 1677315 | CT7: 4471292 | CU7: =CS7+CT7- (CS6+CT6) -> 27396 | CV7: 27396 | CX7: 335.47 | CY7: 9.33 | DB7: 3.375 | DC7: 3.022 | DF7: 88.81578947 | DG7: 88.46278947 | DH7: 5.585020243 | DJ7: 65572736 | DK7: 2786323 | DL7: 36749 | DM7: 36749 | DN7: 331.31 | DO7: 5.17 | DR7: 1.6 | DS7: 1.247 | DV7: 42.10526316 | DW7: 41.75226316 | DX7: -46.71052632 | EB7: -68167335 | EC7: -68167335 | ED7: 334.14 | EE7: 8 | EF7: 0 | EG7: 0 | EI7: -0.353 | EL7: 0 | EM7: -0.353 | EN7: -42.10526316 | EP7: 12540 | EQ7: 18219 | ER7: 30759 | ES7: 334.33 | ET7: 8.19 | EW7: 3.032 | EX7: 2.679 | FA7: 79.78947368 | FB7: 77.71975631 | FC7: 79.78947368 | FE7: 12888 | FF7: 27514 | FG7: 40402 | FH7: =336-(9.86-FI7) -> 335.28 | FI7: 9.14 | FJ7: 0 | FK7: 0 | FL7: 3.31 | FM7: 2.957 | FP7: 87.10526316 | FQ7: 85.78474035 | FR7: 7.315789474 | FT7: 9253 | FU7: 10447 | FV7: 19700 | FW7: 333.48 | FX7: 7.34 | FY7: 0 | FZ7: 0 | GA7: 2.43 | GB7: 2.077 | GE7: =(GA7/3.8)*100 -> 63.94736842 | GF7: 60.25529446 | GG7: -23.15789474 | GI7: 11946 | GJ7: 12774 | GK7: 24720
A8: 2023-10-05 | B8: 2023-10-05 | C8: 336 | D8: 327 | E8: 0.353 | F8: 8.27 | H8: 334.41 | J8: 333.51 | K8: 7.37 | N8: -0.353 | Q8: 0 | R8: -0.1086153846 | S8: 334.31 | T8: 8.17 | Z8: 0 | AA8: 0 | AB8: 2326747 | AC8: 6460108 | AD8: 0 | AE8: 105444 | AF8: 336 | AH8: 334.43 | AI8: 8.29 | AM8: -0.353 | AN8: =1+AN7 ->  | AO8: =1+AO7 ->  | AP8: 0 | AQ8: -10.86153846 | AR8: 0 | AS8: =1+AS7 ->  | AT8: 6805203 | AU8: 2144780 | AV8: =1+AV7 -> 1967-01-30 | AW8: 24502 | AY8: 334.83 | AZ8: 8.69 | BC8: 2.972 | BD8: 2.972 | BE8: =1+BE7 ->  | BF8: =1+BF7 ->  | BG8: 76.20512821 | BH8: 91.44615385 | BI8: 76.20512821 | BJ8: =1+BJ7 ->  | BK8: 2297629 | BL8: 8877584 | BM8: 0 | BN8: 0 | BP8: 332.84 | BQ8: 6.7 | BT8: 2.136 | BU8: 1.486 | BV8: =1+BV7 ->  | BW8: =1+BW7 ->  | BX8: 54.76923077 | BY8: 45.72307692 | BZ8: -21.43589744 | CA8: =1+CA7 ->  | CB8: 6651360 | CG8: 334.98 | CH8: 8.84 | CK8: 3.246 | CL8: 2.893 | CM8: =1+CM7 ->  | CN8: =1+CN7 ->  | CO8: 83.23076923 | CP8: 89.01538462 | CQ8: 28.46153846 | CR8: =1+CR7 ->  | CS8: 1677315 | CT8: 4471292 | CU8: =1+CU7 -> 1975-01-03 | CV8: 27397 | CX8: 335.47 | CY8: 9.33 | DB8: 3.375 | DC8: 3.022 | DD8: =1+DD7 ->  | DE8: =1+DE7 ->  | DF8: 88.81578947 | DG8: 88.46278947 | DH8: 5.585020243 | DI8: =1+DI7 ->  | DJ8: 65572736 | DK8: 2786323 | DL8: 36749 | DM8: 36749 | DN8: 331.22 | DO8: 5.08 | DR8: 1.655 | DS8: 1.302 | DV8: 43.55263158 | DW8: 43.19963158 | DX8: -45.26315789 | EB8: -68167335 | EC8: -68167335 | ED8: 334.12 | EE8: 7.98 | EF8: 0 | EG8: 0 | EI8: -0.353 | EL8: 0 | EM8: -0.353 | EN8: -43.55263158 | EP8: 12390 | EQ8: 18070 | ER8: 30460 | ES8: 334.29 | ET8: 8.15 | EW8: 2.74 | EX8: 2.387 | FA8: 72.10526316 | FB8: 69.24862199 | FC8: 72.10526316 | FE8: 12372 | FF8: 26113 | FG8: =SUM(FE8+FF8) -> 38485 | FH8: =336-(9.86-FI8) -> 335.26 | FI8: 9.12 | FJ8: 0 | FK8: 0 | FL8: 3.3 | FM8: 2.947 | FP8: 86.84210526 | FQ8: 85.49463301 | FR8: 14.73684211 | FT8: 12685 | FU8: 16515 | FV8: 29200 | FW8: 333.44 | FX8: 7.3 | FY8: 0 | FZ8: 0 | GA8: 2.41 | GB8: 2.057 | GE8: 63.42105263 | GF8: 59.67507978 | GG8: -23.42105263 | GI8: 10830 | GJ8: 13530 | GK8: 24360
A9: 2023-10-06 | B9: 2023-10-06 | C9: 336 | D9: 327 | E9: 0.353 | F9: 8.23 | H9: 334.37 | J9: 333.43 | K9: 7.29 | N9: -0.353 | Q9: 0 | R9: -0.1086153846 | S9: 334.23 | T9: 8.09 | Z9: 0 | AA9: 0 | AB9: 2326747 | AC9: 6504060 | AD9: 43952 | AE9: 149396 | AF9: 336 | AH9: 334.38 | AI9: 8.24 | AM9: -0.353 | AP9: 0 | AQ9: -10.86153846 | AR9: 0 | AT9: 6820562 | AU9: 2177002 | AV9: 47581 | AW9: 47581 | AY9: 334.83 | AZ9: 8.69 | BC9: 2.89 | BD9: 2.89 | BG9: 74.1025641 | BH9: 88.92307692 | BI9: 74.1025641 | BK9: 2297629 | BL9: 8912810 | BM9: 35226 | BN9: 35226 | BP9: 332.84 | BQ9: 6.7 | BT9: 2.128 | BU9: 1.486 | BX9: 54.56410256 | BY9: 45.72307692 | BZ9: -19.53846154 | CB9: 6651360 | CD9: 0 | CG9: 334.98 | CH9: 8.84 | CK9: 3.246 | CL9: 2.893 | CO9: 83.23076923 | CP9: 89.01538462 | CQ9: 28.66666667 | CS9: 1707314 | CT9: 4471292 | CU9: =CS9+CT9- (CS8+CT8) -> 29999 | CV9: 29999 | CX9: 335.47 | CY9: 9.33 | DB9: 3.375 | DC9: 3.022 | DF9: 88.81578947 | DG9: 88.46278947 | DH9: 5.585020243 | DJ9: 65572736 | DK9: 2786323 | DL9: 38638 | DM9: 38638 | DN9: 331.12 | DO9: 4.98 | DR9: 1.62 | DS9: 1.267 | DV9: 42.63157895 | DW9: 42.27857895 | DX9: -46.18421053 | EB9: -68167335 | EC9: -68167335 | ED9: 334.05 | EE9: 7.91 | EF9: 0 | EG9: 0 | EI9: -0.353 | EL9: 0 | EM9: -0.353 | EN9: -42.63157895 | EP9: 12495 | EQ9: 17978 | ER9: 30473 | ES9: 334.2 | ET9: 8.06 | EW9: 2.63 | EX9: 2.277 | FA9: 69.21052632 | FB9: 66.05744125 | FC9: 69.21052632 | FE9: 12865 | FF9: 27070 | FG9: 39935 | FH9: 335.23 | FI9: 9.09 | FJ9: 0 | FK9: 0 | FL9: 3.25 | FM9: 2.897 | FP9: 85.52631579 | FQ9: 84.04409632 | FR9: 16.31578947 | FT9: 14082 | FU9: 18958 | FV9: 33040 | FW9: 333.4 | FX9: 7.26 | FY9: 0 | FZ9: 0 | GA9: 2.4 | GB9: 2.047 | GE9: 63.15789474 | GF9: 59.38497244 | GG9: -22.36842105 | GI9: 10760 | GJ9: 13960 | GK9: 24720
A10: 2023-10-07 | B10: 2023-10-07 | C10: 336 | D10: 327 | E10: 0.353 | F10: 8.2 | H10: 334.34 | J10: 333.39 | K10: 7.25 | N10: -0.353 | Q10: 0 | R10: -0.1086153846 | S10: 334.19 | T10: 8.05 | Z10: 0 | AA10: 0 | AB10: 2343078 | AC10: 6523427 | AD10: 35698 | AE10: 185094 | AF10: 336 | AH10: 334.32 | AI10: 8.18 | AL10: 2.9 | AM10: 2.547 | AP10: 74.35897436 | AQ10: 78.36923077 | AR10: 74.35897436 | AT10: 6832957 | AU10: 2195534 | AV10: 30927 | AW10: 30927 | AY10: 334.69 | AZ10: 8.55 | BC10: 2.864 | BD10: 2.864 | BG10: 73.43589744 | BH10: 88.12307692 | BI10: -0.9230769231 | BK10: 2343159 | BL10: 8930870 | BM10: 63590 | BN10: 63590 | BP10: 332.71 | BQ10: 6.57 | BT10: 2.124 | BU10: 1.771 | BX10: 54.46153846 | BY10: 54.49230769 | BZ10: -18.97435897 | CB10: 6717818 | CD10: 66458 | CE10: 66458 | CG10: 334.82 | CH10: 8.68 | CK10: 3.234 | CL10: 2.881 | CO10: 82.92307692 | CP10: 88.64615385 | CQ10: 28.46153846 | CS10: 1721202 | CT10: 4543638 | CU10: 86234 | CV10: 86234 | CX10: 335.61 | CY10: 9.47 | DB10: 3.43 | DC10: 3.077 | DF10: 90.26315789 | DG10: 89.91015789 | DH10: 7.340080972 | DJ10: 65752004 | DK10: 2831051 | DL10: 37558 | DM10: 37558 | DN10: 331.03 | DO10: 4.89 | DR10: 1.631 | DS10: 1.278 | DV10: 42.92105263 | DW10: 42.56805263 | DX10: -47.34210526 | EB10: -68167335 | EC10: -68167335 | ED10: 334 | EE10: 7.86 | EF10: 0 | EG10: 0 | EI10: -0.353 | EL10: 0 | EM10: -0.353 | EN10: -42.92105263 | EP10: 12634 | EQ10: 18238 | ER10: 30872 | ES10: 334.14 | ET10: 8 | EW10: 2.622 | EX10: 2.269 | FA10: 69 | FB10: 65.82535538 | FC10: 69 | FE10: 12768 | FF10: 27046 | FG10: 39814 | FH10: 335.17 | FI10: 9.03 | FJ10: 0 | FK10: 0 | FL10: 3.2 | FM10: 2.847 | FP10: 84.21052632 | FQ10: 82.59355962 | FR10: 15.21052632 | FT10: 13845 | FU10: 20235 | FV10: 34080 | FW10: 333.36 | FX10: 7.22 | FY10: 0 | FZ10: 0 | GA10: 2.38 | GB10: 2.027 | GE10: 62.63157895 | GF10: 58.80475776 | GG10: -21.57894737 | GI10: 14127 | GJ10: 13233 | GK10: 27360
A11: 2023-10-08 | B11: 2023-10-08 | C11: 336 | D11: 327 | E11: 0.353 | F11: 8.17 | H11: 334.31 | J11: 333.35 | K11: 7.21 | N11: -0.353 | Q11: 0 | R11: -0.1086153846 | S11: 334.15 | T11: 8.01 | V11: 2.7 | Z11: 69.23076923 | AA11: 0 | AB11: 2348499 | AC11: 6545109 | AD11: 27103 | AE11: 212197 | AF11: 336 | AH11: 334.29 | AI11: 8.15 | AM11: -0.353 | AP11: 0 | AQ11: -10.86153846 | AR11: -69.23076923 | AT11: 6843098 | AU11: 2214028 | AV11: 28635 | AW11: 28635 | AY11: 334.7 | AZ11: 8.56 | BC11: 2.86 | BD11: 0.16 | BE11: =((AY11-336)^(3/2))*1.838*133 ->  | BG11: 73.33333333 | BH11: 4.923076923 | BI11: 73.33333333 | BK11: 2357385 | BL11: 8952096 | BM11: 35452 | BN11: 35452 | BP11: 332.66 | BQ11: 6.52 | BT11: 2.1 | BU11: 1.747 | BX11: 53.84615385 | BY11: 53.75384615 | BZ11: -19.48717949 | CB11: 6740032 | CD11: 22214 | CE11: 22214 | CG11: 334.78 | CH11: 8.64 | CK11: 3.23 | CL11: 2.877 | CO11: 82.82051282 | CP11: 88.52307692 | CQ11: 28.97435897 | CS11: 1736414 | CT11: 4567552 | CU11: 39126 | CV11: 39126 | CX11: 335.7 | CY11: 9.56 | CZ11: 31 | DA11: 15.1 | DB11: 3.162 | DC11: 2.809 | DF11: 83.21052632 | DG11: 82.85752632 | DH11: 0.3900134953 | DJ11: 65581367 | DK11: 2854563 | DL11: 32143 | DM11: =DL11 -> 32143 | DN11: 330.97 | DO11: 4.83 | DR11: 1.624 | DS11: 1.271 | DV11: 42.73684211 | DW11: 42.38384211 | DX11: -40.47368421 | EB11: -68167335 | EC11: -68167335 | ED11: 333.95 | EE11: 7.81 | EF11: 0 | EG11: 0 | EI11: =EH11-0.353 -> -0.353 | EL11: 0 | EM11: -0.353 | EN11: -42.73684211 | EP11: 12505 | EQ11: 18019 | ER11: 30524 | ES11: 334.07 | ET11: 7.93 | EW11: 2.618 | EX11: 2.265 | FA11: 68.89473684 | FB11: 65.70931245 | FC11: 68.89473684 | FE11: 12465 | FF11: 26443 | FG11: 38908 | FH11: 335.14 | FI11: 9 | FJ11: 0 | FK11: 0 | FL11: 3.18 | FM11: 2.827 | FP11: 83.68421053 | FQ11: 82.01334494 | FR11: 14.78947368 | FT11: 12096 | FU11: 20496 | FV11: 32592 | FW11: 333.31 | FX11: 7.17 | FY11: 0 | FZ11: 0 | GA11: 2.355 | GB11: 2.002 | GE11: 61.97368421 | GF11: 58.07948941 | GG11: -21.71052632 | GI11: 12178 | GJ11: 13982 | GK11: 26160
A12: 2023-10-09 | B12: 2023-10-09 | C12: 336 | D12: 327 | E12: 0.353 | F12: 8.13 | H12: 334.27 | J12: 333.32 | K12: 7.18 | N12: -0.353 | Q12: 0 | R12: -0.1086153846 | S12: 334.11 | T12: 7.97 | V12: 2.69 | Z12: 68.97435897 | AA12: 0 | AB12: 2351687 | AC12: 6567384 | AD12: 25463 | AE12: 237660 | AF12: 336 | AH12: 334.26 | AI12: 8.12 | AM12: -0.353 | AP12: 0 | AQ12: -10.86153846 | AR12: -68.97435897 | AT12: 6846481 | AU12: 2219993 | AV12: 9348 | AW12: 9348 | AY12: 334.63 | AZ12: 8.49 | BC12: 2.856 | BD12: 0.166 | BE12: =((AY12-336)^(3/2))*1.838*133 ->  | BG12: 73.23076923 | BH12: 5.107692308 | BI12: 73.23076923 | BK12: 2372642 | BL12: 8965919 | BM12: 29080 | BN12: 29080 | BP12: 332.61 | BQ12: 6.47 | BT12: 2.055 | BU12: 1.702 | BX12: 52.69230769 | BY12: 52.36923077 | BZ12: -20.53846154 | CB12: 6765592 | CD12: 25560 | CE12: 25560 | CG12: 334.73 | CH12: 8.59 | CK12: 3 | CL12: 2.647 | CO12: 76.92307692 | CP12: 81.44615385 | CQ12: 24.23076923 | CS12: 1747716 | CT12: 4590812 | CU12: 34562 | CV12: =CU12 -> 34562 | CX12: 335.72 | CY12: 9.58 | DB12: 3.52 | DC12: 3.167 | DF12: 92.63157895 | DG12: 92.27857895 | DH12: 15.70850202 | DJ12: 6567504 | DK12: 2876850 | DL12: 32100 | DM12: 32100 | DN12: 330.94 | DO12: 4.8 | DR12: 1.62 | DS12: 1.267 | DV12: 42.63157895 | DW12: 42.27857895 | DX12: -50 | EB12: -68167335 | EC12: -68167335 | ED12: 333.9 | EE12: 7.76 | EF12: 0 | EG12: 0 | EI12: -0.353 | EL12: 0 | EM12: -0.353 | EN12: -42.63157895 | EP12: 13311 | EQ12: 17581 | ER12: 30892 | ES12: 333.99 | ET12: 7.85 | EW12: 2.599 | EX12: 2.246 | FA12: 68.39473684 | FB12: 65.1581085 | FC12: 68.39473684 | FE12: 12327 | FF12: 26181 | FG12: =SUM(FE12+FF12) -> 38508 | FH12: 335.11 | FI12: 8.97 | FJ12: 0 | FK12: 0 | FL12: 3.15 | FM12: 2.797 | FP12: 82.89473684 | FQ12: 81.14302292 | FR12: 14.5 | FT12: 13797 | FU12: 18603 | FV12: 32400 | FW12: 333.26 | FX12: 7.12 | FY12: 0 | FZ12: 0 | GA12: 2.325 | GB12: 1.972 | GE12: 61.18421053 | GF12: 57.20916739 | GG12: -21.71052632 | GI12: 11144 | GJ12: 15136 | GK12: 26280
A13: 2023-10-10 | B13: 2023-10-10 | C13: 336 | D13: 327 | E13: 0.353 | F13: 8.09 | H13: 334.23 | J13: 333.28 | K13: 7.14 | N13: -0.353 | Q13: 0 | R13: -0.1086153846 | S13: 334.06 | T13: 7.92 | V13: 2.68 | Z13: 68.71794872 | AA13: 0 | AB13: 2355734 | AC13: 6589217 | AD13: 25880 | AE13: 263540 | AF13: 336 | AH13: 334.23 | AI13: 8.09 | AL13: 2.9 | AM13: 2.547 | AP13: 74.35897436 | AQ13: 78.36923077 | AR13: 5.641025641 | AT13: 6859257 | AU13: 2236854 | AV13: 29637 | AW13: 29637 | AY13: 334.58 | AZ13: 8.44 | BC13: 2.899 | BD13: 0.219 | BG13: 74.33333333 | BH13: 6.738461538 | BI13: -0.02564102564 | BK13: 2382130 | BL13: 8975694 | BM13: 19263 | BN13: 19263 | BP13: 332.54 | BQ13: 6.4 | BT13: 2.025 | BU13: 1.672 | BV13: =((BP13-336)^(3/2))*1.838*133 ->  | BX13: 51.92307692 | BY13: 51.44615385 | BZ13: -22.41025641 | CD13: -6765592 | CG13: 334.68 | CH13: 8.54 | CK13: 2.982 | CL13: 2.629 | CO13: 76.46153846 | CP13: 80.89230769 | CQ13: 24.53846154 | CS13: 1762743 | CT13: 4616426 | CU13: 40641 | CV13: 40641 | CX13: 335.74 | CY13: 9.6 | DB13: 3.476 | DC13: 3.123 | DF13: 91.47368421 | DG13: 91.12068421 | DH13: 15.01214575 | DJ13: 6581890 | DK13: 28799716 | DL13: 37252 | DM13: 37252 | DN13: 330.89 | DO13: 4.75 | DR13: 1.614 | DS13: 1.261 | DV13: 42.47368421 | DW13: 42.12068421 | DX13: -49 | EB13: -68167335 | EC13: -68167335 | ED13: 333.85 | EE13: 7.71 | EF13: 0 | EG13: 0 | EI13: -0.353 | EL13: 0 | EM13: -0.353 | EN13: -42.47368421 | EP13: 12116 | EQ13: 17361 | ER13: 29477 | ES13: 333.93 | ET13: 7.79 | EW13: 2.594 | EX13: 2.241 | FA13: 68.26315789 | FB13: 65.01305483 | FC13: 68.26315789 | FE13: 11836 | FF13: 24534 | FG13: 36370 | FH13: 335.08 | FI13: 8.94 | FJ13: 0 | FK13: 0 | FL13: 3.13 | FM13: 2.777 | FP13: 82.36842105 | FQ13: 80.56280824 | FR13: 14.10526316 | FT13: 13471 | FU13: 20129 | FV13: 33600 | FW13: 333.21 | FX13: 7.07 | FY13: 0 | FZ13: 0 | GA13: 2.305 | GB13: 1.952 | GE13: 60.65789474 | GF13: 56.62895271 | GG13: -21.71052632 | GI13: 12123 | GJ13: 14037 | GK13: 26160
A14: 2023-10-11 | B14: 2023-10-11 | C14: 336 | D14: 327 | E14: 0.353 | F14: 8.05 | H14: 334.19 | J14: 333.24 | K14: 7.1 | N14: -0.353 | Q14: 0 | R14: -0.1086153846 | S14: 334 | T14: 7.86 | V14: 2.679 | Z14: 68.69230769 | AA14: 0 | AB14: 2368106 | AC14: 6610255 | AD14: 33410 | AE14: 296950 | AF14: 336 | AH14: 334.15 | AI14: 8.01 | AL14: 2.79 | AM14: 2.437 | AP14: 71.53846154 | AQ14: 74.98461538 | AR14: 2.846153846 | AT14: 6871345 | AU14: 2254714 | AV14: 29948 | AW14: 29948 | AY14: 334.56 | AZ14: 8.42 | BC14: 2.896 | BD14: 0.217 | BG14: 74.25641026 | BH14: 6.676923077 | BI14: 2.717948718 | BK14: 2394488 | BL14: 8990400 | BM14: 27064 | BN14: 27064 | BP14: 332.51 | BQ14: 6.37 | BT14: 2.01 | BU14: 1.657 | BX14: 51.53846154 | BY14: 50.98461538 | BZ14: -22.71794872 | CD14: 0 | CG14: 334.62 | CH14: 8.48 | CK14: 2.96 | CL14: 2.607 | CO14: =(CK14/3.9)*100 -> 75.8974359 | CP14: 80.21538462 | CQ14: 24.35897436 | CS14: 1777878 | CT14: 4643074 | CU14: 41783 | CV14: 41783 | CX14: =336-(9.86-9.57) -> 335.71 | CY14: 9.57 | DB14: 3.579 | DC14: 3.226 | DF14: 94.18421053 | DG14: 93.83121053 | DH14: 18.28677463 | DJ14: 6597455 | DK14: 2822770 | DL14: 38619 | DM14: 38619 | DN14: 330.82 | DO14: 4.68 | DR14: 1.607 | DS14: 1.254 | DV14: 42.28947368 | DW14: 41.93647368 | DX14: -51.89473684 | EB14: -68167335 | EC14: -68167335 | ED14: 333.8 | EE14: 7.66 | EF14: 0 | EG14: 0 | EH14: 2.553 | EI14: 2.2 | EL14: 67.18421053 | EM14: 66.83121053 | EN14: 24.89473684 | EP14: 12529 | EQ14: 18094 | ER14: 30623 | ES14: 333.86 | ET14: 7.72 | EW14: 2.593 | EX14: 2.24 | FA14: 68.23684211 | FB14: 64.9840441 | FC14: 1.052631579 | FE14: 12440 | FF14: 24805 | FG14: 37245 | FH14: 335.02 | FI14: 8.88 | FJ14: 0 | FK14: 0 | FL14: 3.1 | FM14: 2.747 | FP14: 81.57894737 | FQ14: 79.69248622 | FR14: 13.34210526 | FT14: 14717 | FU14: 20083 | FV14: 34800 | FW14: 333.15 | FX14: 7.01 | FY14: 0 | FZ14: 0 | GA14: 2.28 | GB14: 1.927 | GE14: 60 | GF14: 55.90368436 | GG14: -21.57894737 | GI14: 7874 | GJ14: 7874 | GK14: 15748
A15: 2023-10-12 | B15: 2023-10-12 | C15: 336 | D15: 327 | E15: 0.353 | F15: 8.98 | H15: 335.12 | J15: 333.22 | K15: 7.08 | N15: -0.353 | Q15: 0 | R15: -0.1086153846 | S15: 333.94 | T15: 7.8 | V15: 2.648 | Z15: 67.8974359 | AA15: 0 | AB15: 2379737 | AC15: 6631047 | AD15: 32423 | AE15: 329373 | AF15: 336 | AH15: 334.13 | AI15: 7.99 | AL15: 2.785 | AM15: 2.432 | AP15: 71.41025641 | AQ15: 74.83076923 | AR15: 3.512820513 | AT15: 6880913 | AU15: 2272860 | AV15: 27714 | AW15: 27714 | AY15: 334.53 | AZ15: 8.39 | BC15: 2.893 | BD15: 0.245 | BG15: 74.17948718 | BH15: 7.538461538 | BI15: 2.769230769 | BK15: 2403837 | BL15: 8999076 | BM15: 18025 | BN15: 18025 | BP15: 332.45 | BQ15: 6.31 | BT15: 1.993 | BU15: 1.64 | BX15: 51.1025641 | BY15: 50.46153846 | BZ15: -23.07692308 | CD15: 0 | CG15: 334.58 | CH15: 8.44 | CK15: 2.942 | CL15: 2.589 | CO15: =(CK15/3.9)*100 -> 75.43589744 | CP15: 79.66153846 | CQ15: 24.33333333 | CS15: 1792716 | CT15: 4665425 | CU15: =(CS15+CT15)-(CS14+CT14) -> 37189 | CV15: 37189 | CX15: 335.67 | CY15: 9.53 | DB15: 3.468 | DC15: 3.115 | DF15: 91.26315789 | DG15: 90.91015789 | DH15: 15.82726046 | DJ15: 6610880 | DK15: 2947457 | DL15: 38112 | DM15: 38112 | DN15: 330.75 | DO15: 4.61 | DR15: 1.603 | DS15: 1.25 | DV15: 42.18421053 | DW15: 41.83121053 | DX15: -49.07894737 | EB15: -68167335 | EC15: -68167335 | ED15: 333.75 | EE15: 7.61 | EF15: 0 | EG15: 0 | EH15: 2.437 | EI15: 2.084 | EL15: 64.13157895 | EM15: 63.77857895 | EN15: 21.94736842 | EP15: 12242 | EQ15: 17862 | ER15: 30104 | ES15: 333.79 | ET15: 7.65 | EW15: 2.592 | EX15: 2.239 | FA15: 68.21052632 | FB15: 64.95503336 | FC15: 4.078947368 | FE15: 12880 | FF15: 26557 | FG15: 39437 | FH15: 334.99 | FI15: 8.85 | FJ15: 0 | FK15: 0 | FL15: 3.099 | FM15: 2.746 | FP15: 81.55263158 | FQ15: 79.66347549 | FR15: 13.34210526 | FT15: 13340 | FU15: 19540 | FV15: 32880 | FW15: 333.12 | FX15: 6.98 | FY15: 0 | FZ15: 0 | GA15: 2.27 | GB15: 1.917 | GE15: 59.73684211 | GF15: 55.61357702 | GG15: -21.81578947 | GI15: 1159 | GJ15: 13706 | GK15: 14865
A16: 2023-10-13 | B16: 2023-10-13 | C16: 336 | D16: 327 | E16: 0.353 | F16: 7.97 | H16: 334.11 | J16: 333.19 | K16: 7.05 | N16: -0.353 | Q16: 0 | R16: -0.1086153846 | S16: 333.9 | T16: 7.76 | V16: 2.638 | Z16: 67.64102564 | AA16: 0 | AB16: 2390005 | AC16: 6651300 | AD16: 30521 | AE16: 359894 | AF16: 336 | AH16: 334.08 | AI16: 7.94 | AL16: 2.75 | AM16: 2.397 | AP16: 70.51282051 | AQ16: 73.75384615 | AR16: 2.871794872 | AT16: 6889078 | AU16: 2289724 | AV16: 25029 | AW16: 25029 | AY16: 334.47 | AZ16: 8.33 | BC16: 2.878 | BD16: 0.24 | BG16: 73.79487179 | BH16: 7.384615385 | BI16: 3.282051282 | BK16: 2416146 | BL16: 9013698 | BM16: 26931 | BN16: 26931 | BP16: 332.39 | BQ16: 6.25 | BT16: 1.976 | BU16: 1.623 | BX16: 50.66666667 | BY16: 49.93846154 | BZ16: =BX16-BG16 -> -23.12820513 | CD16: 0 | CG16: 334.51 | CH16: 8.37 | CK16: 2.888 | CL16: 2.535 | CO16: 74.05128205 | CP16: 78 | CQ16: 23.38461538 | CS16: 1817924 | CT16: 4689084 | CU16: 48867 | CV16: 48867 | CX16: 335.64 | CY16: 9.5 | DB16: 3.449 | DC16: 3.096 | DF16: 90.76315789 | DG16: 90.41015789 | DH16: 16.71187584 | DJ16: 6624143 | DK16: 2971492 | DL16: 37762 | DM16: 37762 | DN16: 330.69 | DO16: 4.55 | DP16: 117 | DQ16: 16 | DR16: 1.4 | DS16: 1.047 | DV16: 36.84210526 | DW16: 36.48910526 | DX16: -53.92105263 | EB16: -68167335 | EC16: -68167335 | ED16: 333.7 | EE16: 7.56 | EF16: 0 | EG16: 0 | EH16: 2.412 | EI16: 2.059 | EL16: 63.47368421 | EM16: 63.12068421 | EN16: 26.63157895 | EP16: 12242 | EQ16: 17862 | ER16: 30104 | ES16: 333.75 | ET16: 7.61 | EW16: 2.589 | EX16: 2.236 | FA16: 68.13157895 | FB16: 64.86800116 | FC16: 4.657894737 | FE16: 12114 | FF16: 24734 | FG16: 36848 | FH16: 334.92 | FI16: 8.78 | FJ16: 0 | FK16: 0 | FL16: 3.096 | FM16: 2.743 | FP16: 81.47368421 | FQ16: 79.57644328 | FR16: 13.34210526 | FT16: 12931 | FU16: 19445 | FV16: 32376 | FW16: 333.09 | FX16: 6.95 | FY16: 0 | FZ16: 0 | GA16: 2.26 | GB16: 1.907 | GE16: 59.47368421 | GF16: 55.32346968 | GG16: -22 | GI16: 7595 | GJ16: 8225 | GK16: 15820
A17: 2023-10-14 | B17: 2023-10-14 | C17: 336 | D17: 327 | E17: 0.353 | F17: 7.95 | H17: 334.09 | J17: 333.16 | K17: 7.02 | N17: -0.353 | Q17: 0 | R17: -0.1086153846 | S17: 333.84 | T17: 7.7 | V17: 2.617 | Z17: 67.1025641 | AA17: 0 | AB17: 2399422 | AC17: 6671933 | AD17: 30050 | AE17: 389944 | AF17: 336 | AH17: 334.03 | AI17: 7.89 | AL17: 2.877 | AM17: 2.524 | AP17: 73.76923077 | AQ17: 77.66153846 | AR17: 6.666666667 | AT17: 6897256 | AU17: 2306898 | AV17: 25352 | AW17: 25352 | AY17: 334.43 | AZ17: 8.29 | BC17: 2.84 | BD17: 0.223 | BG17: 72.82051282 | BH17: 6.861538462 | BI17: -0.9487179487 | BK17: 2430388 | BL17: 9033258 | BM17: 33802 | BN17: 33802 | BP17: 332.33 | BQ17: 6.19 | BT17: 1.955 | BU17: 1.602 | BX17: 50.12820513 | BY17: 49.29230769 | BZ17: -22.69230769 | CD17: 0 | CG17: 334.46 | CH17: 8.32 | CK17: 2.885 | CL17: 2.532 | CO17: 73.97435897 | CP17: 77.90769231 | CQ17: 23.84615385 | CS17: 1822722 | CT17: 4712738 | CU17: 28452 | CV17: 28452 | CX17: 335.62 | CY17: 9.48 | DB17: 3.436 | DC17: 3.083 | DF17: 90.42105263 | DG17: 90.06805263 | DH17: 16.44669366 | DJ17: 6637815 | DK17: 2996017 | DL17: =(DJ17+DK17)-(DJ16+DK16) -> 38197 | DM17: 38197 | DN17: 332.59 | DO17: 6.45 | DR17: 2.1 | DS17: 1.747 | DV17: 55.26315789 | DW17: 54.91015789 | DX17: -35.15789474 | EB17: -68167335 | EC17: -68167335 | ED17: 333.66 | EE17: 7.52 | EF17: 0 | EG17: 0 | EH17: 2.395 | EI17: =EH17-0.353 -> 2.042 | EL17: 63.02631579 | EM17: 62.67331579 | EN17: 7.763157895 | EP17: 12300 | EQ17: 17609 | ER17: 29909 | ES17: 333.69 | ET17: 7.55 | EW17: 2.525 | EX17: =EW17-0.353 -> 2.172 | FA17: 66.44736842 | FB17: 63.01131419 | FC17: 3.421052632 | FE17: 12772 | FF17: 26037 | FG17: 38809 | FH17: 334.87 | FI17: 8.73 | FJ17: 0 | FK17: 0 | FL17: 3.094 | FM17: =FL17-0.353 -> 2.741 | FP17: 81.42105263 | FQ17: 79.51842182 | FR17: 14.97368421 | FT17: 13195 | FU17: 19445 | FV17: 32640 | FW17: 333.06 | FX17: 6.92 | FY17: 0 | FZ17: 0 | GA17: 2.25 | GB17: 1.897 | GE17: 59.21052632 | GF17: 55.03336234 | GG17: -22.21052632 | GI17: 12753 | GJ17: 14127 | GK17: 26880
A18: 2023-10-15 | B18: 2023-10-15 | C18: 336 | D18: 327 | E18: 0.353 | F18: 7.93 | H18: 334.07 | J18: 333.09 | K18: 6.95 | N18: -0.353 | Q18: 0 | R18: -0.1086153846 | S18: 333.79 | T18: 7.65 | V18: 2.599 | Z18: 66.64102564 | AA18: 0 | AB18: 2415263 | AC18: 6691956 | AD18: 35864 | AE18: 425808 | AF18: 336 | AH18: 333.89 | AI18: 7.75 | AL18: 2.87 | AM18: 2.517 | AP18: 73.58974359 | AQ18: 77.44615385 | AR18: 6.948717949 | AT18: 6906072 | AU18: 2322139 | AV18: 24057 | AW18: 24057 | AY18: 334.41 | AZ18: 8.27 | BC18: 2.798 | BD18: 0.199 | BG18: 71.74358974 | BH18: 6.123076923 | BI18: -1.846153846 | BK18: 2445810 | BL18: 9065278 | BM18: 47442 | BN18: 47442 | BP18: 332.28 | BQ18: 6.14 | BT18: 1.927 | BU18: 1.574 | BX18: 49.41025641 | BY18: 48.43076923 | BZ18: -22.33333333 | CD18: 0 | CG18: 334.34 | CH18: 8.2 | CK18: 2.883 | CL18: 2.53 | CO18: 73.92307692 | CP18: 77.84615385 | CQ18: 24.51282051 | CS18: 1837085 | CT18: 4736195 | CU18: 37820 | CV18: 37820 | CX18: 335.6 | CY18: 9.46 | DB18: 3.425 | DC18: 3.072 | DF18: 90.13157895 | DG18: 89.77857895 | DH18: 16.20850202 | DJ18: 6651991 | DK18: 2996009 | DL18: 14168 | DM18: 14168 | DN18: 332.91 | DO18: 6.77 | DR18: 2.295 | DS18: =DR18-0.353 -> 1.942 | DV18: 60.39473684 | DW18: 60.04173684 | DX18: -29.73684211 | EB18: -68167335 | EC18: -68167335 | ED18: 333.6 | EE18: 7.46 | EF18: 0 | EG18: 0 | EH18: 2.371 | EI18: 2.018 | EL18: 62.39473684 | EM18: 62.04173684 | EN18: 2 | EP18: 9436 | EQ18: 19184 | ER18: 28620 | ES18: 333.62 | ET18: 7.48 | EW18: 2.518 | EX18: =EW18-0.353 -> 2.165 | FA18: 66.26315789 | FB18: 62.80823905 | FC18: 3.868421053 | FE18: 12059 | FF18: 24133 | FG18: 36192 | FH18: 334.84 | FI18: 8.7 | FJ18: 0 | FK18: 0 | FL18: 3.091 | FM18: =FL18-0.353 -> 2.738 | FP18: 81.34210526 | FQ18: 79.43138961 | FR18: 15.07894737 | FT18: 14567 | FU18: 18176 | FV18: 32743 | FW18: 333.02 | FX18: 6.88 | FY18: 0 | FZ18: 0 | GA18: 2.215 | GB18: 1.862 | GE18: 58.28947368 | GF18: 54.01798666 | GG18: -23.05263158 | GI18: 12002 | GJ18: 13438 | GK18: 25440
A19: 2023-10-16 | B19: 2023-10-16 | C19: 336 | D19: 327 | E19: 0.353 | F19: 7.9 | H19: 334.04 | J19: 333.08 | K19: 6.94 | N19: -0.353 | Q19: 0 | R19: -0.1086153846 | S19: 333.74 | T19: 7.6 | V19: 2.57 | Z19: 65.8974359 | AA19: 0 | AB19: 2427469 | AC19: 6710701 | AD19: 30951 | AE19: 456759 | AF19: 336 | AH19: 333.87 | AI19: 7.73 | AL19: 2.864 | AM19: 2.511 | AP19: 73.43589744 | AQ19: 77.26153846 | AR19: 7.538461538 | AT19: 6918707 | AU19: 2338550 | AV19: 29046 | AW19: 29046 | AY19: 334.34 | AZ19: 8.2 | BC19: 2.795 | BD19: 0.225 | BG19: 71.66666667 | BH19: 6.923076923 | BI19: -1.769230769 | BK19: 2460080 | BL19: 9068822 | BM19: 17814 | BN19: 17814 | BP19: 332.21 | BQ19: 6.07 | BT19: 1.905 | BU19: 1.552 | BX19: 48.84615385 | BY19: 47.75384615 | BZ19: -22.82051282 | CD19: 0 | CG19: 334.35 | CH19: 8.21 | CK19: 2.879 | CL19: 2.526 | CO19: 73.82051282 | CP19: 77.72307692 | CQ19: 24.97435897 | CS19: 1851602 | CT19: 4758703 | CU19: 37025 | CV19: 37025 | CX19: 335.58 | CY19: 9.44 | DB19: 3.415 | DC19: 3.062 | DF19: 89.86842105 | DG19: 89.51542105 | DH19: 16.04790823 | DJ19: 6666337 | DK19: 3018597 | DL19: 36934 | DM19: 36934 | DN19: 333.01 | DO19: 6.87 | DR19: 2.19 | DS19: 1.837 | DV19: 57.63157895 | DW19: 57.27857895 | DX19: -32.23684211 | EB19: -68167335 | EC19: -68167335 | ED19: 333.56 | EE19: 7.42 | EF19: 0 | EG19: 0 | EH19: 2.351 | EI19: 1.998 | EL19: 61.86842105 | EM19: 61.51542105 | EN19: 4.236842105 | EP19: 15769 | EQ19: 14279 | ER19: 30048 | ES19: 333.54 | ET19: 7.4 | EW19: 2.516 | EX19: 2.163 | FA19: 66.21052632 | FB19: 62.75021758 | FC19: 4.342105263 | FE19: 12040 | FF19: 23994 | FG19: 36034 | FH19: 334.82 | FI19: 8.68 | FJ19: 0 | FK19: 0 | FL19: 3.08 | FM19: 2.727 | FP19: 81.05263158 | FQ19: 79.11227154 | FR19: 14.84210526 | FT19: 12625 | FU19: 19775 | FV19: 32400 | FW19: 332.98 | FX19: 6.84 | FY19: 25 | FZ19: 40.8 | GA19: 2.19 | GB19: 1.837 | GE19: 57.63157895 | GF19: 53.29271831 | GG19: -23.42105263 | GK19: 0
A20: 2023-10-17 | B20: 2023-10-17 | C20: 336 | D20: 327 | E20: 0.353 | F20: 7.89 | H20: 334.03 | J20: 333.05 | K20: 6.91 | N20: -0.353 | Q20: 0 | R20: -0.1086153846 | S20: 333.69 | T20: 7.55 | U20: 1.3 | V20: 2.559 | Z20: 65.61538462 | AA20: 0 | AB20: 2427815 | AC20: 6731403 | AD20: 21048 | AE20: 477807 | AF20: 336 | AH20: 333.84 | AI20: 7.7 | AL20: 2.86 | AM20: 2.507 | AP20: 73.33333333 | AQ20: 77.13846154 | AR20: 7.717948718 | AT20: 6930373 | AU20: 2357649 | AV20: 30765 | AW20: 30765 | AY20: 334.3 | AZ20: 8.16 | BC20: 2.793 | BD20: 0.234 | BG20: 71.61538462 | BH20: 7.2 | BI20: -1.717948718 | BK20: 2475859 | BL20: 9083282 | BM20: 30239 | BN20: 30239 | BP20: 332.14 | BQ20: 6 | BT20: 1.879 | BU20: 1.526 | BX20: 48.17948718 | BY20: 46.95384615 | BZ20: -23.43589744 | CD20: 0 | CG20: 334.31 | CH20: 8.17 | CK20: 2.875 | CL20: 2.522 | CO20: 73.71794872 | CP20: 77.6 | CQ20: 25.53846154 | CS20: 1864542 | CT20: 4779730 | CU20: 33967 | CV20: 33967 | CX20: 335.54 | CY20: 9.4 | DB20: 3.339 | DC20: 2.986 | DF20: 87.86842105 | DG20: 87.51542105 | DH20: 14.15047233 | DJ20: 6679203 | DK20: 3066277 | DL20: 37055 | DM20: 37055 | DN20: 333.06 | DO20: 6.92 | DR20: 2.2 | DS20: 1.847 | DV20: 57.89473684 | DW20: 57.54173684 | DX20: -29.97368421 | EB20: -68167335 | EC20: -68167335 | ED20: 333.5 | EE20: 7.36 | EF20: 0 | EG20: 0 | EH20: 2.323 | EI20: 1.97 | EL20: 61.13157895 | EM20: 60.77857895 | EN20: 3.236842105 | EP20: 15492 | EQ20: 13828 | ER20: 29320 | ES20: 333.49 | ET20: 7.35 | EW20: 2.51 | EX20: 2.157 | FA20: 66.05263158 | FB20: 62.57615318 | FC20: 4.921052632 | FE20: 10730 | FF20: 23465 | FG20: 34195 | FH20: 334.73 | FI20: 8.59 | FJ20: 0 | FK20: 0 | FL20: 3.07 | FM20: 2.717 | FP20: 80.78947368 | FQ20: 78.8221642 | FR20: 14.73684211 | FT20: 14598 | FU20: 19722 | FV20: 34320 | GK20: 0
A21: 2023-10-18 | B21: 2023-10-18 | C21: 336 | D21: 327 | E21: 0.353 | F21: 7.87 | H21: 334.01 | J21: 333.02 | K21: 6.88 | N21: -0.353 | Q21: 0 | R21: -0.1086153846 | S21: 333.64 | T21: 7.5 | V21: 2.54 | Z21: 65.12820513 | AA21: 0 | AB21: 2437957 | AC21: 6750885 | AD21: 29624 | AE21: 507431 | AF21: 336 | AH21: 333.81 | AI21: 7.67 | AL21: 2.856 | AM21: 2.503 | AP21: 73.23076923 | AQ21: 77.01538462 | AR21: 8.102564103 | AT21: 6942526 | AU21: 2375797 | AV21: 30301 | AW21: 30301 | AY21: 334.25 | AZ21: 8.11 | BC21: 2.779 | BD21: 0.239 | BG21: 71.25641026 | BH21: 7.353846154 | BI21: -1.974358974 | BK21: 2492252 | BL21: 9098344 | BM21: 31455 | BN21: 31455 | BP21: 332.1 | BQ21: 5.96 | BT21: 1.865 | BU21: 1.512 | BX21: 47.82051282 | BY21: 46.52307692 | BZ21: -23.43589744 | CD21: 0 | CG21: 334.25 | CH21: 8.11 | CK21: 2.871 | CL21: 2.518 | CO21: 73.61538462 | CP21: 77.47692308 | CQ21: =CO21-BX21 -> 25.79487179 | CS21: 1879305 | CT21: 4805238 | CU21: 40271 | CV21: 40271 | CX21: 335.51 | CY21: 9.37 | DB21: 3.385 | DC21: 3.032 | DF21: 89.07894737 | DG21: 88.72594737 | DH21: 15.46356275 | DJ21: 6692069 | DK21: 3091787 | DL21: 37560 | DM21: 37560 | DN21: 333.12 | DO21: 6.98 | DR21: 2.21 | DS21: 1.857 | DV21: 58.15789474 | DW21: 57.80489474 | DX21: -30.92105263 | EB21: -68167335 | EC21: -68167335 | ED21: 333.46 | EE21: 7.32 | EF21: 0 | EG21: 0 | EH21: 2.3 | EI21: 1.947 | EL21: 60.52631579 | EM21: 60.17331579 | EN21: 2.368421053 | EP21: 15960 | EQ21: 14408 | ER21: 30368 | ES21: 333.43 | ET21: 7.29 | EW21: 2.508 | EX21: 2.155 | FA21: 66 | FB21: 62.51813171 | FC21: 5.473684211 | FE21: 10939 | FF21: 21740 | FG21: =SUM(FE21+FF21) -> 32679 | FH21: 334.7 | FI21: 8.56 | FJ21: 0 | FK21: 0 | FL21: 3.067 | FM21: 2.714 | FP21: 80.71052632 | FQ21: 78.735132 | FR21: 14.71052632 | FT21: 13937 | FU21: 19383 | FV21: 33320 | GK21: 0
A22: 2023-10-19 | B22: 2023-10-19 | C22: 336 | D22: 327 | E22: 0.353 | F22: 7.82 | H22: 333.96 | J22: 332.93 | K22: 6.79 | N22: -0.353 | Q22: 0 | R22: -0.1086153846 | S22: 333.6 | T22: 7.46 | V22: 2.521 | Z22: 64.64102564 | AA22: 0 | AB22: 2447162 | AC22: 6769159 | AD22: 27479 | AE22: 534910 | AF22: 336 | AH22: 333.8 | AI22: 7.66 | AM22: -0.353 | AP22: 0 | AQ22: -10.86153846 | AR22: -64.64102564 | AT22: 6955385 | AU22: 2394018 | AV22: 31080 | AW22: 31080 | AY22: 334.21 | AZ22: 8.07 | BC22: 2.793 | BD22: 0.272 | BG22: 71.61538462 | BH22: 8.369230769 | BI22: 71.61538462 | BK22: 2507418 | BL22: 9112190 | BM22: 29012 | BN22: 29012 | BP22: 332.04 | BQ22: 5.9 | BT22: 1.847 | BU22: 1.494 | BX22: 47.35897436 | BY22: 45.96923077 | BZ22: -24.25641026 | CD22: 0 | CG22: 334.07 | CH22: 7.93 | CK22: 2.82 | CL22: 2.467 | CO22: 72.30769231 | CP22: 75.90769231 | CQ22: 24.94871795 | CS22: 1890158 | CT22: 4825125 | CU22: 30740 | CV22: 30740 | CX22: 335.49 | CY22: 9.35 | DB22: 3.14 | DC22: 2.787 | DF22: 82.63157895 | DG22: 82.27857895 | DH22: 10.32388664 | DJ22: 6704967 | DK22: 3116299 | DL22: 37410 | DM22: 37410 | DN22: 333.05 | DO22: 6.91 | DR22: 2.195 | DS22: 1.842 | DV22: 57.76315789 | DW22: 57.41015789 | DX22: -24.86842105 | EB22: -68167335 | EC22: -68167335 | ED22: 333.42 | EE22: 7.28 | EF22: 0 | EG22: 0 | EH22: 2.279 | EI22: 1.926 | EL22: 59.97368421 | EM22: 59.62068421 | EN22: 2.210526316 | EP22: 15964 | EQ22: 14213 | ER22: 30177 | ES22: =336-(9.86-ET22) -> 333.37 | ET22: 7.23 | EW22: 2.5 | EX22: 2.147 | FA22: 65.78947368 | FB22: 62.28604584 | FC22: 5.815789474 | FE22: 8409 | FF22: 17236 | FG22: =SUM(FE21+FF21) -> 32679 | FH22: 334.65 | FI22: 8.51 | FJ22: 0 | FK22: 0 | FL22: 3.065 | FM22: 2.712 | FP22: 80.65789474 | FQ22: 78.67711053 | FR22: 14.86842105 | FT22: 14143 | FU22: 19457 | FV22: =SUM(FT21+FU21) -> 33320 | GK22: =SUM(GI21+GJ21) -> 0
A23: 2023-10-20 | B23: 2023-10-20 | C23: 336 | D23: 327 | E23: 0.353 | F23: 7.77 | H23: 333.91 | J23: 332.88 | K23: 6.74 | M23: 2.5 | N23: 2.147 | Q23: 64.1025641 | R23: 0.6606153846 | S23: 333.54 | T23: 7.4 | V23: 2.499 | Z23: 64.07692308 | AA23: 0 | AB23: 2454437 | AC23: 6782406 | AD23: 20522 | AE23: 555432 | AF23: 336 | AH23: 333.84 | AI23: 7.7 | AM23: -0.353 | AP23: 0 | AQ23: -10.86153846 | AR23: -64.07692308 | AT23: 6968100 | AU23: 2410995 | AV23: 29692 | AW23: 29692 | AY23: 334.16 | AZ23: 8.02 | BC23: 2.738 | BD23: 0.239 | BG23: 70.20512821 | BH23: 7.353846154 | BI23: 70.20512821 | BK23: 2523035 | BL23: 9126518 | BM23: 29945 | BN23: 29945 | BP23: 332.01 | BQ23: 5.87 | BT23: 1.838 | BU23: 1.485 | BX23: 47.12820513 | BY23: 45.69230769 | BZ23: -23.07692308 | CD23: 0 | CG23: 334.14 | CH23: 8 | CK23: 2.87 | CL23: 2.517 | CO23: 73.58974359 | CP23: 77.44615385 | CQ23: 26.46153846 | CS23: 1896110 | CT23: 4847729 | CU23: 28556 | CV23: 28556 | CX23: 335.46 | CY23: 9.32 | DB23: 3.09 | DC23: 2.737 | DF23: 81.31578947 | DG23: 80.96278947 | DH23: 7.726045884 | DJ23: 6717081 | DK23: 3141646 | DL23: 37461 | DM23: 37461 | DN23: 333.01 | DO23: 6.87 | DR23: 2.19 | DS23: 1.837 | DV23: 57.63157895 | DW23: 57.27857895 | DX23: -23.68421053 | EB23: -68167335 | EC23: -68167335 | ED23: 333.37 | EE23: 7.23 | EF23: 0 | EG23: 0 | EH23: 2.256 | EI23: 1.903 | EL23: 59.36842105 | EM23: 59.01542105 | EN23: 1.736842105 | EP23: 15964 | EQ23: 14213 | ER23: 30177 | ES23: 333.33 | ET23: 7.19 | EW23: 2.496 | EX23: 2.143 | FA23: 65.68421053 | FB23: 62.1700029 | FC23: 6.315789474 | FE23: 8373 | FF23: 16078 | FG23: 24451 | FH23: 334.62 | FI23: 8.48 | FJ23: 0 | FK23: 0 | FL23: 3.063 | FM23: 2.71 | FP23: 80.60526316 | FQ23: 78.61908906 | FR23: 14.92105263 | FT23: 12976 | FU23: 18224 | FV23: =SUM(FT23+FU23) -> 31200 | GK23: =SUM(GI23+GJ23) -> 0
A24: 2023-10-21 | B24: 2023-10-21 | C24: 336 | D24: 327 | E24: 0.353 | F24: 7.73 | H24: 333.87 | J24: 332.84 | K24: 6.7 | M24: 2.499 | N24: 2.146 | Q24: 64.07692308 | R24: 0.6603076923 | S24: 333.52 | T24: 7.38 | V24: 2.489 | Z24: 63.82051282 | AA24: 0 | AB24: 2455248 | AC24: 6800432 | AD24: 18837 | AE24: 574269 | AF24: 336 | AH24: 333.8 | AI24: 7.66 | AL24: 2.5 | AM24: 2.147 | AP24: 64.1025641 | AQ24: 66.06153846 | AR24: 0.2820512821 | AT24: 6977497 | AU24: 2424048 | AV24: 22450 | AW24: 22450 | AY24: 334.13 | AZ24: 7.99 | BC24: 2.783 | BD24: 0.294 | BG24: 71.35897436 | BH24: 9.046153846 | BI24: 7.256410256 | BK24: 2531245 | BL24: 9136170 | BM24: 17862 | BN24: 17862 | BP24: 331.95 | BQ24: 5.81 | BT24: 1.806 | BU24: 1.453 | BX24: 46.30769231 | BY24: 44.70769231 | BZ24: -25.05128205 | CD24: 0 | CG24: 334.15 | CH24: 8.01 | CJ24: 19.3 | CK24: 2.872 | CL24: 2.519 | CO24: 73.64102564 | CP24: 77.50769231 | CQ24: 27.33333333 | CS24: 1910569 | CT24: 4870643 | CU24: 37373 | CV24: 37373 | CX24: 335.42 | CY24: 9.28 | DB24: 3.085 | DC24: 2.732 | DF24: 81.18421053 | DG24: 80.83121053 | DH24: 7.543184885 | DJ24: 6729314 | DK24: 3177425 | DL24: 38012 | DM24: 38012 | DN24: 332.98 | DO24: 6.84 | DR24: 2.185 | DS24: 1.832 | DV24: 57.5 | DW24: 57.147 | DX24: -23.68421053 | EB24: -68167335 | EC24: -68167335 | ED24: 333.3 | EE24: 7.16 | EF24: 0 | EG24: 0 | EH24: 2.231 | EI24: 1.878 | EL24: 58.71052632 | EM24: 58.35752632 | EN24: 1.210526316 | EP24: 15781 | EQ24: 14214 | ER24: 29995 | ES24: 333.28 | ET24: 7.14 | EW24: 2.49 | EX24: 2.137 | FA24: 65.52631579 | FB24: 61.9959385 | FC24: 6.815789474 | FE24: 10807 | FF24: 19193 | FG24: 30000 | FH24: 334.55 | FI24: 8.41 | FJ24: 0 | FK24: 0 | FL24: 3.058 | FM24: 2.705 | FP24: 80.47368421 | FQ24: 78.47403539 | FR24: 14.94736842 | FT24: 13509 | FU24: 19234 | FV24: 32743 | GK24: 0
A25: 2023-10-22 | B25: 2023-10-22 | C25: 336 | D25: 327 | E25: 0.353 | F25: 7.7 | H25: 333.84 | J25: 332.8 | K25: 6.66 | M25: 2.485 | N25: 2.132 | Q25: 63.71794872 | R25: 0.656 | S25: 333.49 | T25: 7.35 | V25: 2.469 | Z25: 63.30769231 | AA25: 0 | AB25: 2464270 | AC25: 6820495 | AD25: 29085 | AE25: 603354 | AF25: 336 | AH25: 333.73 | AI25: 7.59 | AM25: -0.353 | AP25: 0 | AQ25: -10.86153846 | AR25: -63.30769231 | AT25: 6996160 | AU25: 2435994 | AV25: 30609 | AW25: 30609 | AY25: 334.07 | AZ25: 7.93 | BC25: 2.755 | BD25: 0.286 | BG25: 70.64102564 | BH25: =(BD25/3.25)*100 -> 8.8 | BI25: 70.64102564 | BK25: 2544217 | BL25: 9152422 | BM25: 29224 | BN25: 29224 | BP25: 331.89 | BQ25: 5.75 | BT25: 1.79 | BU25: 1.437 | BX25: 45.8974359 | BY25: 44.21538462 | BZ25: -24.74358974 | CD25: 0 | CG25: 334.07 | CH25: 7.93 | CK25: 2.82 | CL25: 2.467 | CO25: 72.30769231 | CP25: 75.90769231 | CQ25: 26.41025641 | CS25: 1917942 | CT25: 4883745 | CU25: 20475 | CV25: 20475 | CX25: 335.39 | CY25: 9.25 | DB25: 3.08 | DC25: 2.727 | DF25: 81.05263158 | DG25: 80.69963158 | DH25: 8.744939271 | DJ25: 6955896 | DK25: 3194007 | DL25: 38400 | DM25: 38400 | DN25: 332.95 | DO25: 6.81 | DR25: 2.18 | DS25: 1.827 | DV25: 57.36842105 | DW25: 57.01542105 | DX25: -23.68421053 | EB25: -68167335 | EC25: -68167335 | ED25: 333.25 | EE25: 7.11 | EF25: 0 | EG25: 0 | EH25: 2.218 | EI25: 1.865 | EL25: 58.36842105 | EM25: 58.01542105 | EN25: 1 | EP25: 15822 | EQ25: 14212 | ER25: 30034 | ES25: 333.24 | ET25: 7.1 | EW25: 2.488 | EX25: 2.135 | FA25: 65.47368421 | FB25: 61.93791703 | FC25: 7.105263158 | FE25: 11363 | FF25: 18500 | FG25: 29863 | FH25: 334.52 | FI25: 8.38 | FJ25: 0 | FK25: 0 | FL25: 3.055 | FM25: 2.702 | FP25: 80.39473684 | FQ25: 78.38700319 | FR25: 14.92105263 | FT25: 5828 | FU25: 10692 | FV25: 16520 | GK25: 0
A26: 2023-10-23 | B26: 2023-10-23 | C26: 336 | D26: 327 | E26: 0.353 | F26: 7.67 | H26: 333.81 | J26: 332.76 | K26: 6.62 | M26: 2.479 | N26: 2.126 | Q26: 63.56410256 | R26: 0.6541538462 | S26: 333.44 | T26: 7.3 | V26: 2.412 | Z26: 61.84615385 | AA26: 0 | AB26: 2475690 | AC26: 6860711 | AD26: 51636 | AE26: 654990 | AF26: 336 | AH26: 333.64 | AI26: 7.5 | AL26: 2.5 | AM26: 2.147 | AP26: 64.1025641 | AQ26: 66.06153846 | AR26: 2.256410256 | AT26: 7015574 | AU26: 2452418 | AV26: =AT26+AU26-(AT25+AU25) -> 35838 | AW26: 35838 | AY26: 334.03 | AZ26: 7.89 | BC26: 2.749 | BD26: 0.337 | BG26: 70.48717949 | BH26: 10.36923077 | BI26: 6.384615385 | BK26: 2557240 | BL26: 9170538 | BM26: 31139 | BN26: 31139 | BP26: 331.83 | BQ26: 5.69 | BT26: 1.779 | BU26: 1.426 | BX26: 45.61538462 | BY26: 43.87692308 | BZ26: -24.87179487 | CD26: 0 | CG26: 334.04 | CH26: 7.9 | CK26: 2.805 | CL26: 2.452 | CO26: 71.92307692 | CP26: 75.44615385 | CQ26: 26.30769231 | CS26: 1932226 | CT26: 4908895 | CU26: 39434 | CV26: 39434 | CX26: 335.35 | CY26: 9.21 | DB26: 3.075 | DC26: 2.722 | DF26: 80.92105263 | DG26: 80.56805263 | DH26: 8.997975709 | DJ26: 6768792 | DK26: 3214885 | DL26: 33774 | DM26: 33774 | DN26: 332.92 | DO26: 6.78 | DR26: 2.178 | DS26: 1.825 | DV26: 57.31578947 | DW26: 56.96278947 | DX26: -23.60526316 | EB26: -68167335 | EC26: -68167335 | ED26: 333.2 | EE26: 7.06 | EF26: 0 | EG26: 0 | EH26: 2.212 | EI26: 1.859 | EL26: 58.21052632 | EM26: 57.85752632 | EN26: 0.8947368421 | EP26: 3540 | EQ26: 12134 | ER26: 15674 | ES26: 333.18 | ET26: 7.04 | EW26: 2.485 | EX26: 2.132 | FA26: 65.39473684 | FB26: 61.85088483 | FC26: 7.184210526 | FE26: 11811 | FF26: 18284 | FG26: 30095 | FH26: 334.51 | FI26: 8.37 | FJ26: 0 | FK26: 0 | FL26: 3.054 | FM26: 2.701 | FP26: 80.36842105 | FQ26: 78.35799246 | FR26: 14.97368421 | FT26: 14829 | FU26: 17811 | FV26: 32640 | GK26: 0
A27: 2023-10-24 | B27: 2023-10-24 | C27: 336 | D27: 327 | E27: 0.353 | F27: 7.61 | H27: 333.75 | J27: 332.7 | K27: 6.56 | M27: 2.444 | N27: 2.091 | Q27: 62.66666667 | R27: 0.6433846154 | S27: 333.38 | T27: 7.24 | V27: 2.385 | Z27: 61.15384615 | AA27: 0 | AB27: 2488058 | AC27: 6860711 | AD27: 12368 | AE27: 667358 | AF27: 336 | AH27: 333.57 | AI27: 7.43 | AL27: 2.54 | AM27: 2.187 | AP27: 65.12820513 | AQ27: 67.29230769 | AR27: =AP27-Z27 -> 3.974358974 | AT27: 7031128 | AU27: 2463454 | AV27: =AT27+AU27-(AT26+AU26) -> 26590 | AW27: 26590 | AY27: 333.98 | AZ27: 7.84 | BC27: 2.74 | BD27: 0.355 | BG27: 70.25641026 | BH27: 10.92307692 | BI27: 5.128205128 | BK27: 2570753 | BL27: 9190126 | BM27: 33101 | BN27: 33101 | BP27: 331.78 | BQ27: 5.64 | BT27: 1.76 | BU27: 1.407 | BX27: 45.12820513 | BY27: 43.29230769 | BZ27: -25.12820513 | CD27: 0 | CE27: 0 | CG27: 334.02 | CH27: 7.88 | CK27: 2.785 | CL27: 2.432 | CO27: 71.41025641 | CP27: 74.83076923 | CQ27: 26.28205128 | CS27: 1945330 | CT27: 4930520 | CU27: 34729 | CV27: 34729 | CX27: 335.32 | CY27: 9.18 | DB27: 3.07 | DC27: 2.717 | DF27: 80.78947368 | DG27: 80.43647368 | DH27: 9.379217274 | DJ27: 6784034 | DK27: 3236728 | DL27: 37085 | DM27: 37085 | DN27: 332.88 | DO27: 6.74 | DR27: 2.14 | DS27: 1.787 | DV27: 56.31578947 | DW27: 55.96278947 | DX27: -24.47368421 | EB27: -68167335 | EC27: -68167335 | ED27: 333.17 | EE27: 7.03 | EF27: 0 | EG27: 0 | EH27: 2.204 | EI27: 1.851 | EL27: 58 | EM27: 57.647 | EN27: 1.684210526 | EQ27: 12134 | ER27: 12134 | ES27: 333.11 | ET27: 6.97 | EW27: 2.482 | EX27: 2.129 | FA27: 65.31578947 | FB27: 61.76385263 | FC27: 7.315789474 | FE27: 11633 | FF27: 19092 | FG27: 30725 | FH27: 334.46 | FI27: 8.32 | FJ27: 0 | FK27: 0 | FL27: 3.05 | FM27: 2.697 | FP27: 80.26315789 | FQ27: 78.24194952 | FR27: 14.94736842 | FT27: 13287 | FU27: 17913 | FV27: 31200 | GK27: 0
A28: 2023-10-25 | B28: 2023-10-25 | C28: 336 | D28: 327 | E28: 0.353 | F28: 7.58 | G28: 2.4 | H28: 333.72 | J28: 332.65 | K28: 6.51 | N28: -0.353 | Q28: 0 | R28: -0.1086153846 | S28: 333.34 | T28: 7.2 | V28: 2.369 | Z28: 60.74358974 | AA28: 0 | AB28: 2495368 | AC28: 6877725 | AD28: 24324 | AE28: 691682 | AF28: 336 | AH28: 333.53 | AI28: 7.39 | AL28: 2.52 | AM28: 2.167 | AP28: 64.61538462 | AQ28: 66.67692308 | AR28: 3.871794872 | AT28: 7042231 | AU28: 2478430 | AV28: 26079 | AW28: 26079 | AY28: 333.92 | AZ28: 7.78 | BC28: 2.732 | BD28: 0.363 | BG28: 70.05128205 | BH28: 11.16923077 | BI28: 5.435897436 | BK28: 2585170 | BL28: 9210946 | BM28: 35237 | BN28: 35237 | BP28: 331.71 | BQ28: 5.57 | BT28: 1.742 | BU28: 1.389 | BX28: 44.66666667 | BY28: 42.73846154 | BZ28: -25.38461538 | CD28: 0 | CE28: 0 | CG28: 334.03 | CH28: 7.89 | CK28: 2.795 | CL28: 2.442 | CO28: 71.66666667 | CP28: 75.13846154 | CQ28: 27 | CS28: 1959544 | CT28: 4953928 | CU28: 37622 | CV28: 37622 | CX28: 335.29 | CY28: 9.15 | DB28: 3.065 | DC28: 2.712 | DF28: =(DB28/3.8)*100 -> 80.65789474 | DG28: =DF28-0.353 -> 80.30489474 | DH28: 8.99122807 | DJ28: 6799915 | DK28: 3258400 | DL28: 37553 | DM28: 37553 | DN28: 332.81 | DO28: 6.67 | DR28: 2.12 | DS28: 1.767 | DV28: 55.78947368 | DW28: 55.43647368 | DX28: -24.86842105 | EB28: -68167335 | EC28: -68167335 | ED28: 333.14 | EE28: 7 | EF28: 0 | EG28: 0 | EH28: 2.199 | EI28: 1.846 | EL28: 57.86842105 | EM28: 57.51542105 | EN28: 2.078947368 | EQ28: 14756 | ER28: 14756 | ES28: 333.05 | ET28: 6.91 | EW28: 2.481 | EX28: 2.128 | FA28: 65.28947368 | FB28: 61.73484189 | FC28: 7.421052632 | FE28: 11219 | FF28: 19344 | FG28: 30563 | FH28: 334.39 | FI28: 8.25 | FJ28: 0 | FK28: 0 | FL28: 3.048 | FM28: 2.695 | FP28: 80.21052632 | FQ28: 78.18392805 | FR28: 14.92105263 | FT28: 13142 | FU28: 18538 | FV28: 31680 | GK28: 0
A29: 2023-10-26 | B29: 2023-10-26 | C29: 336 | D29: 327 | E29: 0.353 | F29: 7.5 | H29: 333.64 | J29: 332.62 | K29: 6.48 | N29: -0.353 | Q29: 0 | R29: -0.1086153846 | S29: 333.29 | T29: 7.15 | V29: 2.35 | Z29: 60.25641026 | AA29: 0 | AB29: 2498512 | AC29: 6897783 | AD29: 23202 | AE29: =AE28+AD29 -> 714884 | AF29: 336 | AH29: 333.46 | AI29: 7.32 | AL29: 2.5 | AM29: 2.147 | AP29: 64.1025641 | AQ29: 66.06153846 | AR29: 3.846153846 | AT29: 7053585 | AU29: 2493915 | AV29: 26839 | AW29: 26839 | AY29: 333.86 | AZ29: 7.72 | BC29: 2.728 | BD29: 0.378 | BG29: 69.94871795 | BH29: 11.63076923 | BI29: =BG29-AP29 -> 5.846153846 | BK29: 2599651 | BL29: 9229074 | BM29: 32609 | BN29: 32609 | BP29: 331.65 | BQ29: 5.51 | BT29: 1.739 | BU29: 1.386 | BX29: 44.58974359 | BY29: 42.64615385 | BZ29: =BX29-BG29 -> -25.35897436 | CD29: 0 | CE29: 0 | CG29: 334.02 | CH29: 7.88 | CK29: 2.785 | CL29: 2.432 | CO29: 71.41025641 | CP29: 74.83076923 | CQ29: 26.82051282 | CS29: 1982302 | CT29: 4975838 | CU29: 44668 | CV29: 44668 | CX29: 335.25 | CY29: 9.11 | DB29: 3.06 | DC29: 2.707 | DF29: 80.52631579 | DG29: 80.17331579 | DH29: 9.116059379 | DJ29: 6812105 | DK29: 3279644 | DL29: 33434 | DM29: 33434 | DN29: 332.77 | DO29: 6.63 | DR29: 2.115 | DS29: 1.762 | DV29: 55.65789474 | DW29: 55.30489474 | DX29: -24.86842105 | EB29: -68167335 | EC29: -68167335 | ED29: 333.11 | EE29: 6.97 | EF29: 0 | EG29: 0 | EH29: 2.191 | EI29: 1.838 | EL29: 57.65789474 | EM29: 57.30489474 | EN29: 2 | EQ29: 16247 | ER29: 16247 | ES29: 332.99 | ET29: 6.85 | EW29: 2.479 | EX29: 2.126 | FA29: 65.23684211 | FB29: 61.67682042 | FC29: 7.578947368 | FE29: 11559 | FF29: 19079 | FG29: 30638 | FH29: 334.35 | FI29: 8.21 | FJ29: 0 | FK29: 0 | FL29: 3.046 | FM29: 2.693 | FP29: 80.15789474 | FQ29: 78.12590659 | FR29: 14.92105263 | FT29: 13403 | FU29: 18757 | FV29: 32160 | GK29: 0
A30: 2023-10-27 | B30: 2023-10-27 | C30: 336 | D30: 327 | E30: 0.353 | F30: 7.46 | H30: 333.6 | J30: 332.59 | K30: 6.45 | N30: -0.353 | Q30: 0 | R30: -0.1086153846 | S30: 333.23 | T30: 7.09 | V30: 2.32 | Z30: 59.48717949 | AA30: 0 | AB30: 2504804 | AC30: 6919496 | AD30: 28005 | AE30: 742889 | AF30: 336 | AH30: 333.42 | AI30: 7.28 | AL30: 2.499 | AM30: 2.146 | AP30: 64.07692308 | AQ30: 66.03076923 | AR30: 4.58974359 | AT30: 7067198 | AU30: 2510433 | AV30: 30131 | AW30: 30131 | AY30: 333.82 | AZ30: 7.68 | BC30: 2.718 | BD30: 0.398 | BG30: 69.69230769 | BH30: 12.24615385 | BI30: =BG30-AP30 -> 5.615384615 | BK30: 2614792 | BL30: 9245832 | BM30: 31899 | BN30: 31899 | BP30: 331.6 | BQ30: 5.46 | BT30: 1.725 | BU30: 1.372 | BX30: 44.23076923 | BY30: 42.21538462 | BZ30: =BX30-BG30 -> -25.46153846 | CD30: 0 | CE30: 0 | CG30: 334.01 | CH30: 7.87 | CK30: 2.72 | CL30: 2.367 | CO30: 69.74358974 | CP30: 72.83076923 | CQ30: 25.51282051 | CS30: 1995251 | CT30: 4997679 | CU30: 34790 | CV30: 34790 | CX30: 335.22 | CY30: 9.08 | DB30: 3.055 | DC30: 2.702 | DF30: 80.39473684 | DG30: 80.04173684 | DH30: 10.6511471 | DJ30: 6829670 | DK30: 3299300 | DL30: 37221 | DM30: 37221 | DN30: 332.74 | DO30: 6.6 | DR30: 2.11 | DS30: 1.757 | DV30: 55.52631579 | DW30: 55.17331579 | DX30: -24.86842105 | EB30: -68167335 | EC30: -68167335 | ED30: =336-(9.86-EE30) -> 332.98 | EE30: 6.84 | EF30: 65 | EG30: 11 | EH30: 2.18 | EI30: 1.827 | EL30: 57.36842105 | EM30: 57.01542105 | EN30: 1.842105263 | EQ30: 14050 | ER30: 14050 | ES30: 332.94 | ET30: 6.8 | EW30: 2.457 | EX30: 2.104 | FA30: 64.65789474 | FB30: 61.03858428 | FC30: 7.289473684 | FE30: 4756 | FF30: 9055 | FG30: 13811 | FH30: 334.34 | FI30: 8.2 | FJ30: 0 | FK30: 0 | FL30: 3.043 | FM30: 2.69 | FP30: 80.07894737 | FQ30: 78.03887438 | FR30: 15.42105263 | FT30: 13943 | FU30: 18697 | FV30: 32640 | GK30: 0
A31: 2023-10-28 | B31: 2023-10-28 | C31: 336 | D31: 327 | E31: 0.353 | F31: 7.41 | H31: 333.55 | J31: 332.56 | K31: 6.42 | N31: -0.353 | Q31: 0 | R31: -0.1086153846 | S31: 333.19 | T31: 7.05 | V31: 2.3 | Z31: 58.97435897 | AA31: 0 | AB31: 2507755 | AC31: 6937409 | AD31: 20864 | AE31: 763753 | AF31: 336 | AH31: 333.35 | AI31: 7.21 | AJ31: 3 | AL31: 2.49 | AM31: 2.137 | AP31: 63.84615385 | AQ31: 65.75384615 | AR31: 4.871794872 | AT31: 7081122 | AU31: 2527766 | AV31: 31257 | AW31: 31257 | AY31: 333.77 | AZ31: 7.63 | BC31: 2.708 | BD31: 0.408 | BG31: 69.43589744 | BH31: 12.55384615 | BI31: 5.58974359 | BK31: 2630237 | BL31: 9262030 | BM31: 31643 | BN31: 31643 | BP31: 331.5 | BQ31: 5.36 | BT31: 1.692 | BU31: 1.339 | BX31: 43.38461538 | BY31: 41.2 | BZ31: -26.05128205 | CD31: 0 | CE31: 0 | CG31: 333.98 | CH31: 7.84 | CK31: 2.716 | CL31: 2.363 | CO31: 69.64102564 | CP31: 72.70769231 | CQ31: 26.25641026 | CS31: 2016524 | CT31: 5024068 | CU31: 47662 | CV31: 47662 | CX31: 335.18 | CY31: 9.04 | DB31: 3.05 | DC31: 2.697 | DF31: 80.26315789 | DG31: 79.91015789 | DH31: 10.62213225 | DJ31: 6840899 | DK31: 3324180 | DL31: 36109 | DM31: 36109 | DN31: 332.66 | DO31: 6.52 | DR31: 2.1 | DS31: 1.747 | DV31: 55.26315789 | DW31: 54.91015789 | DX31: -25 | EB31: -68167335 | EC31: -68167335 | ED31: 333.06 | EE31: 6.92 | EF31: 2 | EG31: 0 | EH31: 2.186 | EI31: 1.833 | EL31: 57.52631579 | EM31: 57.17331579 | EN31: 2.263157895 | EQ31: 12902 | ER31: 12902 | ES31: 332.9 | ET31: 6.76 | EW31: 2.3528 | EX31: 1.9998 | FA31: 61.91578947 | FB31: 58.0156658 | FC31: 4.389473684 | FE31: 10426 | FF31: 19141 | FG31: 29567 | FH31: 334.32 | FI31: 8.18 | FJ31: 0 | FK31: 0 | FL31: 3.041 | FM31: 2.688 | FP31: 80.02631579 | FQ31: 77.98085292 | FR31: 18.11052632 | FT31: 12882 | FU31: 18318 | FV31: 31200 | GK31: 0
A32: 2023-10-29 | B32: 2023-10-29 | C32: 336 | D32: 327 | E32: 0.353 | F32: 7.37 | H32: 333.51 | J32: 332.54 | K32: 6.4 | M32: 2.4 | N32: 2.047 | Q32: 61.53846154 | R32: 0.6298461538 | S32: 333.14 | T32: 7 | V32: 2.28 | Z32: 58.46153846 | AA32: 0 | AB32: 2513738 | AC32: 6957307 | AD32: 25881 | AE32: 789634 | AF32: 336 | AH32: 333.3 | AI32: 7.16 | AL32: 2.4 | AM32: 2.047 | AP32: 61.53846154 | AQ32: 62.98461538 | AR32: 3.076923077 | AT32: 7093963 | AU32: 2545257 | AV32: 30332 | AW32: 30332 | AY32: 333.73 | AZ32: 7.59 | BC32: 2.7 | BD32: 0.42 | BG32: 69.23076923 | BH32: 12.92307692 | BI32: 7.692307692 | BK32: 2644609 | BL32: 9275632 | BM32: 27974 | BN32: 27974 | BP32: 331.44 | BQ32: 5.3 | BS32: 1.1 | BT32: 1.658 | BU32: 1.305 | BX32: 42.51282051 | BY32: 40.15384615 | BZ32: -26.71794872 | CD32: 0 | CE32: 0 | CG32: 333.96 | CH32: 7.82 | CK32: 2.712 | CL32: 2.359 | CO32: 69.53846154 | CP32: 72.58461538 | CQ32: 27.02564103 | CS32: 2016524 | CT32: 5034729 | CU32: 10661 | CV32: 10661 | CX32: 335.13 | CY32: 8.99 | DB32: 3.045 | DC32: 2.692 | DF32: 80.13157895 | DG32: 79.77857895 | DH32: 10.59311741 | DJ32: 6859013 | DK32: 3343387 | DL32: 37321 | DM32: 37321 | DN32: 332.58 | DO32: 6.44 | DR32: 2.067 | DS32: 1.714 | DV32: 54.39473684 | DW32: 54.04173684 | DX32: -25.73684211 | EB32: -68167335 | EC32: -68167335 | ED32: 333.01 | EE32: 6.87 | EF32: 0 | EG32: 0 | EH32: 2.177 | EI32: 1.824 | EL32: 57.28947368 | EM32: 56.93647368 | EN32: 2.894736842 | EQ32: 14313 | ER32: 14313 | ES32: 332.83 | ET32: 6.69 | EW32: 2.351 | EX32: 1.998 | FA32: 61.86842105 | FB32: 57.96344648 | FC32: 4.578947368 | FE32: 11622 | FF32: 18905 | FG32: 30527 | FH32: 334.19 | FI32: 8.05 | FJ32: 0 | FK32: 0 | FL32: 3.035 | FM32: 2.682 | FP32: 79.86842105 | FQ32: 77.80678851 | FR32: 18 | FT32: 11332 | FU32: 14618 | FV32: 25950 | GK32: 0
A33: 2023-10-30 | B33: 2023-10-30 | C33: 336 | D33: 327 | E33: 0.353 | F33: 7.33 | H33: 333.47 | J33: 332.43 | K33: 6.29 | M33: 2.398 | N33: 2.045 | Q33: 61.48717949 | R33: 0.6292307692 | S33: 333.1 | T33: 6.96 | V33: 2.26 | Z33: 57.94871795 | AA33: 0 | AB33: 2522715 | AC33: 6976342 | AD33: 28012 | AE33: 817646 | AF33: 336 | AH33: 333.24 | AI33: 7.1 | AL33: 2.35 | AM33: 1.997 | AP33: 60.25641026 | AQ33: 61.44615385 | AR33: 2.307692308 | AT33: 7108842 | AU33: 2562618 | AV33: 32240 | AW33: 32240 | AY33: 333.7 | AZ33: 7.56 | BC33: 2.69 | BD33: 0.43 | BG33: 68.97435897 | BH33: =(BD33/3.25)*100 -> 13.23076923 | BI33: 8.717948718 | BK33: 2656064 | BL33: 9291388 | BM33: 27211 | BN33: 27211 | BP33: 331.41 | BQ33: 5.27 | BR33: 6 | BT33: 1.641 | BU33: 1.288 | BX33: 42.07692308 | BY33: 39.63076923 | BZ33: -26.8974359 | CD33: 0 | CE33: 0 | CG33: 333.92 | CH33: 7.78 | CK33: 2.642 | CL33: 2.289 | CO33: 67.74358974 | CP33: 70.43076923 | CQ33: 25.66666667 | CS33: 2031272 | CT33: 5059620 | CU33: 39639 | CV33: 39639 | CX33: 335.07 | CY33: 8.93 | DB33: 3.04 | DC33: 2.687 | DF33: 80 | DG33: 79.647 | DH33: 12.25641026 | DJ33: 6879083 | DK33: 3360524 | DL33: 37207 | DM33: 37207 | DN33: 332.57 | DO33: 6.43 | DR33: 2.065 | DS33: 1.712 | DV33: 54.34210526 | DW33: 53.98910526 | DX33: -25.65789474 | EB33: -68167335 | EC33: -68167335 | ED33: 332.96 | EE33: 6.82 | EF33: 0 | EG33: 0 | EH33: 2.171 | EI33: 1.818 | EL33: 57.13157895 | EM33: 56.77857895 | EN33: 2.789473684 | EQ33: 5540 | ER33: 5540 | ES33: 332.76 | ET33: 6.62 | EW33: 2.349 | EX33: 1.996 | FA33: 61.81578947 | FB33: 57.90542501 | FC33: 4.684210526 | FE33: 11410 | FF33: 19503 | FG33: 30913 | FH33: 334.15 | FI33: 8.01 | FJ33: 0 | FK33: 0 | FL33: 3.032 | FM33: 2.679 | FP33: 79.78947368 | FQ33: 77.71975631 | FR33: 17.97368421 | FT33: 9413 | FU33: 16027 | FV33: 25440 | GK33: 0
A34: 2023-10-31 | B34: 2023-10-31 | C34: 336 | D34: 327 | E34: 0.353 | F34: 7.3 | G34: 52.2 | H34: 333.44 | J34: 332.4 | K34: 6.26 | M34: 2.39 | N34: 2.037 | Q34: 61.28205128 | R34: 0.6267692308 | S34: 333.05 | T34: 6.91 | Z34: 0 | AA34: 0 | AB34: 2534391 | AC34: 6997316 | AD34: 32650 | AE34: =AE33+AD34 -> 850296 | AF34: 336 | AH34: 333.19 | AI34: 7.05 | AL34: 2.325 | AM34: 1.972 | AP34: 59.61538462 | AQ34: 60.67692308 | AR34: 59.61538462 | AT34: 7123003 | AU34: 2580009 | AV34: 31552 | AW34: 31552 | AY34: 333.64 | AZ34: 7.5 | BC34: 2.68 | BD34: 2.68 | BG34: =(BC34/3.9)*100 -> 68.71794872 | BH34: 82.46153846 | BI34: 9.102564103 | BK34: 2666550 | BL34: 9306566 | BM34: 25664 | BN34: 25664 | BP34: 331.34 | BQ34: 5.2 | BT34: 1.608 | BU34: 1.255 | BX34: 41.23076923 | BY34: 38.61538462 | BZ34: -27.48717949 | CD34: 0 | CE34: 0 | CG34: 333.88 | CH34: 7.74 | CK34: 2.622 | CL34: 2.269 | CO34: 67.23076923 | CP34: 69.81538462 | CQ34: 26 | CS34: 2046183 | CT34: 5082375 | CU34: 37666 | CV34: 37666 | CW34: =SUM(CV4:CV34) -> 1151984 | CX34: 335.04 | CY34: 8.9 | DB34: 3.035 | DC34: 2.682 | DF34: 79.86842105 | DG34: 79.51542105 | DH34: 12.63765182 | DJ34: 6896828 | DK34: 3360732 | DL34: 17953 | DM34: 17953 | DN34: 332.41 | DO34: 6.27 | DR34: 2.055 | DS34: 1.702 | DV34: 54.07894737 | DW34: 53.72594737 | DX34: -25.78947368 | EB34: -68167335 | EC34: -68167335 | ED34: 332.92 | EE34: 6.78 | EF34: 0 | EG34: 0 | EH34: 2.165 | EI34: 1.812 | EL34: 56.97368421 | EM34: 56.62068421 | EN34: 2.894736842 | EQ34: 16504 | ER34: 16504 | ES34: 332.7 | ET34: 6.56 | EW34: 2.347 | EX34: 1.994 | FA34: 61.76315789 | FB34: 57.84740354 | FC34: 4.789473684 | FE34: 11401 | FF34: 18855 | FG34: 30256 | FH34: 334.1 | FI34: 7.96 | FJ34: 0 | FK34: 0 | FL34: 3.029 | FM34: 2.676 | FP34: 79.71052632 | FQ34: 77.63272411 | FR34: 17.94736842 | FT34: 11238 | FU34: 13962 | FV34: 25200 | GK34: 0
A35: 2023-11-01 | B35: 2023-11-01 | C35: 336 | D35: 327 | E35: 0.353 | F35: 7.29 | G35: 17.5 | H35: 333.43 | J35: 332.32 | K35: 6.18 | N35: -0.353 | Q35: 0 | R35: -0.1086153846 | S35: 332.99 | T35: 6.85 | Z35: 0 | AA35: 0 | AB35: 2543731 | AC35: 7010139 | AD35: 22163 | AE35: 872459 | AF35: 336 | AH35: 333.14 | AI35: 7 | AK35: 5 | AL35: 2.29 | AM35: 1.937 | AP35: 58.71794872 | AQ35: 59.6 | AR35: 58.71794872 | AT35: 7130763 | AU35: 2593524 | AV35: 21275 | AW35: 21275 | AY35: 333.58 | AZ35: 7.44 | BC35: 2.669 | BD35: 2.669 | BG35: 68.43589744 | BH35: =(BD35/3.25)*100 -> 82.12307692 | BI35: 9.717948718 | BK35: 2679865 | BL35: 9315934 | BM35: 22683 | BN35: 22683 | BP35: 331.29 | BQ35: 5.15 | BT35: 1.582 | BU35: 1.229 | BX35: 40.56410256 | BY35: 37.81538462 | BZ35: -27.87179487 | CB35: 7286254 | CD35: 7286254 | CG35: 333.82 | CH35: 7.68 | CK35: 2.6 | CL35: 2.247 | CO35: 66.66666667 | CP35: =(CL35/3.447)*100 -> 65.18711923 | CQ35: 26.1025641 | CS35: 2061190 | CT35: 5103590 | CU35: =(CS35+CT35)-(CS34+CT34) -> 36222 | CV35: 36222 | CX35: 335 | CY35: 8.86 | DB35: 3.03 | DC35: 2.677 | DF35: 79.73684211 | DG35: 79.38384211 | DH35: 13.07017544 | DJ35: 6913695 | DK35: 3382006 | DL35: =(DJ35+DK35)-(DJ34+DK34) -> 38141 | DM35: 38141 | DN35: 332.38 | DO35: 6.24 | DR35: 2.02 | DS35: 1.667 | DV35: 53.15789474 | DW35: 52.80489474 | DX35: -26.57894737 | EB35: -68167335 | EC35: -68167335 | ED35: 332.88 | EE35: 6.74 | EF35: 0 | EG35: 0 | EH35: 2.158 | EI35: 1.805 | EL35: 56.78947368 | EM35: 56.43647368 | EN35: 3.631578947 | EP35: 4167 | EQ35: 14480 | ER35: 18647 | ES35: 332.7 | ET35: 6.56 | EW35: 2.344 | EX35: 1.991 | FA35: 61.68421053 | FB35: 57.76037134 | FC35: 4.894736842 | FE35: 10911 | FF35: 19587 | FG35: 30498 | FH35: 334.05 | FI35: 7.91 | FJ35: 0 | FK35: 0 | FL35: 2.989 | FM35: 2.636 | FP35: 78.65789474 | FQ35: 76.47229475 | FR35: 16.97368421 | FT35: 13289 | FU35: 16171 | FV35: 29460 | GK35: 0
A36: 2023-11-02 | B36: 2023-11-02 | C36: 336 | D36: 327 | E36: 0.353 | F36: 7.26 | H36: 333.4 | J36: 332.29 | K36: 6.15 | N36: -0.353 | Q36: 0 | R36: -0.1086153846 | S36: 332.95 | T36: 6.81 | Z36: 0 | AA36: 0 | AB36: 2555007 | AC36: 7030980 | AD36: 32117 | AE36: 904576 | AF36: 336 | AH36: 333.12 | AI36: 6.98 | AL36: 2.25 | AM36: 1.897 | AP36: 57.69230769 | AQ36: 58.36923077 | AR36: 57.69230769 | AT36: 7150337 | AU36: 2605331 | AV36: 31381 | AW36: 31381 | AY36: 333.53 | AZ36: 7.39 | BC36: 2.658 | BD36: 2.658 | BG36: 68.15384615 | BH36: 81.78461538 | BI36: 10.46153846 | BK36: 2693826 | BL36: 9337279 | BM36: 35306 | BN36: 35306 | BP36: 331.23 | BQ36: 5.09 | BT36: 1.558 | BU36: 1.205 | BX36: 39.94871795 | BY36: 37.07692308 | BZ36: -28.20512821 | CB36: 7310490 | CD36: 24236 | CE36: 24236 | CG36: 333.78 | CH36: 7.64 | CK36: 2.54 | CL36: 2.187 | CO36: 65.12820513 | CP36: 63.4464752 | CQ36: 25.17948718 | CS36: 2076090 | CT36: 5122631 | CU36: 33941 | CV36: 33941 | CX36: 334.95 | CY36: 8.81 | DB36: 3.025 | DC36: 2.672 | DF36: 79.60526316 | DG36: 79.25226316 | DH36: 14.47705803 | DJ36: 6932703 | DK36: 3390937 | DL36: 35904 | DM36: 35904 | DN36: 332.34 | DO36: 6.2 | DR36: 2 | DS36: 1.647 | DV36: =(DR36/3.8)*100 -> 52.63157895 | DW36: =DV36-0.353 -> 52.27857895 | DX36: -26.97368421 | EB36: -68167335 | EC36: =EB36 -> -68167335 | ED36: 332.84 | EE36: 6.7 | EF36: 0 | EG36: 0 | EH36: 2.154 | EI36: 1.801 | EL36: 56.68421053 | EM36: 56.33121053 | EN36: 4.052631579 | EO36: 0.74 | EP36: 7460 | EQ36: 15558 | ER36: 23018 | ES36: 332.56 | ET36: 6.42 | EW36: 2.341 | EX36: 1.988 | FA36: 61.60526316 | FB36: 57.67333914 | FC36: 4.921052632 | FD36: =EY36-EH36 ->  | FE36: 11115 | FF36: 19487 | FG36: 30602 | FH36: 334 | FI36: 7.86 | FJ36: 7.5 | FK36: 0 | FL36: 2.934 | FM36: 2.581 | FP36: 77.21052632 | FQ36: 74.87670438 | FR36: 15.60526316 | FT36: 12271 | FU36: 17969 | FV36: 30240 | GK36: 0
A37: 2023-11-03 | B37: 2023-11-03 | C37: 336 | D37: 327 | E37: 0.353 | F37: 7.22 | H37: 333.36 | J37: 332.28 | K37: 6.14 | N37: -0.353 | Q37: 0 | R37: -0.1086153846 | S37: 332.89 | T37: 6.75 | Z37: 0 | AA37: 0 | AB37: 2566156 | AC37: 7053190 | AD37: 33359 | AE37: 937935 | AF37: 336 | AH37: 333.05 | AI37: 6.91 | AL37: 2.215 | AM37: 1.862 | AP37: 56.79487179 | AQ37: 57.29230769 | AR37: 56.79487179 | AT37: 7169113 | AU37: 2611888 | AV37: 25333 | AW37: 25333 | AY37: 333.49 | AZ37: 7.35 | BC37: 2.642 | BD37: 2.642 | BG37: 67.74358974 | BH37: 81.29230769 | BI37: 10.94871795 | BK37: 2707688 | BL37: 9356753 | BM37: 33336 | BN37: 33336 | BP37: 331.14 | BQ37: 5 | BR37: 23.5 | BT37: 1.516 | BU37: 1.163 | BX37: 38.87179487 | BY37: 35.78461538 | BZ37: -28.87179487 | CB37: 7334637 | CD37: 24147 | CE37: 24147 | CG37: 333.72 | CH37: 7.58 | CK37: 2.534 | CL37: 2.181 | CO37: 64.97435897 | CP37: 63.27241079 | CQ37: 26.1025641 | CS37: 2087636 | CT37: 5140020 | CU37: 28935 | CV37: 28935 | CX37: 334.9 | CY37: 8.76 | DB37: 3.02 | DC37: 2.667 | DF37: 79.47368421 | DG37: 79.12068421 | DH37: 14.49932524 | DJ37: 6950402 | DK37: 3430559 | DL37: 38196 | DM37: 38196 | DN37: 332.29 | DO37: 6.15 | DR37: 1.95 | DS37: 1.597 | DV37: 51.31578947 | DW37: 50.96278947 | DX37: -28.15789474 | EB37: -68167335 | EC37: -68167335 | ED37: 332.8 | EE37: 6.66 | EF37: 0 | EG37: 0 | EH37: 2.148 | EI37: 1.795 | EL37: 56.52631579 | EM37: 56.17331579 | EN37: 5.210526316 | EO37: =EJ37-DR37 ->  | EP37: 7051 | EQ37: 10981 | ER37: 18032 | ES37: 332.5 | ET37: 6.36 | EW37: 2.338 | EX37: 1.985 | FA37: 61.52631579 | FB37: 57.58630693 | FC37: 5 | FE37: 11188 | FF37: 20165 | FG37: 31353 | FH37: 333.97 | FI37: 7.83 | FJ37: 21 | FK37: 0 | FL37: 2.9 | FM37: 2.547 | FP37: 76.31578947 | FQ37: 73.89033943 | FR37: 14.78947368 | FT37: 12390 | FU37: 16884 | FV37: 29274 | GK37: 0
A38: 2023-11-04 | B38: 2023-11-04 | C38: 336 | D38: 327 | E38: 0.353 | F38: 7.19 | H38: 333.33 | J38: 332.26 | K38: 6.12 | N38: -0.353 | Q38: 0 | R38: -0.1086153846 | S38: 332.84 | T38: 6.7 | Z38: 0 | AA38: 0 | AB38: 2566159 | AC38: 7053190 | AD38: 3 | AE38: 937938 | AF38: 336 | AH38: 332.99 | AI38: 6.85 | AJ38: 81 | AL38: 2.185 | AM38: 1.832 | AP38: 56.02564103 | AQ38: 56.36923077 | AR38: 56.02564103 | AT38: 7189038 | AU38: 2623879 | AV38: 31916 | AW38: 31916 | AY38: 333.44 | AZ38: 7.3 | BC38: 2.629 | BD38: 2.629 | BG38: 67.41025641 | BH38: 80.89230769 | BI38: 11.38461538 | BK38: 2722669 | BL38: 9371450 | BM38: 29678 | BN38: 29678 | BP38: 331.09 | BQ38: 4.95 | BT38: 1.511 | BU38: 1.158 | BX38: 38.74358974 | BY38: 35.63076923 | BZ38: -28.66666667 | CB38: 7357285 | CD38: 22648 | CE38: 22648 | CG38: 333.68 | CH38: 7.54 | CK38: 2.529 | CL38: 2.176 | CO38: 64.84615385 | CP38: 63.12735712 | CQ38: 26.1025641 | CS38: 2101857 | CT38: 5160448 | CU38: 34649 | CV38: 34649 | CX38: 334.86 | CY38: 8.72 | DB38: 3.015 | DC38: 2.662 | DF38: 79.34210526 | DG38: 78.98910526 | DH38: 14.49595142 | DJ38: 6961944 | DK38: 3450469 | DL38: 37452 | DM38: 37452 | DN38: 332.19 | DO38: 6.05 | DR38: 1.945 | DS38: 1.592 | DV38: 51.18421053 | DW38: 50.83121053 | DX38: -28.15789474 | EB38: -68167335 | EC38: -68167335 | ED38: 332.75 | EE38: 6.61 | EF38: 0 | EG38: 0 | EH38: 2.142 | EI38: 1.789 | EL38: 56.36842105 | EM38: 56.01542105 | EN38: 5.184210526 | EP38: 7511 | EQ38: 13915 | ER38: 21426 | ES38: 332.42 | ET38: 6.28 | EW38: 2.334 | EX38: 1.981 | FA38: 61.42105263 | FB38: 57.470264 | FC38: 5.052631579 | FE38: 11204 | FF38: 19175 | FG38: 30379 | FH38: 333.91 | FI38: 7.77 | FJ38: 0 | FK38: 0 | FL38: 2.865 | FM38: 2.512 | FP38: 75.39473684 | FQ38: 72.87496374 | FR38: 13.97368421 | FT38: 13814 | FU38: 17866 | FV38: 31680 | GK38: 0
A39: 2023-11-05 | B39: 2023-11-05 | C39: 336 | D39: 327 | E39: 0.353 | F39: 7.1 | H39: 333.24 | J39: 332.23 | K39: 6.09 | N39: -0.353 | Q39: 0 | R39: -0.1086153846 | S39: 332.79 | T39: 6.65 | Z39: 0 | AA39: 0 | AB39: 2566159 | AC39: 7074126 | AD39: 20936 | AE39: 958874 | AF39: 336 | AH39: 332.94 | AI39: 6.8 | AL39: 2.18 | AM39: 1.827 | AP39: 55.8974359 | AQ39: 56.21538462 | AR39: 55.8974359 | AT39: 7207796 | AU39: 2640247 | AV39: 35126 | AW39: 35126 | AY39: 333.39 | AZ39: 7.25 | BC39: 2.598 | BD39: 2.598 | BG39: 66.61538462 | BH39: 79.93846154 | BI39: 10.71794872 | BK39: 2737520 | BL39: 9384576 | BM39: 27977 | BN39: 27977 | BP39: 331.02 | BQ39: 4.88 | BT39: 1.504 | BU39: 1.151 | BX39: 38.56410256 | BY39: 35.41538462 | BZ39: -28.05128205 | CB39: 7380772 | CD39: 23487 | CE39: 23487 | CG39: 333.63 | CH39: 7.49 | CK39: 2.524 | CL39: 2.171 | CO39: 64.71794872 | CP39: 62.98230345 | CQ39: 26.15384615 | CS39: 2113076 | CT39: 5178005 | CU39: 28776 | CV39: 28776 | CX39: 334.81 | CY39: 8.67 | DB39: 3.01 | DC39: 2.657 | DF39: 79.21052632 | DG39: 78.85752632 | DH39: 14.4925776 | DJ39: 6975128 | DK39: 3454820 | DL39: 37499 | DM39: 37499 | DN39: 332.12 | DO39: 5.98 | DR39: 1.9 | DS39: 1.547 | DV39: 50 | DW39: 49.647 | DX39: -29.21052632 | EB39: -68167335 | EC39: -68167335 | ED39: 332.7 | EE39: 6.56 | EF39: 0 | EG39: 0 | EH39: 2.137 | EI39: 1.784 | EL39: 56.23684211 | EM39: 55.88384211 | EN39: 6.236842105 | EP39: 7231 | EQ39: 22041 | ER39: 29272 | ES39: 332.34 | ET39: 6.2 | EW39: 2.33 | EX39: 1.977 | FA39: 61.31578947 | FB39: 57.35422106 | FC39: 5.078947368 | FE39: 10768 | FF39: 19430 | FG39: 30198 | FH39: 333.84 | FI39: 7.7 | FJ39: 0 | FK39: 0 | FL39: 2.834 | FM39: 2.481 | FP39: 74.57894737 | FQ39: 71.97563098 | FR39: 13.26315789 | FT39: 12795 | FU39: 17205 | FV39: 30000 | GK39: 0
A40: 2023-11-06 | B40: 2023-11-06 | C40: 336 | D40: 327 | E40: 0.353 | F40: 7.06 | H40: 333.2 | J40: 332.19 | K40: 6.05 | N40: -0.353 | Q40: 0 | R40: -0.1086153846 | S40: 332.74 | T40: 6.6 | Z40: 0 | AA40: 0 | AB40: 2572378 | AC40: 7095384 | AD40: 27477 | AE40: 986351 | AF40: 336 | AH40: 332.91 | AI40: 6.77 | AL40: 2.175 | AM40: 1.822 | AP40: 55.76923077 | AQ40: 56.06153846 | AR40: 55.76923077 | AT40: 7227490 | AU40: 2657057 | AV40: 36504 | AW40: 36504 | AY40: 333.33 | AZ40: 7.19 | BC40: 2.595 | BD40: 2.595 | BG40: 66.53846154 | BH40: 79.84615385 | BI40: 10.76923077 | BK40: 2750770 | BL40: 9396166 | BM40: 24840 | BN40: 24840 | BP40: 330.96 | BQ40: 4.82 | BT40: 1.5 | BU40: 1.147 | BX40: 38.46153846 | BY40: 35.29230769 | BZ40: -28.07692308 | CB40: 7401765 | CD40: 20993 | CE40: 20993 | CG40: 333.58 | CH40: 7.44 | CK40: 2.52 | CL40: 2.167 | CO40: 64.61538462 | CP40: 62.86626052 | CQ40: 26.15384615 | CS40: 2126604 | CT40: 5201348 | CU40: 36871 | CV40: 36871 | CX40: 334.74 | CY40: 8.6 | DB40: 3.005 | DC40: 2.652 | DF40: 79.07894737 | DG40: 78.72594737 | DH40: 14.46356275 | DJ40: 6989001 | DK40: 3478231 | DL40: =(DJ40+DK40)-(DJ39+DK39) -> 37284 | DM40: 37284 | DN40: 332.06 | DO40: 5.92 | DR40: 1.85 | DS40: 1.497 | DV40: 48.68421053 | DW40: 48.33121053 | DX40: -30.39473684 | EB40: -68167335 | EC40: -68167335 | ED40: 332.64 | EE40: 6.5 | EF40: 0 | EG40: 0 | EH40: 2.131 | EI40: 1.778 | EL40: 56.07894737 | EM40: 55.72594737 | EN40: 7.394736842 | EP40: 7139 | EQ40: 25533 | ER40: 32672 | ES40: 332.28 | ET40: 6.14 | EW40: 2.327 | EX40: 1.974 | FA40: 61.23684211 | FB40: 57.26718886 | FC40: 5.157894737 | FE40: 10649 | FF40: 20263 | FG40: 30912 | FH40: 333.8 | FI40: 7.66 | FJ40: 0 | FK40: 0 | FL40: 2.795 | FM40: 2.442 | FP40: 73.55263158 | FQ40: 70.84421236 | FR40: 12.31578947 | FT40: 12321 | FU40: 16429 | FV40: 28750 | GK40: 0
A41: 2023-11-07 | B41: 2023-11-07 | C41: 336 | D41: 327 | E41: 0.353 | F41: 7 | H41: 333.14 | J41: 332.15 | K41: 6.01 | N41: -0.353 | Q41: 0 | R41: -0.1086153846 | S41: 332.73 | T41: 6.59 | Z41: 0 | AA41: 0 | AB41: 2578834 | AC41: 7109264 | AD41: 20336 | AE41: 1006687 | AF41: 336 | AH41: 332.85 | AI41: 6.71 | AL41: 2.168 | AM41: 1.815 | AP41: 55.58974359 | AQ41: 55.84615385 | AR41: 55.58974359 | AT41: 7241830 | AU41: 2674413 | AV41: 31696 | AW41: 31696 | AY41: 333.29 | AZ41: 7.15 | BC41: 2.59 | BD41: 2.59 | BG41: 66.41025641 | BH41: 79.69230769 | BI41: 10.82051282 | BK41: 2765846 | BL41: 9409318 | BM41: 28228 | BN41: 28228 | BP41: 330.89 | BQ41: 4.75 | BT41: 1.493 | BU41: 1.14 | BX41: 38.28205128 | BY41: 35.07692308 | BZ41: -28.12820513 | CB41: 7425582 | CD41: 23817 | CE41: 23817 | CG41: 333.51 | CH41: 7.37 | CK41: 2.516 | CL41: 2.163 | CO41: 64.51282051 | CP41: 62.75021758 | CQ41: 26.23076923 | CS41: 2141208 | CT41: 5225670 | CU41: 38926 | CV41: 38926 | CX41: 334.7 | CY41: 8.56 | DB41: 3 | DC41: 2.647 | DF41: 78.94736842 | DG41: 78.59436842 | DH41: 14.43454791 | DJ41: 7004878 | DK41: 3510235 | DL41: 37181 | DM41: 37181 | DN41: 331.97 | DO41: 5.83 | DR41: 1.83 | DS41: 1.477 | DV41: 48.15789474 | DW41: 47.80489474 | DX41: -30.78947368 | EB41: -68167335 | EC41: -68167335 | ED41: 332.58 | EE41: 6.44 | EF41: 0 | EG41: 0 | EH41: 2.124 | EI41: 1.771 | EL41: 55.89473684 | EM41: 55.54173684 | EN41: 7.736842105 | EP41: 7232 | EQ41: 24858 | ER41: 32090 | ES41: 332.2 | ET41: 6.06 | EW41: 2.323 | EX41: 1.97 | FA41: 61.13157895 | FB41: 57.15114592 | FC41: 5.236842105 | FE41: 9706 | FF41: 9157 | FG41: 18863 | FH41: 333.75 | FI41: 7.61 | FJ41: 0 | FK41: 0 | FL41: 2.764 | FM41: 2.411 | FP41: 72.73684211 | FQ41: 69.94487961 | FR41: 11.60526316 | FT41: 5516 | FU41: 7184 | FV41: 12700 | GK41: 0
A42: 2023-11-08 | B42: 2023-11-08 | C42: 336 | D42: 327 | E42: 0.353 | F42: 6.96 | H42: 333.1 | J42: 332.11 | K42: 5.97 | N42: -0.353 | Q42: 0 | R42: -0.1086153846 | S42: 332.72 | T42: 6.58 | U42: 88 | Z42: 0 | AA42: 0 | AB42: 2583528 | AC42: 7128695 | AD42: 24125 | AE42: 1030812 | AF42: 336 | AH42: 332.78 | AI42: 6.64 | AL42: 2.15 | AM42: 1.797 | AP42: 55.12820513 | AQ42: 55.29230769 | AR42: 55.12820513 | AT42: 7252593 | AU42: 2691898 | AV42: 28248 | AW42: 28248 | AY42: 333.24 | AZ42: 7.1 | BC42: 2.585 | BD42: 2.585 | BG42: 66.28205128 | BH42: 79.53846154 | BI42: 11.15384615 | BK42: 2780816 | BL42: 9422514 | BM42: 28166 | BN42: 28166 | BP42: 330.93 | BQ42: 4.79 | BT42: 1.489 | BU42: 1.136 | BX42: 38.17948718 | BY42: 34.95384615 | BZ42: -28.1025641 | CB42: 7448789 | CD42: 23207 | CE42: 23207 | CG42: 333.46 | CH42: 7.32 | CK42: 2.512 | CL42: 2.159 | CO42: 64.41025641 | CP42: 62.63417464 | CQ42: 26.23076923 | CS42: 2151623 | CT42: 5245824 | CU42: 30569 | CV42: 30569 | CX42: 334.65 | CY42: 8.51 | DB42: 2.995 | DC42: 2.642 | DF42: 78.81578947 | DG42: 78.46278947 | DH42: 14.40553306 | DJ42: 7020550 | DK42: 3532601 | DL42: =(DJ42+DK42)-(DJ41+DK41) -> 38038 | DM42: 38038 | DN42: 331.91 | DO42: 5.77 | DR42: 1.81 | DS42: 1.457 | DV42: 47.63157895 | DW42: 47.27857895 | DX42: -31.18421053 | EB42: -68167335 | EC42: -68167335 | ED42: 332.53 | EE42: 6.39 | EF42: 0 | EG42: 0 | EH42: 2.119 | EI42: 1.766 | EL42: 55.76315789 | EM42: 55.41015789 | EN42: 8.131578947 | EP42: 7349 | EQ42: 23563 | ER42: 30912 | ES42: 332.14 | ET42: 6 | EW42: =(ET42*3.8)/9.86 -> 2.312373225 | EX42: 1.959373225 | FA42: 60.85192698 | FB42: 56.84285539 | FC42: 5.088769083 | FE42: 8541 | FF42: 14668 | FG42: 23209 | FH42: 333.69 | FI42: 7.55 | FJ42: 0 | FK42: 0 | FL42: 2.7 | FM42: 2.347 | FP42: 71.05263158 | FQ42: 68.08819263 | FR42: 10.2007046 | FT42: 11627 | FU42: 13893 | FV42: 25520 | GK42: 0
A43: 2023-11-09 | B43: 2023-11-09 | C43: 336 | D43: 327 | E43: 0.353 | F43: 6.92 | H43: 333.06 | J43: 332.08 | K43: 5.94 | N43: -0.353 | Q43: 0 | R43: -0.1086153846 | S43: 332.69 | T43: 6.55 | U43: 20 | V43: 2.14 | Z43: 54.87179487 | AA43: 0 | AB43: 2590018 | AC43: 7138647 | AD43: 16442 | AE43: 1047254 | AF43: 336 | AH43: 332.71 | AI43: 6.57 | AL43: 2.145 | AM43: 1.792 | AP43: 55 | AQ43: 55.13846154 | AR43: 0.1282051282 | AT43: 7269369 | AU43: 2708952 | AV43: 33830 | AW43: 33830 | AY43: 333.18 | AZ43: 7.04 | BC43: 2.579 | BD43: 0.439 | BG43: 66.12820513 | BH43: 13.50769231 | BI43: 11.12820513 | BK43: 2795292 | BL43: 9435190 | BM43: 27152 | BN43: 27152 | BP43: 330.75 | BQ43: 4.61 | BT43: 1.47 | BU43: 1.117 | BX43: 37.69230769 | BY43: 34.36923077 | BZ43: -28.43589744 | CB43: 7472912 | CD43: 24123 | CE43: 24123 | CG43: 333.43 | CH43: 7.29 | CJ43: 16.3 | CK43: 2.508 | CL43: 2.155 | CO43: 64.30769231 | CP43: 62.51813171 | CQ43: 26.61538462 | CS43: 2165627 | CT43: 5266036 | CU43: 34216 | CV43: 34216 | CX43: 334.61 | CY43: 8.47 | DB43: 2.99 | DC43: 2.637 | DF43: 78.68421053 | DG43: 78.33121053 | DH43: 14.37651822 | DJ43: 7038508 | DK43: 3552945 | DL43: =(DJ43+DK43)-(DJ42+DK42) -> 38302 | DM43: 38302 | DN43: 331.81 | DO43: 5.67 | DR43: 1.79 | DS43: 1.437 | DV43: 47.10526316 | DW43: 46.75226316 | DX43: -31.57894737 | EB43: -68167335 | EC43: -68167335 | ED43: 332.45 | EE43: 6.31 | EF43: 0 | EG43: 0 | EH43: 2.11 | EI43: 1.757 | EL43: 55.52631579 | EM43: 55.17331579 | EN43: 8.421052632 | EP43: 1009 | EQ43: 3477 | ER43: 4486 | ES43: 332.09 | ET43: 5.95 | EW43: =(ET43*3.8)/9.86 -> 2.293103448 | EX43: 1.940103448 | FA43: 60.34482759 | FB43: 56.28382502 | FC43: 4.818511797 | FE43: 8382 | FF43: 14010 | FG43: 22392 | FH43: 333.57 | FI43: 7.43 | FJ43: 0 | FK43: 0 | FL43: 2.66 | FM43: 2.307 | FP43: 70 | FQ43: 66.92776327 | FR43: 9.655172414 | FT43: 0 | FU43: 0 | FV43: 0 | GK43: 0
A44: 2023-11-10 | B44: 2023-11-10 | C44: 336 | D44: 327 | E44: 0.353 | F44: 6.86 | H44: 333 | J44: 332.02 | K44: 5.88 | N44: -0.353 | Q44: 0 | R44: -0.1086153846 | S44: 332.65 | T44: 6.51 | U44: 0 | V44: 2.1 | Z44: 53.84615385 | AA44: 0 | AB44: 2590022 | AC44: 7171654 | AD44: 33011 | AE44: 1080265 | AF44: 336 | AH44: 332.66 | AI44: 6.52 | AL44: 2.105 | AM44: 1.752 | AP44: 53.97435897 | AQ44: 53.90769231 | AR44: 0.1282051282 | AT44: 7282476 | AU44: 2726237 | AV44: 30392 | AW44: 30392 | AY44: 333.13 | AZ44: 6.99 | BC44: 2.495 | BD44: 0.395 | BG44: 63.97435897 | BH44: 12.15384615 | BI44: 10 | BK44: 2809479 | BL44: 9447566 | BM44: 26563 | BN44: 26563 | BP44: 330.66 | BQ44: 4.52 | BT44: 1.4 | BU44: 1.047 | BX44: 35.8974359 | BY44: 32.21538462 | BZ44: -28.07692308 | CB44: 7519028 | CD44: =CB44+CC44-(CB43+CC43) -> 46116 | CE44: 46116 | CG44: 333.52 | CH44: 7.38 | CK44: 2.515 | CL44: 2.162 | CO44: 64.48717949 | CP44: 62.72120685 | CQ44: 28.58974359 | CS44: 2180406 | CT44: 5286924 | CU44: 35667 | CV44: 35667 | CX44: 334.61 | CY44: 8.47 | DB44: 2.99 | DC44: 2.637 | DF44: 78.68421053 | DG44: 78.33121053 | DH44: 14.19703104 | DJ44: 7051688 | DK44: 3578701 | DL44: =(DJ44+DK44)-(DJ43+DK43) -> 38936 | DM44: 38936 | DN44: 331.74 | DO44: 5.6 | DR44: 1.77 | DS44: 1.417 | DV44: 46.57894737 | DW44: 46.22594737 | DX44: -32.10526316 | EB44: -68167335 | EC44: -68167335 | ED44: 332.43 | EE44: 6.29 | EF44: 0 | EG44: 0 | EH44: 2.107 | EI44: 1.754 | EL44: 55.44736842 | EM44: 55.09436842 | EN44: 8.868421053 | EP44: 4098 | EQ44: 14614 | ER44: 18712 | ES44: 332.02 | ET44: 5.88 | EW44: 2.266125761 | EX44: 1.913125761 | FA44: 59.63488844 | FB44: 55.5011825 | FC44: 4.187520017 | FE44: 10193 | FF44: 18932 | FG44: 29125 | FH44: 333.54 | FI44: 7.4 | FJ44: 0 | FK44: 0 | FL44: 2.57 | FM44: 2.217 | FP44: 67.63157895 | FQ44: 64.31679721 | FR44: 7.996690509 | FT44: 0 | FU44: 0 | FV44: 0 | GK44: 0
A45: 2023-11-11 | B45: 2023-11-11 | C45: 336 | D45: 327 | E45: 0.353 | F45: 6.83 | H45: 332.97 | J45: 331.98 | K45: 5.84 | N45: -0.353 | Q45: 0 | R45: -0.1086153846 | S45: 332.59 | T45: 6.45 | U45: 0 | V45: 2.05 | Z45: 52.56410256 | AA45: 0 | AB45: 2604956 | AC45: 7189388 | AD45: 32668 | AE45: 1112933 | AF45: 336 | AH45: 332.61 | AI45: 6.47 | AL45: 2.075 | AM45: 1.722 | AP45: 53.20512821 | AQ45: 52.98461538 | AR45: 0.641025641 | AT45: 7296298 | AU45: 2738953 | AV45: 26538 | AW45: 26538 | AY45: 333.1 | AZ45: 6.96 | BC45: 2.495 | BD45: 0.445 | BG45: 63.97435897 | BH45: 13.69230769 | BI45: 10.76923077 | BK45: 2823692 | BL45: 9459838 | BM45: 26485 | BN45: 26485 | BP45: 330.62 | BQ45: 4.48 | BT45: 1.387 | BU45: 1.034 | BX45: 35.56410256 | BY45: 31.81538462 | BZ45: -28.41025641 | CB45: 7543098 | CD45: 24070 | CE45: 24070 | CG45: 333.55 | CH45: 7.41 | CK45: 2.517 | CL45: 2.164 | CO45: 64.53846154 | CP45: 62.77922831 | CQ45: 28.97435897 | CS45: 2194709 | CT45: 5311595 | CU45: 38974 | CV45: 38974 | CX45: 334.54 | CY45: 8.4 | DB45: 2.885 | DC45: 2.532 | DF45: 75.92105263 | DG45: 75.56805263 | DH45: 11.38259109 | DJ45: 7065578 | DK45: 3603221 | DL45: 38410 | DM45: 38410 | DN45: 331.67 | DO45: 5.53 | DR45: 1.755 | DS45: 1.402 | DV45: 46.18421053 | DW45: 45.83121053 | DX45: -29.73684211 | EB45: -68167335 | EC45: -68167335 | ED45: 332.35 | EE45: 6.21 | EF45: 0 | EG45: 0 | EH45: 2.095 | EI45: 1.742 | EL45: 55.13157895 | EM45: 54.77857895 | EN45: 8.947368421 | EP45: 7046 | EQ45: 18960 | ER45: 26006 | ES45: 331.91 | ET45: 5.77 | EW45: 2.223732252 | EX45: 1.870732252 | FA45: 58.51926978 | FB45: 54.27131568 | FC45: 3.38769083 | FE45: 10684 | FF45: 18601 | FG45: 29285 | FH45: 333.51 | FI45: 7.37 | FJ45: 0 | FK45: 0 | FL45: 2.52 | FM45: 2.167 | FP45: 66.31578947 | FQ45: 62.86626052 | FR45: 7.796519697 | FT45: 11627 | FU45: 13893 | FV45: 25520 | GK45: 0
A46: 2023-11-12 | B46: 2023-11-12 | C46: 336 | D46: 327 | E46: 0.353 | F46: 6.78 | H46: 332.92 | J46: 331.92 | K46: 5.78 | N46: -0.353 | Q46: 0 | R46: -0.1086153846 | S46: 332.53 | T46: 6.39 | U46: 0 | V46: 2.025 | Z46: 51.92307692 | AA46: 0 | AB46: 2616470 | AC46: 7203815 | AD46: 25941 | AE46: =AE45+AD46 -> 1138874 | AF46: 336 | AH46: 332.55 | AI46: 6.41 | AL46: 2.05 | AM46: 1.697 | AP46: 52.56410256 | AQ46: 52.21538462 | AR46: 0.641025641 | AT46: 7311194 | AU46: 2749730 | AV46: 25673 | AW46: 25673 | AY46: 333.04 | AZ46: 6.9 | BC46: 2.485 | BD46: 0.46 | BG46: 63.71794872 | BH46: 14.15384615 | BI46: 11.15384615 | BK46: 2838682 | BL46: 9472592 | BM46: 27744 | BN46: 27744 | BP46: 330.54 | BQ46: 4.4 | BT46: 1.356 | BU46: 1.003 | BX46: 34.76923077 | BY46: 30.86153846 | BZ46: -28.94871795 | CB46: 7551318 | CD46: 8220 | CE46: 8220 | CG46: 333.57 | CH46: 7.43 | CK46: 2.519 | CL46: 2.166 | CO46: 64.58974359 | CP46: 62.83724978 | CQ46: 29.82051282 | CS46: 2203172 | CT46: 5326617 | CU46: 23485 | CV46: 23485 | CX46: 334.44 | CY46: 8.3 | DB46: 2.88 | DC46: 2.527 | DF46: 75.78947368 | DG46: 75.43647368 | DH46: 11.19973009 | DJ46: 7079755 | DK46: 3637529 | DL46: =(DJ46+DK46)-(DJ45+DK45) -> 48485 | DM46: 48485 | DN46: 331.56 | DO46: 5.42 | DR46: 1.73 | DS46: 1.377 | DV46: 45.52631579 | DW46: 45.17331579 | DX46: -30.26315789 | EB46: -68167335 | EC46: -68167335 | ED46: 332.33 | EE46: 6.19 | EF46: 0 | EG46: 0 | EH46: 2.091 | EI46: 1.738 | EL46: 55.02631579 | EM46: 54.67331579 | EN46: 9.5 | EP46: 7245 | EQ46: 22840 | ER46: 30085 | ES46: 331.84 | ET46: 5.7 | EW46: 2.196754564 | EX46: 1.843754564 | FA46: 57.80933063 | FB46: 53.48867316 | FC46: 2.783014839 | FE46: 10673 | FF46: 18972 | FG46: 29645 | FH46: 333.48 | FI46: 7.34 | FJ46: 0 | FK46: 0 | FL46: 2.48 | FM46: =FL46-0.353 -> 2.127 | FP46: =(FL46/3.8)*100 -> 65.26315789 | FQ46: 61.70583116 | FR46: 7.453827266 | FT46: 12335 | FU46: 13790 | FV46: 26125 | GK46: 0
A47: 2023-11-13 | B47: 2023-11-13 | C47: 336 | D47: 327 | E47: 0.353 | F47: 6.73 | H47: 332.87 | J47: 331.89 | K47: 5.75 | N47: -0.353 | Q47: 0 | R47: -0.1086153846 | S47: 332.48 | T47: 6.34 | U47: 20 | V47: 2.015 | Z47: 51.66666667 | AA47: 0 | AB47: 2628113 | AC47: 7219736 | AD47: 27564 | AE47: 1166438 | AF47: 336 | AH47: 332.51 | AI47: 6.37 | AL47: 2.032 | AM47: 1.679 | AP47: 52.1025641 | AQ47: 51.66153846 | AR47: 0.4358974359 | AT47: 7321166 | AU47: 2758392 | AV47: 18634 | AW47: 18634 | AY47: 332.99 | AZ47: 6.85 | BC47: 2.48 | BD47: 0.465 | BG47: 63.58974359 | BH47: 14.30769231 | BI47: 11.48717949 | BK47: 2853160 | BL47: 9484934 | BM47: 26820 | BN47: 26820 | BP47: 330.49 | BQ47: 4.35 | BT47: 1.342 | BU47: 0.989 | BX47: 34.41025641 | BY47: 30.43076923 | BZ47: -29.17948718 | CB47: 7566954 | CD47: 15636 | CE47: 15636 | CG47: 333.55 | CH47: 7.41 | CK47: 2.517 | CL47: 2.164 | CO47: 64.53846154 | CP47: 62.77922831 | CQ47: 30.12820513 | CS47: 2211735 | CT47: 5341886 | CU47: 23832 | CV47: 23832 | CX47: 334.4 | CY47: 8.26 | DB47: 2.775 | DC47: 2.422 | DF47: 73.02631579 | DG47: 72.67331579 | DH47: 8.487854251 | DJ47: 7088638 | DK47: 3653639 | DL47: =(DJ47+DK47)-(DJ46+DK46) -> 24993 | DM47: 24993 | DN47: 331.46 | DO47: 5.32 | DR47: 1.7 | DS47: 1.347 | DV47: 44.73684211 | DW47: 44.38384211 | DX47: -28.28947368 | EB47: -68167335 | EC47: -68167335 | ED47: 332.26 | EE47: 6.12 | EF47: 0 | EG47: 0 | EH47: 2.079 | EI47: 1.726 | EL47: 54.71052632 | EM47: 54.35752632 | EN47: 9.973684211 | EP47: 7111 | EQ47: 25090 | ER47: 32201 | ES47: 331.76 | ET47: 5.62 | EW47: 2.165922921 | EX47: 1.812922921 | FA47: 56.9979716 | FB47: 52.59422457 | FC47: 2.287445287 | FE47: 10555 | FF47: 18829 | FG47: 29384 | FH47: 333.44 | FI47: 7.3 | FJ47: 0 | FK47: 0 | FL47: 2.45 | FM47: =FL47-0.353 -> 2.097 | FP47: =(FL47/3.8)*100 -> 64.47368421 | FQ47: 60.83550914 | FR47: 7.475712608 | FT47: 8215 | FU47: 11835 | FV47: 20050 | GK47: 0
A48: 2023-11-14 | B48: 2023-11-14 | C48: 336 | D48: 327 | E48: 0.353 | F48: 6.68 | H48: 332.82 | J48: 331.84 | K48: 5.7 | N48: -0.353 | Q48: 0 | R48: -0.1086153846 | S48: 332.43 | T48: 6.29 | V48: 2.012 | Z48: 51.58974359 | AA48: 0 | AB48: 2640978 | AC48: 7235266 | AD48: 28395 | AE48: 1194833 | AF48: 336 | AH48: 332.43 | AI48: 6.29 | AL48: 2.012 | AM48: 1.659 | AP48: 51.58974359 | AQ48: 51.04615385 | AR48: 0 | AT48: 7339693 | AU48: 2768998 | AV48: 29133 | AW48: 29133 | AY48: 332.88 | AZ48: 6.74 | BC48: 2.475 | BD48: 0.463 | BG48: 63.46153846 | BH48: 14.24615385 | BI48: 11.87179487 | BK48: 2868175 | BL48: 9494446 | BM48: 24527 | BN48: 24527 | BP48: 330.43 | BQ48: 4.29 | BT48: 1.32 | BU48: 0.967 | BX48: 33.84615385 | BY48: 29.75384615 | BZ48: -29.61538462 | CB48: 7590318 | CD48: 23364 | CE48: 23364 | CG48: 333.5 | CH48: 7.36 | CK48: 2.511 | CL48: 2.158 | CO48: 64.38461538 | CP48: 62.60516391 | CQ48: 30.53846154 | CS48: 2226390 | CT48: 5367940 | CU48: 40709 | CV48: 40709 | CX48: 334.34 | CY48: 8.2 | DB48: 2.77 | DC48: 2.417 | DF48: 72.89473684 | DG48: 72.54173684 | DH48: 8.510121457 | DJ48: 7104393 | DK48: 3676442 | DL48: 37454 | DM48: 37454 | DN48: 331.41 | DO48: 5.27 | DR48: 1.69 | DS48: 1.337 | DV48: 44.47368421 | DW48: 44.12068421 | DX48: -28.42105263 | EB48: -68167335 | EC48: -68167335 | ED48: 332.19 | EE48: 6.05 | EF48: 0 | EG48: 0 | EH48: 2.066 | EI48: 1.713 | EL48: 54.36842105 | EM48: 54.01542105 | EN48: 9.894736842 | EP48: 7144 | EQ48: 25291 | ER48: 32435 | ES48: 331.68 | ET48: 5.54 | EW48: 2.135091278 | EX48: 1.782091278 | FA48: 56.18661258 | FB48: 51.69977598 | FC48: 1.818191523 | FE48: 10161 | FF48: 19237 | FG48: 29398 | FH48: 333.52 | FI48: 7.38 | FJ48: 0 | FK48: 35 | FL48: 2.53 | FM48: 2.177 | FP48: 66.57894737 | FQ48: 63.15636786 | FR48: 10.39233479 | FT48: 13703 | FU48: 14310 | FV48: 28013 | GK48: 0
A49: 2023-11-15 | B49: 2023-11-15 | C49: 336 | D49: 327 | E49: 0.353 | F49: 6.64 | G49: 9 | H49: 332.78 | J49: 331.81 | K49: 5.67 | N49: -0.353 | Q49: 0 | R49: -0.1086153846 | S49: 332.37 | T49: 6.23 | V49: 2.002 | Z49: 51.33333333 | AA49: 0 | AB49: 2559748 | AC49: 7250547 | AD49: -65949 | AE49: 1128884 | AF49: 336 | AH49: 332.36 | AI49: 6.22 | AL49: 2 | AM49: 1.647 | AP49: 51.28205128 | AQ49: 50.67692308 | AR49: -0.05128205128 | AT49: 7351965 | AU49: 2785445 | AV49: 28719 | AW49: 28719 | AY49: 332.88 | AZ49: 6.74 | BC49: 2.468 | BD49: 0.466 | BG49: 63.28205128 | BH49: 14.33846154 | BI49: 12 | BK49: 2882574 | BL49: 9506782 | BM49: 26735 | BN49: 26735 | BP49: 330.34 | BQ49: 4.2 | BT49: 1.29 | BU49: 0.937 | BX49: 33.07692308 | BY49: 28.83076923 | BZ49: -30.20512821 | CB49: 7613847 | CD49: 23529 | CE49: 23529 | CG49: 333.46 | CH49: 7.32 | CK49: 2.506 | CL49: 2.153 | CO49: 64.25641026 | CP49: 62.46011024 | CQ49: 31.17948718 | CS49: 2240536 | CT49: 5393240 | CU49: 39446 | CV49: 39446 | CX49: 334.29 | CY49: 8.15 | DB49: 2.665 | DC49: 2.312 | DF49: 70.13157895 | DG49: 69.77857895 | DH49: 5.875168691 | DJ49: 7118753 | DK49: 3700299 | DL49: 38218 | DM49: 38218 | DN49: 331.31 | DO49: 5.17 | DR49: 1.675 | DS49: 1.322 | DV49: 44.07894737 | DW49: 43.72594737 | DX49: -26.05263158 | EB49: -68167335 | EC49: -68167335 | ED49: 332.12 | EE49: 5.98 | EF49: 0 | EG49: 0 | EH49: 2.057 | EI49: 1.704 | EL49: 54.13157895 | EM49: 53.77857895 | EN49: 10.05263158 | EP49: 7183 | EQ49: 24508 | ER49: 31691 | ES49: 331.64 | ET49: 5.5 | EW49: 2.119675456 | EX49: 1.766675456 | FA49: 55.78093306 | FB49: 51.25255168 | FC49: 1.649354116 | FE49: 8818 | FF49: 16523 | FG49: 25341 | FH49: 333.45 | FI49: 7.31 | FJ49: 0 | FK49: 0 | FL49: 2.525 | FM49: 2.172 | FP49: 66.44736842 | FQ49: 63.01131419 | FR49: 10.66643536 | FT49: 11419 | FU49: 15213 | FV49: 26632 | GK49: 0
A50: 2023-11-16 | B50: 2023-11-16 | C50: 336 | D50: 327 | E50: 0.353 | F50: 6.59 | H50: 332.73 | J50: 331.77 | K50: 5.63 | N50: -0.353 | Q50: 0 | R50: -0.1086153846 | S50: 332.32 | T50: 6.18 | V50: 1.98 | Z50: 50.76923077 | AA50: 0 | AB50: 2660315 | AC50: 7265325 | AD50: 115345 | AE50: 1244229 | AF50: 336 | AH50: 332.33 | AI50: 6.19 | AL50: 1.99 | AM50: 1.637 | AP50: 51.02564103 | AQ50: 50.36923077 | AR50: 0.2564102564 | AT50: 0 | AU50: 0 | AV50: 0 | AW50: 0 | AY50: 332.83 | AZ50: 6.69 | BC50: 2.465 | BD50: 0.485 | BG50: 63.20512821 | BH50: 14.92307692 | BI50: 12.17948718 | BK50: 2895793 | BL50: 9518490 | BM50: 24927 | BN50: 24927 | BP50: 330.25 | BQ50: 4.11 | BT50: 1.265 | BU50: 0.912 | BX50: 32.43589744 | BY50: 28.06153846 | BZ50: -30.76923077 | CB50: 7635200 | CD50: 21353 | CE50: 21353 | CG50: 333.41 | CH50: 7.27 | CK50: 2.502 | CL50: 2.149 | CO50: 64.15384615 | CP50: 62.3440673 | CQ50: 31.71794872 | CS50: 2240536 | CX50: 334.23 | CY50: 8.09 | DB50: 2.66 | DC50: 2.307 | DF50: 70 | DG50: 69.647 | DH50: 5.846153846 | DJ50: 7134984 | DK50: 3720141 | DL50: =(DJ50+DK50)-(DJ49+DK49) -> 36073 | DM50: 36073 | DN50: 331.21 | DO50: 5.07 | DR50: 1.6 | DS50: 1.247 | DV50: 42.10526316 | DW50: 41.75226316 | DX50: -27.89473684 | EB50: -68167335 | EC50: -68167335 | ED50: 332.06 | EE50: 5.92 | EF50: 0 | EG50: 0 | EH50: 2.049 | EI50: 1.696 | EL50: 53.92105263 | EM50: 53.56805263 | EN50: 11.81578947 | EP50: 7115 | EQ50: 24416 | ER50: 31531 | ES50: 331.59 | ET50: 5.45 | EV50: 9.1 | EW50: 2.10040568 | EX50: 1.74740568 | FA50: 55.27383367 | FB50: 50.69352131 | FC50: 1.35278104 | FE50: 10491 | FF50: 20467 | FG50: 30958 | FH50: 333.41 | FI50: 7.27 | FJ50: 0 | FK50: 0 | FL50: 2.42 | FM50: 2.067 | FP50: 63.68421053 | FQ50: 59.96518712 | FR50: 8.410376855 | FT50: 12121 | FU50: 13779 | FV50: 25900 | GK50: 0
A51: 2023-11-17 | B51: 2023-11-17 | C51: 336 | D51: 327 | E51: 0.353 | F51: 6.56 | H51: 332.7 | J51: 331.72 | K51: 5.58 | N51: -0.353 | Q51: 0 | R51: -0.1086153846 | S51: 332.27 | T51: 6.13 | V51: 1.975 | Z51: 50.64102564 | AA51: 0 | AB51: 2671524 | AC51: 7280374 | AD51: 26258 | AE51: 1270487 | AF51: 336 | AH51: 332.24 | AI51: 6.1 | AL51: 1.97 | AM51: 1.617 | AP51: 50.51282051 | AQ51: 49.75384615 | AR51: -0.1282051282 | AT51: 7372435 | AU51: 2813227 | AV51: =AU51-AU49 -> 27782 | AW51: 27782 | AY51: 332.78 | AZ51: 6.64 | BC51: 2.459 | BD51: 0.484 | BF51: =BE51*24*3600 ->  | BG51: 63.05128205 | BH51: 14.89230769 | BI51: 12.53846154 | BK51: 2908179 | BL51: 9532302 | BM51: =BL51-BL49 -> 25520 | BN51: 25520 | BP51: 330.19 | BQ51: 4.05 | BT51: 1.25 | BU51: 0.897 | BW51: =BV51*24*3600 ->  | BX51: 32.05128205 | BY51: 27.6 | BZ51: -31 | CB51: 7655999 | CD51: 20799 | CE51: 20799 | CG51: 333.39 | CH51: 7.25 | CK51: 2.499 | CL51: 2.146 | CO51: 64.07692308 | CP51: 62.2570351 | CQ51: 32.02564103 | CS51: 2253267 | CT51: 5415186 | CX51: 334.19 | CY51: 8.05 | DB51: 2.655 | DC51: 2.302 | DF51: 69.86842105 | DG51: 69.51542105 | DH51: 5.791497976 | DJ51: 7148697 | DK51: 3745166 | DL51: 38738 | DM51: 38738 | DN51: 331.12 | DO51: 4.98 | DR51: 1.54 | DS51: 1.187 | DV51: 40.52631579 | DW51: 40.17331579 | DX51: -29.34210526 | EB51: -68167335 | EC51: -68167335 | ED51: 332.03 | EE51: 5.89 | EF51: 0 | EG51: 0 | EH51: 2.041 | EI51: 1.688 | EL51: 53.71052632 | EM51: 53.35752632 | EN51: 13.18421053 | EP51: 11503 | EQ51: 18938 | ER51: 30441 | ES51: 331.52 | ET51: 5.38 | EW51: 2.073427992 | EX51: 1.720427992 | FA51: 54.56389452 | FB51: 49.91087879 | FC51: 0.8533682075 | FE51: 10171 | FF51: 19777 | FG51: 29948 | FH51: 333.38 | FI51: 7.24 | FJ51: 0 | FK51: 0 | FL51: 2.39 | FM51: 2.037 | FP51: 62.89473684 | FQ51: 59.0948651 | FR51: 8.330842319 | FT51: 12376 | FU51: 14524 | FV51: 26900 | GK51: 0
A52: 2023-11-18 | B52: 2023-11-18 | C52: 336 | D52: 327 | E52: 0.353 | F52: 6.5 | H52: 332.64 | J52: 331.67 | K52: 5.53 | N52: -0.353 | Q52: 0 | R52: -0.1086153846 | S52: 332.19 | T52: 6.05 | U52: 7 | V52: 1.95 | Z52: 50 | AA52: 0 | AB52: 2684920 | AC52: 7294933 | AD52: 27955 | AE52: 1298442 | AF52: 336 | AH52: 332.19 | AI52: 6.05 | AL52: 1.95 | AM52: 1.597 | AP52: 50 | AQ52: 49.13846154 | AR52: 0 | AT52: 7386680 | AU52: 2830672 | AV52: =AT52+AU52-(AT51+AU51) -> 31690 | AW52: 31690 | AY52: 332.71 | AZ52: 6.57 | BC52: 2.45 | BD52: 0.5 | BG52: 62.82051282 | BH52: 15.38461538 | BI52: 12.82051282 | BK52: 2919868 | BL52: 9551538 | BM52: =BK52+BL52-(BK51+BL51) -> 30925 | BN52: 30925 | BP52: 330.14 | BQ52: 4 | BR52: 48 | BS52: 9.4 | BT52: 1.233 | BU52: 0.88 | BW52: =BV52*24*3600 ->  | BX52: 31.61538462 | BY52: 27.07692308 | BZ52: -31.20512821 | CB52: 7674973 | CD52: 18974 | CE52: 18974 | CG52: 333.34 | CH52: 7.2 | CK52: 2.497 | CL52: 2.144 | CO52: 64.02564103 | CP52: 62.19901364 | CQ52: 32.41025641 | CS52: 2267513 | CT52: 5440224 | CU52: 39284 | CV52: 39284 | CX52: 334.12 | CY52: 7.98 | CZ52: 17 | DB52: 2.65 | DC52: 2.297 | DF52: 69.73684211 | DG52: 69.38384211 | DH52: 5.71120108 | DJ52: 71611610 | DK52: 3764727 | DL52: 32474 | DM52: =DL52 -> 32474 | DN52: 331.04 | DO52: 4.9 | DR52: 1.5 | DS52: 1.147 | DV52: 39.47368421 | DW52: 39.12068421 | DX52: -30.26315789 | EB52: -68167335 | EC52: -68167335 | ED52: 331.9 | EE52: 5.76 | EF52: 0 | EG52: 0 | EH52: 2.023 | EI52: 1.67 | EL52: 53.23684211 | EM52: 52.88384211 | EN52: 13.76315789 | EP52: 13268 | EQ52: 16535 | ER52: 29803 | ES52: 331.41 | ET52: 5.27 | EW52: 2.031034483 | EX52: 1.678034483 | FA52: 53.44827586 | FB52: 48.68101197 | FC52: 0.2114337568 | FE52: 9963 | FF52: 19493 | FG52: 29456 | FH52: 333.32 | FI52: 7.18 | FJ52: 0 | FK52: 0 | FL52: 2.35 | FM52: 1.997 | FP52: 61.84210526 | FQ52: 57.93443574 | FR52: 8.393829401 | FT52: 12062 | FU52: 14038 | FV52: 26100 | GK52: 0
A53: 2023-11-19 | B53: 2023-11-19 | C53: 336 | D53: 327 | E53: 0.353 | F53: 6.47 | H53: 332.61 | J53: 331.62 | K53: 5.48 | N53: -0.353 | Q53: 0 | R53: -0.1086153846 | S53: 332.13 | T53: 5.99 | Z53: 0 | AA53: 0 | AB53: 2699146 | AC53: 7209212 | AD53: -71495 | AE53: 1226947 | AF53: 336 | AH53: 332.13 | AI53: 5.99 | AL53: 1.934 | AM53: 1.581 | AP53: 49.58974359 | AQ53: 48.64615385 | AR53: 49.58974359 | AT53: 7401953 | AU53: 2848826 | AV53: 33427 | AW53: 33427 | AY53: 332.62 | AZ53: 6.48 | BC53: 2.077 | BD53: 2.077 | BG53: 53.25641026 | BH53: 63.90769231 | BI53: 3.666666667 | BK53: 2929893 | BL53: 9572360 | BM53: =BK53+BL53-(BK52+BL52) -> 30847 | BN53: 30847 | BP53: 330.08 | BQ53: 3.94 | BT53: 1.215 | BU53: 0.862 | BX53: 31.15384615 | BY53: 26.52307692 | BZ53: -22.1025641 | CB53: 7695272 | CD53: 20299 | CE53: 20299 | CG53: 333.32 | CH53: 7.18 | CK53: 2.495 | CL53: 2.142 | CO53: 63.97435897 | CP53: 62.14099217 | CQ53: 32.82051282 | CS53: 2279702 | CT53: 5461680 | CU53: 33645 | CV53: 33645 | CX53: 334.08 | CY53: 7.94 | CZ53: 2 | DB53: 2.645 | DC53: 2.292 | DF53: 69.60526316 | DG53: 69.25226316 | DH53: 5.630904184 | DJ53: 7178059 | DK53: 3786453 | DL53: 38175 | DM53: 38175 | DN53: 330.92 | DO53: 4.78 | DR53: 1.495 | DS53: 1.142 | DV53: 39.34210526 | DW53: 38.98910526 | DX53: -30.26315789 | EB53: -68167335 | EC53: -68167335 | ED53: 331.8 | EE53: 5.66 | EF53: 0 | EG53: 0 | EH53: 1.998 | EI53: 1.645 | EL53: 52.57894737 | EM53: 52.22594737 | EN53: 13.23684211 | EP53: 13516 | EQ53: 18096 | ER53: 31612 | ES53: 331.35 | ET53: 5.21 | EW53: 2.007910751 | EX53: 1.654910751 | FA53: 52.83975659 | FB53: 48.01017553 | FC53: 0.2608092239 | FE53: 9946 | FF53: 19399 | FG53: 29345 | FH53: 333.25 | FI53: 7.11 | FJ53: 0 | FK53: 0 | FL53: 2.31 | FM53: 1.957 | FP53: 60.78947368 | FQ53: 56.77400638 | FR53: 7.949717092 | FT53: 11416 | FU53: 14024 | FV53: 25440 | GK53: 0
A54: 2023-11-20 | B54: 2023-11-20 | C54: 336 | D54: 327 | E54: 0.353 | F54: 6.45 | G54: 1 | H54: 332.59 | J54: 331.55 | K54: 5.41 | N54: -0.353 | Q54: 0 | R54: -0.1086153846 | S54: 332.08 | T54: 5.94 | V54: 1.925 | Z54: 49.35897436 | AA54: 0 | AB54: 2703026 | AC54: 7323557 | AD54: 118225 | AE54: 1345172 | AF54: 336 | AH54: 332.08 | AI54: 5.94 | AL54: 1.925 | AM54: 1.572 | AP54: 49.35897436 | AQ54: 48.36923077 | AR54: 0 | AT54: 7411971 | AU54: 2866753 | AV54: 27945 | AW54: 27945 | AY54: 332.58 | AZ54: 6.44 | BC54: 2.067 | BD54: 0.142 | BG54: 53 | BH54: 4.369230769 | BI54: 3.641025641 | BK54: 2940817 | BL54: 9591857 | BM54: 30421 | BN54: 30421 | BP54: =336-(9.86-BQ54) -> 329.99 | BQ54: 3.85 | BT54: 1.2 | BU54: 0.847 | BX54: 30.76923077 | BY54: 26.06153846 | BZ54: -22.23076923 | CB54: 7715925 | CD54: 20653 | CE54: 20653 | CG54: 333.26 | CH54: 7.12 | CJ54: 13.3 | CK54: 2.491 | CL54: 2.138 | CO54: 63.87179487 | CP54: 62.02494923 | CQ54: 33.1025641 | CS54: 2294400 | CT54: 5484663 | CU54: 37681 | CV54: 37681 | CX54: 334 | CY54: 7.86 | DB54: 2.64 | DC54: 2.287 | DF54: 69.47368421 | DG54: 69.12068421 | DH54: 5.601889339 | DJ54: 7193210 | DK54: 3808908 | DL54: 37606 | DM54: 37606 | DN54: 330.81 | DO54: 4.67 | DR54: 1.48 | DS54: 1.127 | DV54: 38.94736842 | DW54: 38.59436842 | DX54: -30.52631579 | EB54: -68167335 | EC54: -68167335 | ED54: 331.74 | EE54: 5.6 | EF54: 0 | EG54: 0 | EH54: 1.979 | EI54: 1.626 | EL54: 52.07894737 | EM54: 51.72594737 | EN54: 13.13157895 | EP54: 8569 | EQ54: 11533 | ER54: 20102 | ES54: 331.29 | ET54: 5.15 | EW54: 1.984787018 | EX54: 1.631787018 | FA54: 52.23123732 | FB54: 47.33933908 | FC54: 0.1522899541 | FE54: 9917 | FF54: 19300 | FG54: 29217 | FH54: 333.21 | FI54: 7.07 | FJ54: 0 | FK54: 0 | FL54: 2.27 | FM54: 1.917 | FP54: 59.73684211 | FQ54: 55.61357702 | FR54: 7.505604783 | FT54: 11638 | FU54: 13476 | FV54: 25114 | GK54: 0
A55: 2023-11-21 | B55: 2023-11-21 | C55: 336 | D55: 327 | E55: 0.353 | F55: 6.39 | H55: 332.53 | J55: 331.48 | K55: 5.34 | N55: -0.353 | Q55: 0 | R55: -0.1086153846 | S55: 332.04 | T55: 5.9 | Z55: 0 | AA55: 0 | AB55: 2711754 | AC55: 7334450 | AD55: 19621 | AE55: 1364793 | AF55: 336 | AH55: 332.02 | AI55: 5.88 | AL55: 1.916 | AM55: 1.563 | AP55: 49.12820513 | AQ55: 48.09230769 | AR55: 49.12820513 | AT55: 7422739 | AU55: 2884602 | AV55: 28617 | AW55: 28617 | AY55: 332.53 | AZ55: 6.39 | BC55: 2.057 | BD55: 2.057 | BG55: 52.74358974 | BH55: 63.29230769 | BI55: 3.615384615 | BK55: 2953592 | BL55: 6910796 | BN55: 0 | BP55: 329.92 | BQ55: 3.78 | BT55: 1.19 | BU55: 0.837 | BX55: 30.51282051 | BY55: 25.75384615 | BZ55: -22.23076923 | CB55: 7735057 | CD55: =CB55+CC55-(CB54+CC54) -> 19132 | CE55: 19132 | CG55: 333.21 | CH55: 7.07 | CK55: 2.488 | CL55: 2.135 | CO55: 63.79487179 | CP55: 61.93791703 | CQ55: 33.28205128 | CS55: 2307500 | CT55: 5507016 | CU55: 35453 | CV55: 35453 | CX55: 333.94 | CY55: 7.8 | DB55: 2.635 | DC55: 2.282 | DF55: 69.34210526 | DG55: 68.98910526 | DH55: 5.547233468 | DJ55: 7209094 | DK55: 3830363 | DL55: 37339 | DM55: 37339 | DN55: 330.75 | DO55: 4.61 | DR55: 1.47 | DS55: 1.117 | DV55: 38.68421053 | DW55: 38.33121053 | DX55: -30.65789474 | EB55: -68167335 | EC55: -68167335 | ED55: 331.68 | EE55: 5.54 | EF55: 0 | EG55: 0 | EH55: 1.967 | EI55: 1.614 | EL55: 51.76315789 | EM55: 51.41015789 | EN55: 13.07894737 | EP55: 15148 | EQ55: 20594 | ER55: 35742 | ES55: 331.26 | ET55: 5.12 | EW55: 1.973225152 | EX55: 1.620225152 | FA55: 51.92697769 | FB55: 47.00392086 | FC55: 0.1638197929 | FE55: 9651 | FF55: 18880 | FG55: 28531 | FH55: 333.15 | FI55: 7.01 | FJ55: 0 | FK55: 0 | FL55: 2.235 | FM55: 1.882 | FP55: 58.81578947 | FQ55: 54.59820133 | FR55: 6.888811786 | FT55: 11377 | FU55: 13823 | FV55: 25200 | GK55: 0
A56: 2023-11-22 | B56: 2023-11-22 | C56: 336 | D56: 327 | E56: 0.353 | F56: 6.35 | H56: 332.49 | J56: 331.43 | K56: 5.29 | N56: -0.353 | Q56: 0 | R56: -0.1086153846 | S56: 331.99 | T56: 5.85 | Z56: 0 | AA56: 0 | AB56: 2724919 | AC56: 7343891 | AD56: 22606 | AE56: 1387399 | AF56: 336 | AH56: 331.94 | AI56: 5.8 | AL56: 1.909 | AM56: 1.556 | AP56: 48.94871795 | AQ56: 47.87692308 | AR56: 48.94871795 | AT56: 7438582 | AU56: 2899656 | AV56: 30897 | AW56: 30897 | AY56: 332.44 | AZ56: 6.3 | BC56: 2.026 | BD56: 2.026 | BG56: 51.94871795 | BH56: 62.33846154 | BI56: 3 | BK56: 2967848 | BL56: 9630840 | BN56: 0 | BP56: 329.84 | BQ56: 3.7 | BT56: 1.16 | BU56: 0.807 | BX56: 29.74358974 | BY56: 24.83076923 | BZ56: -22.20512821 | CB56: 7751666 | CC56: 6885942 | CD56: 6902551 | CG56: 333.15 | CH56: 7.01 | CK56: 2.485 | CL56: 2.132 | CO56: 63.71794872 | CP56: 61.85088483 | CQ56: 33.97435897 | CS56: 2321346 | CT56: 5531662 | CU56: 38492 | CV56: 38492 | CX56: 333.89 | CY56: 7.75 | DB56: 2.63 | DC56: 2.277 | DF56: 69.21052632 | DG56: 68.85752632 | DH56: 5.492577598 | DJ56: 7224574 | DK56: 3853346 | DL56: 38463 | DM56: 38463 | DN56: 330.73 | DO56: 4.59 | DR56: 1.465 | DS56: 1.112 | DV56: 38.55263158 | DW56: 38.19963158 | DX56: -30.65789474 | EB56: -68167335 | EC56: -68167335 | ED56: =336-(9.86-EE56) -> 331.62 | EE56: 5.48 | EF56: 0 | EG56: 0 | EH56: 1.961 | EI56: 1.608 | EL56: 51.60526316 | EM56: 51.25226316 | EN56: 13.05263158 | EP56: 15148 | EQ56: 20594 | ER56: 35742 | ES56: 331.18 | ET56: 5.04 | EW56: 1.942393509 | EX56: 1.589393509 | FA56: 51.11561866 | FB56: 46.10947227 | FC56: -0.4896444966 | FE56: 9528 | FF56: 18570 | FG56: 28098 | FH56: 333.11 | FI56: 6.97 | FJ56: 0 | FK56: 0 | FL56: 2.205 | FM56: 1.852 | FP56: 58.02631579 | FQ56: 53.72787932 | FR56: 6.910697128 | FT56: 8574 | FU56: 9777 | FV56: 18351 | GK56: 0
A57: 2023-11-23 | B57: 2023-11-23 | C57: 336 | D57: 327 | E57: 0.353 | F57: 6.29 | G57: 23.1 | H57: 332.43 | J57: 331.38 | K57: 5.24 | N57: -0.353 | Q57: 0 | R57: -0.1086153846 | S57: 331.93 | T57: 5.79 | V57: 1.903 | Z57: 48.79487179 | AA57: 0 | AB57: 2739119 | AC57: 7353386 | AD57: 23695 | AE57: 1411094 | AF57: 336 | AH57: 331.9 | AI57: 5.76 | AL57: 1.9 | AM57: 1.547 | AP57: 48.71794872 | AQ57: 47.6 | AR57: -0.07692307692 | AT57: 7444228 | AU57: 2907209 | AV57: 13199 | AW57: 13199 | AY57: 332.38 | AZ57: 6.24 | BC57: 2.008 | BD57: 0.105 | BG57: 51.48717949 | BH57: 3.230769231 | BI57: 2.769230769 | BL57: 9644205 | BN57: 0 | BP57: 329.78 | BQ57: 3.64 | BT57: 1.142 | BU57: 0.789 | BX57: 29.28205128 | BY57: 24.27692308 | BZ57: -22.20512821 | CB57: 7760417 | CC57: 6897268 | CD57: 20077 | CE57: 20077 | CG57: 333.11 | CH57: 6.97 | CK57: 2.481 | CL57: 2.128 | CO57: 63.61538462 | CP57: 61.73484189 | CQ57: 34.33333333 | CS57: 2334546 | CT57: 5555071 | CU57: 36609 | CV57: 36609 | CX57: 333.81 | CY57: 7.67 | DB57: 2.625 | DC57: 2.272 | DF57: 69.07894737 | DG57: =DF57-0.353 -> 68.72594737 | DH57: 5.463562753 | DJ57: 7241269 | DK57: 3874992 | DL57: 38341 | DM57: 38341 | DN57: 330.61 | DO57: 4.47 | DR57: 1.445 | DS57: 1.092 | DV57: 38.02631579 | DW57: 37.67331579 | DX57: -31.05263158 | EB57: -68167335 | EC57: -68167335 | ED57: 331.54 | EE57: 5.4 | EF57: 0 | EG57: 0 | EH57: 1.953 | EI57: 1.6 | EL57: 51.39473684 | EM57: 51.04173684 | EN57: 13.36842105 | EP57: 13291 | EQ57: 16556 | ER57: 29847 | ES57: 331.13 | ET57: 4.99 | EW57: 1.923123732 | EX57: 1.570123732 | FA57: 50.60851927 | FB57: 45.5504419 | FC57: -0.7862175723 | FE57: 9353 | FF57: 18198 | FG57: 27551 | FH57: 333.08 | FI57: 6.94 | FJ57: 0 | FK57: 0 | FL57: 2.2 | FM57: 1.847 | FP57: 57.89473684 | FQ57: 53.58282565 | FR57: 7.286217572 | FT57: 12248 | FU57: 14793 | FV57: 27041 | GK57: 0
A58: 2023-11-24 | B58: 2023-11-24 | C58: 336 | D58: 327 | E58: 0.353 | F58: 6.25 | H58: 332.39 | J58: 331.32 | K58: 5.18 | N58: -0.353 | Q58: 0 | R58: -0.1086153846 | S58: 331.89 | T58: 5.75 | V58: 1.898 | Z58: 48.66666667 | AA58: 0 | AB58: 2752786 | AC58: 7362551 | AD58: 22832 | AE58: 1433926 | AF58: 336 | AH58: 331.84 | AI58: 5.7 | AJ58: 81.3 | AK58: 20 | AL58: 1.894 | AM58: 1.541 | AP58: 48.56410256 | AQ58: 47.41538462 | AR58: -0.1025641026 | AT58: 7456119 | AU58: 2922512 | AV58: 27194 | AW58: 27194 | AY58: 332.33 | AZ58: 6.19 | BC58: 2.001 | BD58: 0.103 | BG58: 51.30769231 | BH58: 3.169230769 | BI58: 2.743589744 | BL58: 9658242 | BM58: 14037 | BN58: 14037 | BP58: 329.69 | BQ58: 3.55 | BT58: 1.115 | BU58: 0.762 | BX58: 28.58974359 | BY58: 23.44615385 | BZ58: -22.71794872 | CB58: 7761022 | CC58: 6916288 | CD58: 19625 | CE58: 19625 | CG58: 333.09 | CH58: 6.95 | CK58: 2.479 | CL58: 2.126 | CO58: 63.56410256 | CP58: 61.67682042 | CQ58: 34.97435897 | CS58: 2349145 | CT58: 5580744 | CU58: 40272 | CV58: 40272 | CX58: 333.75 | CY58: 7.61 | DB58: 2.62 | DC58: 2.267 | DF58: =(DB58/3.447)*100 -> 76.00812301 | DG58: 75.65512301 | DH58: 12.44402044 | DJ58: 7257447 | DK58: 3897329 | DL58: 38515 | DM58: 38515 | DN58: 330.51 | DO58: 4.37 | DR58: 1.38 | DS58: 1.027 | DV58: =(DR58/3.8)*100 -> 36.31578947 | DW58: 35.96278947 | DX58: -39.69233353 | EB58: -68167335 | EC58: -68167335 | ED58: 331.47 | EE58: 5.33 | EF58: 0 | EG58: 0 | EH58: 1.946 | EI58: 1.593 | EL58: =(EH58/3.8)*100 -> 51.21052632 | EM58: 50.85752632 | EN58: 14.89473684 | EP58: 12230 | EQ58: 14439 | ER58: 26669 | ES58: 331.06 | ET58: 4.92 | EW58: 1.896146045 | EX58: 1.543146045 | FA58: =(EW58/3.8)*100 -> 49.89858012 | FB58: 44.76779938 | FC58: -1.311946194 | FE58: 9405 | FF58: 17955 | FG58: 27360 | FH58: 333.02 | FI58: 6.88 | FJ58: 0 | FK58: 0 | FL58: 2.195 | FM58: 1.842 | FP58: =(FL58/3.8)*100 -> 57.76315789 | FQ58: 53.43777198 | FR58: 7.864577773 | FT58: 7436 | FU58: 10284 | FV58: 17720 | GK58: 0
A59: 2023-11-25 | B59: 2023-11-25 | C59: 336 | D59: 327 | E59: 0.353 | F59: 6.19 | H59: 332.33 | J59: 331.29 | K59: 5.15 | N59: -0.353 | Q59: 0 | R59: -0.1086153846 | S59: 331.84 | T59: 5.7 | V59: 1.892 | Z59: 48.51282051 | AA59: 0 | AB59: 2763484 | AC59: 7372858 | AD59: 21005 | AE59: 1454931 | AF59: 336 | AH59: 331.79 | AI59: 5.65 | AL59: 1.882 | AM59: 1.529 | AP59: 48.25641026 | AQ59: 47.04615385 | AR59: -0.2564102564 | AT59: 7465927 | AU59: 2938859 | AV59: 26155 | AW59: 26155 | AY59: 332.28 | AZ59: 6.14 | BC59: 1.953 | BD59: 0.061 | BG59: 50.07692308 | BH59: 1.876923077 | BI59: 1.820512821 | BK59: 2987698 | BL59: 9671598 | BN59: 0 | BP59: 329.63 | BQ59: 3.49 | BT59: 1.105 | BU59: 0.752 | BX59: 28.33333333 | BY59: 23.13846154 | BZ59: -21.74358974 | CB59: 7761624 | CC59: 6938722 | CD59: 23036 | CE59: 23036 | CG59: 333.04 | CH59: 6.9 | CK59: 2.476 | CL59: 2.123 | CO59: 63.48717949 | CP59: 61.58978822 | CQ59: 35.15384615 | CS59: 2361825 | CT59: 5602669 | CU59: 34605 | CV59: 34605 | CX59: 333.7 | CY59: 7.56 | CZ59: 22 | DB59: 2.615 | DC59: 2.262 | DF59: 68.81578947 | DG59: =DF59-0.353 -> 68.46278947 | DH59: =DF59-CO59 -> 5.328609987 | DJ59: 7272489 | DK59: 3919688 | DL59: 37401 | DM59: 37401 | DN59: 330.41 | DO59: 4.27 | DR59: 1.37 | DS59: 1.017 | DV59: =(DR59/3.8)*100 -> 36.05263158 | DW59: 35.69963158 | DX59: -32.76315789 | EB59: -68167335 | EC59: -68167335 | ED59: 331.42 | EE59: 5.28 | EF59: 0 | EG59: 0 | EH59: 1.941 | EI59: 1.588 | EL59: =(EH59/3.8)*100 -> 51.07894737 | EM59: 50.72594737 | EN59: 15.02631579 | EP59: 12349 | EQ59: 13949 | ER59: 26298 | ES59: 330.97 | ET59: 4.83 | EW59: 1.861460446 | EX59: 1.508460446 | FA59: =(EW59/3.8)*100 -> 48.98580122 | FB59: 43.76154471 | FC59: -2.093146151 | FE59: 9145 | FF59: 17904 | FG59: 27049 | FH59: 332.98 | FI59: 6.84 | FJ59: 0 | FK59: 0 | FL59: 2.19 | FM59: 1.837 | FP59: =(FL59/3.8)*100 -> 57.63157895 | FQ59: 53.29271831 | FR59: 8.64577773 | FT59: 9566 | FU59: 10859 | FV59: 20425 | GK59: 0
A60: 2023-11-26 | B60: 2023-11-26 | C60: 336 | D60: 327 | E60: 0.353 | F60: 6.15 | H60: 332.29 | J60: 331.23 | K60: 5.09 | N60: -0.353 | Q60: 0 | R60: -0.1086153846 | S60: 331.79 | T60: 5.65 | V60: 1.886 | Z60: 48.35897436 | AA60: 0 | AB60: 2782405 | AC60: 7372998 | AD60: 19061 | AE60: 1473992 | AF60: 336 | AH60: 331.71 | AI60: 5.57 | AL60: 1.878 | AM60: 1.525 | AP60: 48.15384615 | AQ60: 46.92307692 | AR60: -0.2051282051 | AT60: 7478133 | AU60: 2956722 | AV60: 30069 | AW60: 30069 | AY60: 332.21 | AZ60: 6.07 | BC60: 1.94 | BD60: 0.054 | BG60: 49.74358974 | BH60: 1.661538462 | BI60: 1.58974359 | BK60: 3003189 | BL60: 9685262 | BM60: 29155 | BN60: 29155 | BP60: 329.54 | BQ60: 3.4 | BT60: 1.09 | BU60: 0.737 | BX60: 27.94871795 | BY60: 22.67692308 | BZ60: -21.79487179 | CB60: 7767943 | CC60: 6950085 | CD60: 17682 | CE60: 17682 | CG60: 333.03 | CH60: 6.89 | CK60: 2.475 | CL60: 2.122 | CO60: 63.46153846 | CP60: 61.56077749 | CQ60: 35.51282051 | CS60: 2366480 | CT60: 5612279 | CU60: 14265 | CV60: 14265 | CX60: 333.69 | CY60: 7.55 | DA60: 25 | DB60: 2.611 | DC60: 2.258 | DF60: 68.71052632 | DG60: 68.35752632 | DH60: 5.248987854 | DJ60: 7284749 | DK60: 3935760 | DL60: 28332 | DM60: 28332 | DN60: 330.3 | DO60: 4.16 | DR60: 1.35 | DS60: 0.997 | DV60: 35.52631579 | DW60: =DV60-0.353 -> 35.17331579 | DX60: -33.18421053 | EB60: -68167335 | EC60: -68167335 | ED60: 331.36 | EE60: 5.22 | EF60: 0 | EG60: 0 | EH60: 1.928 | EI60: 1.575 | EL60: 50.73684211 | EM60: 50.38384211 | EN60: 15.21052632 | EP60: 13096 | EQ60: 17323 | ER60: 30419 | ES60: 330.89 | ET60: 4.75 | EW60: 1.830628803 | EX60: 1.477628803 | FA60: 48.17444219 | FB60: 42.86709612 | FC60: -2.562399915 | FE60: 9091 | FF60: 17798 | FG60: 26889 | FH60: 332.94 | FI60: 6.8 | FJ60: 0 | FK60: 0 | FL60: 2.185 | FM60: 1.832 | FP60: 57.5 | FQ60: 53.14766464 | FR60: 9.325557809 | FT60: 7437 | FU60: 8863 | FV60: 16300 | GK60: 0
A61: 2023-11-27 | B61: 2023-11-27 | C61: 336 | D61: 327 | E61: 0.353 | F61: 6.1 | H61: 332.24 | J61: 331.17 | K61: 5.03 | N61: -0.353 | Q61: 0 | R61: -0.1086153846 | S61: 331.74 | T61: 5.6 | V61: 1.875 | Z61: 48.07692308 | AA61: 0 | AB61: 2801639 | AC61: 7372998 | AD61: 19234 | AE61: 1493226 | AF61: 336 | AH61: 331.64 | AI61: 5.5 | AL61: 1.868 | AM61: 1.515 | AP61: 47.8974359 | AQ61: 46.61538462 | AR61: -0.1794871795 | AT61: 7490099 | AU61: 2974748 | AV61: 29992 | AW61: 29992 | AY61: 332.14 | AZ61: 6 | BC61: 1.935 | BD61: 0.06 | BG61: 49.61538462 | BH61: 1.846153846 | BI61: 1.717948718 | BK61: 3022428 | BL61: 9707408 | BM61: 41385 | BN61: 41385 | BP61: 329.49 | BQ61: 3.35 | BT61: 1.045 | BU61: 0.692 | BX61: 26.79487179 | BY61: 21.29230769 | BZ61: -22.82051282 | CB61: 7777236 | CC61: 6960110 | CD61: 19318 | CE61: 19318 | CG61: 333.01 | CH61: 6.87 | CK61: 2.19 | CL61: 1.837 | CO61: 56.15384615 | CP61: 53.29271831 | CQ61: 29.35897436 | CS61: 2376828 | CT61: 5628869 | CU61: 26938 | CV61: 26938 | CX61: 333.64 | CY61: 7.5 | DB61: 2.607 | DC61: 2.254 | DF61: 68.60526316 | DG61: 68.25226316 | DH61: 12.451417 | DJ61: 7300046 | DK61: 3958883 | DL61: 38420 | DM61: 38420 | DN61: 330.22 | DO61: 4.08 | DR61: 1.3 | DS61: 0.947 | DV61: 34.21052632 | DW61: 33.85752632 | DX61: -34.39473684 | EB61: -68167335 | EC61: -68167335 | ED61: 331.25 | EE61: 5.11 | EF61: 0 | EG61: 0 | EH61: 1.902 | EI61: 1.549 | EL61: 50.05263158 | EM61: 49.69963158 | EN61: 15.84210526 | EP61: 13422 | EQ61: 18034 | ER61: 31456 | ES61: 330.82 | ET61: 4.68 | EW61: 1.803651116 | EX61: 1.450651116 | FA61: 47.46450304 | FB61: 42.0844536 | FC61: -2.588128536 | FE61: 8573 | FF61: 16644 | FG61: 25217 | FH61: 332.86 | FI61: 6.72 | FJ61: 0 | FK61: 0 | FL61: 2.18 | FM61: 1.827 | FP61: 57.36842105 | FQ61: 53.00261097 | FR61: 9.90391801 | FT61: 12482 | FU61: 15358 | FV61: 27840 | GK61: 0
A62: 2023-11-28 | B62: 2023-11-28 | C62: 336 | D62: 327 | E62: 0.353 | F62: 6.06 | G62: 1.2 | H62: 332.2 | J62: 331.16 | K62: 5.02 | N62: -0.353 | Q62: 0 | R62: -0.1086153846 | S62: 331.78 | T62: 5.64 | V62: 1.86 | Z62: 47.69230769 | AA62: 0 | AB62: 2820422 | AC62: 7372998 | AD62: 18783 | AE62: 1512009 | AF62: 336 | AH62: 331.56 | AI62: 5.42 | AL62: 1.735 | AM62: 1.382 | AP62: 44.48717949 | AQ62: 42.52307692 | AR62: -3.205128205 | AT62: 7502855 | AU62: 2991270 | AV62: 29278 | AW62: 29278 | AY62: 332.09 | AZ62: 5.95 | BC62: 1.925 | BD62: 0.065 | BG62: 49.35897436 | BH62: 2 | BI62: 4.871794872 | BK62: 3034244 | BL62: 9721412 | BM62: 25820 | BN62: 25820 | BP62: 329.44 | BQ62: 3.3 | BR62: 63 | BS62: 28 | BT62: 1.14 | BU62: 0.787 | BX62: 29.23076923 | BY62: 24.21538462 | BZ62: -20.12820513 | CB62: 7788318 | CC62: 6969690 | CD62: 20662 | CE62: 20662 | CG62: 332.97 | CH62: 6.83 | CK62: 2.465 | CL62: 2.112 | CO62: 63.20512821 | CP62: 61.27067015 | CQ62: 33.97435897 | CS62: 2388933 | CT62: 5649998 | CU62: 33234 | CV62: 33234 | CX62: 333.61 | CY62: 7.47 | DB62: 2.602 | DC62: 2.249 | DF62: 68.47368421 | DG62: 68.12068421 | DH62: 5.268556005 | DJ62: 7315472 | DK62: 3980997 | DL62: 37540 | DM62: 37540 | DN62: 330.12 | DO62: 3.98 | DR62: 1.28 | DS62: 0.927 | DV62: 33.68421053 | DW62: 33.33121053 | DX62: -34.78947368 | EB62: -68167335 | EC62: -68167335 | ED62: 331.16 | EE62: 5.02 | EF62: 0 | EG62: 0 | EH62: 1.892 | EI62: 1.539 | EL62: 49.78947368 | EM62: 49.43647368 | EN62: 16.10526316 | EP62: 16343 | EQ62: 15276 | ER62: 31619 | ES62: 330.71 | ET62: 4.57 | EW62: 1.761257606 | EX62: 1.408257606 | FA62: 46.34888438 | FB62: 40.85458679 | FC62: -3.440589303 | FE62: 7327 | FF62: 12859 | FG62: 20186 | FH62: 332.8 | FI62: 6.66 | FJ62: 0 | FK62: 0 | FL62: 2.174 | FM62: 1.821 | FP62: 57.21052632 | FQ62: 52.82854656 | FR62: 10.86164193 | FT62: 12341 | FU62: 14800 | FV62: 27141 | GK62: 0
A63: 2023-11-29 | B63: 2023-11-29 | C63: 336 | D63: 327 | E63: 0.353 | F63: 6 | H63: 332.14 | J63: 331.12 | K63: 4.98 | N63: -0.353 | Q63: 0 | R63: -0.1086153846 | S63: 331.64 | T63: 5.5 | V63: 1.845 | Z63: 47.30769231 | AA63: 0 | AB63: 2838955 | AC63: 7372998 | AD63: 18533 | AE63: 1530542 | AF63: 336 | AH63: 331.51 | AI63: 5.37 | AL63: 1.755 | AM63: 1.402 | AP63: 45 | AQ63: 43.13846154 | AR63: -2.307692308 | AT63: 7510524 | AU63: 2999623 | AV63: 16022 | AW63: 16022 | AY63: 332.04 | AZ63: 5.9 | BC63: 1.912 | BD63: 0.067 | BG63: 49.02564103 | BH63: 2.061538462 | BI63: 4.025641026 | BK63: 3046609 | BL63: 9736758 | BM63: 27711 | BN63: 27711 | BP63: 329.38 | BQ63: 3.24 | BS63: 6 | BT63: 1.009 | BU63: 0.656 | BX63: 25.87179487 | BY63: 20.18461538 | BZ63: -23.15384615 | CB63: 7798511 | CC63: 6979143 | CD63: 19646 | CE63: 19646 | CG63: 332.91 | CH63: 6.77 | CK63: 2.46 | CL63: 2.107 | CO63: 63.07692308 | CP63: 61.12561648 | CQ63: 37.20512821 | CS63: 2403051 | CT63: 5674374 | CU63: 38494 | CV63: 38494 | CX63: 333.6 | CY63: 7.46 | DA63: 10 | DB63: 2.597 | DC63: 2.244 | DF63: 68.34210526 | DG63: 67.98910526 | DH63: 5.265182186 | DJ63: 7315472 | DK63: 3980997 | DL63: 37908 | DM63: 37908 | DN63: 330.01 | DO63: 3.87 | DR63: 1.25 | DS63: 0.897 | DV63: 32.89473684 | DW63: 32.54173684 | DX63: -35.44736842 | EB63: -68167335 | EC63: -68167335 | ED63: 331.14 | EE63: 5 | EF63: 0 | EG63: 0 | EH63: 1.89 | EI63: 1.537 | EL63: 49.73684211 | EM63: 49.38384211 | EN63: 16.84210526 | EP63: 13209 | EQ63: 16808 | ER63: 30017 | ES63: 330.61 | ET63: 4.47 | EW63: 1.722718053 | EX63: 1.369718053 | FA63: 45.3346856 | FB63: 39.73652604 | FC63: -4.402156507 | FE63: 7131 | FF63: 12284 | FG63: 19415 | FH63: 332.78 | FI63: 6.64 | FJ63: 0 | FK63: 0 | FL63: 2.17 | FM63: 1.817 | FP63: 57.10526316 | FQ63: 52.71250363 | FR63: 11.77057756 | FT63: 5816 | FU63: 7362 | FV63: 13178 | GK63: 0
A64: 2023-11-30 | B64: 2023-11-30 | C64: 336 | D64: 327 | E64: 0.353 | F64: 6.97 | H64: 333.11 | J64: 331.11 | K64: 4.97 | N64: -0.353 | Q64: 0 | R64: -0.1086153846 | S64: 331.58 | T64: 5.44 | V64: 1.829 | Z64: 46.8974359 | AA64: 0 | AB64: 2862181 | AC64: 7372998 | AD64: 23226 | AE64: 1553768 | AF64: 336 | AH64: 331.44 | AI64: 5.3 | AL64: 1.721 | AM64: 1.368 | AP64: 44.12820513 | AQ64: 42.09230769 | AR64: -2.769230769 | AT64: 7526790 | AU64: 3017746 | AV64: 34389 | AW64: 34389 | AY64: 332.08 | AZ64: 5.94 | BC64: 1.924 | BD64: 0.095 | BG64: 49.33333333 | BH64: 2.923076923 | BI64: 5.205128205 | BL64: 9750705 | BN64: 0 | BP64: 329.29 | BQ64: 3.15 | BS64: 6 | BT64: 0.991 | BU64: 0.638 | BX64: 25.41025641 | BY64: 19.63076923 | BZ64: -23.92307692 | CD64: -14777654 | CG64: 332.84 | CH64: 6.7 | CK64: 2.455 | CL64: 2.102 | CO64: 62.94871795 | CP64: 60.98056281 | CQ64: 37.53846154 | CS64: 2417050 | CT64: 5698907 | CU64: 38532 | CV64: 38532 | CW64: =SUM(CV35:CV64) ->  | CX64: 333.59 | CY64: 7.45 | DB64: 2.592 | DC64: 2.239 | DF64: 68.21052632 | DG64: 67.85752632 | DH64: 5.261808367 | DJ64: 7329830 | DK64: 4004547 | DL64: 37908 | DM64: 37908 | DN64: 329.92 | DO64: 3.78 | DR64: 1.24 | DS64: 0.887 | DV64: 32.63157895 | DW64: 32.27857895 | DX64: -35.57894737 | EB64: -68167335 | EC64: -68167335 | ED64: 331.11 | EE64: 4.97 | EF64: 0 | EG64: 0 | EH64: 1.881 | EI64: 1.528 | EL64: 49.5 | EM64: 49.147 | EN64: 16.86842105 | EP64: 13311 | EQ64: 17846 | ER64: 31157 | ES64: 330.54 | ET64: 4.4 | EW64: 1.695740365 | EX64: 1.342740365 | FA64: 44.62474645 | FB64: 38.95388353 | FC64: -4.87525355 | FE64: 6834 | FF64: 10167 | FG64: 17001 | FH64: 332.78 | FI64: 6.64 | FJ64: 0 | FK64: 0 | FL64: 2.17 | FM64: 1.817 | FP64: 57.10526316 | FQ64: 52.71250363 | FR64: 12.48051671 | FT64: 12338 | FU64: 14148 | FV64: 26486 | GK64: 0
A65: 2023-12-01 | B65: 2023-12-01 | C65: 336 | D65: 327 | E65: 0.353 | F65: 5.97 | H65: 332.11 | J65: 330.96 | K65: 4.82 | N65: -0.353 | Q65: 0 | R65: -0.1086153846 | S65: 331.55 | T65: 5.41 | Z65: 0 | AA65: 0 | AD65: -10235179 | AE65: -8681411 | AF65: 336 | AH65: 331.37 | AI65: 5.23 | AL65: 1.71 | AM65: 1.357 | AP65: 43.84615385 | AQ65: 41.75384615 | AR65: 43.84615385 | AT65: 7538725 | AU65: 3035176 | AV65: 29365 | AW65: 29365 | AY65: 332.31 | AZ65: 6.17 | BC65: 1.98 | BD65: 1.98 | BG65: 50.76923077 | BH65: 60.92307692 | BI65: 6.923076923 | BK65: 3046609 | BL65: 9765180 | BN65: 0 | BP65: 329.23 | BQ65: 3.09 | BT65: 0.98 | BU65: 0.627 | BX65: 25.12820513 | BY65: 19.29230769 | BZ65: -25.64102564 | CD65: 0 | CE65: 0 | CG65: 332.8 | CH65: 6.66 | CI65: 13.4 | CK65: 2.439 | CL65: 2.086 | CO65: 62.53846154 | CP65: 60.51639106 | CQ65: 37.41025641 | CS65: 2430481 | CT65: 5722659 | CU65: 37183 | CV65: 37183 | CX65: 333.54 | CY65: 7.4 | DB65: 2.587 | DC65: 2.234 | DF65: 68.07894737 | DG65: 67.72594737 | DH65: 5.54048583 | DJ65: 7357333 | DK65: 4046598 | DL65: 69554 | DM65: 69554 | DN65: 329.8 | DO65: 3.66 | DR65: 1.22 | DS65: 0.867 | DV65: 32.10526316 | DW65: 31.75226316 | DX65: -35.97368421 | EB65: -68167335 | EC65: -68167335 | ED65: 330.82 | EE65: 4.68 | EF65: 0 | EG65: 0 | EH65: 1.879 | EI65: 1.526 | EL65: 49.44736842 | EM65: 49.09436842 | EN65: 17.34210526 | EP65: 12604 | EQ65: 16004 | ER65: 28608 | ES65: 331 | ET65: 4.86 | EU65: 27 | EV65: 90 | EW65: 1.873022312 | EX65: 1.520022312 | FA65: 49.29006085 | FB65: 44.09696294 | FC65: -0.1573075691 | FE65: 7432 | FF65: 12109 | FG65: 19541 | FH65: 332.75 | FI65: 6.61 | FJ65: 0.5 | FK65: 25.3 | FL65: 2.155 | FM65: 1.802 | FP65: 56.71052632 | FQ65: 52.27734262 | FR65: 7.420465464 | FT65: 12709 | FU65: 14546 | FV65: 27255 | GK65: 0
A66: 2023-12-02 | B66: 2023-12-02 | C66: 336 | D66: 327 | E66: 0.353 | F66: 5.9 | H66: 332.04 | J66: 330.87 | K66: 4.73 | N66: -0.353 | Q66: 0 | R66: -0.1086153846 | S66: 331.49 | T66: 5.35 | V66: 1.805 | Z66: 46.28205128 | AA66: 0 | AD66: 0 | AE66: -8681411 | AF66: 336 | AH66: 331.29 | AI66: 5.15 | AL66: 1.7 | AM66: 1.347 | AP66: 43.58974359 | AQ66: 41.44615385 | AR66: -2.692307692 | AT66: 7550666 | AU66: 3053161 | AV66: 29926 | AW66: 29926 | AY66: 332.32 | AZ66: 6.18 | BC66: 1.983 | BD66: 0.178 | BG66: 50.84615385 | BH66: 5.476923077 | BI66: 7.256410256 | BK66: 3055967 | BL66: 9777786 | BM66: 21964 | BN66: 21964 | BP66: 329.14 | BQ66: 3 | BT66: 0.945 | BU66: 0.592 | BX66: 24.23076923 | BY66: 18.21538462 | BZ66: -26.61538462 | CD66: 0 | CE66: 0 | CG66: 332.77 | CH66: 6.63 | CK66: 2.435 | CL66: 2.082 | CO66: 62.43589744 | CP66: 60.40034813 | CQ66: 38.20512821 | CS66: 2440745 | CT66: 5739083 | CU66: 26688 | CV66: 26688 | CX66: 333.56 | CY66: 7.42 | CZ66: 20 | DB66: 2.59 | DC66: 2.237 | DF66: 68.15789474 | DG66: 67.80489474 | DH66: 5.721997301 | DJ66: 7372427 | DK66: 4068037 | DL66: 36533 | DM66: 36533 | DN66: 329.71 | DO66: 3.57 | DR66: 1.195 | DS66: 0.842 | DV66: 31.44736842 | DW66: 31.09436842 | DX66: -36.71052632 | EB66: -68167335 | EC66: -68167335 | ED66: 330.78 | EE66: 4.64 | EF66: 0 | EG66: 0 | EH66: 1.863 | EI66: 1.51 | EL66: 49.02631579 | EM66: 48.67331579 | EN66: 17.57894737 | EP66: 12778 | EQ66: 15832 | ER66: 28610 | ES66: 330.93 | ET66: 4.79 | EV66: 3.3 | EW66: 1.846044625 | EX66: 1.493044625 | FA66: 48.5801217 | FB66: 43.31432042 | FC66: -0.4461940856 | FE66: 6608 | FF66: 11983 | FG66: 18591 | FH66: 332.7 | FI66: 6.56 | FJ66: 2.5 | FK66: 0 | FL66: 2.12 | FM66: 1.767 | FP66: 55.78947368 | FQ66: 51.26196693 | FR66: 7.20935198 | FT66: 12652 | FU66: 14634 | FV66: 27286 | GK66: 0
A67: 2023-12-03 | B67: 2023-12-03 | C67: 336 | D67: 327 | E67: 0.353 | F67: 5.84 | H67: 331.98 | J67: =336-(9.86-K67) -> 330.85 | K67: 4.71 | N67: -0.353 | Q67: 0 | R67: -0.1086153846 | S67: =336-(9.86-T67) -> 331.45 | T67: 5.31 | Z67: 0 | AA67: 0 | AD67: 0 | AF67: 336 | AH67: 331.22 | AI67: 5.08 | AL67: 1.67 | AM67: 1.317 | AP67: 42.82051282 | AQ67: 40.52307692 | AR67: 42.82051282 | AT67: 7562376 | AU67: 3070766 | AV67: 29315 | AW67: 29315 | AY67: 332.28 | AZ67: 6.14 | BC67: 1.96 | BD67: 1.96 | BG67: 50.25641026 | BH67: 60.30769231 | BI67: 7.435897436 | BK67: 3067946 | BL67: 9795120 | BM67: 29313 | BN67: 29313 | BP67: 329.04 | BQ67: 2.9 | BT67: 0.91 | BU67: 0.557 | BX67: 23.33333333 | BY67: 17.13846154 | BZ67: -26.92307692 | CD67: 0 | CE67: 0 | CG67: 332.72 | CH67: 6.58 | CK67: 2.431 | CL67: 2.078 | CO67: 62.33333333 | CP67: 60.28430519 | CQ67: 39 | CS67: 2459012 | CT67: 5761620 | CU67: 40804 | CV67: 40804 | CX67: 333.53 | CY67: 7.39 | DB67: 2.585 | DC67: 2.232 | DF67: 68.02631579 | DG67: 67.67331579 | DH67: 5.692982456 | DL67: 38483 | DM67: 38483 | DN67: 329.62 | DO67: 3.48 | DR67: 1.19 | DS67: 0.837 | DV67: 31.31578947 | DW67: 30.96278947 | DX67: -36.71052632 | EB67: -68167335 | EC67: 38483 | ED67: 330.75 | EE67: 4.61 | EF67: 0 | EG67: 0 | EH67: 1.861 | EI67: 1.508 | EL67: 48.97368421 | EM67: 48.62068421 | EN67: 17.65789474 | EP67: 12258 | EQ67: 16108 | ER67: 28366 | ES67: 330.79 | ET67: 4.65 | EU67: 6 | EV67: 4.2 | EW67: 1.792089249 | EX67: 1.439089249 | FA67: 47.16024341 | FB67: 41.74903538 | FC67: -1.813440803 | FE67: 8249 | FF67: 15726 | FG67: 23975 | FH67: 332.64 | FI67: 6.5 | FJ67: 0 | FK67: 0 | FL67: 2.105 | FM67: 1.752 | FP67: 55.39473684 | FQ67: 50.82680592 | FR67: 8.234493434 | FT67: 12976 | FU67: 15058 | FV67: 28034 | GK67: 0
A68: 2023-12-04 | B68: 2023-12-04 | C68: 336 | D68: 327 | E68: 0.353 | F68: 5.78 | H68: 331.92 | J68: 330.79 | K68: 4.65 | N68: -0.353 | Q68: =(M68/3.9)*100 -> 0 | R68: -0.1086153846 | S68: 331.38 | T68: 5.24 | V68: 1.71 | Z68: 43.84615385 | AA68: 0 | AD68: 0 | AF68: 336 | AH68: 331.13 | AI68: 4.99 | AL68: 1.65 | AM68: =AL68-E68 -> 1.297 | AP68: 42.30769231 | AQ68: 39.90769231 | AR68: =AP68-Z68 -> -1.538461538 | AT68: 7574409 | AU68: 3088816 | AV68: 30083 | AW68: 30083 | AY68: =336-(9.86-AZ68) -> 332.62 | AZ68: 6.48 | BA68: 33 | BB68: 44.3 | BC68: 1.988 | BD68: =BC68-V68 -> 0.278 | BG68: 50.97435897 | BH68: 8.553846154 | BI68: 8.666666667 | BK68: 3079817 | BL68: 9810986 | BM68: 27737 | BN68: 27737 | BP68: 328.94 | BQ68: 2.8 | BT68: 0.89 | BU68: 0.537 | BX68: 22.82051282 | BY68: 16.52307692 | BZ68: -28.15384615 | CD68: 0 | CE68: 0 | CG68: 332.7 | CH68: 6.56 | CK68: 2.429 | CL68: =CK68-E68 -> 2.076 | CO68: 62.28205128 | CP68: 60.22628372 | CQ68: 39.46153846 | CS68: 2466990 | CT68: 5771218 | CU68: 17576 | CV68: 17576 | CX68: 333.49 | CY68: 7.35 | DB68: 2.58 | DC68: 2.227 | DF68: =(DB68/3.8)*100 -> 67.89473684 | DG68: =DF68-0.353 -> 67.54173684 | DH68: 5.61268556 | DJ68: 7403419 | DK68: 4113493 | DL68: 38483 | DM68: 38483 | DN68: 329.53 | DO68: 3.39 | DR68: 1.16 | DS68: 0.807 | DV68: 30.52631579 | DW68: 30.17331579 | DX68: -37.36842105 | EB68: -68167335 | EC68: 38483 | ED68: =336-(9.86-EE68) -> 331.71 | EE68: 5.57 | EF68: 0 | EG68: 0 | EH68: 1.865 | EI68: 1.512 | EL68: 49.07894737 | EM68: =EL68-0.353 -> 48.72594737 | EN68: =EL68-DV68 -> 18.55263158 | EP68: 13068 | EQ68: 15410 | ER68: =SUM(EP68+EQ68) -> 28478 | ES68: 330.72 | ET68: 4.58 | EV68: 1.3 | EW68: 1.765111562 | EX68: 1.412111562 | FA68: 46.45030426 | FB68: =(EX68/3.447)*100 -> 40.96639286 | FC68: =FA68-EL68 -> -2.628643109 | FD68: =EY68-EH68 ->  | FE68: 8741 | FF68: 17440 | FG68: 26181 | FH68: 332.58 | FI68: 6.44 | FJ68: 0 | FK68: 0 | FL68: 2.09 | FM68: 1.737 | FP68: 55 | FQ68: =(FM68/3.447)*100 -> 50.39164491 | FR68: =FP68-FA68 -> 8.54969574 | FS68: =FN68-EW68 ->  | FT68: 9969 | FU68: 12533 | FV68: 22502 | GK68: 0
A69: 2023-12-05 | B69: =A69 -> 2023-12-05 | C69: 336 | D69: 327 | E69: 0.353 | F69: 5.69 | H69: =336-(9.86-F69) -> 331.83 | J69: 330.74 | K69: 4.6 | N69: =M69-E69 -> -0.353 | Q69: 0 | R69: =N69/3.25 -> -0.1086153846 | S69: 331.35 | T69: 5.21 | Z69: =(V69/3.9)*100 -> 0 | AA69: =(W69/3.25)*100 -> 0 | AD69: 0 | AF69: 336 | AH69: 331.07 | AI69: 4.93 | AL69: 1.55 | AM69: 1.197 | AN69: =((AH69-336)^(3/2))*1.838*133 ->  | AO69: =AN69*24*3600 ->  | AP69: =(AL69/3.9)*100 -> 39.74358974 | AQ69: =(AM69/3.25)*100 -> 36.83076923 | AR69: 39.74358974 | AS69: =AN69-X69 ->  | AT69: 7583774 | AU69: 3106490 | AV69: 27039 | AW69: =AV69 -> 27039 | AY69: 332.73 | AZ69: 6.59 | BB69: 3.2 | BC69: 1.997 | BD69: 1.997 | BE69: =((AY69-336)^(3/2))*1.838*133 ->  | BF69: =BE69*24*3600 ->  | BG69: =(BC69/3.9)*100 -> 51.20512821 | BH69: =(BD69/3.25)*100 -> 61.44615385 | BI69: 11.46153846 | BJ69: =BE69-AN69 ->  | BK69: 3093295 | BL69: 9829233 | BM69: 31725 | BN69: =BM69 -> 31725 | BP69: 328.84 | BQ69: 2.7 | BT69: 0.87 | BU69: =BT69-E69 -> 0.517 | BX69: =(BT69/3.9)*100 -> 22.30769231 | BY69: =(BU69/3.25)*100 -> 15.90769231 | BZ69: -28.8974359 | CA69: =BV69-BE69 ->  | CD69: 0 | CE69: 0 | CG69: 332.65 | CH69: 6.51 | CK69: 2.425 | CL69: 2.072 | CM69: =((CG69-336)^(3/2))*1.838*133 ->  | CN69: =CM69*24*3600 ->  | CO69: 62.17948718 | CP69: 60.11024079 | CQ69: 39.87179487 | CR69: =CM69-BU69 ->  | CS69: 2484683 | CT69: 5793539 | CU69: 40014 | CV69: =CU69 -> 40014 | CX69: 333.46 | CY69: 7.32 | DB69: 2.575 | DC69: =DB69-0.353 -> 2.222 | DD69: =((CX69-336)^(3/2))*1.838*133 ->  | DE69: =DD69*24*3600 ->  | DF69: 67.76315789 | DG69: 67.41015789 | DH69: =DF69-CO69 -> 5.583670715 | DI69: =DD69-CL69 ->  | DJ69: 7419437 | DK69: 4135965 | DL69: 38490 | DM69: 38490 | DN69: 329.44 | DO69: 3.3 | DR69: 1.14 | DS69: =DR69-0.353 -> 0.787 | DT69: =((DN69-336)^(3/2))*1.838*133 ->  | DU69: =DT69*24*3600 ->  | DV69: 30 | DW69: 29.647 | DX69: =DV69-DF69 -> -37.76315789 | DY69: =DT69-DB69 ->  | EB69: =(DZ69+EA69)-(65502786+2664549) -> -68167335 | EC69: =EB69 -> -68167335 | ED69: 331.67 | EE69: 5.53 | EF69: 0 | EG69: 0 | EH69: 1.861 | EI69: 1.508 | EJ69: =((ED69-336)^(3/2))*1.838*133 ->  | EK69: =EJ69*24*3600 ->  | EL69: 48.97368421 | EM69: 48.62068421 | EN69: 18.97368421 | EP69: 12653 | EQ69: 14432 | ER69: 27085 | ES69: 330.68 | ET69: 4.54 | EW69: 1.74969574 | EX69: 1.39669574 | EY69: =((ES69-336)^(3/2))*1.838*133 ->  | EZ69: =EY69*24*3600 ->  | FA69: 46.04462475 | FB69: 40.51916856 | FC69: -2.929059464 | FE69: 8588 | FF69: 17231 | FG69: =SUM(FE69+FF69) -> 25819 | FH69: 332.54 | FI69: 6.4 | FJ69: 0 | FK69: 0 | FL69: 2.02 | FM69: 1.667 | FN69: =((FH69-336)^(3/2))*1.838*133 ->  | FO69: =FN69*24*3600 ->  | FP69: 53.15789474 | FQ69: 48.36089353 | FR69: 7.11326999 | FT69: 11984 | FU69: 14596 | FV69: 26580 | GK69: 0
A70: =A69+1 -> 2023-12-06 | B70: 2023-12-06 | C70: 336 | D70: 327 | E70: 0.353 | F70: 5.65 | H70: 331.79 | J70: 331.64 | K70: 5.5 | N70: -0.353 | Q70: 0 | R70: -0.1086153846 | S70: 331.29 | T70: 5.15 | Z70: 0 | AA70: 0 | AD70: =AB70+AC70-(AB69+AC69) -> 0 | AF70: 336 | AH70: 331.01 | AI70: 4.87 | AL70: 1.52 | AM70: 1.167 | AP70: 38.97435897 | AQ70: 35.90769231 | AR70: 38.97435897 | AT70: 7585845 | AU70: 3112560 | AV70: =AT70+AU70-(AT69+AU69) -> 8141 | AW70: 8141 | AY70: 332.78 | AZ70: 6.64 | BA70: 3 | BC70: 2.11 | BD70: 2.11 | BG70: 54.1025641 | BH70: 64.92307692 | BI70: 15.12820513 | BK70: 3103348 | BL70: 9841902 | BM70: 22722 | BN70: 22722 | BP70: 328.75 | BQ70: 2.61 | BT70: 0.86 | BU70: 0.507 | BX70: 22.05128205 | BY70: 15.6 | BZ70: -32.05128205 | CB70: 7872904 | CC70: 7045833 | CD70: 14918737 | CG70: 332.62 | CH70: 6.48 | CK70: 2.422 | CL70: 2.069 | CO70: 62.1025641 | CP70: 60.02320859 | CQ70: 40.05128205 | CS70: 2497156 | CT70: 5807726 | CU70: 26660 | CV70: 26660 | CX70: 333.4 | CY70: 7.26 | DB70: 2.57 | DC70: 2.217 | DF70: 67.63157895 | DG70: 67.27857895 | DH70: 5.529014845 | DJ70: 7435149 | DK70: 4158928 | DL70: 38675 | DM70: 38675 | DN70: 329.41 | DO70: 3.27 | DR70: 1.135 | DS70: 0.782 | DV70: 29.86842105 | DW70: 29.51542105 | DX70: -37.76315789 | EB70: -68167335 | EC70: -68167335 | ED70: 330.54 | EE70: 4.4 | EF70: 0 | EG70: 0 | EH70: 1.857 | EI70: 1.504 | EL70: 48.86842105 | EM70: 48.51542105 | EN70: 19 | EP70: 6535 | EQ70: 13663 | ER70: 20198 | ES70: 330.62 | ET70: 4.48 | EW70: 1.726572008 | EX70: 1.373572008 | FA70: 45.43610548 | FB70: 39.84833212 | FC70: -3.432315576 | FE70: 9631 | FF70: 13345 | FG70: 22976 | FH70: 332.49 | FI70: 6.35 | FJ70: 0 | FK70: 0 | FL70: 2.01 | FM70: 1.657 | FP70: 52.89473684 | FQ70: 48.07078619 | FR70: 7.458631365 | FT70: 12976 | FU70: 15058 | FV70: 28034 | GK70: 0
A71: 2023-12-07 | B71: 2023-12-07 | C71: 336 | D71: 327 | E71: 0.353 | F71: 5.64 | H71: 331.78 | J71: 331.68 | K71: 5.54 | N71: -0.353 | Q71: 0 | R71: -0.1086153846 | S71: 331.24 | T71: 5.1 | U71: 8 | Z71: 0 | AA71: 0 | AD71: 0 | AF71: 336 | AH71: 330.96 | AI71: 4.82 | AL71: 1.49 | AM71: 1.137 | AP71: 38.20512821 | AQ71: 34.98461538 | AR71: 38.20512821 | AT71: 7594812 | AU71: 3125290 | AV71: 21697 | AW71: 21697 | AY71: 332.79 | AZ71: 6.65 | BA71: 2.5 | BC71: 2.14 | BD71: 2.14 | BG71: 54.87179487 | BH71: 65.84615385 | BI71: 16.66666667 | BK71: 3105968 | BL71: 9844966 | BM71: 5684 | BN71: 5684 | BP71: 328.71 | BQ71: 2.57 | BS71: 11.1 | BT71: 0.845 | BU71: 0.492 | BX71: 21.66666667 | BY71: 15.13846154 | BZ71: -33.20512821 | CB71: 7883131 | CC71: 7056947 | CD71: 21341 | CE71: =CD71 -> 21341 | CG71: 332.53 | CH71: 6.39 | CK71: 2.417 | CL71: 2.064 | CO71: 61.97435897 | CP71: 59.87815492 | CQ71: 40.30769231 | CS71: 2516212 | CT71: 5827885 | CU71: 39215 | CV71: 39215 | CX71: 333.34 | CY71: 7.2 | DB71: 2.565 | DC71: 2.212 | DF71: 67.5 | DG71: 67.147 | DH71: 5.525641026 | DJ71: 7450143 | DK71: 4182536 | DL71: 38602 | DM71: 38602 | DN71: 329.31 | DO71: 3.17 | DR71: 1.1 | DS71: 0.747 | DV71: 28.94736842 | DW71: 28.59436842 | DX71: -38.55263158 | EB71: -68167335 | EC71: -68167335 | ED71: 330.51 | EE71: 4.37 | EF71: 0 | EG71: 0 | EH71: 1.852 | EI71: 1.499 | EL71: 48.73684211 | EM71: 48.38384211 | EN71: 19.78947368 | EP71: 12902 | EQ71: 14876 | ER71: 27778 | ES71: 330.52 | ET71: 4.38 | EW71: 1.688032454 | EX71: 1.335032454 | FA71: 44.42190669 | FB71: 38.73027138 | FC71: -4.314935412 | FE71: 10498 | FF71: 17391 | FG71: 27889 | FH71: 332.43 | FI71: 6.29 | FJ71: 10 | FK71: 8.7 | FL71: 2 | FM71: 1.647 | FP71: 52.63157895 | FQ71: 47.78067885 | FR71: 8.209672254 | FT71: 9969 | FU71: 12533 | FV71: 22502 | GK71: 0
A72: 2023-12-08 | B72: 2023-12-08 | C72: 336 | D72: 327 | E72: 0.353 | F72: 5.55 | H72: 331.69 | J72: 331.64 | K72: 5.5 | N72: -0.353 | Q72: 0 | R72: -0.1086153846 | S72: 331.08 | T72: 4.94 | Z72: 0 | AA72: 0 | AD72: 0 | AF72: 336 | AH72: 330.87 | AI72: 4.73 | AL72: 1.46 | AM72: 1.107 | AP72: 37.43589744 | AQ72: 34.06153846 | AR72: 37.43589744 | AT72: 7608613 | AU72: 3140709 | AV72: 29220 | AW72: 29220 | AY72: 332.79 | AZ72: 6.65 | BB72: 2.1 | BC72: 2.14 | BD72: 2.14 | BG72: 54.87179487 | BH72: 65.84615385 | BI72: 17.43589744 | BK72: 3120331 | BL72: 9866594 | BM72: 35991 | BN72: 35991 | BP72: 328.62 | BQ72: 2.48 | BR72: 30.2 | BT72: 0.82 | BU72: 0.467 | BX72: 21.02564103 | BY72: 14.36923077 | BZ72: -33.84615385 | CB72: 7893307 | CC72: 7066443 | CD72: 19672 | CE72: 19672 | CG72: 332.46 | CH72: 6.32 | CK72: 2.409 | CL72: 2.056 | CO72: 61.76923077 | CP72: 59.64606905 | CQ72: 40.74358974 | CS72: 2533411 | CT72: 5848899 | CU72: 38213 | CV72: 38213 | CX72: 333.29 | CY72: 7.15 | DB72: 2.56 | DC72: 2.207 | DF72: 67.36842105 | DG72: 67.01542105 | DH72: 5.599190283 | DJ72: 7464680 | DK72: 4205314 | DL72: 37315 | DM72: 37315 | DN72: 329.31 | DO72: 3.17 | DQ72: 36 | DR72: 1.1 | DS72: 0.747 | DV72: 28.94736842 | DW72: 28.59436842 | DX72: -38.42105263 | EB72: -68167335 | EC72: -68167335 | ED72: 330.47 | EE72: 4.33 | EF72: 0 | EG72: 0 | EH72: 1.849 | EI72: 1.496 | EL72: 48.65789474 | EM72: 48.30489474 | EN72: 19.71052632 | EP72: 12512 | EQ72: 14718 | ER72: 27230 | ES72: 330.44 | ET72: 4.3 | EW72: 1.657200811 | EX72: 1.304200811 | FA72: 43.61054767 | FB72: 37.83582278 | FC72: -5.047347069 | FE72: 9028 | FF72: 19096 | FG72: 28124 | FH72: 332.39 | FI72: 6.25 | FJ72: 0 | FK72: 0 | FL72: 1.995 | FM72: 1.642 | FP72: 52.5 | FQ72: 47.63562518 | FR72: 8.889452333 | FT72: 11984 | FU72: 14596 | FV72: 26580 | GK72: 0
A73: 2023-12-09 | B73: 2023-12-09 | C73: 336 | D73: 327 | E73: 0.353 | F73: 5.57 | H73: 331.71 | J73: 331.62 | K73: 5.48 | N73: -0.353 | Q73: 0 | R73: -0.1086153846 | S73: 331.14 | T73: 5 | Z73: 0 | AA73: 0 | AD73: 0 | AF73: 336 | AH73: 330.82 | AI73: 4.68 | AL73: 1.44 | AM73: 1.087 | AP73: 36.92307692 | AQ73: 33.44615385 | AR73: 36.92307692 | AT73: 7617996 | AU73: 3158068 | AV73: 26742 | AW73: 26742 | AY73: 332.76 | AZ73: 6.62 | BC73: 2.099 | BD73: 2.099 | BG73: 53.82051282 | BH73: 64.58461538 | BI73: 16.8974359 | BK73: 3136211 | BL73: 9887900 | BM73: 37186 | BN73: 37186 | BP73: 328.99 | BQ73: 2.85 | BS73: 70.1 | BT73: 0.9 | BU73: 0.547 | BX73: 23.07692308 | BY73: 16.83076923 | BZ73: -30.74358974 | CB73: 7901487 | CC73: 7074244 | CD73: 15981 | CE73: 15981 | CG73: 332.42 | CH73: 6.28 | CK73: 2.404 | CL73: 2.051 | CO73: 61.64102564 | CP73: 59.50101538 | CQ73: 38.56410256 | CS73: 2548211 | CT73: 5872457 | CU73: 38358 | CV73: 38358 | CX73: 333.24 | CY73: 7.1 | DB73: 2.555 | DC73: 2.202 | DF73: 67.23684211 | DG73: 66.88384211 | DH73: 5.595816464 | DJ73: 7484570 | DK73: 4225210 | DL73: 39786 | DM73: 39786 | DN73: 329.54 | DO73: 3.4 | DQ73: 12.5 | DR73: 1.17 | DS73: 0.817 | DV73: 30.78947368 | DW73: 30.43647368 | DX73: -36.44736842 | EB73: -68167335 | EC73: -68167335 | ED73: 330.44 | EE73: 4.3 | EF73: 0 | EG73: 0 | EH73: 1.844 | EI73: 1.491 | EL73: 48.52631579 | EM73: 48.17331579 | EN73: 17.73684211 | EP73: 12532 | EQ73: 14348 | ER73: 26880 | ES73: 330.41 | ET73: 4.27 | EW73: 1.645638945 | EX73: 1.292638945 | FA73: 43.30628803 | FB73: 37.50040456 | FC73: -5.220027757 | FE73: 9299 | FF73: 19841 | FG73: 29140 | FH73: 332.32 | FI73: 6.18 | FJ73: 0 | FK73: 0 | FL73: 1.985 | FM73: 1.632 | FP73: 52.23684211 | FQ73: 47.34551784 | FR73: 8.930554073 | FT73: 11443 | FU73: 13877 | FV73: 25320 | GK73: 0
A74: 2023-12-10 | B74: 2023-12-10 | C74: 336 | D74: 327 | E74: 0.353 | F74: 5.99 | G74: 59 | H74: 332.13 | J74: 331.59 | K74: 5.45 | N74: -0.353 | Q74: 0 | R74: -0.1086153846 | S74: 331.09 | T74: 4.95 | Z74: 0 | AA74: 0 | AD74: 0 | AF74: 336 | AH74: 330.74 | AI74: 4.6 | AL74: 1.38 | AM74: 1.027 | AP74: 35.38461538 | AQ74: 31.6 | AR74: 35.38461538 | AT74: 7626851 | AU74: 3175235 | AV74: 26022 | AW74: 26022 | AY74: 332.72 | AZ74: 6.58 | BC74: 2.1 | BD74: 2.1 | BG74: 53.84615385 | BH74: 64.61538462 | BI74: 18.46153846 | BK74: 3154899 | BL74: 9906398 | BM74: 37186 | BN74: 37186 | BP74: 329.11 | BQ74: 2.97 | BR74: 17 | BS74: 6.8 | BT74: 0.92 | BU74: 0.567 | BX74: 23.58974359 | BY74: 17.44615385 | BZ74: -30.25641026 | CB74: 7906483 | CC74: 7080950 | CD74: 11702 | CE74: 11702 | CG74: 332.34 | CH74: 6.2 | CI74: 32 | CJ74: 24.3 | CK74: 2.398 | CL74: 2.045 | CO74: 61.48717949 | CP74: 59.32695097 | CQ74: 37.8974359 | CS74: 2564870 | CT74: 5892127 | CU74: 36329 | CV74: 36329 | CX74: 333.18 | CY74: 7.04 | DB74: 2.55 | DC74: 2.197 | DF74: 67.10526316 | DG74: 66.75226316 | DH74: 5.618083671 | DJ74: 7499720 | DK74: 4247334 | DL74: 37274 | DM74: 37274 | DN74: 329.65 | DO74: 3.51 | DR74: 1.18 | DS74: 0.827 | DV74: 31.05263158 | DW74: 30.69963158 | DX74: -36.05263158 | EB74: -68167335 | EC74: -68167335 | ED74: 330.39 | EE74: 4.25 | EF74: 0 | EG74: 0 | EH74: 1.784 | EI74: 1.431 | EL74: 46.94736842 | EM74: 46.59436842 | EN74: 15.89473684 | EP74: 12280 | EQ74: 13696 | ER74: 25976 | ES74: 330.34 | ET74: 4.2 | EU74: 5.1 | EW74: 1.618661258 | EX74: 1.265661258 | FA74: 42.59634888 | FB74: 36.71776204 | FC74: -4.351019537 | FE74: 3678 | FF74: 7862 | FG74: 11540 | FH74: 332.24 | FI74: 6.1 | FJ74: 0 | FK74: 0 | FL74: 1.978 | FM74: 1.625 | FP74: 52.05263158 | FQ74: 47.1424427 | FR74: 9.456282695 | FT74: 5891 | FU74: 15228 | FV74: 21119 | GK74: 0
A75: 2023-12-11 | B75: 2023-12-11 | C75: 336 | D75: 327 | E75: 0.353 | F75: 5.82 | H75: 331.96 | J75: 331.53 | K75: 5.39 | N75: -0.353 | Q75: 0 | R75: -0.1086153846 | S75: 331.02 | T75: 4.88 | Z75: 0 | AA75: 0 | AD75: 0 | AF75: 336 | AH75: 330.64 | AI75: 4.5 | AL75: 1.36 | AM75: 1.007 | AP75: 34.87179487 | AQ75: 30.98461538 | AR75: 34.87179487 | AT75: 7635291 | AU75: 3191644 | AV75: 24849 | AW75: 24849 | AY75: 332.68 | AZ75: 6.54 | BC75: 2.094 | BD75: 2.094 | BG75: 53.69230769 | BH75: 64.43076923 | BI75: 18.82051282 | BK75: 3165218 | BL75: 9924886 | BM75: 28807 | BN75: 28807 | BP75: 329.13 | BQ75: 2.99 | BR75: 218 | BS75: 20.2 | BT75: 0.93 | BU75: =BT75-E75 -> 0.577 | BX75: 23.84615385 | BY75: 17.75384615 | BZ75: -29.84615385 | CB75: 7910449 | CC75: 7087513 | CD75: 10529 | CE75: 10529 | CG75: 332.31 | CH75: 6.17 | CJ75: 2 | CK75: 2.395 | CL75: 2.042 | CO75: 61.41025641 | CP75: 59.23991877 | CQ75: 37.56410256 | CS75: 2578536 | CT75: 5912400 | CU75: 33939 | CV75: 33939 | CX75: 333.12 | CY75: 6.98 | CZ75: 2 | DB75: 2.545 | DC75: 2.192 | DF75: 66.97368421 | DG75: 66.62068421 | DH75: 5.5634278 | DJ75: 7514181 | DK75: 4271369 | DL75: 38496 | DM75: 38496 | DN75: 329.83 | DO75: 3.69 | DR75: 1.21 | DS75: 0.857 | DV75: 31.84210526 | DW75: 31.48910526 | DX75: -35.13157895 | EB75: -68167335 | EC75: -68167335 | ED75: 330.32 | EE75: 4.18 | EF75: 0 | EG75: 0 | EH75: 1.776 | EI75: =EH75-0.353 -> 1.423 | EL75: 46.73684211 | EM75: 46.38384211 | EN75: 14.89473684 | EP75: 12650 | EQ75: 14624 | ER75: 27274 | ES75: 330.49 | ET75: 4.35 | EU75: 15 | EV75: 22.3 | EW75: 1.676470588 | EX75: 1.323470588 | FA75: 44.11764706 | FB75: 38.39485315 | FC75: -2.619195046 | FE75: 7191 | FF75: 14553 | FG75: 21744 | FH75: 332.12 | FI75: 5.98 | FJ75: 0 | FK75: 0 | FL75: 1.98 | FM75: 1.627 | FP75: 52.10526316 | FQ75: 47.20046417 | FR75: 7.987616099 | FT75: 11152 | FU75: 15008 | FV75: 26160 | GK75: 0
A76: 2023-12-12 | B76: 2023-12-12 | C76: 336 | D76: 327 | E76: 0.353 | F76: 5.98 | G76: 76.3 | H76: 332.12 | J76: 331.49 | K76: 5.35 | N76: -0.353 | Q76: 0 | R76: -0.1086153846 | S76: 330.95 | T76: 4.81 | V76: 1.4 | Z76: 35.8974359 | AA76: 0 | AD76: 0 | AF76: 336 | AH76: 330.59 | AI76: 4.45 | AL76: 1.34 | AM76: 0.987 | AP76: 34.35897436 | AQ76: 30.36923077 | AR76: -1.538461538 | AT76: 7643469 | AU76: 3206730 | AV76: 23264 | AW76: 23264 | AY76: 332.63 | AZ76: 6.49 | BC76: 2.089 | BD76: 0.689 | BG76: 53.56410256 | BH76: 21.2 | BI76: 19.20512821 | BK76: 3173805 | BL76: 9942414 | BM76: 26115 | BN76: 26115 | BP76: 332.75 | BQ76: 6.61 | BR76: 136 | BS76: 23 | BT76: 2.15 | BU76: 1.797 | BX76: 55.12820513 | BY76: 55.29230769 | BZ76: 1.564102564 | CB76: 7927750 | CC76: 7096768 | CD76: 26556 | CE76: 26556 | CG76: 334.51 | CH76: 8.37 | CI76: 97.3 | CJ76: 92 | CK76: 2.888 | CL76: 2.535 | CO76: 74.05128205 | CP76: 73.54221062 | CQ76: 18.92307692 | CS76: 2593034 | CT76: 5935173 | CU76: 37271 | CV76: 37271 | CX76: 333.09 | CY76: 6.95 | DB76: 2.54 | DC76: 2.187 | DF76: 66.84210526 | DG76: 66.48910526 | DH76: -7.209176788 | DL76: 38531 | DM76: 38531 | DN76: 329.72 | DO76: 3.58 | DR76: 1.2 | DS76: 0.847 | DV76: 31.57894737 | DW76: 31.22594737 | DX76: -35.26315789 | EB76: -68167335 | EC76: -68167335 | ED76: 330.13 | EE76: 3.99 | EF76: 0 | EG76: 0 | EH76: 1.712 | EI76: 1.359 | EL76: 45.05263158 | EM76: 44.69963158 | EN76: 13.47368421 | EP76: 10158 | EQ76: 9810 | ER76: 19968 | ES76: 330.41 | ET76: 4.27 | EU76: 2 | EV76: 5 | EW76: 1.645638945 | EX76: 1.292638945 | FA76: 43.30628803 | FB76: 37.50040456 | FC76: -1.746343546 | FE76: 8872 | FF76: 16143 | FG76: 25015 | FH76: 332.08 | FI76: 5.94 | FJ76: 0 | FK76: 0 | FL76: 1.975 | FM76: 1.622 | FP76: 51.97368421 | FQ76: 47.0554105 | FR76: 8.667396178 | FT76: 10677 | FU76: 13703 | FV76: 24380 | GK76: 0
A77: 2023-12-13 | B77: 2023-12-13 | C77: 336 | D77: 327 | E77: 0.353 | F77: 6.03 | G77: 19.2 | H77: 332.17 | J77: 331.44 | K77: 5.3 | N77: -0.353 | Q77: 0 | R77: -0.1086153846 | S77: 330.91 | T77: 4.77 | V77: 1.396 | Z77: 35.79487179 | AA77: 0 | AD77: 0 | AF77: 336 | AH77: 330.54 | AI77: 4.4 | AL77: 1.3 | AM77: 0.947 | AP77: 33.33333333 | AQ77: 29.13846154 | AR77: -2.461538462 | AT77: 7651618 | AU77: 3215892 | AV77: 17311 | AW77: 17311 | AY77: 332.58 | AZ77: 6.44 | BA77: 13 | BC77: 2.067 | BD77: 0.671 | BG77: 53 | BH77: 20.64615385 | BI77: 19.66666667 | BK77: 3189026 | BL77: 9960530 | BM77: 33337 | BN77: 33337 | BP77: 334.2 | BQ77: 8.06 | BR77: 23 | BS77: 0.4 | BT77: 2.775 | BU77: 2.422 | BV77: =((BP77-336)^(3/2))*1.838*133 ->  | BX77: 71.15384615 | BY77: 74.52307692 | BZ77: 18.15384615 | CB77: 7949622 | CC77: 7103017 | CD77: 28121 | CE77: 28121 | CG77: 335.34 | CH77: 9.2 | CI77: 8.1 | CK77: 3.125 | CL77: 2.772 | CO77: 80.12820513 | CP77: 80.41775457 | CQ77: 8.974358974 | CS77: 2599065 | CT77: 5954843 | CU77: 25701 | CV77: 25701 | CX77: 332.96 | CY77: 6.82 | CZ77: 4.2 | DA77: 6 | DB77: 2.535 | DC77: 2.182 | DF77: 66.71052632 | DG77: 66.35752632 | DH77: -13.41767881 | DL77: 38312 | DM77: 38312 | DN77: 329.67 | DO77: 3.53 | DR77: 1.198 | DS77: 0.845 | DV77: 31.52631579 | DW77: 31.17331579 | DX77: -35.18421053 | EB77: -68167335 | EC77: -68167335 | ED77: 330.09 | EE77: 3.95 | EF77: 0 | EG77: 0 | EH77: 1.709 | EI77: 1.356 | EL77: 44.97368421 | EM77: 44.62068421 | EN77: 13.44736842 | EP77: 12382 | EQ77: 13950 | ER77: 26332 | ES77: 330.2 | ET77: 4.06 | EU77: 1.3 | EV77: 1.4 | EW77: 1.564705882 | EX77: 1.211705882 | FA77: 41.17647059 | FB77: 35.152477 | FC77: -3.797213622 | FE77: 8389 | FF77: 13576 | FG77: 21965 | FH77: 332.05 | FI77: 5.91 | FJ77: 0 | FK77: 0 | FL77: 1.961 | FM77: 1.608 | FP77: 51.60526316 | FQ77: 46.64926023 | FR77: 10.42879257 | FT77: 11348 | FU77: 13972 | FV77: 25320 | GK77: 0
A78: 2023-12-14 | B78: 2023-12-14 | C78: 336 | D78: 327 | E78: 0.353 | F78: 6.1 | G78: 17.6 | H78: 332.24 | J78: 331.38 | K78: 5.24 | N78: -0.353 | Q78: 0 | R78: -0.1086153846 | S78: 330.83 | T78: 4.69 | V78: 1.488 | Z78: 38.15384615 | AA78: 0 | AD78: 0 | AF78: 336 | AH78: 330.49 | AI78: 4.35 | AL78: 1.26 | AM78: 0.907 | AP78: 32.30769231 | AQ78: 27.90769231 | AR78: -5.846153846 | AT78: 7659070 | AU78: 3232368 | AV78: 23928 | AW78: 23928 | AY78: 332.52 | AZ78: 6.38 | BC78: 2.031 | BD78: 0.543 | BG78: 52.07692308 | BH78: 16.70769231 | BI78: 19.76923077 | BK78: 3204236 | BL78: 9976268 | BM78: 30948 | BN78: 30948 | BP78: 334.53 | BQ78: 8.39 | BT78: 2.87 | BU78: 2.517 | BX78: 73.58974359 | BY78: 77.44615385 | BZ78: 21.51282051 | CB78: 7973640 | CC78: 7110380 | CD78: 31381 | CE78: 31381 | CG78: 335.49 | CH78: 9.35 | CK78: 3.14 | CL78: 2.787 | CO78: 80.51282051 | CP78: 80.85291558 | CQ78: 6.923076923 | CS78: 2597568 | CT78: 5978740 | CU78: 22400 | CV78: 22400 | CX78: 332.94 | CY78: 6.8 | CZ78: 50.3 | DA78: 9 | DB78: 2.53 | DC78: 2.177 | DF78: 66.57894737 | DG78: 66.22594737 | DH78: -13.93387314 | DL78: 37822 | DM78: 37822 | DN78: =336-(9.86-DO78) -> 329.74 | DO78: 3.6 | DR78: 1.205 | DS78: 0.852 | DV78: 31.71052632 | DW78: 31.35752632 | DX78: -34.86842105 | EB78: -68167335 | EC78: -68167335 | ED78: 330.01 | EE78: 3.87 | EF78: 0 | EG78: 0 | EH78: 1.703 | EI78: 1.35 | EL78: 44.81578947 | EM78: 44.46278947 | EN78: 13.10526316 | EP78: 12339 | EQ78: 13692 | ER78: 26031 | ES78: 330.12 | ET78: 3.98 | EU78: 8 | EW78: 1.533874239 | EX78: 1.180874239 | FA78: 40.36511156 | FB78: 34.25802841 | FC78: -4.450677912 | FE78: 8499 | FF78: 13625 | FG78: 22124 | FH78: 332.02 | FI78: 5.88 | FJ78: 0 | FK78: 0 | FL78: 1.8 | FM78: 1.447 | FP78: 47.36842105 | FQ78: 41.97853206 | FR78: 7.003309491 | FT78: 12369 | FU78: 13848 | FV78: 26217 | GK78: 0
A79: 2023-12-15 | B79: 2023-12-15 | C79: 336 | D79: 327 | E79: 0.353 | F79: 6.12 | H79: 332.26 | J79: 331.41 | K79: 5.27 | N79: -0.353 | Q79: 0 | R79: -0.1086153846 | S79: 330.76 | T79: 4.62 | V79: 1.365 | Z79: 35 | AA79: 0 | AD79: 0 | AF79: 336 | AH79: 330.43 | AI79: 4.29 | AJ79: 14.3 | AL79: 1.238 | AM79: 0.885 | AP79: 31.74358974 | AQ79: 27.23076923 | AR79: -3.256410256 | AT79: 7663301 | AU79: 3243912 | AV79: 15775 | AW79: 15775 | AY79: 332.47 | AZ79: 6.33 | BC79: 2.015 | BD79: 0.65 | BG79: 51.66666667 | BH79: 20 | BI79: 19.92307692 | BK79: 3220208 | BL79: 9992940 | BM79: 32644 | BN79: 32644 | BP79: 334.64 | BQ79: 8.5 | BT79: 2.93 | BU79: 2.577 | BX79: 75.12820513 | BY79: 79.29230769 | BZ79: 23.46153846 | CB79: 7997719 | CC79: 7122878 | CD79: 36577 | CE79: 36577 | CG79: 335.58 | CH79: 9.44 | CK79: 3.149 | CL79: 2.796 | CO79: =(CK79/3.9)*100 -> 80.74358974 | CP79: 81.11401218 | CQ79: 5.615384615 | CS79: 2611558 | CT79: 5996482 | CU79: =(CS79+CT79)-(CS78+CT78) -> 31732 | CV79: 31732 | CX79: 332.91 | CY79: 6.77 | CZ79: 24 | DB79: 2.295 | DC79: 1.942 | DF79: 60.39473684 | DG79: 60.04173684 | DH79: -20.3488529 | DL79: 38382 | DM79: 38382 | DN79: =336-(9.86-DO79) -> 329.72 | DO79: 3.58 | DR79: 1.2 | DS79: 0.847 | DV79: 31.57894737 | DW79: 31.22594737 | DX79: -28.81578947 | EB79: -68167335 | EC79: -68167335 | ED79: 329.92 | EE79: 3.78 | EF79: 0 | EG79: 0 | EH79: 1.698 | EI79: 1.345 | EL79: 44.68421053 | EM79: 44.33121053 | EN79: 13.10526316 | EP79: 11789 | EQ79: 13032 | ER79: 24821 | ES79: 330.12 | ET79: 3.98 | EW79: 1.533874239 | EX79: 1.180874239 | FA79: 40.36511156 | FB79: 34.25802841 | FC79: -4.319098964 | FE79: 8625 | FF79: 13988 | FG79: 22613 | FH79: 331.98 | FI79: 5.84 | FJ79: 0 | FK79: 0 | FL79: 1.795 | FM79: 1.442 | FP79: 47.23684211 | FQ79: 41.83347839 | FR79: 6.871730543 | FT79: 12224 | FU79: 13846 | FV79: 26070 | GK79: 0
A80: 2023-12-16 | B80: 2023-12-16 | C80: 336 | D80: 327 | E80: 0.353 | F80: 6.07 | H80: 332.21 | J80: 331.33 | K80: 5.19 | N80: -0.353 | Q80: 0 | R80: -0.1086153846 | S80: 330.7 | T80: 4.56 | V80: 1.345 | Z80: 34.48717949 | AA80: 0 | AD80: 0 | AF80: 336 | AH80: 330.37 | AI80: 4.23 | AL80: 1.228 | AM80: 0.875 | AP80: 31.48717949 | AQ80: 26.92307692 | AR80: -3 | AT80: 7669124 | AU80: 3261883 | AV80: 23794 | AW80: 23794 | AY80: 332.41 | AZ80: 6.27 | BC80: 2.001 | BD80: 0.656 | BG80: 51.30769231 | BH80: 20.18461538 | BI80: 19.82051282 | BK80: 3234478 | BL80: 12906 | BN80: 0 | BP80: 334.7 | BQ80: 8.56 | BR80: 23 | BT80: 2.98 | BU80: 2.627 | BX80: 76.41025641 | BY80: 80.83076923 | BZ80: 25.1025641 | CB80: 8021869 | CC80: 7134570 | CD80: 35842 | CE80: 35842 | CG80: 335.64 | CH80: 9.5 | CK80: 3.156 | CL80: 2.803 | CO80: 80.92307692 | CP80: 81.31708732 | CQ80: 4.512820513 | CS80: 2622402 | CT80: 6010703 | CU80: =(CS80+CT80)-(CS79+CT79) -> 25065 | CV80: 25065 | CX80: 332.86 | CY80: 6.72 | CZ80: 5 | DB80: 2.52 | DC80: 2.167 | DF80: 66.31578947 | DG80: 65.96278947 | DH80: -14.60728745 | DL80: 37388 | DM80: 37388 | DN80: =336-(9.86-DO80) -> 329.57 | DO80: 3.43 | DR80: 1.18 | DS80: 0.827 | DV80: 31.05263158 | DW80: 30.69963158 | DX80: -35.26315789 | EB80: -68167335 | EC80: -68167335 | ED80: 329.83 | EE80: 3.69 | EF80: 0 | EG80: 0 | EH80: 1.695 | EI80: 1.342 | EL80: 44.60526316 | EM80: 44.25226316 | EN80: 13.55263158 | EP80: 11740 | EQ80: 12912 | ER80: 24652 | ES80: 330.02 | ET80: 3.88 | EW80: 1.495334686 | EX80: 1.142334686 | FA80: 39.35091278 | FB80: 33.13996767 | FC80: -5.254350379 | FE80: 5655 | FF80: 9528 | FG80: 15183 | FH80: 331.92 | FI80: 5.78 | FJ80: 0 | FK80: 0 | FL80: 1.79 | FM80: 1.437 | FP80: 47.10526316 | FQ80: 41.68842472 | FR80: 7.754350379 | FT80: 11579 | FU80: 13475 | FV80: 25054 | GK80: 0
A81: 2023-12-17 | B81: 2023-12-17 | C81: 336 | D81: 327 | E81: 0.353 | F81: 6.05 | H81: 332.19 | J81: 331.29 | K81: 5.15 | N81: -0.353 | Q81: 0 | R81: -0.1086153846 | S81: 330.63 | T81: 4.49 | V81: 1.32 | Z81: 33.84615385 | AA81: 0 | AD81: 0 | AF81: 336 | AH81: 330.32 | AI81: 4.18 | AJ81: 19 | AL81: 1.21 | AM81: 0.857 | AP81: 31.02564103 | AQ81: 26.36923077 | AR81: -2.820512821 | AT81: 7673849 | AU81: 3278749 | AV81: 21591 | AW81: 21591 | AY81: 332.33 | AZ81: 6.19 | BC81: 1.99 | BD81: 0.67 | BG81: 51.02564103 | BH81: 20.61538462 | BI81: 20 | BK81: 3248110 | BL81: 308772 | BM81: 309498 | BP81: 334.76 | BQ81: 8.62 | BR81: 104 | BS81: 6.3 | BT81: 2.989 | BU81: 2.636 | BX81: 76.64102564 | BY81: 81.10769231 | BZ81: 25.61538462 | CB81: 8044964 | CC81: 7149762 | CD81: 38287 | CE81: 38287 | CG81: 335.7 | CH81: 9.56 | CK81: 3.162 | CL81: 2.809 | CO81: 81.07692308 | CP81: 81.49115173 | CQ81: 4.435897436 | CR81: =CM81-BV81 ->  | CS81: 2634418 | CT81: 6033963 | CU81: 35276 | CV81: 35276 | CX81: 332.99 | CY81: 6.85 | DB81: 2.538 | DC81: 2.185 | DF81: 66.78947368 | DG81: 66.43647368 | DH81: -14.28744939 | DI81: =DD81-CM81 ->  | DL81: 37414 | DM81: 37414 | DN81: 329.41 | DO81: 3.27 | DR81: 1.129 | DS81: 0.776 | DV81: 29.71052632 | DW81: 29.35752632 | DX81: -37.07894737 | DY81: =DT81-DC81 ->  | EB81: -68167335 | EC81: -68167335 | ED81: 329.64 | EE81: 3.5 | EF81: 0 | EG81: 0 | EH81: 1.69 | EI81: 1.337 | EL81: 44.47368421 | EM81: 44.12068421 | EN81: 14.76315789 | EO81: =EJ81-DS81 ->  | EP81: 11819 | EQ81: 12819 | ER81: 24638 | ES81: 329.95 | ET81: 3.81 | EW81: 1.468356998 | EX81: 1.115356998 | FA81: 38.64097363 | FB81: 32.35732515 | FC81: -5.83271058 | FD81: =EY81-EI81 ->  | FE81: 5566 | FF81: 9504 | FG81: 15070 | FH81: 331.86 | FI81: 5.72 | FJ81: 0 | FK81: 0 | FL81: 1.785 | FM81: 1.432 | FP81: 46.97368421 | FQ81: 41.54337105 | FR81: 8.33271058 | FS81: =FN81-EX81 ->  | FT81: 10861 | FU81: 13689 | FV81: 24550 | GK81: 0
A82: 2023-12-18 | B82: 2023-12-18 | C82: 336 | D82: 327 | E82: 0.353 | F82: 6.22 | G82: 4.2 | H82: 332.36 | J82: 331.23 | K82: 5.09 | N82: -0.353 | Q82: 0 | R82: -0.1086153846 | S82: 330.58 | T82: 4.44 | V82: 1.305 | Z82: 33.46153846 | AA82: 0 | AD82: 0 | AF82: 336 | AH82: 330.21 | AI82: 4.07 | AK82: 5 | AL82: 1.155 | AM82: 0.802 | AP82: 29.61538462 | AQ82: 24.67692308 | AR82: -3.846153846 | AT82: 7688352 | AU82: 3296190 | AV82: 31944 | AW82: 31944 | AY82: 332.26 | AZ82: 6.12 | BC82: 1.986 | BD82: 0.681 | BG82: 50.92307692 | BH82: 20.95384615 | BI82: 21.30769231 | BK82: 3262728 | BL82: 505773 | BM82: 211619 | BP82: 334.99 | BQ82: 8.85 | BR82: 33 | BS82: 8.2 | BT82: 3.09 | BU82: 2.737 | BX82: 79.23076923 | BY82: 84.21538462 | BZ82: 28.30769231 | CB82: 8063598 | CC82: 7162502 | CD82: 31374 | CE82: 31374 | CG82: 335.72 | CH82: 9.58 | CK82: 3.164 | CL82: 2.811 | CO82: 81.12820513 | CP82: 81.54917319 | CQ82: 1.897435897 | CS82: 2660362 | CT82: 6082633 | CU82: 74614 | CV82: 74614 | CX82: 333.11 | CY82: 6.97 | CZ82: 7.2 | DB82: 2.544 | DC82: 2.191 | DF82: 66.94736842 | DG82: 66.59436842 | DH82: -14.18083671 | DL82: 37497 | DM82: 37497 | DN82: 329.27 | DO82: 3.13 | DR82: 1.09 | DS82: 0.737 | DV82: 28.68421053 | DW82: 28.33121053 | DX82: -38.26315789 | EB82: -68167335 | EC82: -68167335 | ED82: 329.54 | EE82: 3.4 | EF82: 0 | EG82: 0 | EH82: 1.687 | EI82: 1.334 | EL82: 44.39473684 | EM82: 44.04173684 | EN82: 15.71052632 | EP82: 11386 | EQ82: 12190 | ER82: 23576 | ES82: 329.9 | ET82: 3.76 | EW82: 1.449087221 | EX82: =EW82-0.353 -> 1.096087221 | FA82: 38.13387424 | FB82: 31.79829478 | FC82: -6.260862603 | FE82: 8562 | FF82: 14138 | FG82: 22700 | FH82: 331.82 | FI82: 5.68 | FJ82: 0 | FK82: 0 | FL82: 1.781 | FM82: =FL82-0.353 -> 1.428 | FP82: 46.86842105 | FQ82: 41.42732811 | FR82: 8.734546813 | FT82: 11661 | FU82: 13059 | FV82: 24720 | GK82: 0
A83: 2023-12-19 | B83: 2023-12-19 | C83: 336 | D83: 327 | E83: 0.353 | F83: 6.38 | G83: 16.5 | H83: 332.52 | J83: 331.66 | K83: 5.52 | N83: -0.353 | Q83: 0 | R83: -0.1086153846 | S83: 330.49 | T83: 4.35 | Z83: 0 | AA83: 0 | AD83: 0 | AF83: 336 | AH83: 330.14 | AI83: 4 | AJ83: 5.5 | AK83: 19 | AL83: 1.23 | AM83: 0.877 | AP83: =(AL83/3.9)*100 -> 31.53846154 | AQ83: 26.98461538 | AR83: 31.53846154 | AT83: 7696996 | AU83: 3311893 | AV83: 24347 | AW83: 24347 | AY83: 332.35 | AZ83: 6.21 | BA83: 106 | BB83: 20 | BC83: 1.997 | BD83: 1.997 | BG83: =(BC83/3.9)*100 -> 51.20512821 | BH83: 61.44615385 | BI83: 19.66666667 | BM83: -3768501 | BP83: 335.57 | BQ83: 9.43 | BR83: 42.2 | BS83: 20.2 | BT83: 3.407 | BU83: 3.054 | BX83: =(BT83/3.9)*100 -> 87.35897436 | BY83: 93.96923077 | BZ83: 36.15384615 | CB83: 8086743 | CC83: 7169023 | CD83: 29666 | CE83: 29666 | CG83: 335.74 | CH83: 9.6 | CI83: 3.4 | CK83: 3.166 | CL83: 2.813 | CO83: 81.17948718 | CP83: 81.60719466 | CQ83: -6.179487179 | CS83: 2664549 | CT83: 6107083 | CU83: 28637 | CV83: 28637 | CX83: 333.2 | CY83: 7.06 | DB83: 2.552 | DC83: 2.199 | DF83: 67.15789474 | DG83: 66.80489474 | DH83: -14.02159244 | DL83: 37582 | DM83: 37582 | DN83: 329.14 | DO83: 3 | DR83: 1.045 | DS83: 0.692 | DV83: 27.5 | DW83: 27.147 | DX83: -39.65789474 | EB83: -68167335 | EC83: -68167335 | ED83: =336-(9.86-EE83) -> 329.47 | EE83: 3.33 | EF83: 0 | EG83: 0 | EH83: 1.684 | EI83: 1.331 | EL83: 44.31578947 | EM83: 43.96278947 | EN83: 16.81578947 | EP83: 11079 | EQ83: 11076 | ER83: 22155 | ES83: 329.82 | ET83: 3.68 | EW83: 1.418255578 | EX83: 1.065255578 | FA83: 37.32251521 | FB83: 30.90384619 | FC83: -6.993274261 | FE83: 8728 | FF83: 13780 | FG83: 22508 | FH83: 331.74 | FI83: 5.6 | FJ83: 0 | FK83: 0 | FL83: 1.77 | FM83: 1.417 | FP83: 46.57894737 | FQ83: 41.10821004 | FR83: 9.256432155 | FT83: 10506 | FU83: 11574 | FV83: 22080 | GK83: 0
A84: 2023-12-20 | B84: 2023-12-20 | C84: 336 | D84: 327 | E84: 0.353 | F84: 6.41 | G84: 76.8 | H84: 332.55 | J84: 331.91 | K84: 5.77 | N84: -0.353 | Q84: 0 | R84: -0.1086153846 | S84: 330.42 | T84: 4.28 | Z84: 0 | AA84: 0 | AD84: 0 | AF84: 336 | AH84: 330.27 | AI84: 4.13 | AJ84: 203 | AK84: 40 | AL84: 1.19 | AM84: 0.837 | AP84: 30.51282051 | AQ84: 25.75384615 | AR84: 30.51282051 | AT84: 7706529 | AU84: 3324575 | AV84: 22215 | AW84: 22215 | AY84: 332.43 | AZ84: 6.29 | BA84: 126 | BC84: 2.008 | BD84: 2.008 | BG84: =(BC84/3.9)*100 -> 51.48717949 | BH84: 61.78461538 | BI84: 20.97435897 | BK84: 3282749 | BL84: 771303 | BM84: 4054052 | BP84: 335.96 | BQ84: 9.82 | BT84: 3.64 | BU84: 3.287 | BX84: =(BT84/3.9)*100 -> 93.33333333 | BY84: 101.1384615 | BZ84: 41.84615385 | CB84: 8108750 | CC84: 7185465 | CD84: 38449 | CE84: 38449 | CG84: 335.82 | CH84: 9.68 | CI84: 9 | CJ84: 35 | CK84: 3.174 | CL84: 2.821 | CO84: 81.38461538 | CP84: 81.83928053 | CQ84: -11.94871795 | CS84: 2688922 | CT84: 6132733 | CU84: 50023 | CV84: 50023 | CX84: 333.2 | CY84: 7.06 | DB84: 2.552 | DC84: 2.199 | DF84: 67.15789474 | DG84: 66.80489474 | DH84: -14.22672065 | DL84: 37398 | DM84: 37398 | DN84: 329.16 | DO84: 3.02 | DR84: 1.05 | DS84: 0.697 | DV84: 27.63157895 | DW84: 27.27857895 | DX84: -39.52631579 | EB84: -68167335 | EC84: -68167335 | ED84: 329.39 | EE84: 3.25 | EF84: 37 | EG84: 0 | EH84: 1.676 | EI84: 1.323 | EL84: 44.10526316 | EM84: 43.75226316 | EN84: 16.47368421 | EP84: 11569 | EQ84: 11908 | ER84: 23477 | ES84: 329.79 | ET84: 3.65 | EU84: 64.2 | EV84: 20.7 | EW84: 1.406693712 | EX84: 1.053693712 | FA84: 37.01825558 | FB84: 30.56842797 | FC84: -7.08700758 | FE84: 8313 | FF84: 13652 | FG84: 21965 | FH84: 331.68 | FI84: 5.54 | FJ84: 0 | FK84: 0 | FL84: 1.72 | FM84: 1.367 | FP84: 45.26315789 | FQ84: 39.65767334 | FR84: 8.244902317 | FT84: 7923 | FU84: 13911 | FV84: 21834 | GK84: 0
A85: 2023-12-21 | B85: 2023-12-21 | C85: 336 | D85: 327 | E85: 0.353 | F85: 7.23 | G85: 49.5 | H85: 333.37 | J85: 331.94 | K85: 5.8 | N85: -0.353 | Q85: 0 | R85: -0.1086153846 | S85: 330.35 | T85: 4.21 | Z85: 0 | AA85: 0 | AD85: 0 | AF85: 336 | AH85: 330.84 | AI85: 4.7 | AJ85: 87 | AK85: 15 | AL85: 1.457 | AM85: 1.104 | AP85: 37.35897436 | AQ85: 33.96923077 | AR85: 37.35897436 | AT85: 7715079 | AU85: 3340609 | AV85: 24584 | AW85: 24584 | AY85: 332.81 | AZ85: 6.67 | BC85: 2.051 | BD85: 2.051 | BG85: 52.58974359 | BH85: 63.10769231 | BI85: 15.23076923 | BK85: 3297156 | BL85: 975083 | BM85: 218187 | BP85: 336.08 | BQ85: 9.94 | BT85: 3.9 | BU85: 3.547 | BV85: =((BP85-336)^(3/2))*1.838*133 -> 5.531362595 | BW85: 477909.7282 | BX85: 100 | BY85: 109.1384615 | BZ85: 47.41025641 | CB85: 8133186 | CC85: 7202882 | CD85: 41853 | CE85: 41853 | CG85: 335.87 | CH85: 9.73 | CI85: 29 | CJ85: 5 | CK85: 3.179 | CL85: =CK85-E85 -> 2.826 | CO85: 81.51282051 | CP85: 81.9843342 | CQ85: =CO85-BX85 -> -18.48717949 | CU85: -8821655 | CV85: -8821655 | CX85: 333.19 | CY85: 7.05 | DB85: 2.551 | DC85: 2.198 | DF85: 67.13157895 | DG85: 66.77857895 | DH85: -14.38124157 | DL85: 38483 | DM85: 38483 | DN85: 328.99 | DO85: 2.85 | DR85: 0.99 | DS85: 0.637 | DV85: 26.05263158 | DW85: 25.69963158 | DX85: -41.07894737 | EB85: -68167335 | EC85: 38483 | ED85: 329.31 | EE85: 3.17 | EF85: 4 | EG85: 0 | EH85: 1.668 | EI85: 1.315 | EL85: 43.89473684 | EM85: 43.54173684 | EN85: 17.84210526 | EP85: 10047 | EQ85: 9700 | ER85: 19747 | ES85: 329.73 | ET85: 3.59 | EU85: 12 | EV85: 7.4 | EW85: 1.38356998 | EX85: 1.03056998 | FA85: 36.40973631 | FB85: 29.89759152 | FC85: -7.485000534 | FE85: 8106 | FF85: 14222 | FG85: 22328 | FH85: 331.64 | FI85: 5.5 | FJ85: 0 | FK85: 0 | FL85: 1.69 | FM85: 1.337 | FP85: 44.47368421 | FQ85: 38.78735132 | FR85: 8.063947902 | FT85: 11170 | FU85: 13070 | FV85: 24240 | GK85: 0
A86: 2023-12-22 | B86: 2023-12-22 | C86: 336 | D86: 327 | E86: 0.353 | F86: 7.19 | H86: 333.33 | J86: 331.92 | K86: 5.78 | N86: -0.353 | Q86: 0 | R86: -0.1086153846 | S86: 330.28 | T86: 4.14 | Z86: 0 | AA86: 0 | AD86: 0 | AF86: 336 | AH86: 331.01 | AI86: 4.87 | AL86: 1.501 | AM86: 1.148 | AP86: 38.48717949 | AQ86: 35.32307692 | AR86: 38.48717949 | AT86: 7726852 | AU86: 3355991 | AV86: 27155 | AW86: 27155 | AY86: 332.93 | AZ86: 6.79 | BC86: 2.178 | BD86: 2.178 | BG86: 55.84615385 | BH86: 67.01538462 | BI86: =BG86-AP86 -> 17.35897436 | BK86: 3312306 | BL86: 117327 | BM86: -842606 | BP86: 336.07 | BQ86: 9.93 | BR86: 40.3 | BS86: 10 | BT86: 3.9 | BU86: 3.547 | BV86: =((BP86-336)^(3/2))*1.838*133 -> 4.527351437 | BW86: 391163.1642 | BX86: 100 | BY86: 109.1384615 | BZ86: =BX86-BG86 -> 44.15384615 | CB86: 8155538 | CC86: 7217625 | CD86: 37095 | CE86: 37095 | CG86: 336.02 | CH86: 9.88 | CI86: 54 | CJ86: 3 | CK86: 3.8 | CL86: =CK86-E86 -> 3.447 | CM86: 0.6914203244 | CN86: 59738.71602 | CO86: =(CK86/3.8)*100 -> 100 | CP86: 100 | CQ86: 0 | CR86: -3.835931113 | CU86: 0 | CV86: 0 | CX86: 333.19 | CY86: 7.05 | CZ86: 4.1 | DB86: 2.551 | DC86: 2.198 | DF86: 67.13157895 | DG86: 66.77857895 | DH86: -32.86842105 | DL86: 38483 | DM86: 38483 | DN86: 328.99 | DO86: 2.85 | DQ86: 16 | DR86: 0.99 | DS86: 0.637 | DV86: 26.05263158 | DW86: 25.69963158 | DX86: -41.07894737 | EB86: -68167335 | EC86: 38483 | ED86: 329.22 | EE86: 3.08 | EF86: 0 | EG86: 0 | EH86: 1.65 | EI86: 1.297 | EL86: 43.42105263 | EM86: 43.06805263 | EN86: 17.36842105 | EP86: 9865 | EQ86: 8717 | ER86: 18582 | ES86: 329.67 | ET86: 3.53 | EU86: 11.5 | EV86: 1.2 | EW86: 1.360446247 | EX86: 1.007446247 | FA86: 35.80121704 | FB86: 29.22675508 | FC86: -7.619835593 | FE86: 8593 | FF86: 15372 | FG86: 23965 | FH86: 331.58 | FI86: 5.44 | FJ86: 0 | FK86: 0 | FL86: 1.675 | FM86: 1.322 | FP86: 44.07894737 | FQ86: 38.35219031 | FR86: 8.27773033 | FT86: 11488 | FU86: 13472 | FV86: 24960 | GK86: 0
A87: 2023-12-23 | B87: 2023-12-23 | C87: 336 | D87: 327 | E87: 0.353 | F87: 8.63 | H87: 334.77 | J87: 331.89 | K87: 5.75 | N87: -0.353 | Q87: 0 | R87: -0.1086153846 | S87: 330.21 | T87: 4.07 | U87: 3.1 | Z87: 0 | AA87: 0 | AD87: 0 | AF87: 336 | AH87: 331.06 | AI87: 4.92 | AL87: 1.505 | AM87: 1.152 | AP87: 38.58974359 | AQ87: 35.44615385 | AR87: 38.58974359 | AT87: 7743945 | AU87: 3370894 | AV87: 31996 | AW87: 31996 | AY87: 332.93 | AZ87: 6.79 | BC87: 2.178 | BD87: 2.178 | BG87: 55.84615385 | BH87: 67.01538462 | BI87: 17.25641026 | BK87: 3324013 | BL87: 136895 | BM87: 31275 | BN87: 31275 | BP87: 336.07 | BQ87: 9.93 | BS87: 0 | BT87: 3.9 | BU87: 3.547 | BV87: =((BP87-336)^(3/2))*1.838*133 -> 4.527351437 | BW87: 391163.1642 | BX87: 100 | BY87: 109.1384615 | BZ87: =BX87-BG87 -> 44.15384615 | CB87: 8178592 | CC87: 7232788 | CD87: 38217 | CE87: 38217 | CG87: 336.1 | CH87: 9.96 | CJ87: 10 | CK87: 3.8 | CL87: =CK87-E87 -> 3.447 | CM87: 7.730314231 | CN87: 667899.1496 | CO87: =(CK87/3.8)*100 -> 100 | CP87: 100 | CQ87: 0 | CR87: 3.202962794 | CU87: 0 | CV87: 0 | CX87: 333.2 | CY87: 7.06 | DB87: 2.552 | DC87: 2.199 | DF87: 67.15789474 | DG87: 66.80489474 | DH87: -32.84210526 | DL87: 38483 | DM87: 38483 | DN87: 328.84 | DO87: 2.7 | DR87: 0.94 | DS87: 0.587 | DV87: 24.73684211 | DW87: 24.38384211 | DX87: -42.42105263 | EB87: -68167335 | EC87: 38483 | ED87: 329.12 | EE87: 2.98 | EF87: 0 | EG87: 0 | EH87: 1.639 | EI87: 1.286 | EL87: 43.13157895 | EM87: 42.77857895 | EN87: 18.39473684 | EP87: 9983 | EQ87: 8922 | ER87: 18905 | ES87: 329.59 | ET87: 3.45 | EU87: 2.2 | EV87: 2.3 | EW87: 1.329614604 | EX87: 0.9766146045 | FA87: 34.98985801 | FB87: 28.33230648 | FC87: -8.141720935 | FE87: 8411 | FF87: 15189 | FG87: 23600 | FH87: 331.63 | FI87: 5.49 | FJ87: 0 | FK87: 0 | FL87: 1.68 | FM87: 1.327 | FP87: 44.21052632 | FQ87: 38.49724398 | FR87: 9.220668304 | FT87: 11640 | FU87: 10320 | FV87: =SUM(FT87+FU87) -> 21960 | GK87: =SUM(GI87+GJ87) -> 0
A88: 2023-12-24 | B88: 2023-12-24 | C88: 336 | D88: 327 | E88: 0.353 | F88: 8.82 | H88: 334.96 | J88: 331.86 | K88: 5.72 | N88: -0.353 | Q88: 0 | R88: -0.1086153846 | S88: 330.15 | T88: 4.01 | U88: 37.2 | Z88: 0 | AA88: 0 | AD88: 0 | AF88: 336 | AH88: 331 | AI88: 4.86 | AJ88: 14 | AK88: 9 | AL88: 1.5 | AM88: 1.147 | AP88: 38.46153846 | AQ88: 35.29230769 | AR88: 38.46153846 | AT88: 7760341 | AU88: 3385407 | AV88: 30909 | AW88: 30909 | AY88: 332.93 | AZ88: 6.79 | BC88: 2.178 | BD88: 2.178 | BG88: 55.84615385 | BH88: 67.01538462 | BI88: 17.38461538 | BK88: 3333853 | BL88: 155341 | BM88: 28286 | BN88: 28286 | BP88: 336.12 | BQ88: 9.98 | BR88: 97 | BS88: 30 | BT88: 3.9 | BU88: 3.547 | BV88: =((BP88-336)^(3/2))*1.838*133 -> 10.16176195 | BW88: 877976.2329 | BX88: 100 | BY88: 109.1384615 | BZ88: 44.15384615 | CB88: 8201175 | CC88: 7249009 | CD88: 38804 | CE88: 38804 | CG88: 336.09 | CH88: 9.95 | CJ88: 15 | CK88: 3.8 | CL88: =CK88-E88 -> 3.447 | CM88: 6.600258 | CN88: 570262.2912 | CO88: 100 | CP88: 100 | CQ88: 0 | CR88: =CM88-BV88 -> -3.561503955 | CU88: 0 | CV88: 0 | CX88: 333.15 | CY88: 7.01 | DB88: 2.547 | DC88: 2.194 | DF88: 67.02631579 | DG88: 66.67331579 | DH88: -32.97368421 | DL88: 38483 | DM88: 38483 | DN88: 328.74 | DO88: 2.6 | DR88: 0.92 | DS88: 0.567 | DV88: 24.21052632 | DW88: 23.85752632 | DX88: -42.81578947 | EB88: -68167335 | EC88: 38483 | ED88: 329.07 | EE88: 2.93 | EF88: 0 | EG88: 0 | EH88: 1.61 | EI88: 1.257 | EL88: 42.36842105 | EM88: 42.01542105 | EN88: 18.15789474 | EP88: 5418 | EQ88: 12214 | ER88: 17632 | ES88: 329.52 | ET88: 3.38 | EU88: 2 | EV88: 4.2 | EW88: 1.302636917 | EX88: 0.9496369168 | FA88: 34.27991886 | FB88: 27.54966396 | FC88: -8.088502189 | FE88: 8114 | FF88: 16184 | FG88: 24298 | FH88: 331.47 | FI88: 5.33 | FJ88: 0 | FK88: 0 | FL88: 1.625 | FM88: 1.272 | FP88: 42.76315789 | FQ88: 36.90165361 | FR88: 8.483239031 | FT88: 9559 | FU88: 9161 | FV88: 18720 | GK88: 0
A89: 2023-12-25 | B89: 2023-12-25 | C89: 336 | D89: 327 | E89: 0.353 | F89: 8.78 | H89: 334.92 | J89: 331.83 | K89: 5.69 | N89: -0.353 | Q89: 0 | R89: -0.1086153846 | S89: 330.14 | T89: 4 | U89: 4.3 | Z89: 0 | AA89: 0 | AD89: 0 | AF89: 336 | AH89: 330.94 | AI89: 4.8 | AL89: 1.48 | AM89: 1.127 | AP89: 37.94871795 | AQ89: 34.67692308 | AR89: 37.94871795 | AT89: 7774413 | AU89: 3398705 | AV89: 27370 | AW89: 27370 | AY89: 332.84 | AZ89: 6.7 | BC89: 2.161 | BD89: 2.161 | BG89: 55.41025641 | BH89: 66.49230769 | BI89: 17.46153846 | BK89: 3348627 | BL89: 178259 | BM89: 37692 | BN89: 37692 | BP89: 336.32 | BQ89: 10.18 | BR89: 303 | BS89: 14.5 | BT89: 3.9 | BU89: 3.547 | BV89: 44.25090076 | BW89: 3823277.826 | BX89: 100 | BY89: 109.1384615 | BZ89: 44.58974359 | CB89: 8220210 | CC89: 7262805 | CD89: 32831 | CE89: 32831 | CG89: 336.12 | CH89: 9.98 | CI89: 15.4 | CJ89: 33 | CK89: 3.8 | CL89: =CK89-U89 -> -0.5 | CM89: 10.16176195 | CN89: 877976.2329 | CO89: 100 | CP89: -14.50536699 | CQ89: 0 | CR89: =CM89-BV89 -> -34.0891388 | CU89: 0 | CV89: 0 | CX89: 333.14 | CY89: 7 | CZ89: 4.4 | DB89: 2.546 | DC89: 2.193 | DF89: 67 | DG89: 66.647 | DH89: -33 | DI89: =DD89-CM89 ->  | DL89: 38483 | DM89: 38483 | DN89: 328.79 | DO89: 2.65 | DR89: 0.93 | DS89: 0.577 | DV89: 24.47368421 | DW89: 24.12068421 | DX89: -42.52631579 | DY89: =DT89-DC89 ->  | EB89: -68167335 | EC89: 38483 | ED89: 328.92 | EE89: 2.78 | EF89: 0 | EG89: 0 | EH89: 1.591 | EI89: 1.238 | EL89: 41.86842105 | EM89: 41.51542105 | EN89: 17.39473684 | EQ89: 16007 | ER89: 16007 | ES89: 329.44 | ET89: 3.3 | EU89: 0 | EV89: 0 | EW89: 1.271805274 | EX89: 0.9188052738 | FA89: 33.46855984 | FB89: 26.65521537 | FC89: -8.399861215 | FE89: 8080 | FF89: 16415 | FG89: 24495 | FH89: 331.43 | FI89: 5.29 | FJ89: 0 | FK89: 0 | FL89: 1.6 | FM89: 1.247 | FP89: 42.10526316 | FQ89: 36.17638526 | FR89: 8.63670332 | FT89: 10486 | FU89: 9914 | FV89: 20400 | GK89: 0
A90: 2023-12-26 | B90: 2023-12-26 | C90: 336 | D90: 327 | E90: 0.353 | F90: 9.42 | G90: 13.7 | H90: 335.56 | J90: 331.79 | K90: 5.65 | N90: -0.353 | Q90: 0 | R90: -0.1086153846 | S90: 330.1 | T90: 3.96 | U90: 0 | V90: 1.22 | Z90: 31.28205128 | AA90: 0 | AD90: 0 | AF90: 336 | AH90: 330.89 | AI90: 4.75 | AJ90: 8.4 | AL90: 1.47 | AM90: 1.117 | AP90: 37.69230769 | AQ90: 34.36923077 | AR90: 6.41025641 | AT90: 7787969 | AU90: 3411033 | AV90: 25884 | AW90: 25884 | AY90: 332.8 | AZ90: 6.66 | BC90: 2.1 | BD90: 0.88 | BG90: 53.84615385 | BH90: 27.07692308 | BI90: 16.15384615 | BK90: 3363994 | BL90: 202960 | BM90: 40068 | BN90: 40068 | BP90: 336.18 | BQ90: 10.04 | BR90: 112 | BS90: 25 | BT90: 3.9 | BU90: 3.547 | BV90: 18.66834876 | BW90: 1612945.333 | BX90: 100 | BY90: 109.1384615 | BZ90: 46.15384615 | CB90: 8241144 | CC90: 7276967 | CD90: 35096 | CE90: 35096 | CG90: 336.13 | CH90: 9.99 | CJ90: 9 | CK90: 3.8 | CL90: 3.8 | CM90: 11.45808861 | CN90: 989978.8559 | CO90: 100 | CP90: 110.2407891 | CQ90: 0 | CR90: -7.210260148 | CU90: 0 | CV90: 0 | CX90: 333.13 | CY90: 6.99 | CZ90: 77 | DB90: 2.545 | DC90: 2.192 | DF90: 66.97368421 | DG90: 66.62068421 | DH90: -33.02631579 | DI90: =DD90-CM90 ->  | DL90: 38483 | DM90: 38483 | DN90: =336-(9.86-DO90) -> 328.39 | DO90: 2.25 | DR90: 0.85 | DS90: 0.497 | DV90: 22.36842105 | DW90: 22.01542105 | DX90: -44.60526316 | DY90: =DT90-DC90 ->  | EB90: -68167335 | EC90: 38483 | ED90: 328.83 | EE90: 2.69 | EF90: 0 | EG90: 0 | EH90: 1.585 | EI90: 1.232 | EL90: 41.71052632 | EM90: 41.35752632 | EN90: 19.34210526 | EQ90: 15770 | ER90: 15770 | ES90: 329.32 | ET90: 3.18 | EU90: 0 | EV90: 0 | EW90: 1.225557809 | EX90: 0.8725578093 | FA90: 32.2515213 | FB90: 25.31354248 | FC90: -9.459005018 | FE90: 8002 | FF90: 15883 | FG90: 23885 | FH90: 331.36 | FI90: 5.22 | FJ90: 0 | FK90: 0 | FL90: 1.55 | FM90: 1.197 | FP90: 40.78947368 | FQ90: 34.72584856 | FR90: 8.537952386 | FT90: 8288 | FU90: 10912 | FV90: 19200 | GK90: 0
A91: 2023-12-27 | B91: 2023-12-27 | C91: 336 | D91: 327 | E91: 0.353 | F91: 9.51 | G91: 46.2 | H91: 335.65 | J91: 331.76 | K91: 5.62 | N91: -0.353 | Q91: 0 | R91: -0.1086153846 | S91: 330.02 | T91: 3.88 | U91: 1 | V91: 1.2 | Z91: 30.76923077 | AA91: 0 | AD91: 0 | AF91: 336 | AH91: 331.04 | AI91: 4.9 | AJ91: 28 | AK91: 8 | AL91: 1.53 | AM91: 1.177 | AP91: 39.23076923 | AQ91: 36.21538462 | AR91: 8.461538462 | AT91: 7801428 | AU91: 3425066 | AV91: 27492 | AW91: 27492 | AY91: 332.74 | AZ91: 6.6 | BC91: 2.06 | BD91: 0.86 | BG91: 52.82051282 | BH91: 26.46153846 | BI91: 13.58974359 | BK91: 3378116 | BL91: 226060 | BM91: 37222 | BN91: 37222 | BP91: 336.23 | BQ91: 10.09 | BR91: 112 | BS91: 5.1 | BT91: 3.9 | BU91: 3.547 | BV91: 26.96428458 | BW91: 2329714.188 | BX91: 100 | BY91: 109.1384615 | BZ91: 47.17948718 | CB91: =8262528 -> 8262528 | CC91: 7292820 | CD91: 37237 | CE91: 37237 | CG91: 336.13 | CH91: 9.99 | CK91: 3.8 | CL91: 2.8 | CM91: 11.45808861 | CN91: 989978.8559 | CO91: 100 | CP91: 81.23005512 | CQ91: 0 | CR91: -15.50619597 | CU91: 0 | CV91: 0 | CX91: 333.2 | CY91: 7.06 | DA91: 15 | DB91: 2.552 | DC91: 2.199 | DF91: 67.15789474 | DG91: 66.80489474 | DH91: -32.84210526 | DL91: 38483 | DM91: 38483 | DN91: =336-(9.86-DO91) -> 328.36 | DO91: 2.22 | DR91: 0.845 | DS91: 0.492 | DV91: 22.23684211 | DW91: 21.88384211 | DX91: -44.92105263 | EB91: -68167335 | EC91: 38483 | ED91: 328.77 | EE91: 2.63 | EF91: 0 | EG91: 0 | EH91: 1.568 | EI91: 1.215 | EL91: 41.26315789 | EM91: 40.91015789 | EN91: 19.02631579 | EQ91: 13130 | ER91: 13130 | ES91: 329.25 | ET91: 3.11 | EU91: 0 | EV91: 0 | EW91: 1.198580122 | EX91: 0.8455801217 | FA91: 31.54158215 | FB91: 24.53089996 | FC91: -9.721575745 | FE91: 7820 | FF91: 13970 | FG91: 21790 | FH91: 331.33 | FI91: 5.19 | FJ91: 0 | FK91: 0 | FL91: 1.563 | FM91: 1.21 | FP91: 41.13157895 | FQ91: 35.10298811 | FR91: 9.589996797 | FT91: 9019 | FU91: 8501 | FV91: 17520 | GK91: 0
A92: 2023-12-28 | B92: 2023-12-28 | C92: 336 | D92: 327 | E92: 0.353 | F92: 9.58 | H92: 335.72 | J92: 331.74 | K92: 5.6 | N92: -0.353 | Q92: 0 | R92: -0.1086153846 | S92: 329.96 | T92: 3.82 | U92: 0 | V92: 1.192 | Z92: 30.56410256 | AA92: 0 | AD92: 0 | AF92: 336 | AH92: 331.1 | AI92: 4.96 | AL92: 1.58 | AM92: 1.227 | AP92: 40.51282051 | AQ92: 37.75384615 | AR92: 9.948717949 | AT92: 7811723 | AU92: 3437696 | AV92: 22925 | AW92: 22925 | AY92: 332.7 | AZ92: 6.56 | BC92: 2.02 | BD92: 0.828 | BG92: 51.79487179 | BH92: 25.47692308 | BI92: 11.28205128 | BK92: 3392257 | BL92: 245504 | BM92: 33585 | BN92: 33585 | BP92: 336.2 | BQ92: 10.06 | BR92: 18 | BS92: 8.5 | BT92: 3.9 | BU92: 3.547 | BV92: =((BP92-336)^(3/2))*1.838*133 -> 21.86463045 | BW92: 1889104.071 | BX92: 100 | BY92: 109.1384615 | BZ92: 48.20512821 | CB92: 8283277 | CC92: 7308277 | CD92: 36206 | CE92: 36206 | CG92: 336.1 | CH92: 9.96 | CK92: 3.8 | CL92: 3.8 | CM92: 7.730314231 | CN92: 667899.1496 | CO92: 100 | CP92: 110.2407891 | CQ92: 0 | CR92: -14.13431622 | CS92: 2753488 | CT92: 6294764 | CU92: 9048252 | CV92: 9048252 | CX92: 333.23 | CY92: 7.09 | CZ92: 17 | DB92: 2.555 | DC92: 2.202 | DF92: 67.23684211 | DG92: 66.88384211 | DH92: -32.76315789 | DL92: 38483 | DM92: 38483 | DN92: 328.36 | DO92: 2.22 | DR92: 0.845 | DS92: 0.492 | DV92: 22.23684211 | DW92: 21.88384211 | DX92: -45 | EB92: -68167335 | EC92: 38483 | ED92: 328.72 | EE92: 2.58 | EF92: 0 | EG92: 0 | EH92: 1.561 | EI92: 1.208 | EL92: 41.07894737 | EM92: 40.72594737 | EN92: 18.84210526 | EQ92: 15050 | ER92: 15050 | ES92: 329.28 | ET92: 3.14 | EU92: 16 | EV92: 20.9 | EW92: 1.210141988 | EX92: 0.8571419878 | FA92: 31.84584178 | FB92: 24.86631818 | FC92: -9.233105583 | FE92: 6320 | FF92: 11114 | FG92: 17434 | FH92: 331.29 | FI92: 5.15 | FJ92: 0 | FK92: 0 | FM92: -0.353 | FP92: 0 | FQ92: -10.24078909 | FR92: -31.84584178 | FT92: 11838 | FU92: 7122 | FV92: 18960 | GK92: 0
A93: 2023-12-29 | B93: 2023-12-29 | C93: 336 | D93: 327 | E93: 0.353 | F93: 9.56 | H93: =336-(9.86-F93) -> 335.7 | J93: =336-(9.86-K93) -> 331.72 | K93: 5.58 | N93: =M93-E93 -> -0.353 | Q93: =(M93/3.9)*100 -> 0 | R93: =N93/3.25 -> -0.1086153846 | S93: =336-(9.86-T93) -> 329.92 | T93: 3.78 | U93: 0.5 | V93: 1.185 | Z93: =(V93/3.9)*100 -> 30.38461538 | AA93: =(W93/3.25)*100 -> 0 | AD93: =AB93+AC93-(AB92+AC92) -> 0 | AF93: 336 | AH93: =336-(9.86-AI93) -> 331.06 | AI93: 4.92 | AL93: 1.555 | AM93: 1.202 | AP93: 39.87179487 | AQ93: 36.98461538 | AR93: 9.487179487 | AT93: 7822949 | AU93: 3449852 | AV93: =AT93+AU93-(AT92+AU92) -> 23382 | AW93: 23382 | AY93: 332.65 | AZ93: 6.51 | BC93: 1.98 | BD93: 0.795 | BG93: 50.76923077 | BH93: 24.46153846 | BI93: 10.8974359 | BK93: 3403974 | BL93: 262848 | BM93: =BK93+BL93-(BK92+BL92) -> 29061 | BN93: 29061 | BP93: 336.25 | BQ93: 10.11 | BR93: 103.2 | BS93: 39.1 | BT93: 3.9 | BU93: 3.547 | BV93: 30.55675 | BW93: 2640103.2 | BX93: 100 | BY93: 109.1384615 | BZ93: =BX93-BG93 -> 49.23076923 | CB93: 8297757 | CC93: 7321470 | CD93: =CB93+CC93-(CB92+CC92) -> 27673 | CE93: 27673 | CG93: 336.13 | CH93: 9.99 | CK93: 3.8 | CL93: 3.3 | CM93: 11.45808861 | CN93: 989978.8559 | CO93: 100 | CP93: 95.73542211 | CQ93: 0 | CR93: -19.09866139 | CS93: 2757922 | CT93: 6317813 | CU93: 27483 | CV93: 27483 | CX93: 333.49 | CY93: 7.35 | CZ93: 24 | DA93: 24.2 | DB93: 2.584 | DC93: 2.231 | DF93: 68 | DG93: 67.647 | DH93: -32 | DL93: 38483 | DM93: 38483 | DN93: 328.46 | DO93: 2.32 | DP93: 18 | DR93: 0.865 | DS93: 0.512 | DV93: 22.76315789 | DW93: 22.41015789 | DX93: -45.23684211 | EB93: -68167335 | EC93: 38483 | ED93: 328.64 | EE93: 2.5 | EF93: 0 | EG93: 0 | EH93: 1.559 | EI93: 1.206 | EL93: 41.02631579 | EM93: 40.67331579 | EN93: 18.26315789 | EP93: 9991 | EQ93: 4964 | ER93: 14955 | ES93: 329.8 | ET93: 3.66 | EU93: 59 | EV93: 60.1 | EW93: 1.410547667 | EX93: 1.057547667 | FA93: 37.11967546 | FB93: 30.68023404 | FC93: -3.906640333 | FE93: 7946 | FF93: 13889 | FG93: 21835 | FH93: =336-(9.86-FI93) -> 331.26 | FI93: 5.12 | FJ93: 0 | FK93: 5 | FL93: 1.542 | FM93: 1.189 | FP93: 40.57894737 | FQ93: 34.49376269 | FR93: 3.459271912 | FT93: 10403 | FU93: 7597 | FV93: 18000 | GK93: 0
A94: 2023-12-30 | B94: 2023-12-30 | C94: 336 | D94: 327 | E94: 0.353 | F94: 9.56 | H94: 335.7 | J94: 331.72 | K94: 5.58 | N94: -0.353 | Q94: 0 | R94: -0.1086153846 | S94: 329.92 | T94: 3.78 | U94: 0.5 | V94: 1.185 | Z94: 30.38461538 | AA94: 0 | AD94: 0 | AF94: 336 | AH94: 331.06 | AI94: 4.92 | AL94: 1.555 | AM94: 1.202 | AN94: =1+AN93 ->  | AP94: 39.87179487 | AQ94: 36.98461538 | AR94: 9.487179487 | AT94: 7822950 | AU94: 3449853 | AV94: 1964-01-07 | AW94: 23383 | AY94: 332.63 | AZ94: 1900-01-06T11:45:36 | BC94: 1900-01-02T23:31:12 | BD94: 1900-01-01T19:04:48 | BG94: 1900-02-20T18:27:41.538 | BH94: 1900-01-25T11:04:36.923 | BI94: 1900-01-11T21:32:18.462 | BK94: 3403975 | BL94: 2619-08-27 | BM94: 1979-07-26 | BN94: 1979-07-26 | BP94: 337.25 | BQ94: 1900-01-11T02:38:24 | BR94: 1900-04-13T04:48:00 | BS94: 00:00:00 | BT94: 3.9 | BU94: 3.547 | BV94: 1900-01-31T13:21:43.200 | BW94: 2726503.2 | BX94: 100 | BY94: 109.1384615 | BZ94: 1900-02-19T05:32:18.462 | CB94: 8297757 | CC94: =1+CC93 -> 7321471 | CD94: =1+CD93 -> 1975-10-07 | CE94: =1+CE93 -> 1975-10-07 | CF94: =1+CF93 -> 1900-01-01 | CG94: 336.13 | CH94: 9.99 | CK94: 3.8 | CL94: 3.3 | CM94: 11.45808861 | CN94: 989978.8559 | CO94: 100 | CP94: 95.73542211 | CQ94: 0 | CR94: -20.09866139 | CS94: 2757922 | CT94: 6317813 | CU94: 0 | CV94: 0 | CX94: 333.9 | CY94: 7.76 | DA94: 15.1 | DB94: 2.994 | DC94: 2.641 | DF94: 78.78947368 | DG94: 78.43647368 | DH94: -21.21052632 | DL94: 38483 | DM94: 38483 | DN94: 328.53 | DO94: 2.39 | DP94: 0 | DR94: 0.891 | DS94: 0.538 | DV94: 23.44736842 | DW94: 23.09436842 | DX94: -55.34210526 | EB94: -68167335 | EC94: 38483 | ED94: 328.62 | EE94: 2.48 | EF94: 0 | EG94: 0 | EH94: 1.558 | EI94: 1.205 | EL94: 41 | EM94: 40.647 | EN94: 17.55263158 | EP94: 12190 | EQ94: 862 | ER94: 13052 | ES94: 329.84 | ET94: 3.7 | EU94: 11 | EV94: 0 | EW94: 1.425963489 | EX94: 1.072963489 | FA94: 37.52535497 | FB94: 31.12745834 | FC94: -3.47464503 | FE94: 3768 | FF94: 6637 | FG94: 10405 | FH94: 331.23 | FI94: 5.09 | FJ94: 0 | FK94: 0 | FL94: 1.53 | FM94: 1.177 | FP94: 40.26315789 | FQ94: 34.14563388 | FR94: 2.737802925 | FT94: 9047 | FU94: 10153 | FV94: 19200 | GK94: 0
A95: 2023-12-31 | B95: 2023-12-31 | C95: 336 | D95: 327 | E95: 0.353 | F95: 9.51 | H95: 335.65 | J95: 331.65 | K95: 5.51 | N95: -0.353 | Q95: 0 | R95: -0.1086153846 | S95: 329.78 | T95: 3.64 | U95: 18.4 | V95: 1.143 | Z95: 29.30769231 | AA95: 0 | AD95: 0 | AF95: 336 | AH95: 331.06 | AI95: 4.92 | AJ95: 31 | AL95: 1.599 | AM95: 1.246 | AP95: 41 | AQ95: 38.33846154 | AR95: 11.69230769 | AT95: 7852853 | AU95: 3482063 | AV95: =AT96+AU96-(AT94+AU94) -> 93719 | AW95: 93719 | AY95: 332.54 | AZ95: 6.4 | BC95: 1.89 | BD95: 0.747 | BG95: 48.46153846 | BH95: 22.98461538 | BI95: =BG95-AP95 -> 7.461538462 | BK95: 3426154 | BL95: 293792 | BM95: =BK96+BL96-(BK94+BL94) -> 91041 | BN95: 91041 | BP95: 336.14 | BQ95: 10 | BS95: 0 | BT95: 3.9 | BU95: 3.547 | BV95: 12.80528361 | BW95: 1106376.504 | BX95: 100 | BY95: 109.1384615 | BZ95: 51.53846154 | CB95: 8297757 | CC95: 7356859 | CD95: =CB95+CC95-(CB94+CC94) -> 35388 | CE95: 35388 | CG95: 336.12 | CH95: 9.98 | CK95: 3.8 | CL95: -14.6 | CM95: 10.16176195 | CN95: 877976.2329 | CO95: 100 | CP95: -423.556716 | CQ95: 0 | CR95: -2.643521653 | CS95: 2784826 | CT95: 6317813 | CU95: 26904 | CV95: 26904 | CW95: =SUM(CV65:CV95) -> 986682 | CX95: 334.28 | CY95: 8.14 | DB95: 3.032 | DC95: 2.679 | DF95: 79.78947368 | DG95: 79.43647368 | DH95: -20.21052632 | DL95: 38483 | DM95: 38483 | DN95: 328.43 | DO95: 2.29 | DR95: 0.855 | DS95: 0.502 | DV95: 22.5 | DW95: 22.147 | DX95: -57.28947368 | EB95: -68167335 | EC95: 38483 | ED95: 328.57 | EE95: 2.43 | EF95: 0 | EG95: 0 | EH95: 1.532 | EI95: 1.179 | EL95: 40.31578947 | EM95: 39.96278947 | EN95: 17.81578947 | EP95: 16243 | ER95: 16243 | ES95: 330.24 | ET95: 4.1 | EU95: 27 | EV95: 59.9 | EW95: 1.580121704 | EX95: 1.227121704 | FA95: 41.5821501 | FB95: 35.5997013 | FC95: 1.266360628 | FE95: 6979 | FF95: 12648 | FG95: 19627 | FH95: 331.34 | FI95: 5.2 | FJ95: 0 | FK95: 15 | FL95: 1.564 | FM95: 1.211 | FP95: 41.15789474 | FQ95: 35.13199884 | FR95: -0.4242553646 | FT95: 8288 | FU95: 8752 | FV95: 17040 | GK95: 0
A96: 2024-01-01 | B96: 2024-01-01 | C96: 336 | D96: 327 | E96: 0.353 | F96: 9.64 | H96: 335.78 | J96: 331.63 | K96: 5.49 | N96: -0.353 | Q96: 0 | R96: -0.1086153846 | S96: 329.73 | T96: 3.59 | U96: 7.2 | V96: 1.129 | W96: 1.2 | Z96: =(V96/3.9)*100 -> 28.94871795 | AA96: 36.92307692 | AD96: 0 | AF96: 336 | AH96: 331.24 | AI96: 5.1 | AL96: 1.687 | AM96: 1.334 | AP96: 43.25641026 | AQ96: 41.04615385 | AR96: 14.30769231 | AT96: 7869166 | AU96: 3497356 | AV96: 63536 | AW96: 63536 | AY96: 332.48 | AZ96: 6.34 | BC96: 1.87 | BD96: 0.741 | BG96: 47.94871795 | BH96: 22.8 | BI96: 4.692307692 | BK96: 3441315 | BL96: 316550 | BM96: 76671 | BN96: 76671 | BP96: 336.13 | BQ96: 9.99 | BS96: 0 | BT96: 3.9 | BU96: 3.547 | BV96: 11.45808861 | BW96: 989978.8559 | BX96: 100 | BY96: 109.1384615 | BZ96: 52.05128205 | CB96: 8371894 | CC96: 7371484 | CD96: =(CB96+CC96)-(CB95+CC95) -> 88762 | CE96: 88762 | CF96: =SUM(BW96:BW276) -> 230913273.9 | CG96: 336.09 | CH96: 9.95 | CK96: 3.8 | CL96: -3.4 | CM96: 6.600258 | CN96: 570262.2912 | CO96: 100 | CP96: -98.6364955 | CQ96: 0 | CR96: -4.857830609 | CS96: 2798722 | CT96: 6393758 | CU96: 89841 | CV96: 89841 | CX96: 334.53 | CY96: 8.39 | DB96: 3.374 | DC96: 3.021 | DF96: 88.78947368 | DG96: 88.43647368 | DH96: -11.21052632 | DL96: =(DJ96+DK96)-(DJ95+DK95) -> 0 | DM96: 0 | DN96: 328.44 | DO96: 2.3 | DR96: 0.857 | DS96: 0.504 | DV96: 22.55263158 | DW96: 22.19963158 | DX96: -66.23684211 | DZ96: 7673725 | EB96: -60493610 | EC96: =EB96 -> -60493610 | ED96: 328.57 | EE96: 2.43 | EF96: 0 | EG96: 0 | EH96: 1.532 | EI96: 1.179 | EL96: 40.31578947 | EM96: 39.96278947 | EN96: 17.76315789 | EP96: 11310 | ER96: 11310 | ES96: 330.33 | ET96: 4.19 | EU96: 0 | EV96: 0 | EW96: 1.614807302 | EX96: 1.261807302 | FA96: 42.49492901 | FB96: 36.60595597 | FC96: 2.179139532 | FE96: 7994 | FF96: 14294 | FG96: 22288 | FH96: 331.39 | FI96: 5.25 | FJ96: 0 | FK96: 0 | FL96: 1.585 | FM96: 1.232 | FP96: 41.71052632 | FQ96: 35.74122425 | FR96: -0.7844026903 | FT96: 8857 | FU96: 7943 | FV96: 16800 | GK96: 0
A97: 2024-01-02 | B97: 2024-01-02 | C97: 336 | D97: 327 | E97: 0.353 | F97: 9.67 | G97: 19.2 | H97: 335.81 | J97: 331.61 | K97: 5.47 | N97: -0.353 | Q97: 0 | R97: -0.1086153846 | S97: 329.67 | T97: 3.53 | U97: 0 | V97: 1.12 | Z97: 28.71794872 | AA97: 0 | AD97: 0 | AF97: 336 | AH97: 331.18 | AI97: 5.04 | AL97: 1.618 | AM97: 1.265 | AP97: 41.48717949 | AQ97: 38.92307692 | AR97: 12.76923077 | AT97: 7884747 | AU97: 3513705 | AV97: 63663 | AW97: 63663 | AY97: 332.42 | AZ97: 6.28 | BC97: 1.98 | BD97: 0.86 | BG97: 50.76923077 | BH97: 26.46153846 | BI97: 9.282051282 | BK97: 3456543 | BL97: 340074 | BM97: 37684 | BN97: 37684 | BP97: 336.11 | BQ97: 9.97 | BS97: 0 | BT97: 3.9 | BU97: 3.547 | BV97: 8.918384162 | BW97: 770548.3916 | BX97: 100 | BY97: 109.1384615 | BZ97: 49.23076923 | CB97: 8381681 | CC97: 7388802 | CD97: =CB97+CC97-(CB96+CC96) -> 27105 | CE97: 27105 | CG97: 336.1 | CH97: 9.96 | CK97: 3.8 | CL97: 3.8 | CM97: 7.730314231 | CN97: 667899.1496 | CO97: 100 | CP97: 110.2407891 | CQ97: 0 | CR97: =CM97-BV97 -> -1.18806993 | CS97: 2812574 | CT97: 6419568 | CU97: 39662 | CV97: 39662 | CX97: 334.7 | CY97: 8.56 | DB97: 3.391 | DC97: 3.038 | DF97: 89.23684211 | DG97: 88.88384211 | DH97: -10.76315789 | DI97: =DD97-CM97 ->  | DL97: 0 | DM97: 0 | DN97: 328.43 | DO97: 2.29 | DR97: 0.855 | DS97: 0.502 | DV97: 22.5 | DW97: 22.147 | DX97: -66.73684211 | DY97: =DT97-DC97 ->  | DZ97: 7680364 | EB97: -60486971 | EC97: -60486971 | ED97: 328.44 | EE97: 2.3 | EF97: 0 | EG97: 0 | EH97: 1.529 | EI97: 1.176 | EL97: 40.23684211 | EM97: 39.88384211 | EN97: 17.73684211 | EP97: 15384 | ER97: 15384 | ES97: =336-(9.86-ET97) -> 330.39 | ET97: 4.25 | EU97: 50 | EV97: 0 | EW97: 1.637931034 | EX97: 1.284931034 | FA97: 43.10344828 | FB97: 37.27679241 | FC97: 2.866606171 | FE97: 7994 | FF97: 14294 | FG97: 22288 | FH97: 331.41 | FI97: 5.27 | FJ97: 25.3 | FK97: 27 | FL97: 1.595 | FM97: 1.242 | FP97: 41.97368421 | FQ97: 36.03133159 | FR97: -1.129764065 | FT97: 7715 | FU97: 11485 | FV97: 19200 | GK97: 0
A98: 2024-01-03 | B98: 2024-01-03 | C98: 336 | D98: 327 | E98: 0.353 | F98: 9.71 | G98: 22.3 | H98: 335.85 | J98: 331.58 | K98: 5.44 | N98: -0.353 | Q98: 0 | R98: -0.1086153846 | S98: 329.62 | T98: 3.48 | U98: 12.4 | V98: 1.109 | Z98: 28.43589744 | AA98: 0 | AD98: 0 | AF98: 336 | AH98: 331.11 | AI98: 4.97 | AJ98: 40 | AL98: 1.605 | AM98: 1.252 | AP98: 41.15384615 | AQ98: =(AM98/3.25)*100 -> 38.52307692 | AR98: 12.71794872 | AT98: 7899317 | AU98: 3530868 | AV98: 60710 | AW98: 60710 | AY98: 332.34 | AZ98: 6.2 | BA98: 3.5 | BB98: 11 | BC98: 2 | BD98: 0.891 | BG98: 51.28205128 | BH98: 27.41538462 | BI98: 10.12820513 | BK98: 3431440 | BL98: 364109 | BM98: 77310 | BN98: 77310 | BP98: 336.21 | BQ98: 10.07 | BR98: 67 | BS98: 8 | BT98: 3.9 | BU98: 3.547 | BV98: =((BP98-336)^(3/2))*1.838*133 -> 23.52480814 | BW98: 2032543.423 | BX98: 100 | BY98: 109.1384615 | BZ98: 48.71794872 | CB98: 8402015 | CC98: 7403788 | CD98: 35320 | CE98: 35320 | CG98: 336.07 | CH98: 9.93 | CK98: 3.8 | CL98: -8.6 | CM98: =((CG98-336)^(3/2))*1.838*133 -> 4.527351437 | CN98: 391163.1642 | CO98: 100 | CP98: -249.4923122 | CQ98: 0 | CR98: =CM98-BV98 -> -18.9974567 | CS98: 2826817 | CT98: 6446835 | CU98: 41510 | CV98: 41510 | CX98: 334.85 | CY98: 8.71 | CZ98: 5.2 | DA98: 9 | DB98: 3.406 | DC98: 3.053 | DD98: =((CX98-336)^(3/2))*1.838*133 ->  | DF98: 89.63157895 | DG98: 89.27857895 | DH98: -10.36842105 | DI98: =DD98-CM98 ->  | DL98: 0 | DM98: 0 | DN98: 328.42 | DO98: 2.28 | DR98: 0.852 | DS98: 0.499 | DT98: =((DN98-336)^(3/2))*1.838*133 ->  | DV98: 22.42105263 | DW98: 22.06805263 | DX98: -67.21052632 | DY98: =DT98-DC98 ->  | DZ98: 7694558 | EB98: -60472777 | EC98: -60472777 | ED98: 328.48 | EE98: 2.34 | EF98: 7.2 | EG98: 0 | EH98: 1.531 | EI98: 1.178 | EJ98: =((ED98-336)^(3/2))*1.838*133 ->  | EL98: 40.28947368 | EM98: 39.93647368 | EN98: 17.86842105 | EP98: 12160 | ER98: 12160 | ES98: 330.54 | ET98: 4.4 | EU98: 48 | EV98: 0 | EW98: 1.695740365 | EX98: 1.342740365 | EY98: =((ES98-336)^(3/2))*1.838*133 ->  | FA98: 44.62474645 | FB98: 38.95388353 | FC98: 4.335272766 | FE98: 7575 | FF98: 13867 | FG98: 21442 | FH98: 331.41 | FI98: 5.27 | FJ98: 3.7 | FK98: 0 | FL98: 1.595 | FM98: 1.242 | FN98: =((FH98-336)^(3/2))*1.838*133 ->  | FP98: 41.97368421 | FQ98: 36.03133159 | FR98: -2.65106224 | FT98: 6975 | FU98: 9365 | FV98: 16340 | GK98: 0
A99: 2024-01-04 | B99: 2024-01-04 | C99: 336 | D99: 327 | E99: 0.353 | F99: 9.96 | H99: 336.1 | J99: 331.58 | K99: 5.44 | N99: -0.353 | Q99: 0 | R99: -0.1086153846 | S99: 329.58 | T99: 3.44 | U99: 9.2 | V99: 1.1 | Z99: 28.20512821 | AA99: 0 | AD99: 0 | AF99: 336 | AH99: 331.39 | AI99: 5.25 | AJ99: 21 | AK99: 18 | AL99: 1.695 | AM99: 1.342 | AP99: =(AL99/3.9)*100 -> 43.46153846 | AQ99: 41.29230769 | AR99: 15.25641026 | AT99: 7913798 | AU99: 3545364 | AV99: 61176 | AW99: 61176 | AY99: 332.29 | AZ99: 6.15 | BA99: 24.5 | BB99: 5 | BC99: 1.95 | BD99: 0.85 | BG99: 50 | BH99: 26.15384615 | BI99: 6.538461538 | BK99: 3486287 | BL99: 387640 | BM99: 116836 | BN99: 116836 | BP99: 336.13 | BQ99: 9.99 | BS99: 0 | BT99: 3.9 | BU99: 3.547 | BV99: 11.45808861 | BW99: 989978.8559 | BX99: 100 | BY99: 109.1384615 | BZ99: 50 | CB99: 8426240 | CC99: 7419524 | CD99: 39961 | CE99: 39961 | CG99: =336-(9.86-CH99) -> 336.07 | CH99: 9.93 | CJ99: 5 | CK99: 3.8 | CL99: -5.4 | CM99: 4.527351437 | CN99: 391163.1642 | CO99: 100 | CP99: =(CL99/3.447)*100 -> -156.6579634 | CQ99: 0 | CR99: =CM99-BV99 -> -6.930737172 | CS99: 2840466 | CT99: 6472148 | CU99: 38962 | CV99: 38962 | CX99: 335.61 | CY99: 9.47 | CZ99: 110 | DA99: 57.2 | DB99: 3.792 | DC99: 3.439 | DD99: =((CX99-336)^(3/2))*1.838*133 ->  | DF99: 99.78947368 | DG99: 99.43647368 | DH99: -0.2105263158 | DI99: =DD99-CM99 ->  | DL99: 0 | DM99: 0 | DN99: 328.48 | DO99: 2.34 | DP99: 7 | DQ99: 11 | DR99: 0.87 | DS99: 0.517 | DT99: =((DN99-336)^(3/2))*1.838*133 ->  | DV99: 22.89473684 | DW99: 22.54173684 | DX99: -76.89473684 | DY99: =DT99-DC99 ->  | DZ99: 7694558 | EA99: 4478419 | EB99: -55994358 | EC99: -55994358 | ED99: 328.38 | EE99: 2.24 | EF99: 92 | EG99: 27 | EH99: 1.519 | EI99: 1.166 | EJ99: =((ED99-336)^(3/2))*1.838*133 ->  | EL99: 39.97368421 | EM99: 39.62068421 | EN99: 17.07894737 | EP99: 14121 | ER99: 14121 | ES99: 330.77 | ET99: 4.63 | EU99: 19 | EV99: 20.5 | EW99: 1.784381339 | EX99: 1.431381339 | EY99: =((ES99-336)^(3/2))*1.838*133 ->  | FA99: 46.95740365 | FB99: 41.52542323 | FC99: 6.983719441 | FE99: 8151 | FF99: 17314 | FG99: 25465 | FH99: 331.41 | FI99: 5.27 | FJ99: 0 | FK99: 0 | FL99: 1.595 | FM99: 1.242 | FN99: =((FH99-336)^(3/2))*1.838*133 ->  | FP99: 41.97368421 | FQ99: 36.03133159 | FR99: -4.983719441 | FT99: 8346 | FU99: 10254 | FV99: 18600 | GK99: 0
A100: 2024-01-05 | B100: 2024-01-05 | C100: 336 | D100: 327 | E100: 0.353 | F100: 9.93 | H100: 336.07 | J100: 331.59 | K100: 5.45 | N100: -0.353 | Q100: 0 | R100: -0.1086153846 | S100: 329.59 | T100: 3.45 | U100: 27.8 | V100: 1.095 | Z100: 28.07692308 | AA100: 0 | AD100: 0 | AF100: 336 | AH100: 332.19 | AI100: 6.05 | AK100: 29.3 | AL100: 1.92 | AM100: =AL100-E100 -> 1.567 | AP100: 49.23076923 | AQ100: 48.21538462 | AR100: 21.15384615 | AT100: 7929602 | AU100: 3561759 | AV100: 62124 | AW100: 62124 | AY100: 332.22 | AZ100: 6.08 | BA100: 6.3 | BB100: 8.5 | BC100: 1.947 | BD100: 0.852 | BG100: 49.92307692 | BH100: 26.21538462 | BI100: 0.6923076923 | BK100: 3500467 | BL100: 411918 | BM100: 73715 | BN100: 73715 | BP100: 336.11 | BQ100: 9.97 | BR100: 2.3 | BS100: 0 | BT100: 3.9 | BU100: 3.547 | BV100: 8.918384162 | BW100: 770548.3916 | BX100: 100 | BY100: 109.1384615 | BZ100: 50.07692308 | CB100: 8452792 | CC100: 7435964 | CD100: 42992 | CE100: 42992 | CG100: 336.1 | CH100: 9.96 | CJ100: 24 | CK100: 3.8 | CL100: -24 | CM100: 7.730314231 | CN100: 667899.1496 | CO100: 100 | CP100: -696.2576153 | CQ100: 0 | CR100: =CM100-BV100 -> -1.18806993 | CS100: 2853985 | CT100: 6494983 | CU100: 36354 | CV100: 36354 | CX100: 336 | CY100: 9.86 | CZ100: 25.1 | DA100: 22 | DB100: 3.8 | DC100: 3.447 | DD100: 0 | DE100: 0 | DF100: 100 | DG100: 99.647 | DH100: 0 | DI100: =DD100-CM100 -> -7.730314231 | DL100: 0 | DM100: 0 | DN100: 328.58 | DO100: 2.44 | DP100: 14 | DQ100: 1 | DR100: 0.9 | DS100: 0.547 | DV100: 23.68421053 | DW100: 23.33121053 | DX100: -76.31578947 | DY100: =DT100-DC100 ->  | DZ100: 7703230 | EA100: 2694318 | EB100: -57769787 | EC100: -57769787 | ED100: 328.34 | EE100: 2.2 | EF100: 6 | EG100: 7 | EH100: 1.511 | EI100: 1.158 | EL100: 39.76315789 | EM100: 39.41015789 | EN100: 16.07894737 | EP100: 12058 | ER100: 12058 | ES100: 331.68 | ET100: 5.54 | EU100: 7 | EV100: 6.9 | EW100: 2.135091278 | EX100: 1.782091278 | FA100: 56.18661258 | FB100: 51.69977598 | FC100: 16.42345468 | FE100: 9181 | FF100: 19768 | FG100: 28949 | FH100: 331.42 | FI100: 5.28 | FJ100: 23 | FK100: 5 | FL100: 1.598 | FM100: 1.245 | FP100: 42.05263158 | FQ100: 36.11836379 | FR100: -14.133981 | FT100: 8964 | FU100: 12396 | FV100: 21360 | GK100: 0
A101: 2024-01-06 | B101: 2024-01-06 | C101: 336 | D101: 327 | E101: 0.353 | F101: 10.1 | G101: 32.7 | H101: 336.24 | J101: 332.89 | K101: 6.75 | N101: -0.353 | Q101: 0 | R101: -0.1086153846 | S101: 329.57 | T101: 3.43 | Z101: 0 | AA101: 0 | AD101: 0 | AF101: 336 | AH101: 332.43 | AI101: 6.29 | AJ101: 122 | AL101: 1.975 | AM101: 1.622 | AP101: 50.64102564 | AQ101: 49.90769231 | AR101: 50.64102564 | AT101: 7944699 | AU101: 3576587 | AV101: 58685 | AW101: 58685 | AY101: 332.18 | AZ101: 6.04 | BA101: 36.5 | BC101: 1.943 | BD101: 1.943 | BG101: 49.82051282 | BH101: 59.78461538 | BI101: -0.8205128205 | BK101: 3515139 | BL101: 432503 | BM101: 49593 | BN101: 49593 | BP101: 336.1 | BQ101: 9.96 | BS101: 0 | BT101: 3.9 | BU101: 3.547 | BV101: 7.730314231 | BW101: 667899.1496 | BX101: 100 | BY101: 109.1384615 | BZ101: 50.17948718 | CB101: 8477038 | CC101: 7453270 | CD101: 41552 | CE101: 41552 | CG101: 336.11 | CH101: 9.97 | CI101: 7 | CJ101: 15 | CK101: 3.8 | CL101: 3.8 | CM101: 8.918384162 | CN101: 770548.3916 | CO101: 100 | CP101: 110.2407891 | CQ101: 0 | CR101: 1.18806993 | CS101: 2865093 | CT101: 6522382 | CU101: 38507 | CV101: 38507 | CX101: 336.13 | CY101: 9.99 | CZ101: 60 | DA101: 16 | DB101: 3.8 | DC101: 3.447 | DD101: 11.45808861 | DE101: 989978.8559 | DF101: 100 | DG101: 99.647 | DH101: 0 | DI101: 2.539704448 | DL101: 0 | DM101: 0 | DN101: 328.57 | DO101: 2.43 | DR101: 0.896 | DS101: 0.543 | DV101: 23.57894737 | DW101: 23.22594737 | DX101: -76.42105263 | DZ101: 7709180 | EA101: 2702024 | EB101: -57756131 | EC101: -57756131 | ED101: 328.29 | EE101: 2.15 | EF101: 0 | EG101: 0 | EH101: 1.491 | EI101: 1.138 | EL101: 39.23684211 | EM101: 38.88384211 | EN101: 15.65789474 | EP101: 10658 | ER101: 10658 | ES101: 332.18 | ET101: 6.04 | EU101: 0 | EV101: 60.1 | EW101: 2.327789047 | EX101: 1.974789047 | FA101: 61.25760649 | FB101: 57.29007968 | FC101: 22.02076439 | FE101: 9467 | FF101: 19971 | FG101: =SUM(FE101+FF101) -> 29438 | FH101: 331.45 | FI101: 5.31 | FJ101: 0 | FK101: 0 | FL101: 1.629 | FM101: 1.276 | FP101: 42.86842105 | FQ101: 37.01769655 | FR101: -18.38918544 | FT101: 7753 | FU101: 11387 | FV101: 19140 | GK101: 0
A102: 2024-01-07 | B102: 2024-01-07 | C102: 336 | D102: 327 | E102: 0.353 | F102: 9.94 | H102: 336.08 | J102: 333.35 | K102: 7.21 | N102: -0.353 | Q102: 0 | R102: -0.1086153846 | S102: 329.6 | T102: 3.46 | V102: 1.05 | Z102: 26.92307692 | AA102: 0 | AD102: 0 | AF102: 336 | AH102: 333.04 | AI102: 6.9 | AL102: 2.3 | AM102: 1.947 | AP102: 58.97435897 | AQ102: 59.90769231 | AR102: 32.05128205 | AT102: 7954462 | AU102: 3595584 | AV102: 60125 | AW102: 60125 | AY102: 332.15 | AZ102: 6.01 | BA102: 35.3 | BB102: 2.5 | BC102: 1.939 | BD102: 0.889 | BG102: 49.71794872 | BH102: 27.35384615 | BI102: -9.256410256 | BK102: 3529475 | BL102: 432503 | BM102: 77384 | BN102: 77384 | BP102: 336.11 | BQ102: 9.97 | BS102: 0 | BT102: 3.9 | BU102: 3.547 | BV102: 8.918384162 | BW102: 770548.3916 | BX102: 100 | BY102: 109.1384615 | BZ102: 50.28205128 | CB102: 8500235 | CC102: 7466930 | CD102: 36857 | CE102: 36857 | CG102: 336.09 | CH102: 9.95 | CI102: 41 | CJ102: 3.5 | CK102: 3.8 | CL102: 3.8 | CM102: 6.600258 | CN102: 570262.2912 | CO102: 100 | CP102: 110.2407891 | CQ102: 0 | CR102: -2.318126162 | CS102: 2875332 | CT102: 6549754 | CU102: 37611 | CV102: 37611 | CX102: 336.16 | CY102: 10.02 | CZ102: 30 | DA102: 13 | DB102: 3.8 | DC102: 3.447 | DD102: 15.645056 | DE102: 1351732.838 | DF102: 100 | DG102: 99.647 | DH102: 0 | DI102: 9.044798 | DL102: 0 | DM102: 0 | DN102: 328.81 | DO102: 2.67 | DR102: 0.97 | DS102: 0.617 | DV102: 25.52631579 | DW102: 25.17331579 | DX102: -74.47368421 | DZ102: 7713617 | EB102: -60453718 | EC102: -60453718 | ED102: 328.47 | EE102: 2.33 | EF102: 38 | EG102: 42.2 | EH102: 1.529 | EI102: 1.176 | EL102: 40.23684211 | EM102: 39.88384211 | EN102: 14.71052632 | EP102: 12533 | ER102: 12533 | ES102: 332.34 | ET102: 6.2 | EU102: 0 | EV102: 0 | EW102: 2.389452333 | EX102: 2.036452333 | FA102: 62.88032454 | FB102: 59.07897687 | FC102: 22.64348244 | FE102: 10046 | FF102: 21377 | FG102: 31423 | FH102: 331.48 | FI102: 5.34 | FJ102: 0 | FK102: 0 | FL102: 1.658 | FM102: 1.305 | FP102: 43.63157895 | FQ102: 37.85900783 | FR102: -19.2487456 | FT102: 9329 | FU102: 12840 | FV102: 22169 | GK102: 0
A103: 2024-01-08 | B103: 2024-01-08 | C103: 336 | D103: 327 | E103: 0.353 | F103: 9.94 | H103: 336.08 | J103: 333.44 | K103: 7.3 | N103: -0.353 | Q103: 0 | R103: -0.1086153846 | S103: 330.77 | T103: 4.63 | U103: 45 | Z103: 0 | AA103: 0 | AD103: 0 | AF103: 336 | AH103: 333.13 | AI103: 6.99 | AJ103: 7 | AL103: 2.33 | AM103: 1.977 | AP103: 59.74358974 | AQ103: 60.83076923 | AR103: 59.74358974 | AT103: 7970508 | AU103: 3610903 | AV103: 58865 | AW103: 58865 | AY103: 332.14 | AZ103: 6 | BC103: 1.936 | BD103: 1.936 | BG103: 49.64102564 | BH103: 59.56923077 | BI103: -10.1025641 | BK103: 3543578 | BL103: 481448 | BM103: 95277 | BN103: 95277 | BP103: 336.1 | BQ103: 9.96 | BS103: 0 | BT103: 3.9 | BU103: 3.547 | BV103: 7.730314231 | BW103: 667899.1496 | BX103: 100 | BY103: 109.1384615 | BZ103: 50.35897436 | CB103: 8521434 | CC103: 7484134 | CD103: =CB104+CC104-(CB102+CC102) -> 80722 | CE103: =CD103 -> 80722 | CG103: 336.2 | CH103: 10.06 | CI103: 62 | CJ103: 29 | CK103: 3.8 | CL103: -41.2 | CM103: 21.86463045 | CN103: 1889104.071 | CO103: 100 | CP103: -1195.24224 | CQ103: 0 | CR103: 14.13431622 | CS103: 2889639 | CT103: 6576773 | CU103: 41326 | CV103: 41326 | CX103: 336.13 | CY103: 9.99 | CZ103: 11 | DA103: 9 | DB103: 3.8 | DC103: 3.447 | DD103: 11.45808861 | DE103: 989978.8559 | DF103: 100 | DG103: 99.647 | DH103: 0 | DI103: -10.40654185 | DL103: 0 | DM103: 0 | DN103: 329.06 | DO103: 2.92 | DR103: 1.015 | DS103: 0.662 | DU103: =DT103*24*3600 ->  | DV103: 26.71052632 | DW103: 26.35752632 | DX103: -73.28947368 | DZ103: 7718273 | EB103: -60449062 | EC103: -60449062 | ED103: 328.58 | EE103: 2.44 | EF103: 0 | EG103: 0 | EH103: 1.534 | EI103: 1.181 | EL103: 40.36842105 | EM103: 40.01542105 | EN103: 13.65789474 | EP103: 13565 | EQ103: 3796 | ER103: 17361 | ES103: 332.5 | ET103: 6.36 | EU103: 0 | EV103: 0 | EW103: 2.451115619 | EX103: 2.098115619 | FA103: 64.5030426 | FB103: 60.86787405 | FC103: 24.13462154 | FE103: 10127 | FF103: 21556 | FG103: 31683 | FH103: 331.52 | FI103: 5.38 | FJ103: 0 | FK103: 7.3 | FL103: 1.672 | FM103: 1.319 | FP103: 44 | FQ103: 38.26515811 | FR103: -20.5030426 | FT103: 9070 | FU103: 12530 | FV103: 21600 | GK103: 0
A104: 2024-01-09 | B104: 2024-01-09 | C104: 336 | D104: 327 | E104: 0.353 | F104: 9.92 | H104: 336.06 | J104: 333.72 | K104: 7.58 | N104: -0.353 | Q104: 0 | R104: -0.1086153846 | S104: 330.99 | T104: 4.85 | U104: 14 | Z104: 0 | AA104: 0 | AD104: 0 | AF104: 336 | AH104: 333.14 | AI104: 7 | AL104: 2.332 | AM104: 1.979 | AP104: 59.79487179 | AQ104: 60.89230769 | AR104: 59.79487179 | AT104: 7986287 | AU104: 3622624 | AV104: 49529 | AW104: 49529 | AY104: 332.29 | AZ104: 6.15 | BC104: 1.948 | BD104: 1.948 | BG104: 49.94871795 | BH104: 59.93846154 | BI104: -9.846153846 | BK104: 3557718 | BL104: 499537 | BM104: 68080 | BN104: 68080 | BP104: 336.1 | BQ104: 9.96 | BS104: 0 | BT104: 3.9 | BU104: 3.547 | BV104: 7.730314231 | BW104: 667899.1496 | BX104: 100 | BY104: 109.1384615 | BZ104: 50.05128205 | CB104: 8545748 | CC104: 7502139 | CD104: =CB105+CC105-(CB103+CC103) -> 83326 | CE104: 83326 | CG104: 336.26 | CH104: 10.12 | CI104: 11 | CJ104: 13 | CK104: 3.8 | CL104: -10.2 | CM104: 32.40836862 | CN104: 2800083.049 | CO104: 100 | CP104: -295.9094865 | CQ104: 0 | CR104: 24.67805439 | CS104: 2900353 | CT104: 6596665 | CU104: 30606 | CV104: 30606 | CX104: 336.13 | CY104: 9.99 | CZ104: 6 | DA104: 9 | DB104: 3.8 | DC104: 3.447 | DD104: 11.45808861 | DE104: 989978.8559 | DF104: 100 | DG104: 99.647 | DH104: 0 | DI104: -20.95028001 | DL104: 0 | DM104: 0 | DN104: 329.32 | DO104: 3.18 | DP104: 17.3 | DQ104: 18.3 | DR104: 1.105 | DS104: 0.752 | DV104: 29.07894737 | DW104: 28.72594737 | DX104: -70.92105263 | DZ104: 7727966 | EB104: -60439369 | EC104: -60439369 | ED104: 328.81 | EE104: 2.67 | EF104: 34 | EG104: 7 | EH104: 1.578 | EI104: 1.225 | EL104: 41.52631579 | EM104: 41.17331579 | EN104: 12.44736842 | EP104: 8698 | EQ104: 5520 | ER104: 14218 | ES104: 332.49 | ET104: 6.35 | EU104: 11 | EV104: 0 | EW104: 2.447261663 | EX104: 2.094261663 | FA104: 64.40162272 | FB104: 60.75606798 | FC104: 22.87530693 | FE104: 10614 | FF104: 20318 | FG104: 30932 | FH104: 331.64 | FI104: 5.5 | FJ104: 0 | FK104: 0 | FL104: 1.725 | FM104: 1.372 | FP104: =(FL104/3.8)*100 -> 45.39473684 | FQ104: 39.80272701 | FR104: -19.00688588 | FT104: 8299 | FU104: 10901 | FV104: 19200 | GK104: 0
A105: 2024-01-10 | B105: 2024-01-10 | C105: 336 | D105: 327 | E105: 0.353 | F105: 9.92 | G105: 10 | H105: 336.06 | J105: 333.96 | K105: 7.82 | N105: -0.353 | Q105: 0 | R105: -0.1086153846 | S105: 331.04 | T105: 4.9 | U105: 6.3 | V105: 1.53 | Z105: 39.23076923 | AA105: 0 | AD105: 0 | AF105: 336 | AH105: 333.24 | AI105: 7.1 | AK105: 5 | AL105: 2.35 | AM105: 1.997 | AP105: 60.25641026 | AQ105: 61.44615385 | AR105: 21.02564103 | AT105: 8000605 | AU105: 3630335 | AV105: =AT105+AU105-(AT104+AU104) -> 22029 | AW105: 22029 | AY105: 332.8 | AZ105: 6.66 | BC105: 1.988 | BD105: 0.458 | BG105: 50.97435897 | BH105: 14.09230769 | BI105: -9.282051282 | BK105: 3571724 | BL105: 521382 | BM105: =BK105+BL105-(BK104+BL104) -> 35851 | BN105: 35851 | BP105: 336.09 | BQ105: 9.95 | BS105: 0 | BT105: 3.9 | BU105: 3.547 | BV105: 6.600258 | BW105: 570262.2912 | BX105: 100 | BY105: 109.1384615 | BZ105: 49.02564103 | CB105: 8568706 | CC105: 7520188 | CD105: =CB105+CC105-(CB104+CC104) -> 41007 | CE105: 41007 | CG105: 336.13 | CH105: 9.99 | CI105: 15 | CK105: 3.8 | CL105: -2.5 | CM105: 11.45808861 | CN105: 989978.8559 | CO105: 100 | CP105: =(CL105/3.447)*100 -> -72.52683493 | CQ105: 0 | CR105: 4.857830609 | CS105: 2909474 | CT105: 6611852 | CU105: 24308 | CV105: 24308 | CX105: 336.13 | CY105: 9.99 | CZ105: 8 | DA105: 2.4 | DB105: 3.8 | DC105: 3.447 | DD105: 11.45808861 | DE105: 989978.8559 | DF105: 100 | DG105: 99.647 | DH105: 0 | DI105: 0 | DL105: 0 | DM105: 0 | DN105: 329.48 | DO105: 3.34 | DP105: 11 | DQ105: 25 | DR105: 1.14 | DS105: 0.787 | DV105: 30 | DW105: 29.647 | DX105: -70 | DZ105: 7742608 | EB105: -60424727 | EC105: -60424727 | ED105: 328.84 | EE105: 2.7 | EF105: 60 | EG105: 37 | EH105: 1.588 | EI105: 1.235 | EL105: 41.78947368 | EM105: 41.43647368 | EN105: 11.78947368 | EP105: 12382 | EQ105: 13950 | ER105: 26332 | ES105: 332.92 | ET105: 6.78 | EU105: 0 | EV105: 70 | EW105: 2.612981744 | EX105: 2.259981744 | FA105: 68.76267748 | FB105: 65.56372917 | FC105: 26.9732038 | FE105: 3038 | FF105: 8353 | FG105: 11391 | FH105: 331.77 | FI105: 5.63 | FJ105: 28.2 | FK105: 10 | FL105: 1.78 | FM105: 1.427 | FP105: 46.84210526 | FQ105: 41.39831738 | FR105: -21.92057222 | FT105: 6821 | FU105: 10954 | FV105: 17775 | GK105: 0
A106: 2024-01-11 | B106: 2024-01-11 | C106: 336 | D106: 327 | E106: 0.353 | F106: 9.95 | G106: 16.2 | H106: 336.09 | J106: 334.04 | K106: 7.9 | N106: -0.353 | Q106: 0 | R106: -0.1086153846 | S106: 331.17 | T106: 5.03 | U106: 34 | V106: 1.561 | Z106: 40.02564103 | AA106: 0 | AD106: 0 | AF106: 336 | AH106: 333.24 | AI106: 7.1 | AJ106: 7 | AL106: 2.35 | AM106: 1.997 | AP106: 60.25641026 | AQ106: 61.44615385 | AR106: 20.23076923 | AT106: 8015753 | AU106: 3643728 | AV106: 28541 | AW106: 28541 | AY106: 332.89 | AZ106: 6.75 | BC106: 1.999 | BD106: 0.438 | BG106: 51.25641026 | BH106: 13.47692308 | BI106: -9 | BK106: 3585445 | BL106: 543585 | BM106: 35924 | BN106: 35924 | BP106: 336.09 | BQ106: 9.95 | BS106: 3 | BT106: 3.9 | BU106: 3.547 | BV106: 6.600258 | BW106: 570262.2912 | BX106: 100 | BY106: 109.1384615 | BZ106: 48.74358974 | CB106: 8590878 | CC106: 7536165 | CD106: 38149 | CE106: 38149 | CG106: 336.12 | CH106: 9.98 | CI106: 22 | CJ106: 6.3 | CK106: 3.8 | CL106: =CK106-0.353 -> 3.447 | CM106: 10.16176195 | CN106: 877976.2329 | CO106: 100 | CP106: 100 | CQ106: 0 | CR106: 3.561503955 | CS106: 2921545 | CT106: 6637259 | CU106: 37478 | CV106: 37478 | CX106: 336.1 | CY106: 9.96 | DB106: 3.8 | DC106: 3.447 | DD106: 7.730314231 | DE106: 667899.1496 | DF106: 100 | DG106: 99.647 | DH106: 0 | DI106: -2.431447723 | DL106: 0 | DM106: 0 | DN106: 329.56 | DO106: 3.42 | DR106: 1.175 | DS106: 0.822 | DV106: 30.92105263 | DW106: 30.56805263 | DX106: -69.07894737 | DZ106: 7757078 | EB106: -60410257 | EC106: -60410257 | ED106: 329.44 | EE106: 3.3 | EF106: 48 | EG106: 15 | EH106: 1.59 | EI106: 1.237 | EL106: 41.84210526 | EM106: 41.48910526 | EN106: 10.92105263 | EP106: 11977 | EQ106: 14622 | ER106: 26599 | ES106: 332.92 | ET106: 6.78 | EU106: 0 | EV106: 30 | EW106: 2.612981744 | EX106: 2.259981744 | FA106: 68.76267748 | FB106: 65.56372917 | FC106: 26.92057222 | FE106: 5977 | FF106: 13607 | FG106: 19584 | FH106: 331.98 | FI106: 5.84 | FJ106: 0 | FK106: 0 | FL106: 1.81 | FM106: 1.457 | FP106: 47.63157895 | FQ106: 42.2686394 | FR106: -21.13109854 | FT106: 8354 | FU106: 10606 | FV106: 18960 | GK106: 0
A107: 2024-01-12 | B107: 2024-01-12 | C107: 336 | D107: 327 | E107: 0.353 | F107: 9.95 | G107: 12.3 | H107: 336.09 | J107: 334.08 | K107: 7.94 | N107: -0.353 | Q107: 0 | R107: -0.1086153846 | S107: 331.21 | T107: 5.07 | U107: 46 | V107: 1.6 | Z107: 41.02564103 | AA107: 0 | AD107: 0 | AF107: 336 | AH107: 334.15 | AI107: 8.01 | AJ107: 75 | AK107: 24.4 | AL107: 2.895 | AM107: 2.542 | AP107: 74.23076923 | AQ107: 78.21538462 | AR107: 33.20512821 | AT107: 8032098 | AU107: 3661250 | AV107: 33867 | AW107: 33867 | AY107: 333.03 | AZ107: 6.89 | BC107: 2.015 | BD107: 0.415 | BG107: 51.66666667 | BH107: 12.76923077 | BI107: -22.56410256 | BK107: 3598004 | BL107: 562041 | BM107: 31015 | BN107: 31015 | BP107: 336.11 | BQ107: 9.97 | BR107: 24 | BS107: 11 | BT107: 3.9 | BU107: 3.547 | BV107: 8.918384162 | BW107: 770548.3916 | BX107: 100 | BY107: 109.1384615 | BZ107: 48.33333333 | CB107: 8615646 | CC107: 7553866 | CD107: 42469 | CE107: 42469 | CG107: 336.11 | CH107: 9.97 | CJ107: 3.2 | CK107: 3.8 | CL107: 3.447 | CM107: 8.918384162 | CN107: 770548.3916 | CO107: 100 | CP107: 100 | CQ107: 0 | CR107: 0 | CS107: 2932463 | CT107: 6648457 | CU107: 22116 | CV107: 22116 | CX107: 336.13 | CY107: 9.99 | CZ107: 13 | DB107: 3.8 | DC107: 3.447 | DD107: 11.45808861 | DE107: 989978.8559 | DF107: 100 | DG107: 99.647 | DH107: 0 | DI107: 2.539704448 | DL107: 0 | DM107: 0 | DN107: 329.69 | DO107: 3.55 | DR107: 1.19 | DS107: 0.837 | DV107: 31.31578947 | DW107: 30.96278947 | DX107: -68.68421053 | DZ107: 7771895 | EB107: -60395440 | EC107: -60395440 | ED107: 329.7 | EE107: 3.56 | EF107: 14 | EG107: 0 | EH107: 1.593 | EI107: 1.24 | EL107: 41.92105263 | EM107: 41.56805263 | EN107: 10.60526316 | EP107: 10350 | EQ107: 16124 | ER107: 26474 | ES107: 334.57 | ET107: 8.43 | EU107: 91 | EV107: 0 | EW107: =(ET107*3.8)/9.86 -> 3.248884381 | EX107: 2.895884381 | FA107: 85.4969574 | FB107: 84.0117314 | FC107: 43.57590477 | FG107: 0 | FH107: 332.19 | FI107: 6.05 | FJ107: 0 | FK107: 5 | FL107: 1.928 | FM107: 1.575 | FP107: 50.73684211 | FQ107: 45.69190601 | FR107: -34.7601153 | FT107: 8261 | FU107: 10459 | FV107: 18720 | GK107: 0
A108: 2024-01-13 | B108: 2024-01-13 | C108: 336 | D108: 327 | E108: 0.353 | F108: 9.94 | H108: 336.08 | J108: 334.14 | K108: 8 | N108: -0.353 | Q108: 0 | R108: -0.1086153846 | S108: 332.66 | T108: 6.52 | U108: 0 | V108: 2.15 | Z108: 55.12820513 | AA108: 0 | AD108: 0 | AF108: 336 | AH108: 335.85 | AI108: 9.71 | AJ108: 93 | AK108: 89 | AL108: 3.65 | AM108: 3.297 | AP108: 93.58974359 | AQ108: 101.4461538 | AR108: 38.46153846 | AT108: 8044392 | AU108: 3672326 | AV108: 23370 | AW108: 23370 | AY108: 333.34 | AZ108: 7.2 | BC108: 2.121 | BD108: -0.029 | BG108: 54.38461538 | BH108: -0.8923076923 | BI108: -39.20512821 | BK108: 3610747 | BL108: 582114 | BM108: 32816 | BN108: 32816 | BP108: 336.09 | BQ108: 9.95 | BR108: 9 | BS108: 11 | BT108: 3.9 | BU108: 3.547 | BV108: 6.600258 | BW108: 570262.2912 | BX108: 100 | BY108: 109.1384615 | BZ108: 45.61538462 | CB108: 7571906 | CC108: 8639606 | CD108: 42000 | CE108: 42000 | CG108: 336.12 | CH108: 9.98 | CI108: 10 | CJ108: 4 | CK108: 3.8 | CL108: 3.447 | CM108: 10.16176195 | CN108: 877976.2329 | CO108: 100 | CP108: 100 | CQ108: 0 | CR108: 3.561503955 | CS108: 2949795 | CT108: 6661013 | CU108: 29888 | CV108: 29888 | CX108: 336.13 | CY108: 9.99 | CZ108: 17 | DB108: 3.8 | DC108: 3.447 | DD108: 11.45808861 | DE108: 989978.8559 | DF108: 100 | DG108: 99.647 | DH108: 0 | DI108: 1.296326655 | DL108: 0 | DM108: 0 | DN108: 329.76 | DO108: 3.62 | DR108: 1.22 | DS108: 0.867 | DV108: 32.10526316 | DW108: 31.75226316 | DX108: -67.89473684 | DZ108: 7783299 | EB108: -60384036 | EC108: -60384036 | ED108: 330.04 | EE108: 3.9 | EF108: 28 | EG108: 27.7 | EH108: 1.598 | EI108: 1.245 | EL108: 42.05263158 | EM108: 41.69963158 | EN108: 9.947368421 | EP108: 10481 | EQ108: 17912 | ER108: 28393 | ES108: 334.98 | ET108: 8.84 | EU108: 0 | EV108: 80.5 | EW108: =(ET108*3.8)/9.86 -> 3.406896552 | EX108: 3.053896552 | FA108: 89.65517241 | FB108: 88.59578044 | FC108: 47.60254083 | FE108: 14506 | FF108: 24064 | FG108: 38570 | FH108: 332.32 | FI108: 6.18 | FJ108: 0 | FK108: 0 | FL108: 1.964 | FM108: 1.611 | FP108: 51.68421053 | FQ108: 46.73629243 | FR108: -37.97096189 | FT108: 9513 | FU108: 10767 | FV108: 20280 | GK108: 0
A109: 2024-01-14 | B109: 2024-01-14 | C109: 336 | D109: 327 | E109: 0.353 | F109: 9.94 | G109: 4.7 | H109: 336.08 | J109: 334.25 | K109: 8.11 | N109: -0.353 | Q109: 0 | R109: -0.1086153846 | S109: 332.89 | T109: 6.75 | U109: 9.1 | V109: 2.3 | Z109: 58.97435897 | AA109: 0 | AD109: 0 | AF109: 336 | AG109: =100-Z109 -> 41.02564103 | AH109: 336.09 | AI109: 9.95 | AL109: 3.9 | AM109: 3.547 | AN109: 6.600258 | AO109: 570262.2912 | AP109: 100 | AQ109: 109.1384615 | AR109: 41.02564103 | AS109: 6.600258 | AT109: 8058044 | AU109: 3684395 | AV109: 25721 | AW109: 25721 | AX109: =100-AQ109 -> -9.138461538 | AY109: 333.63 | AZ109: 7.49 | BC109: 2.216 | BD109: -0.084 | BG109: 56.82051282 | BH109: -2.584615385 | BI109: -43.17948718 | BK109: 3624268 | BL109: 603187 | BM109: 34594 | BN109: 34594 | BO109: =100-BH109 -> 102.5846154 | BP109: 336.09 | BQ109: 9.95 | BS109: 0 | BT109: 3.9 | BU109: 3.547 | BV109: 6.600258 | BW109: 570262.2912 | BX109: 100 | BY109: 109.1384615 | BZ109: 43.17948718 | CB109: 7590946 | CC109: 8663350 | CD109: 42784 | CE109: 42784 | CG109: 336.09 | CH109: 9.95 | CK109: 3.8 | CL109: 3.447 | CM109: 6.600258 | CN109: 570262.2912 | CO109: 100 | CP109: 100 | CQ109: 0 | CR109: 0 | CS109: 2964457 | CT109: 6686419 | CU109: 40068 | CV109: 40068 | CX109: 336.15 | CY109: 10.01 | CZ109: 12.2 | DB109: 3.8 | DC109: 3.447 | DD109: 14.20149406 | DE109: 1227009.087 | DF109: 100 | DG109: 99.647 | DH109: 0 | DI109: 7.601236064 | DL109: 0 | DM109: 0 | DN109: 329.81 | DO109: 3.67 | DR109: 1.235 | DS109: 0.882 | DV109: 32.5 | DW109: 32.147 | DX109: -67.5 | DZ109: 7797602 | EB109: -60369733 | EC109: -60369733 | ED109: 330.39 | EE109: 4.25 | EF109: 0 | EG109: 0 | EH109: 1.637 | EI109: 1.284 | EL109: 43.07894737 | EM109: 42.72594737 | EN109: 10.57894737 | EP109: 10299 | EQ109: 13822 | ER109: 24121 | ES109: 335.49 | ET109: 9.35 | EU109: 26 | EV109: 0 | EW109: =(ET109*3.8)/9.86 -> 3.603448276 | EX109: 3.250448276 | FA109: 94.82758621 | FB109: 94.29789022 | FC109: 51.74863884 | FE109: 14128 | FF109: 20200 | FG109: 34328 | FH109: 332.39 | FI109: 6.25 | FJ109: 0 | FK109: 5 | FL109: 1.992 | FM109: 1.639 | FP109: 52.42105263 | FQ109: 47.54859298 | FR109: -42.40653358 | FT109: 7610 | FU109: 10630 | FV109: 18240 | GK109: 0
A110: 2024-01-15 | B110: 2024-01-15 | C110: 336 | D110: 327 | E110: 0.353 | F110: 9.95 | G110: 3.5 | H110: 336.09 | J110: 334.46 | K110: 8.32 | N110: -0.353 | Q110: 0 | R110: -0.1086153846 | S110: 333.09 | T110: 6.95 | U110: 13 | V110: 2.35 | Z110: 60.25641026 | AA110: 0 | AD110: 0 | AF110: 336 | AG110: 39.74358974 | AH110: 336.09 | AI110: 9.95 | AJ110: 31 | AK110: 8.2 | AL110: 3.9 | AM110: 3.547 | AN110: 6.600258 | AO110: =AN110*24*3600 -> 570262.2912 | AP110: 100 | AQ110: 109.1384615 | AR110: 39.74358974 | AS110: 6.600258 | AT110: 8075199 | AU110: 3696207 | AV110: 28967 | AW110: 28967 | AX110: -9.138461538 | AY110: 334.25 | AZ110: 8.11 | BA110: 86 | BC110: 2.5 | BD110: 0.15 | BG110: 64.1025641 | BH110: 4.615384615 | BI110: -35.8974359 | BK110: 3637533 | BL110: 624012 | BM110: 34090 | BN110: 34090 | BO110: 95.38461538 | BP110: 336.09 | BQ110: 9.95 | BR110: 37 | BS110: 7.3 | BT110: 3.9 | BU110: 3.547 | BV110: 6.600258 | BW110: 570262.2912 | BX110: 100 | BY110: 109.1384615 | BZ110: 35.8974359 | CB110: 7608215 | CC110: 8686720 | CD110: 40639 | CE110: 40639 | CG110: 336.09 | CH110: 9.95 | CI110: 2 | CJ110: 4.1 | CK110: 3.8 | CL110: 3.447 | CM110: 6.600258 | CN110: 570262.2912 | CO110: 100 | CP110: 100 | CQ110: 0 | CR110: 0 | CS110: 2973424 | CT110: 6712803 | CU110: 35351 | CV110: 35351 | CX110: 336.19 | CY110: 10.05 | CZ110: 22.3 | DA110: 3.2 | DB110: 3.8 | DC110: 3.447 | DD110: 20.24545536 | DE110: 1749207.343 | DF110: 100 | DG110: 99.647 | DH110: 0 | DI110: 13.64519736 | DL110: 0 | DM110: 0 | DN110: 329.84 | DO110: 3.7 | DR110: 1.245 | DS110: 0.892 | DV110: 32.76315789 | DW110: 32.41015789 | DX110: -67.23684211 | DZ110: 7810117 | EB110: -60357218 | EC110: -60357218 | ED110: 330.47 | EE110: 4.33 | EF110: 0 | EG110: 0 | EH110: 1.668 | EI110: 1.315 | EL110: 43.89473684 | EM110: 43.54173684 | EN110: 11.13157895 | EP110: 9767 | EQ110: 13312 | ER110: 23079 | ES110: 335.69 | ET110: 9.55 | EU110: 5 | EV110: 30 | EW110: =(ET110*3.8)/9.86 -> 3.680527383 | EX110: 3.327527383 | FA110: 96.85598377 | FB110: 96.5340117 | FC110: 52.96124693 | FE110: 7506 | FF110: 24622 | FG110: 32128 | FH110: 332.44 | FI110: 6.3 | FJ110: 0 | FK110: 56 | FL110: 2.025 | FM110: 1.672 | FP110: 53.28947368 | FQ110: 48.5059472 | FR110: -43.56651009 | FT110: 8721 | FU110: 10719 | FV110: 19440 | GK110: 0
A111: 2024-01-16 | B111: 2024-01-16 | C111: 336 | D111: 327 | E111: 0.353 | F111: 9.93 | H111: 336.07 | J111: 334.97 | K111: 8.83 | N111: -0.353 | Q111: 0 | R111: -0.1086153846 | S111: 333.22 | T111: 7.08 | V111: 2.42 | Z111: 62.05128205 | AA111: 0 | AD111: 0 | AF111: 336 | AG111: 37.94871795 | AH111: 336.08 | AI111: 9.94 | AL111: 3.9 | AM111: 3.547 | AN111: 5.531362595 | AO111: 477909.7282 | AP111: 100 | AQ111: 109.1384615 | AR111: 37.94871795 | AS111: 5.531362595 | AT111: 8088647 | AU111: 3714585 | AV111: 31826 | AW111: 31826 | AX111: -9.138461538 | AY111: 335.19 | AZ111: 9.05 | BA111: 0 | BC111: 2.8 | BD111: 0.38 | BG111: 71.79487179 | BH111: 11.69230769 | BI111: -28.20512821 | BK111: 3647080 | BL111: 639797 | BM111: 25332 | BN111: 25332 | BO111: 88.30769231 | BP111: 336.14 | BQ111: 10 | BR111: 70.4 | BS111: 30 | BT111: 3.9 | BU111: 3.547 | BV111: =((BP111-336)^(3/2))*1.838*133 -> 12.80528361 | BW111: 1106376.504 | BX111: 100 | BY111: 109.1384615 | BZ111: 28.20512821 | CB111: 7625952 | CC111: 8708926 | CD111: 39943 | CE111: 39943 | CG111: 336.09 | CH111: 9.95 | CK111: 3.8 | CL111: 3.447 | CM111: 6.600258 | CN111: 570262.2912 | CO111: 100 | CP111: 100 | CQ111: 0 | CR111: -6.205025608 | CS111: 2983330 | CT111: 6738609 | CU111: 35712 | CV111: 35712 | CX111: 336.19 | CY111: 10.05 | DB111: 3.8 | DC111: 3.447 | DD111: 20.24545536 | DE111: 1749207.343 | DF111: 100 | DG111: 99.647 | DH111: 0 | DI111: 13.64519736 | DL111: 0 | DM111: 0 | DN111: 329.84 | DO111: 3.7 | DR111: 1.245 | DS111: 0.892 | DV111: 32.76315789 | DW111: 32.41015789 | DX111: -67.23684211 | DZ111: 7821574 | EB111: -60345761 | EC111: -60345761 | ED111: 330.51 | EE111: 4.37 | EF111: 8 | EG111: 4.1 | EH111: 1.684 | EI111: 1.331 | EL111: 44.31578947 | EM111: 43.96278947 | EN111: 11.55263158 | EP111: 9157 | EQ111: 17925 | ER111: 27082 | ES111: 336.02 | ET111: 9.88 | EW111: 3.8 | EX111: 3.447 | EY111: 0.6914203244 | EZ111: 59738.71602 | FA111: 100 | FB111: 100 | FC111: 55.68421053 | FD111: -0.6395796756 | FE111: 10993 | FF111: 24904 | FG111: 35897 | FH111: 332.54 | FI111: 6.4 | FJ111: 0 | FK111: 29 | FL111: 2.042 | FM111: 1.689 | FP111: 53.73684211 | FQ111: 48.99912968 | FR111: -46.26315789 | FT111: 10264 | FU111: 13016 | FV111: 23280 | GK111: 0
A112: 2024-01-17 | B112: 2024-01-17 | C112: 336 | D112: 327 | E112: 0.353 | F112: 9.92 | G112: 16.4 | H112: 336.06 | J112: 335.39 | K112: 9.25 | N112: -0.353 | Q112: 0 | R112: -0.1086153846 | S112: 333.32 | T112: 7.18 | V112: 2.45 | Z112: 62.82051282 | AA112: 0 | AD112: 0 | AF112: 336 | AG112: 37.17948718 | AH112: 336.08 | AI112: 9.94 | AJ112: 7 | AL112: 3.9 | AM112: 3.547 | AN112: 5.531362595 | AO112: 477909.7282 | AP112: 100 | AQ112: 109.1384615 | AR112: 37.17948718 | AS112: 5.531362595 | AT112: 8099576 | AU112: 3733154 | AV112: 29498 | AW112: 29498 | AX112: -9.138461538 | AY112: 335.39 | AZ112: 9.25 | BA112: 65,1 | BB112: 17,2 | BC112: 3.45 | BD112: 1 | BG112: 88.46153846 | BH112: 30.76923077 | BI112: -11.53846154 | BK112: 3657816 | BL112: 666264 | BM112: 37203 | BN112: 37203 | BO112: 69.23076923 | BP112: 336.34 | BQ112: 10.2 | BR112: 120.5 | BS112: 32.2 | BT112: 3.9 | BU112: 3.547 | BV112: 48.46358349 | BW112: 4187253.614 | BX112: 100 | BY112: 109.1384615 | BZ112: 11.53846154 | CB112: 7634409 | CC112: 8724774 | CD112: 24305 | CE112: 24305 | CG112: 336.09 | CH112: 9.95 | CK112: 3.8 | CL112: 3.447 | CM112: 6.600258 | CN112: 570262.2912 | CO112: 100 | CP112: 100 | CQ112: 0 | CR112: -41.86332549 | CS112: 2997082 | CT112: 6764340 | CU112: 39483 | CV112: 39483 | CX112: 336.13 | CY112: 9.99 | DA112: 6 | DB112: 3.8 | DC112: 3.447 | DD112: 11.45808861 | DE112: 989978.8559 | DF112: 100 | DG112: 99.647 | DH112: 0 | DI112: 4.857830609 | DL112: 0 | DM112: 0 | DN112: 329.81 | DO112: 3.67 | DR112: 1.235 | DS112: 0.882 | DV112: 32.5 | DW112: 32.147 | DX112: -67.5 | DZ112: 7832897 | EB112: -60334438 | EC112: -60334438 | ED112: 330.73 | EE112: 4.59 | EF112: 0 | EG112: 45 | EH112: 1.768 | EI112: 1.415 | EL112: 46.52631579 | EM112: 46.17331579 | EN112: 14.02631579 | EP112: 6772 | EQ112: 22437 | ER112: 29209 | ES112: 336.09 | ET112: 9.95 | EW112: 3.8 | EX112: 3.447 | EY112: 6.600258 | EZ112: 570262.2912 | FA112: 100 | FB112: 100 | FC112: 53.47368421 | FD112: 5.185258 | FE112: 10735 | FF112: 24920 | FG112: 35655 | FH112: 333.25 | FI112: 7.11 | FJ112: 22 | FK112: 3 | FL112: 2.364 | FM112: 2.011 | FP112: 62.21052632 | FQ112: 58.34058602 | FR112: -37.78947368 | FT112: 13550 | FU112: 14290 | FV112: 27840 | GK112: 0
A113: 2024-01-18 | B113: 2024-01-18 | C113: 336 | D113: 327 | E113: 0.353 | F113: 9.92 | H113: 336.06 | J113: 335.66 | K113: 9.52 | N113: -0.353 | Q113: 0 | R113: -0.1086153846 | S113: 333.52 | T113: 7.38 | U113: 23 | V113: 2.48 | Z113: 63.58974359 | AA113: 0 | AD113: 0 | AF113: 336 | AG113: 36.41025641 | AH113: 336.1 | AI113: 9.96 | AJ113: 39 | AK113: 16.8 | AL113: 3.9 | AM113: 3.547 | AN113: 7.730314231 | AO113: 667899.1496 | AP113: 100 | AQ113: 109.1384615 | AR113: 36.41025641 | AS113: 7.730314231 | AT113: 8116712 | AU113: 3746903 | AV113: 30885 | AW113: 30885 | AX113: -9.138461538 | AY113: 335.63 | AZ113: 9.49 | BC113: 3.6 | BD113: 1.12 | BG113: 92.30769231 | BH113: 34.46153846 | BI113: -7.692307692 | BK113: 3666068 | BL113: 678435 | BM113: 20423 | BN113: 20423 | BO113: 65.53846154 | BP113: 336.38 | BQ113: 10.24 | BR113: 48.2 | BS113: 18 | BT113: 3.9 | BU113: 3.547 | BV113: 57.26279511 | BW113: 4947505.497 | BX113: 100 | BY113: 109.1384615 | BZ113: 7.692307692 | CB113: 7652290 | CC113: 8747006 | CD113: 40113 | CE113: 40113 | CG113: 336.08 | CH113: 9.94 | CK113: 3.8 | CL113: 3.447 | CM113: 5.531362595 | CN113: 477909.7282 | CO113: 100 | CP113: 100 | CQ113: 0 | CR113: -51.73143251 | CS113: 3010967 | CT113: 6788787 | CU113: 38332 | CV113: 38332 | CX113: 336.14 | CY113: 10 | DB113: 3.8 | DC113: 3.447 | DD113: 12.80528361 | DE113: 1106376.504 | DF113: 100 | DG113: 99.647 | DH113: 0 | DI113: 7.273921013 | DL113: 0 | DM113: 0 | DN113: 329.78 | DO113: 3.64 | DR113: 1.225 | DS113: 0.872 | DV113: 32.23684211 | DW113: 31.88384211 | DX113: -67.76315789 | DZ113: 7843579 | EB113: -60323756 | EC113: -60323756 | ED113: 332.58 | EE113: 6.44 | EF113: 0 | EH113: 2.124 | EI113: 1.771 | EL113: 55.89473684 | EM113: 55.54173684 | EN113: 23.65789474 | EP113: 8957 | EQ113: 20938 | ER113: 29895 | ES113: 336.07 | ET113: 9.93 | EW113: 3.8 | EX113: 3.447 | EY113: 4.527351437 | EZ113: 391163.1642 | FA113: 100 | FB113: 100 | FC113: 44.10526316 | FD113: 2.756351437 | FE113: 8818 | FF113: 24758 | FG113: 33576 | FH113: 334.29 | FI113: 8.15 | FJ113: 0 | FK113: 0 | FL113: 2.771 | FM113: 2.418 | FP113: 72.92105263 | FQ113: 70.14795474 | FR113: -27.07894737 | FT113: 12306 | FU113: 14894 | FV113: 27200 | GK113: 0
A114: 2024-01-19 | B114: 2024-01-19 | C114: 336 | D114: 327 | E114: 0.353 | F114: 9.91 | G114: 2.4 | H114: 336.05 | I114: =((C114-336)^(3/2))*1.838*133 -> 0 | J114: 336.03 | K114: 9.89 | M114: 3.9 | N114: 3.547 | O114: =((J114-336)^(3/2))*1.838*133 -> 1.270220244 | P114: =O114*24*3600 -> 109747.0291 | Q114: 100 | R114: 1.091384615 | S114: 333.7 | T114: 7.56 | U114: 8.7 | V114: 2.5 | Z114: 64.1025641 | AA114: 0 | AD114: 0 | AF114: 336 | AG114: 35.8974359 | AH114: 336.09 | AI114: 9.95 | AJ114: 44 | AK114: 9.2 | AL114: 3.9 | AM114: 3.547 | AN114: 6.600258 | AO114: 570262.2912 | AP114: 100 | AQ114: 109.1384615 | AR114: 35.8974359 | AS114: 6.600258 | AT114: 8130754 | AU114: 3764023 | AV114: 31162 | AW114: 31162 | AX114: -9.138461538 | AY114: 335.72 | AZ114: 9.58 | BC114: 3.55 | BD114: 1.05 | BG114: 91.02564103 | BH114: 32.30769231 | BI114: -8.974358974 | BK114: 3676803 | BL114: 698539 | BM114: 30839 | BN114: 30839 | BO114: 67.69230769 | BP114: 336.38 | BQ114: 10.24 | BR114: 160 | BS114: 38 | BT114: 3.9 | BU114: 3.547 | BV114: 57.26279511 | BW114: 4947505.497 | BX114: 100 | BY114: 109.1384615 | BZ114: 8.974358974 | CB114: 7669930 | CC114: 8768510 | CD114: 39144 | CE114: 39144 | CG114: 336.08 | CH114: 9.94 | CK114: 3.8 | CL114: 3.447 | CM114: 5.531362595 | CN114: 477909.7282 | CO114: 100 | CP114: 100 | CQ114: 0 | CR114: -51.73143251 | CS114: 3026172 | CT114: 6813902 | CU114: 40320 | CV114: 40320 | CX114: 336.14 | CY114: 10 | DB114: 3.8 | DC114: 3.447 | DD114: 12.80528361 | DE114: 1106376.504 | DF114: 100 | DG114: 99.647 | DH114: 0 | DI114: 7.273921013 | DL114: 0 | DM114: 0 | DN114: 329.74 | DO114: 3.6 | DR114: 1.205 | DS114: 0.852 | DV114: 31.71052632 | DW114: 31.35752632 | DX114: -68.28947368 | DZ114: 7850726 | EB114: -60316609 | EC114: -60316609 | ED114: 332.87 | EE114: 6.73 | EF114: 0 | EG114: 12 | EH114: 2.157 | EI114: 1.804 | EL114: 56.76315789 | EM114: 56.41015789 | EN114: 25.05263158 | EP114: 7198 | EQ114: 21438 | ER114: 28636 | ES114: 336.07 | ET114: 9.93 | EW114: 3.8 | EX114: 3.447 | EY114: 4.527351437 | EZ114: 391163.1642 | FA114: 100 | FB114: 100 | FC114: 43.23684211 | FD114: 2.723351437 | FE114: 10191 | FF114: 24599 | FG114: 34790 | FH114: 335.05 | FI114: 8.91 | FJ114: 0 | FK114: 0 | FL114: 3.128 | FM114: 2.775 | FP114: 82.31578947 | FQ114: 80.50478677 | FR114: -17.68421053 | FT114: 11880 | FU114: 15014 | FV114: 26894 | GK114: 0
A115: 2024-01-20 | B115: 2024-01-20 | C115: 336 | D115: 327 | E115: 0.353 | F115: 9.91 | H115: 336.05 | I115: =((C115-336)^(3/2))*1.838*133 -> 0 | J115: 336.1 | K115: 9.96 | M115: 3.9 | N115: 3.547 | O115: =((J115-336)^(3/2))*1.838*133 -> 7.730314231 | P115: =O115*24*3600 -> 667899.1496 | Q115: 100 | R115: 1.091384615 | S115: 333.89 | T115: 7.75 | U115: 0.4 | V115: 2.58 | Z115: 66.15384615 | AA115: 0 | AD115: 0 | AF115: 336 | AG115: 33.84615385 | AH115: 336.09 | AI115: 9.95 | AL115: 3.9 | AM115: 3.547 | AN115: 6.600258 | AO115: 570262.2912 | AP115: 100 | AQ115: 109.1384615 | AR115: 33.84615385 | AS115: 6.600258 | AT115: 8148291 | AU115: 3778191 | AV115: 31705 | AW115: 31705 | AX115: -9.138461538 | AY115: 335.75 | AZ115: 9.61 | BC115: 3.7 | BD115: 1.12 | BG115: 94.87179487 | BH115: 34.46153846 | BI115: -5.128205128 | BK115: 3688777 | BL115: 719561 | BM115: 32996 | BN115: 32996 | BO115: 65.53846154 | BP115: 336.43 | BQ115: 10.29 | BR115: 37.2 | BS115: 9.3 | BT115: 3.9 | BU115: 3.547 | BV115: 68.92865931 | BW115: 5955436.165 | BX115: 100 | BY115: 109.1384615 | BZ115: 5.128205128 | CB115: 7677405 | CC115: 8776596 | CD115: 15561 | CE115: 15561 | CG115: 336.08 | CH115: 9.94 | CI115: 5 | CJ115: 2 | CK115: 3.8 | CL115: 3.447 | CM115: 5.531362595 | CN115: 477909.7282 | CO115: 100 | CP115: 100 | CQ115: 0 | CR115: -63.39729672 | CS115: 3041362 | CT115: 6836869 | CU115: 38157 | CV115: 38157 | CX115: 336.14 | CY115: 10 | DB115: 3.8 | DC115: 3.447 | DD115: 12.80528361 | DE115: 1106376.504 | DF115: 100 | DG115: 99.647 | DH115: 0 | DI115: 7.273921013 | DL115: 0 | DM115: 0 | DN115: 329.69 | DO115: 3.55 | DR115: 1.19 | DS115: 0.837 | DV115: 31.31578947 | DW115: 30.96278947 | DX115: -68.68421053 | DZ115: 7861361 | EB115: -60305974 | EC115: -60305974 | ED115: 333.04 | EE115: 6.9 | EF115: 28 | EG115: 3.3 | EH115: 2.184 | EI115: 1.831 | EL115: 57.47368421 | EM115: 57.12068421 | EN115: 26.15789474 | EP115: 10112 | EQ115: 21232 | ER115: 31344 | ES115: 336.09 | ET115: 9.95 | EW115: 3.8 | EX115: 3.447 | EY115: 6.600258 | EZ115: 570262.2912 | FA115: 100 | FB115: 100 | FC115: 42.52631579 | FD115: 4.769258 | FE115: 8895 | FF115: 20214 | FG115: 29109 | FH115: 335.55 | FI115: 9.41 | FJ115: 0 | FK115: 0 | FL115: 3.442 | FM115: 3.089 | FP115: 90.57894737 | FQ115: 89.61415724 | FR115: -9.421052632 | FT115: 9685 | FU115: 10835 | FV115: 20520 | GK115: 0
A116: 2024-01-21 | B116: 2024-01-21 | C116: 336 | D116: 327 | E116: 0.353 | F116: 9.91 | H116: 336.05 | I116: 0 | J116: 336.13 | K116: 9.99 | M116: 3.9 | N116: 3.547 | O116: 11.45808861 | P116: =O116*24*3600 -> 989978.8559 | Q116: 100 | R116: 1.091384615 | S116: 333.99 | T116: 7.85 | V116: 2.6 | Z116: 66.66666667 | AA116: 0 | AD116: 0 | AF116: 336 | AG116: 33.33333333 | AH116: 336.08 | AI116: 9.94 | AL116: 3.9 | AM116: 3.547 | AN116: 5.531362595 | AO116: 477909.7282 | AP116: 100 | AQ116: 109.1384615 | AR116: 33.33333333 | AS116: 5.531362595 | AT116: 8163615 | AU116: 3800532 | AV116: 37665 | AW116: 37665 | AX116: -9.138461538 | AY116: 335.77 | AZ116: 9.63 | BA116: 7.3 | BC116: 3.78 | BD116: 1.18 | BG116: 96.92307692 | BH116: 36.30769231 | BI116: -3.076923077 | BK116: 3701945 | BL116: 742111 | BM116: 35718 | BN116: 35718 | BO116: 63.69230769 | BP116: 336.25 | BQ116: 10.11 | BR116: 3 | BT116: 3.9 | BU116: 3.547 | BV116: 30.55675 | BW116: =BV116*24*3600 -> 2640103.2 | BX116: 100 | BY116: 109.1384615 | BZ116: 3.076923077 | CB116: 7686428 | CC116: 8787635 | CD116: 20062 | CE116: 20062 | CG116: 336.11 | CH116: 9.97 | CI116: 15 | CJ116: 5.4 | CK116: 3.8 | CL116: 3.447 | CM116: 8.918384162 | CN116: 770548.3916 | CO116: 100 | CP116: 100 | CQ116: 0 | CR116: =CM116-BV116 -> -21.63836584 | CS116: 3056165 | CT116: 6860723 | CU116: 38657 | CV116: 38657 | CX116: 336.12 | CY116: 9.98 | DA116: 17 | DB116: 3.8 | DC116: 3.447 | DD116: 10.16176195 | DE116: 877976.2329 | DF116: 100 | DG116: 99.647 | DH116: 0 | DI116: =DD116-CM116 -> 1.243377793 | DL116: 0 | DM116: =DL116 -> 0 | DN116: 329.67 | DO116: 3.53 | DR116: 1.185 | DS116: 0.832 | DV116: 31.18421053 | DW116: 30.83121053 | DX116: -68.81578947 | DY116: =DT116-DC116 ->  | DZ116: 7869389 | EB116: -60297946 | EC116: -60297946 | ED116: 333.16 | EE116: 7.02 | EG116: 0 | EH116: 2.705 | EI116: 2.352 | EL116: 71.18421053 | EM116: 70.83121053 | EN116: 40 | EP116: 3042 | EQ116: 22184 | ER116: 25226 | ES116: 336.06 | ET116: 9.92 | EW116: 3.8 | EX116: 3.447 | EY116: 3.592725393 | EZ116: 310411.474 | FA116: 100 | FB116: 100 | FC116: 28.81578947 | FD116: 1.240725393 | FE116: 12381 | FF116: 22586 | FG116: 34967 | FH116: 335.88 | FI116: 9.74 | FJ116: 0 | FK116: 0 | FL116: 3.628 | FM116: 3.275 | FP116: 95.47368421 | FQ116: 95.01015376 | FR116: -4.526315789 | FT116: 12802 | FU116: 14298 | FV116: 27100 | GK116: 0
A117: 2024-01-22 | B117: 2024-01-22 | C117: 336 | D117: 327 | E117: 0.353 | F117: 9.9 | H117: 336.04 | I117: 0 | J117: 336.18 | K117: 10.04 | M117: 3.9 | N117: 3.547 | O117: 18.66834876 | P117: 1612945.333 | Q117: 100 | R117: 1.091384615 | S117: 334.12 | T117: 7.98 | U117: 2 | V117: 2.64 | Z117: 67.69230769 | AA117: 0 | AD117: 0 | AF117: 336 | AG117: 32.31 | AH117: 336.07 | AI117: 9.93 | AL117: 3.9 | AM117: 3.547 | AN117: 4.527351437 | AO117: 391163.1642 | AP117: 100 | AQ117: 109.1384615 | AR117: 32.30769231 | AS117: 4.527351437 | AT117: 8181496 | AU117: 3815943 | AV117: 33292 | AW117: 33292 | AX117: 32.31 | AY117: 335.85 | AZ117: 9.71 | BC117: 3.65 | BD117: 1.01 | BG117: 93.58974359 | BH117: 31.07692308 | BI117: -6.41025641 | BK117: 3716590 | BL117: 764978 | BM117: 37512 | BN117: 37512 | BO117: 33.31 | BP117: 336.19 | BQ117: 10.05 | BT117: 3.9 | BU117: 3.547 | BV117: 20.24545536 | BW117: 1749207.343 | BX117: 100 | BY117: 109.1384615 | BZ117: 6.41025641 | CB117: 7702570 | CC117: 8806426 | CD117: 34933 | CE117: 34933 | CG117: 336.11 | CH117: 9.97 | CK117: 3.8 | CL117: 3.447 | CM117: 8.918384162 | CN117: 770548.3916 | CO117: 100 | CP117: 100 | CQ117: 0 | CR117: -11.3270712 | CS117: 3068262 | CT117: 6880374 | CU117: 31748 | CV117: 31748 | CX117: 336.19 | CY117: 10.05 | CZ117: 82 | DA117: 52 | DB117: 3.8 | DC117: 3.447 | DD117: 20.24545536 | DE117: 1749207.343 | DF117: 100 | DG117: 99.647 | DH117: 0 | DI117: =DD117-CM117 -> 11.3270712 | DL117: 0 | DM117: 0 | DN117: 329.64 | DO117: 3.5 | DR117: 1.175 | DS117: 0.822 | DV117: 30.92105263 | DW117: 30.56805263 | DX117: -69.07894737 | DY117: =DT117-DC117 ->  | DZ117: 7878091 | EB117: -60289244 | EC117: -60289244 | ED117: 333.3 | EE117: 7.16 | EG117: 0 | EH117: 2.759 | EI117: 2.406 | EL117: 72.60526316 | EM117: 72.25226316 | EN117: 41.68421053 | EP117: 6214 | EQ117: 20888 | ER117: 27102 | ES117: 336.06 | ET117: 9.92 | EW117: 3.8 | EX117: 3.447 | EY117: 3.592725393 | EZ117: 310411.474 | FA117: 100 | FB117: 100 | FC117: 27.39473684 | FD117: 1.186725393 | FE117: 1780 | FF117: 25113 | FG117: 26893 | FH117: 336.06 | FI117: 9.92 | FJ117: 0 | FL117: 3.8 | FM117: 3.447 | FN117: 3.592725393 | FO117: 310411.474 | FP117: 100 | FQ117: 100 | FR117: 0 | FS117: 0.1457253935 | FT117: 12078 | FU117: 16001 | FV117: 28079 | GK117: 0
A118: 2024-01-23 | B118: 2024-01-23 | C118: 336 | D118: 327 | E118: 0.353 | F118: 9.93 | G118: 40 | H118: 336.07 | I118: 0 | J118: 336.2 | K118: 10.06 | M118: 3.9 | N118: 3.547 | O118: 21.86463045 | P118: 1889104.071 | Q118: 100 | R118: 1.091384615 | S118: 334.16 | T118: 8.02 | Z118: 0 | AA118: 0 | AD118: 0 | AF118: 336 | AH118: 336.07 | AI118: 9.93 | AL118: 3.9 | AM118: 3.547 | AN118: 4.527351437 | AO118: 391163.1642 | AP118: 100 | AQ118: 109.1384615 | AR118: 100 | AS118: 4.527351437 | AT118: 8198755 | AU118: 3830755 | AV118: 32071 | AW118: 32071 | AY118: 335.95 | AZ118: 9.81 | BA118: 10.4 | BC118: 3.81 | BD118: 3.81 | BG118: 97.69230769 | BH118: 117.2307692 | BI118: -2.307692308 | BK118: 3730895 | BL118: 787361 | BM118: 36688 | BN118: 36688 | BP118: 336.16 | BQ118: 10.02 | BT118: 3.9 | BU118: 3.547 | BV118: 15.645056 | BW118: 1351732.838 | BX118: 100 | BY118: 109.1384615 | BZ118: 2.307692308 | CB118: 7720650 | CC118: 8828676 | CD118: 40330 | CE118: 40330 | CG118: 336.09 | CH118: 9.95 | CI118: 8 | CK118: 3.8 | CL118: 3.447 | CM118: 6.600258 | CN118: 570262.2912 | CO118: 100 | CP118: 100 | CQ118: 0 | CR118: -9.044798 | CS118: 3083516 | CT118: 6904938 | CU118: 39818 | CV118: 39818 | CX118: 336.15 | CY118: 10.01 | DB118: 3.8 | DC118: 3.447 | DD118: 14.20149406 | DE118: 1227009.087 | DF118: 100 | DG118: 99.647 | DH118: 0 | DI118: 7.601236064 | DL118: 0 | DM118: 0 | DN118: 329.68 | DO118: 3.54 | DR118: 1.187 | DS118: 0.834 | DV118: 31.23684211 | DW118: 30.88384211 | DX118: -68.76315789 | DZ118: 7882626 | EB118: -60284709 | EC118: -60284709 | ED118: 333.38 | EE118: 7.24 | EG118: 0 | EH118: 2.79 | EI118: 2.437 | EL118: 73.42105263 | EM118: 73.06805263 | EN118: 42.18421053 | EP118: 13776 | EQ118: 12980 | ER118: 26756 | ES118: 336.12 | ET118: 9.98 | EU118: 15 | EV118: 3 | EW118: 3.8 | EX118: 3.447 | EY118: 10.16176195 | EZ118: 877976.2329 | FA118: 100 | FB118: 100 | FC118: 26.57894737 | FD118: 7.724761955 | FE118: 478 | FF118: 25935 | FG118: 26413 | FH118: 336.08 | FI118: 9.94 | FJ118: 0 | FK118: 20 | FL118: 3.8 | FM118: 3.447 | FN118: 5.531362595 | FO118: 477909.7282 | FP118: 100 | FQ118: 100 | FR118: 0 | FS118: 2.084362595 | FT118: 13622 | FU118: 17578 | FV118: 31200 | GK118: 0
A119: 2024-01-24 | B119: 2024-01-24 | C119: 336 | D119: 327 | E119: 0.353 | F119: 9.94 | H119: 336.08 | I119: 0 | J119: 336.15 | K119: 10.01 | M119: 3.9 | N119: 3.547 | O119: 14.20149406 | P119: 1227009.087 | Q119: 100 | R119: 1.091384615 | S119: 334.22 | T119: 8.08 | Z119: 0 | AA119: 0 | AD119: 0 | AF119: 336 | AH119: 336.06 | AI119: 9.92 | AL119: 3.9 | AM119: 3.547 | AN119: 3.592725393 | AO119: 310411.474 | AP119: 100 | AQ119: 109.1384615 | AR119: 100 | AS119: 3.592725393 | AT119: 8217940 | AU119: 3847635 | AV119: 36065 | AW119: 36065 | AY119: 336.04 | AZ119: 9.9 | BA119: 6.3 | BC119: 3.819 | BD119: 3.819 | BE119: 1.955632 | BF119: 168966.6048 | BG119: 97.92307692 | BH119: 117.5076923 | BI119: -2.076923077 | BJ119: -1.637093393 | BK119: 3744743 | BL119: 803282 | BM119: 29769 | BN119: 29769 | BP119: 336.14 | BQ119: 10 | BT119: 3.9 | BU119: 3.547 | BV119: 12.80528361 | BW119: 1106376.504 | BX119: 100 | BY119: 109.1384615 | BZ119: 2.076923077 | CA119: 10.84965161 | CB119: 7738262 | CC119: 8850074 | CD119: 39010 | CE119: 39010 | CG119: 336.1 | CH119: 9.96 | CI119: 3 | CJ119: 11.1 | CK119: 3.8 | CL119: 3.447 | CM119: 7.730314231 | CN119: 667899.1496 | CO119: 100 | CP119: 100 | CQ119: 0 | CR119: -5.074969376 | CS119: 3098183 | CT119: 6927943 | CU119: 37672 | CV119: 37672 | CX119: 336.12 | CY119: 9.98 | DB119: 3.8 | DC119: 3.447 | DD119: 10.16176195 | DE119: 877976.2329 | DF119: 100 | DG119: 99.647 | DH119: 0 | DI119: 2.431447723 | DL119: 0 | DM119: 0 | DN119: 329.75 | DO119: 3.61 | DR119: 1.208 | DS119: 0.855 | DV119: 31.78947368 | DW119: 31.43647368 | DX119: -68.21052632 | DZ119: 7886912 | EB119: -60280423 | EC119: -60280423 | ED119: 333.62 | EE119: 7.48 | EF119: 147 | EG119: 76.1 | EH119: 2.698 | EI119: 2.345 | EL119: 71 | EM119: 70.647 | EN119: 39.21052632 | EP119: 8546 | EQ119: 4001 | ER119: 12547 | ES119: 336.12 | ET119: 9.98 | EU119: 17 | EV119: 10 | EW119: 3.8 | EX119: 3.447 | EY119: 10.16176195 | EZ119: 877976.2329 | FA119: 100 | FB119: 100 | FC119: 29 | FD119: 7.816761955 | FE119: 6729 | FF119: 22467 | FG119: 29196 | FH119: 336.11 | FI119: 9.97 | FJ119: 0 | FK119: 0 | FL119: 3.8 | FM119: 3.447 | FN119: 8.918384162 | FO119: 770548.3916 | FP119: 100 | FQ119: 100 | FR119: 0 | FS119: 5.471384162 | FT119: 12593 | FU119: 16007 | FV119: 28600 | GK119: 0
A120: 2024-01-25 | B120: 2024-01-25 | C120: 336 | D120: 327 | E120: 0.353 | F120: 9.97 | G120: 69.2 | H120: 336.11 | I120: 0 | J120: 336.09 | K120: 9.95 | M120: 3.9 | N120: 3.547 | O120: 6.600258 | P120: 570262.2912 | Q120: 100 | R120: 1.091384615 | S120: 334.26 | T120: 8.12 | Z120: 0 | AA120: 0 | AD120: 0 | AF120: 336 | AH120: 336.05 | AI120: 9.91 | AJ120: 4 | AL120: 3.9 | AM120: 3.547 | AN120: 2.733078807 | AO120: 236138.0089 | AP120: 100 | AQ120: 109.1384615 | AR120: 100 | AS120: 2.733078807 | AT120: 8238183 | AU120: 3873199 | AV120: 45807 | AW120: 45807 | AY120: 336.14 | AZ120: 10 | BC120: 3.9 | BD120: =BC120-V120 -> 3.9 | BE120: 12.80528361 | BF120: 1106376.504 | BG120: 100 | BH120: 120 | BI120: 0 | BJ120: 10.0722048 | BK120: 3759622 | BL120: 825950 | BM120: 37547 | BN120: 37547 | BP120: 336.13 | BQ120: 9.99 | BT120: 3.9 | BU120: 3.547 | BV120: 11.45808861 | BW120: 989978.8559 | BX120: 100 | BY120: 109.1384615 | BZ120: 0 | CA120: -1.347194998 | CB120: 7755943 | CC120: 8872440 | CD120: 40047 | CE120: 40047 | CG120: 336.11 | CH120: 9.97 | CI120: 9 | CJ120: 2 | CK120: 3.8 | CL120: 3.447 | CM120: 8.918384162 | CN120: 770548.3916 | CO120: 100 | CP120: 100 | CQ120: 0 | CR120: -2.539704448 | CS120: 3113038 | CT120: 6950315 | CU120: 37227 | CV120: 37227 | CX120: 336.1 | CY120: 9.96 | DB120: 3.8 | DC120: 3.447 | DD120: 7.730314231 | DE120: 667899.1496 | DF120: 100 | DG120: 99.647 | DH120: 0 | DI120: -1.18806993 | DL120: 0 | DM120: 0 | DN120: 329.84 | DO120: 3.7 | DR120: 1.245 | DS120: 0.892 | DV120: 32.76315789 | DW120: 32.41015789 | DX120: -67.23684211 | DZ120: 7892521 | EB120: -60274814 | EC120: -60274814 | ED120: 336.05 | EE120: 9.91 | EF120: 97 | EG120: 1.2 | EH120: 3.8 | EI120: 3.447 | EJ120: 2.733078807 | EK120: 236138.0089 | EL120: 100 | EM120: 99.647 | EN120: 67.23684211 | EO120: 1.841078807 | EP120: 7080 | EQ120: 18518 | ER120: 25598 | ES120: 336.09 | ET120: 9.95 | EU120: 78 | EW120: 3.8 | EX120: 3.447 | EY120: 6.600258 | EZ120: 570262.2912 | FA120: 100 | FB120: 100 | FC120: 0 | FD120: 3.153258 | FE120: 10605 | FF120: 14416 | FG120: 25021 | FH120: 336.09 | FI120: 9.95 | FJ120: 0 | FK120: 0 | FL120: 3.8 | FM120: 3.447 | FN120: 6.600258 | FO120: 570262.2912 | FP120: 100 | FQ120: 100 | FR120: 0 | FS120: 3.153258 | FT120: 10796 | FU120: 13864 | FV120: 24660 | GK120: 0
A121: 2024-01-26 | B121: 2024-01-26 | C121: 336 | D121: 327 | E121: 0.353 | F121: 9.95 | H121: 336.09 | I121: 0 | J121: 336.09 | K121: 9.95 | M121: 3.9 | N121: 3.547 | O121: 6.600258 | P121: 570262.2912 | Q121: 100 | R121: 1.091384615 | S121: 334.26 | T121: 8.12 | Z121: 0 | AA121: 0 | AD121: 0 | AF121: 336 | AH121: 336.04 | AI121: 9.9 | AJ121: 41 | AL121: 3.9 | AM121: 3.547 | AN121: 1.955632 | AO121: 168966.6048 | AP121: 100 | AQ121: 109.1384615 | AR121: 100 | AS121: 1.955632 | AT121: 8255649 | AU121: 3887858 | AV121: 32125 | AW121: 32125 | AY121: 336.07 | AZ121: 9.93 | BC121: 3.9 | BD121: 3.9 | BE121: 4.527351437 | BF121: 391163.1642 | BG121: 100 | BH121: 120 | BI121: 0 | BJ121: 2.571719437 | BK121: 3776968 | BL121: 849699 | BM121: 41095 | BN121: 41095 | BP121: 336.18 | BQ121: 10.04 | BR121: 76 | BT121: 3.9 | BU121: 3.547 | BV121: 18.66834876 | BW121: 1612945.333 | BX121: 100 | BY121: 109.1384615 | BZ121: 0 | CA121: 14.14099732 | CB121: 7772766 | CC121: 8891146 | CD121: 35529 | CE121: 35529 | CG121: 336.12 | CH121: 9.98 | CI121: 10 | CJ121: 7.1 | CK121: 3.8 | CL121: =CK121-0.353 -> 3.447 | CM121: 10.16176195 | CN121: 877976.2329 | CO121: 100 | CP121: 100 | CQ121: 0 | CR121: -8.506586803 | CS121: 3127438 | CT121: 6974490 | CU121: 38575 | CV121: 38575 | CX121: 336.1 | CY121: 9.96 | DB121: 3.8 | DC121: 3.447 | DD121: 7.730314231 | DE121: 667899.1496 | DF121: 100 | DG121: 99.647 | DH121: 0 | DI121: -2.431447723 | DL121: 0 | DM121: 0 | DN121: 329.91 | DO121: 3.77 | DR121: 1.27 | DS121: 0.917 | DV121: 33.42105263 | DW121: 33.06805263 | DX121: -66.57894737 | DZ121: 7897787 | EB121: -60269548 | EC121: -60269548 | ED121: 336.18 | EE121: 10.04 | EF121: 26 | EG121: 3.4 | EH121: 3.8 | EI121: 3.447 | EJ121: 18.66834876 | EK121: 1612945.333 | EL121: 100 | EM121: 99.647 | EN121: 66.57894737 | EO121: 17.75134876 | EP121: 6751 | EQ121: 18850 | ER121: 25601 | ES121: 336.08 | ET121: 9.94 | EW121: 3.8 | EX121: 3.447 | EY121: 5.531362595 | EZ121: 477909.7282 | FA121: 100 | FB121: 100 | FC121: 0 | FD121: 2.084362595 | FE121: 12270 | FF121: 20913 | FG121: 33183 | FH121: 336.09 | FI121: 9.95 | FJ121: 0 | FK121: 0 | FL121: 3.8 | FM121: 3.447 | FN121: 6.600258 | FO121: 570262.2912 | FP121: 100 | FQ121: 100 | FR121: 0 | FS121: 3.153258 | FT121: 12105 | FU121: 16185 | FV121: 28290 | GK121: 0
A122: 2024-01-27 | B122: 2024-01-27 | C122: 336 | D122: 327 | E122: 0.353 | F122: 9.95 | H122: 336.09 | I122: 0 | J122: 336.09 | K122: 9.95 | M122: 3.9 | N122: 3.547 | O122: 6.600258 | P122: 570262.2912 | Q122: 100 | R122: 1.091384615 | S122: 334.29 | T122: 8.15 | U122: 28 | Z122: 0 | AA122: 0 | AD122: 0 | AF122: 336 | AH122: 336.09 | AI122: 9.95 | AJ122: 20 | AK122: 6 | AL122: 3.9 | AM122: 3.547 | AN122: 6.600258 | AO122: 570262.2912 | AP122: 100 | AQ122: 109.1384615 | AR122: 100 | AS122: 6.600258 | AT122: 8271380 | AU122: 3900778 | AV122: 28651 | AW122: 28651 | AY122: 336.05 | AZ122: 9.91 | BC122: 3.9 | BD122: 3.9 | BE122: 2.733078807 | BF122: 236138.0089 | BG122: 100 | BH122: 120 | BI122: 0 | BJ122: -3.867179193 | BK122: 3792650 | BL122: 871494 | BM122: 37477 | BN122: 37477 | BP122: 336.23 | BQ122: 10.09 | BR122: 11 | BS122: 15.4 | BT122: 3.9 | BU122: 3.547 | BV122: 26.96428458 | BW122: 2329714.188 | BX122: 100 | BY122: 109.1384615 | BZ122: 0 | CA122: 24.23120577 | CB122: 7790412 | CC122: 8913208 | CD122: 39708 | CE122: 39708 | CG122: 336.12 | CH122: 9.98 | CI122: 35 | CJ122: 11.3 | CK122: 3.8 | CL122: =CK122-0.353 -> 3.447 | CM122: 10.16176195 | CN122: 877976.2329 | CO122: 100 | CP122: 100 | CQ122: 0 | CR122: -16.80252263 | CS122: 3142174 | CT122: 6998843 | CU122: 39089 | CV122: 39089 | CX122: 336.11 | CY122: 9.97 | DB122: 3.8 | DC122: 3.447 | DD122: 8.918384162 | DE122: 770548.3916 | DF122: 100 | DG122: 99.647 | DH122: 0 | DI122: -1.243377793 | DL122: 0 | DM122: 0 | DN122: 329.94 | DO122: 3.8 | DP122: 11 | DQ122: 10 | DR122: 1.28 | DS122: 0.927 | DV122: 33.68421053 | DW122: 33.33121053 | DX122: -66.31578947 | DZ122: 7901541 | EB122: -60265794 | EC122: -60265794 | ED122: 336.18 | EE122: 10.04 | EF122: 0 | EG122: 0 | EH122: 3.8 | EI122: 3.447 | EJ122: 18.66834876 | EK122: 1612945.333 | EL122: 100 | EM122: 99.647 | EN122: 66.31578947 | EO122: 17.74134876 | EP122: 9232 | EQ122: 19879 | ER122: 29111 | ES122: 336.08 | ET122: 9.94 | EW122: 3.8 | EX122: 3.447 | EY122: 5.531362595 | EZ122: 477909.7282 | FA122: 100 | FB122: 100 | FC122: 0 | FD122: 2.084362595 | FE122: 11612 | FF122: 21290 | FG122: 32902 | FH122: 336.08 | FI122: 9.94 | FJ122: 0 | FK122: 0 | FL122: 3.8 | FM122: 3.447 | FN122: 5.531362595 | FO122: 477909.7282 | FP122: 100 | FQ122: 100 | FR122: 0 | FS122: 2.084362595 | FT122: 14279 | FU122: 18361 | FV122: 32640 | GK122: 0
A123: 2024-01-28 | B123: 2024-01-28 | C123: 336 | D123: 327 | E123: 0.353 | F123: 9.99 | H123: 336.13 | I123: 0 | J123: 336.07 | K123: 9.93 | M123: 3.9 | N123: 3.547 | O123: 4.527351437 | P123: 391163.1642 | Q123: 100 | R123: 1.091384615 | S123: 334.35 | T123: 8.21 | U123: 31.5 | Z123: 0 | AA123: 0 | AD123: 0 | AF123: 336 | AH123: 336.1 | AI123: 9.96 | AJ123: 5.3 | AK123: 10 | AL123: 3.9 | AM123: 3.547 | AN123: 7.730314231 | AO123: 667899.1496 | AP123: 100 | AQ123: 109.1384615 | AR123: 100 | AS123: 7.730314231 | AT123: 8285058 | AU123: 3917795 | AV123: 30695 | AW123: 30695 | AY123: 336.05 | AZ123: 9.91 | BC123: 3.9 | BD123: 3.9 | BE123: 2.733 | BF123: 236131.2 | BG123: 100 | BH123: 120 | BI123: 0 | BJ123: -4.997314231 | BK123: 3810172 | BL123: 896399 | BM123: 42427 | BN123: 42427 | BP123: 336.19 | BQ123: 10.05 | BT123: 3.9 | BU123: 3.547 | BV123: 20.24545536 | BW123: 1749207.343 | BX123: 100 | BY123: 109.1384615 | BZ123: 0 | CA123: 17.51245536 | CB123: 7807487 | CC123: 8932510 | CD123: 36377 | CE123: 36377 | CG123: 336.12 | CH123: 9.98 | CK123: 3.8 | CL123: =CK123-0.353 -> 3.447 | CM123: 10.16176195 | CN123: 877976.2329 | CO123: 100 | CP123: 100 | CQ123: 0 | CR123: -10.08369341 | CS123: 3156645 | CT123: 7023485 | CU123: 39113 | CV123: 39113 | CX123: 336.34 | CY123: 10.2 | CZ123: 24 | DA123: 25 | DB123: 3.8 | DC123: 3.447 | DD123: 48.46358349 | DE123: 4187253.614 | DF123: 100 | DG123: 99.647 | DH123: 0 | DI123: 38.30182154 | DL123: 0 | DM123: 0 | DN123: 330.49 | DO123: 4.35 | DQ123: 5.3 | DR123: 1.35 | DS123: 0.997 | DV123: =(DR123/3.8)*100 -> 35.52631579 | DW123: 35.17331579 | DX123: -64.47368421 | DZ123: 7905571 | EB123: -60261764 | EC123: -60261764 | ED123: 336.09 | EE123: 9.95 | EF123: 2 | EG123: 0 | EH123: 3.8 | EI123: 3.447 | EJ123: 6.600258 | EK123: 570262.2912 | EL123: =(EH123/3.8)*100 -> 100 | EM123: 99.647 | EN123: 64.47368421 | EO123: 5.603258 | EP123: 12866 | EQ123: 16215 | ER123: 29081 | ES123: 336.11 | ET123: 9.97 | EV123: 5 | EW123: 3.8 | EX123: 3.447 | EY123: 8.918384162 | EZ123: 770548.3916 | FA123: =(EW123/3.8)*100 -> 100 | FB123: 100 | FC123: 0 | FD123: 5.471384162 | FE123: 12414 | FF123: 20226 | FG123: 32640 | FH123: 336.07 | FI123: 9.93 | FJ123: 0 | FK123: 0 | FL123: 3.8 | FM123: 3.447 | FN123: 4.527351437 | FO123: 391163.1642 | FP123: =(FL123/3.8)*100 -> 100 | FQ123: 100 | FR123: 0 | FS123: 1.080351437 | FT123: 8206 | FU123: 11374 | FV123: 19580 | GK123: 0
A124: 2024-01-29 | B124: 2024-01-29 | C124: 336 | D124: 327 | E124: 0.353 | F124: 9.96 | G124: 28 | H124: 336.1 | I124: 0 | J124: 336.08 | K124: 9.94 | M124: 3.9 | N124: 3.547 | O124: 5.531362595 | P124: 477909.7282 | Q124: 100 | R124: 1.091384615 | S124: 334.48 | T124: 8.34 | U124: 229 | Z124: 0 | AA124: 0 | AD124: 0 | AF124: 336 | AH124: 336.08 | AI124: 9.94 | AL124: 3.9 | AM124: 3.547 | AN124: 5.531362595 | AO124: 477909.7282 | AP124: 100 | AQ124: 109.1384615 | AR124: 100 | AS124: 5.531362595 | AT124: 8299922 | AU124: 3934963 | AV124: 32032 | AW124: 32032 | AY124: 336.04 | AZ124: 9.9 | BB124: 4.1 | BC124: 3.9 | BD124: 3.9 | BE124: 1.955632 | BF124: 168966.6048 | BG124: 100 | BH124: 120 | BI124: 0 | BJ124: -3.575730595 | BK124: 3826864 | BL124: 917160 | BM124: 37453 | BN124: 37453 | BP124: 336.21 | BQ124: 10.07 | BR124: 2.4 | BS124: 3 | BT124: 3.9 | BU124: =BT124-E124 -> 3.547 | BV124: =((BP124-336)^(3/2))*1.838*133 -> 23.52480814 | BW124: 2032543.423 | BX124: 100 | BY124: 109.1384615 | BZ124: 0 | CA124: 21.56917614 | CB124: 7825130 | CC124: 8954880 | CD124: 40013 | CE124: 40013 | CG124: 336.11 | CH124: 9.97 | CK124: 3.8 | CL124: 3.447 | CM124: 8.918384162 | CN124: 770548.3916 | CO124: 100 | CP124: 100 | CQ124: 0 | CR124: -14.60642398 | CS124: 3175543 | CT124: 7048823 | CU124: 44236 | CV124: 44236 | CX124: 336.19 | CY124: 10.05 | DA124: 23.3 | DB124: 3.8 | DC124: 3.447 | DD124: 20.24545536 | DE124: 1749207.343 | DF124: 100 | DG124: 99.647 | DH124: 0 | DI124: 11.3270712 | DL124: 0 | DM124: 0 | DN124: 330.99 | DO124: 4.85 | DR124: 1.52 | DS124: 1.167 | DV124: 40 | DW124: =DV124-0.353 -> 39.647 | DX124: -60 | DZ124: 7909841 | EB124: -60257494 | EC124: -60257494 | ED124: 336.11 | EE124: 9.97 | EF124: 0 | EG124: 5.3 | EH124: 3.8 | EI124: 3.447 | EJ124: 8.918384162 | EK124: 770548.3916 | EL124: 100 | EM124: 99.647 | EN124: 60 | EO124: 7.751384162 | EP124: 11722 | EQ124: 25104 | ER124: 36826 | ES124: 336.14 | ET124: 10 | EV124: 4 | EW124: 3.8 | EX124: 3.447 | EY124: 12.80528361 | EZ124: 1106376.504 | FA124: 100 | FB124: 100 | FC124: 0 | FD124: 9.358283608 | FE124: 9930 | FF124: 22710 | FG124: 32640 | FH124: 336.08 | FI124: 9.94 | FJ124: 0 | FK124: 0 | FL124: 3.8 | FM124: 3.447 | FN124: 5.531362595 | FO124: 477909.7282 | FP124: 100 | FQ124: 100 | FR124: 0 | FS124: 2.084362595 | FT124: 14908 | FU124: 17772 | FV124: 32680 | GK124: 0
A125: 2024-01-30 | B125: 2024-01-30 | C125: 336 | D125: 327 | E125: 0.353 | F125: 10.09 | G125: 26.3 | H125: 336.23 | I125: 0 | J125: 336.09 | K125: 9.95 | M125: 3.9 | N125: 3.547 | O125: 6.600258 | P125: 570262.2912 | Q125: 100 | R125: 1.091384615 | S125: 335.28 | T125: 9.14 | U125: 0 | V125: 3.45 | Z125: 88.46153846 | AA125: 0 | AD125: 0 | AF125: 336 | AH125: 336.09 | AI125: 9.95 | AL125: 3.9 | AM125: 3.547 | AN125: 6.600258 | AO125: 570262.2912 | AP125: 100 | AQ125: 109.1384615 | AR125: =AP125-Z125 -> 11.53846154 | AS125: 6.600258 | AT125: 8320029 | AU125: 3946795 | AV125: 31939 | AW125: 31939 | AY125: 336.05 | AZ125: 9.91 | BC125: 3.9 | BD125: 0.45 | BE125: 2.733078807 | BF125: 236138.0089 | BG125: 100 | BH125: 13.84615385 | BI125: 0 | BJ125: -3.867179193 | BK125: 3844985 | BL125: 940955 | BM125: 41916 | BN125: 41916 | BP125: 336.35 | BQ125: 10.21 | BR125: 25 | BS125: 35 | BT125: 3.9 | BU125: =BT125-E125 -> 3.547 | BV125: 50.61732786 | BW125: 4373337.127 | BX125: 100 | BY125: 109.1384615 | BZ125: 0 | CA125: 47.88424905 | CB125: 7835189 | CC125: 8976880 | CD125: 32059 | CE125: 32059 | CG125: 336.09 | CH125: 9.95 | CK125: 3.8 | CL125: 3.447 | CM125: 6.600258 | CN125: 570262.2912 | CO125: 100 | CP125: 100 | CQ125: 0 | CR125: -44.01706986 | CS125: 3186249 | CT125: 7072984 | CU125: 34867 | CV125: 34867 | CX125: 336.17 | CY125: 10.03 | DB125: 3.8 | DC125: 3.447 | DD125: 17.13446426 | DE125: 1480417.712 | DF125: 100 | DG125: 99.647 | DH125: 0 | DI125: 10.53420626 | DL125: 0 | DM125: 0 | DN125: 331.15 | DO125: 5.01 | DR125: 1.58 | DS125: 1.227 | DV125: 41.57894737 | DW125: 41.22594737 | DX125: -58.42105263 | DZ125: 7915034 | EB125: -60252301 | EC125: -60252301 | ED125: 336.09 | EE125: 9.95 | EF125: 0 | EG125: 0 | EH125: 3.8 | EI125: 3.447 | EJ125: 6.600258 | EK125: 570262.2912 | EL125: 100 | EM125: 99.647 | EN125: 58.42105263 | EO125: 5.373258 | EP125: 10808 | EQ125: 18000 | ER125: 28808 | ES125: 336.22 | ET125: 10.08 | EV125: 26.1 | EW125: 3.8 | EX125: 3.447 | EY125: 25.22499967 | EZ125: 2179439.972 | FA125: 100 | FB125: 100 | FC125: 0 | FD125: 21.77799967 | FE125: 13833 | FF125: 18423 | FG125: 32256 | FH125: 336.07 | FI125: 9.93 | FJ125: 0 | FK125: 0 | FL125: 3.8 | FM125: 3.447 | FN125: 4.527351437 | FO125: 391163.1642 | FP125: 100 | FQ125: 100 | FR125: 0 | FS125: 1.080351437 | FT125: 14509 | FU125: 16691 | FV125: 31200 | GK125: 0
A126: 2024-01-31 | B126: 2024-01-31 | C126: 336 | D126: 327 | E126: 0.353 | F126: 10.01 | G126: 4 | H126: 336.15 | I126: 0 | J126: 336.11 | K126: 9.97 | M126: 3.9 | N126: 3.547 | O126: 8.918384162 | P126: 770548.3916 | Q126: 100 | R126: 1.091384615 | S126: 335.86 | T126: 9.72 | U126: 54 | V126: 3.6 | W126: 3.9 | X126: =((S126-336)^(3/2))*1.838*133 ->  | Z126: 92.30769231 | AA126: 120 | AD126: 0 | AF126: 336 | AH126: 336.08 | AI126: 9.94 | AJ126: 18 | AK126: 10 | AL126: 3.9 | AM126: 3.547 | AN126: 5.531362595 | AO126: 477909.7282 | AP126: 100 | AQ126: 109.1384615 | AR126: 7.692307692 | AS126: =AN126-X126 ->  | AT126: 8335975 | AU126: 3967989 | AV126: 37140 | AW126: 37140 | AY126: 336.04 | AZ126: 9.9 | BC126: 3.9 | BD126: 0.3 | BE126: 1.955632 | BF126: 168966.6048 | BG126: 100 | BH126: 9.230769231 | BI126: 0 | BJ126: -3.575730595 | BK126: 3862199 | BL126: 964431 | BM126: 40690 | BN126: 40690 | BP126: 336.23 | BQ126: 10.09 | BT126: 3.9 | BU126: =BT126-E126 -> 3.547 | BV126: 26.96428458 | BW126: 2329714.188 | BX126: 100 | BY126: 109.1384615 | BZ126: 0 | CA126: 25.00865258 | CB126: 7846371 | CC126: 8990058 | CD126: 24360 | CE126: 24360 | CG126: 336.08 | CH126: 9.94 | CK126: 3.8 | CL126: 3.447 | CM126: 5.531362595 | CN126: 477909.7282 | CO126: 100 | CP126: 100 | CQ126: 0 | CR126: -21.43292199 | CS126: 3196547 | CT126: 7090361 | CU126: 27675 | CV126: 27675 | CX126: 336.17 | CY126: 10.03 | DB126: 3.8 | DC126: 3.447 | DD126: 17.13446426 | DE126: 1480417.712 | DF126: 100 | DG126: 99.647 | DH126: 0 | DI126: 11.60310167 | DL126: 0 | DM126: 0 | DN126: 331.23 | DO126: 5.09 | DR126: 1.61 | DS126: 1.257 | DV126: 42.36842105 | DW126: 42.01542105 | DX126: -57.63157895 | DZ126: 7920718 | EB126: -60246617 | EC126: -60246617 | ED126: 336.08 | EE126: 9.94 | EF126: 0 | EG126: 0 | EH126: 3.8 | EI126: 3.447 | EJ126: 5.531362595 | EK126: 477909.7282 | EL126: 100 | EM126: 99.647 | EN126: 57.63157895 | EO126: 4.274362595 | EP126: 11140 | EQ126: 22606 | ER126: 33746 | ES126: 336.14 | ET126: 10 | EV126: 25 | EW126: 3.8 | EX126: 3.447 | EY126: 12.80528361 | EZ126: 1106376.504 | FA126: 100 | FB126: 100 | FC126: 0 | FD126: 9.358283608 | FE126: 11291 | FF126: 20656 | FG126: 31947 | FH126: 336.08 | FI126: 9.94 | FJ126: 0 | FK126: 0 | FL126: 3.8 | FM126: 3.447 | FN126: 5.531362595 | FO126: 477909.7282 | FP126: 100 | FQ126: 100 | FR126: 0 | FS126: 2.084362595 | FT126: 11397 | FU126: 14003 | FV126: 25400 | GK126: 0
A127: 2024-02-01 | B127: 2024-02-01 | C127: 336 | D127: 327 | E127: 0.353 | F127: 9.99 | G127: 10.5 | H127: 336.13 | I127: 0 | J127: 336.09 | K127: 9.95 | M127: 3.9 | N127: 3.547 | O127: 6.600258 | P127: 570262.2912 | Q127: 100 | R127: 1.091384615 | S127: 336.13 | T127: 9.99 | V127: 3.9 | W127: =3.9-0.65 -> 3.25 | X127: =((S127-336)^(3/2))*1.838*133 -> 11.45808861 | Y127: =X127*24*3600 -> 989978.8559 | Z127: 100 | AA127: 100 | AD127: 0 | AE127: =X127-O127 -> 4.857830609 | AF127: 336 | AH127: 336.14 | AI127: 10 | AJ127: 53 | AK127: 5 | AL127: 3.9 | AM127: 3.547 | AN127: 10.8 | AO127: 933120 | AP127: 100 | AQ127: 109.1384615 | AR127: 0 | AS127: -0.6580886094 | AT127: 8351600 | AU127: 3982630 | AV127: 30266 | AW127: 30266 | AY127: 336.03 | AZ127: 9.89 | BC127: 3.9 | BD127: 0 | BE127: 1.270220244 | BF127: 109747.0291 | BG127: 100 | BH127: 0 | BI127: 0 | BJ127: -9.529779756 | BK127: 3877696 | BL127: 986702 | BM127: 37768 | BN127: 37768 | BP127: 336.19 | BQ127: 10.05 | BT127: 3.9 | BU127: 3.547 | BV127: 20.24545536 | BW127: 1749207.343 | BX127: 100 | BY127: 109.1384615 | BZ127: 0 | CA127: 18.97523512 | CB127: 7855838 | CC127: 9009076 | CD127: =CB127+CC127-(CB126+CC126) -> 28485 | CE127: 28485 | CG127: 336.08 | CH127: 9.94 | CK127: 3.8 | CL127: 3.447 | CM127: 5.531362595 | CN127: 477909.7282 | CO127: 100 | CP127: 100 | CQ127: 0 | CR127: -14.71409277 | CS127: 3211362 | CT127: 7115209 | CU127: 39663 | CV127: 39663 | CX127: 336.14 | CY127: 10 | DA127: 16 | DB127: 3.8 | DC127: 3.447 | DD127: 12.80528361 | DE127: 1106376.504 | DF127: 100 | DG127: 99.647 | DH127: 0 | DI127: 7.273921013 | DL127: 0 | DM127: 0 | DN127: 331.49 | DO127: 5.35 | DR127: 1.69 | DS127: 1.337 | DV127: 44.47368421 | DW127: 44.12068421 | DX127: -55.52631579 | EB127: -68167335 | EC127: -68167335 | ED127: 336.08 | EE127: 9.94 | EF127: 0 | EG127: 0 | EH127: 3.8 | EI127: 3.447 | EJ127: 5.531362595 | EK127: 477909.7282 | EL127: 100 | EM127: 99.647 | EN127: 55.52631579 | EO127: 4.194362595 | EP127: 6936 | EQ127: 15318 | ER127: 22254 | ES127: 336.13 | ET127: 9.99 | EW127: 3.8 | EX127: 3.447 | EY127: 11.45808861 | EZ127: 989978.8559 | FA127: 100 | FB127: 100 | FC127: 0 | FD127: 8.011088609 | FE127: 11730 | FF127: 20632 | FG127: 32362 | FH127: 336.11 | FI127: 9.97 | FJ127: 70 | FK127: 105 | FL127: 3.8 | FM127: 3.447 | FN127: 8.918384162 | FO127: 770548.3916 | FP127: 100 | FQ127: 100 | FR127: 0 | FS127: 5.471384162 | FT127: 12873 | FU127: 19047 | FV127: 31920 | GK127: 0
A128: 2024-02-02 | B128: 2024-02-02 | C128: 336 | D128: 327 | E128: 0.353 | F128: 10.02 | G128: 2.7 | H128: 336.16 | I128: 0 | J128: 336.09 | K128: 9.95 | M128: 3.9 | N128: 3.547 | O128: 6.600258 | P128: 570262.2912 | Q128: 100 | R128: 1.091384615 | S128: 336.11 | T128: 9.97 | U128: 5.2 | V128: 3.9 | W128: =3.9-0.65 -> 3.25 | X128: 8.918384162 | Y128: =X128*24*3600 -> 770548.3916 | Z128: 100 | AA128: 100 | AD128: 0 | AE128: 2.318126162 | AF128: 336 | AH128: 336.09 | AI128: 9.95 | AL128: 3.9 | AM128: 3.547 | AN128: 6.600258 | AO128: 570262.2912 | AP128: 100 | AQ128: 109.1384615 | AR128: 0 | AS128: -2.318126162 | AT128: 8369448 | AU128: 4004120 | AV128: =AT129+AU129-(AT127+AU127) -> 70816 | AW128: 70816 | AY128: 336.06 | AZ128: 9.92 | BA128: 21 | BC128: 3.9 | BD128: 0 | BE128: =((AY128-336)^(3/2))*1.838*133 -> 3.592725393 | BF128: 310411.474 | BG128: 100 | BH128: 0 | BI128: 0 | BJ128: -3.007532607 | BK128: 3893404 | BL128: 1009979 | BM128: 38985 | BN128: 38985 | BP128: 336.18 | BQ128: 10.04 | BT128: 3.9 | BU128: 3.547 | BV128: 18.66834876 | BW128: 1612945.333 | BX128: 100 | BY128: 109.1384615 | BZ128: 0 | CA128: 15.07562336 | CB128: 7873529 | CC128: 9030650 | CD128: =CB128+CC128-(CB127+CC127) -> 39265 | CE128: 39265 | CG128: 336.09 | CH128: 9.95 | CI128: 8 | CK128: 3.8 | CL128: 3.447 | CM128: 6.600258 | CN128: 570262.2912 | CO128: 100 | CP128: 100 | CQ128: =CO128-BX128 -> 0 | CR128: -12.06809076 | CS128: 3226475 | CT128: 7140205 | CU128: 40109 | CV128: 40109 | CX128: 336.1 | CY128: 9.96 | CZ128: 64 | DB128: 3.8 | DC128: 3.447 | DD128: 7.730314231 | DE128: 667899.1496 | DF128: 100 | DG128: 99.647 | DH128: =DF128-CO128 -> 0 | DI128: 1.130056231 | DL128: 0 | DM128: 0 | DN128: 331.52 | DO128: 5.38 | DR128: 1.7 | DS128: 1.347 | DV128: 44.73684211 | DW128: 44.38384211 | DX128: -55.26315789 | EB128: -68167335 | EC128: -68167335 | ED128: 336.08 | EE128: 9.94 | EF128: 0 | EG128: 0 | EH128: 3.8 | EI128: 3.447 | EJ128: 5.531362595 | EK128: 477909.7282 | EL128: 100 | EM128: 99.647 | EN128: 55.26315789 | EO128: 4.184362595 | EP128: 11049 | EQ128: 26350 | ER128: 37399 | ES128: 336.09 | ET128: 9.95 | EW128: 3.8 | EX128: 3.447 | EY128: 6.600258 | EZ128: 570262.2912 | FA128: 100 | FB128: 100 | FC128: 0 | FD128: 3.153258 | FE128: 11223 | FF128: 20781 | FG128: 32004 | FH128: 336.11 | FI128: 9.97 | FJ128: 0 | FK128: 0 | FL128: 3.8 | FM128: 3.447 | FN128: 8.918384162 | FO128: 770548.3916 | FP128: 100 | FQ128: 100 | FR128: 0 | FS128: 5.471384162 | FT128: 13744 | FU128: 17441 | FV128: 31185 | GK128: 0
A129: 2024-02-03 | B129: 2024-02-03 | C129: 336 | D129: 327 | E129: 0.353 | F129: 9.99 | H129: 336.13 | I129: 0 | J129: 336.08 | K129: 9.94 | M129: 3.9 | N129: 3.547 | O129: 5.531362595 | P129: 477909.7282 | Q129: 100 | R129: 1.091384615 | S129: 336.1 | T129: 9.96 | V129: 3.9 | W129: 3.25 | X129: 7.730314231 | Y129: 667899.1496 | Z129: 100 | AA129: 100 | AD129: 0 | AE129: 2.198951637 | AF129: 336 | AH129: 336.08 | AI129: 9.94 | AJ129: 34 | AK129: 9.4 | AL129: 3.9 | AM129: 3.547 | AN129: 5.531362595 | AO129: 477909.7282 | AP129: 100 | AQ129: 109.1384615 | AR129: 0 | AS129: -2.198951637 | AT129: 8383839 | AU129: 4021207 | AV129: =AT130+AU130-(AT129+AU129) -> 34969 | AW129: 34969 | AY129: 336.08 | AZ129: 9.94 | BA129: 9.3 | BB129: 18.2 | BC129: 3.9 | BD129: 0 | BE129: 5.531362595 | BF129: 477909.7282 | BG129: 100 | BH129: 0 | BI129: 0 | BJ129: 0 | BK129: 3908899 | BL129: 1034663 | BM129: 40179 | BN129: 40179 | BP129: 336.26 | BQ129: 10.12 | BT129: 3.9 | BU129: 3.547 | BV129: 32.40836862 | BW129: 2800083.049 | BX129: 100 | BY129: 109.1384615 | BZ129: 0 | CA129: 26.87700603 | CB129: 7855838 | CC129: 9009076 | CD129: =CB129+CC129-(CB128+CC128) -> -39265 | CG129: 336.09 | CH129: 9.95 | CK129: 3.8 | CL129: 3.447 | CM129: 6.600258 | CN129: 570262.2912 | CO129: 100 | CP129: 100 | CQ129: =CO129-BX129 -> 0 | CR129: -25.80811062 | CS129: 3241277 | CT129: 7165152 | CU129: 39749 | CV129: 39749 | CX129: 336.13 | CY129: 9.99 | DB129: 3.8 | DC129: 3.447 | DD129: 11.45808861 | DE129: 989978.8559 | DF129: 100 | DG129: 99.647 | DH129: =DF129-CO129 -> 0 | DI129: 4.857830609 | DL129: 0 | DM129: 0 | DN129: 331.56 | DO129: 5.42 | DR129: 1.72 | DS129: 1.367 | DV129: 45.26315789 | DW129: 44.91015789 | DX129: -54.73684211 | EB129: -68167335 | EC129: -68167335 | ED129: 336.07 | EE129: 9.93 | EF129: 0 | EG129: 0 | EH129: 3.8 | EI129: 3.447 | EJ129: 4.527351437 | EK129: 391163.1642 | EL129: 100 | EM129: 99.647 | EN129: 54.73684211 | EO129: 3.160351437 | EP129: 11272 | EQ129: 18879 | ER129: 30151 | ES129: 336.1 | ET129: 9.96 | EV129: 5 | EW129: 3.8 | EX129: 3.447 | EY129: 7.730314231 | EZ129: 667899.1496 | FA129: 100 | FB129: 100 | FC129: 0 | FD129: 4.283314231 | FE129: 11230 | FF129: 20425 | FG129: 31655 | FH129: 336.1 | FI129: 9.96 | FJ129: 0 | FK129: 0 | FL129: 3.8 | FM129: 3.447 | FN129: 7.730314231 | FO129: 667899.1496 | FP129: 100 | FQ129: 100 | FR129: 0 | FS129: 4.283314231 | FT129: 13880 | FU129: 17190 | FV129: 31070 | GK129: 0
A130: 2024-02-04 | B130: 2024-02-04 | C130: 336 | D130: 327 | E130: 0.353 | F130: 9.96 | G130: 9 | H130: 336.1 | I130: 0 | J130: 336.1 | K130: 9.96 | M130: 3.9 | N130: 3.547 | O130: 7.730314231 | P130: 667899.1496 | Q130: 100 | R130: 1.091384615 | S130: 336.09 | T130: 9.95 | V130: 3.9 | W130: 3.25 | X130: 6.600258 | Y130: 570262.2912 | Z130: 100 | AA130: 100 | AD130: 0 | AE130: -1.130056231 | AF130: 336 | AH130: 336.1 | AI130: 9.96 | AJ130: 95 | AK130: 8 | AL130: 3.9 | AM130: 3.547 | AN130: 7.730314231 | AO130: 667899.1496 | AP130: 100 | AQ130: 109.1384615 | AR130: 0 | AS130: 1.130056231 | AT130: 8400644 | AU130: 4039371 | AV130: =AT131+AU131-(AT130+AU130) -> 34641 | AW130: 34641 | AY130: 336.07 | AZ130: 9.93 | BA130: 26 | BB130: 9 | BC130: 3.9 | BD130: 0 | BE130: 4.527351437 | BF130: 391163.1642 | BG130: 100 | BH130: 0 | BI130: 0 | BJ130: -3.202962794 | BK130: 3924054 | BL130: 1057210 | BM130: 37702 | BN130: 37702 | BP130: 336.19 | BQ130: 10.05 | BT130: 3.9 | BU130: 3.547 | BV130: 20.24545536 | BW130: 1749207.343 | BX130: 100 | BY130: 109.1384615 | BZ130: 0 | CA130: 15.71810393 | CB130: 7873529 | CC130: 9030650 | CD130: 39265 | CE130: 39265 | CG130: 336.09 | CH130: 9.95 | CK130: 3.8 | CL130: 3.447 | CM130: 6.600258 | CN130: 570262.2912 | CO130: 100 | CP130: 100 | CQ130: =CO130-BX130 -> 0 | CR130: -13.64519736 | CS130: 3256365 | CT130: 7190280 | CU130: 40216 | CV130: 40216 | CX130: 336.11 | CY130: 9.97 | CZ130: 16.2 | DB130: 3.8 | DC130: 3.447 | DD130: 8.918384162 | DE130: 770548.3916 | DF130: 100 | DG130: 99.647 | DH130: =DF130-CO130 -> 0 | DI130: 2.318126162 | DL130: 0 | DM130: 0 | DN130: 331.58 | DO130: 5.44 | DR130: 1.725 | DS130: 1.372 | DV130: 45.39473684 | DW130: 45.04173684 | DX130: -54.60526316 | EB130: -68167335 | EC130: -68167335 | ED130: 336.07 | EE130: 9.93 | EF130: 0 | EG130: 0 | EH130: 3.8 | EI130: 3.447 | EJ130: 4.527351437 | EK130: 391163.1642 | EL130: 100 | EM130: 99.647 | EN130: 54.60526316 | EO130: 3.155351437 | EP130: 11155 | EQ130: 23042 | ER130: 34197 | ES130: 336.13 | ET130: 9.99 | EV130: 90 | EW130: 3.8 | EX130: 3.447 | EY130: 11.45808861 | EZ130: 989978.8559 | FA130: 100 | FB130: 100 | FC130: 0 | FD130: 8.011088609 | FE130: 10493 | FF130: 21661 | FG130: 32154 | FH130: 336.11 | FI130: 9.97 | FJ130: 0 | FK130: 0 | FL130: 3.8 | FM130: 3.447 | FN130: 8.918384162 | FO130: 770548.3916 | FP130: 100 | FQ130: 100 | FR130: 0 | FS130: 5.471384162 | FT130: 14507 | FU130: 17413 | FV130: 31920 | GK130: 0
A131: 2024-02-05 | B131: 2024-02-05 | C131: 336 | D131: 327 | E131: 0.353 | F131: 9.98 | H131: 336.12 | I131: 0 | J131: =336-(9.86-K131) -> 336.13 | K131: 9.99 | M131: 3.9 | N131: 3.547 | O131: 11.45808861 | P131: 989978.8559 | Q131: 100 | R131: 1.091384615 | S131: =336-(9.86-T131) -> 336.09 | T131: 9.95 | V131: 3.9 | W131: 3.25 | X131: 6.600258 | Y131: 570262.2912 | Z131: 100 | AA131: 100 | AD131: 0 | AE131: -4.857830609 | AF131: 336 | AH131: 336.18 | AI131: 10.04 | AJ131: 48 | AK131: 12 | AL131: 3.9 | AM131: 3.547 | AN131: 18.66834876 | AO131: 1612945.333 | AP131: 100 | AQ131: 109.1384615 | AR131: 0 | AS131: 12.06809076 | AT131: 8415000 | AU131: 4059656 | AV131: =AT132+AU132-(AT131+AU131) -> 37443 | AW131: 37443 | AY131: 336.06 | AZ131: 9.92 | BA131: 6 | BB131: 3 | BC131: 3.9 | BD131: 0 | BE131: 3.592725393 | BF131: 310411.474 | BG131: 100 | BH131: 0 | BI131: 0 | BJ131: -15.07562336 | BK131: 3939525 | BL131: 1038909 | BM131: -2830 | BP131: 336.16 | BQ131: 10.02 | BT131: 3.9 | BU131: 3.547 | BV131: 15.645056 | BW131: 1351732.838 | BX131: 100 | BY131: 109.1384615 | BZ131: 0 | CA131: 12.05233061 | CB131: 7891034 | CC131: 9053754 | CD131: 40609 | CE131: 40609 | CG131: 336.08 | CH131: 9.94 | CK131: 3.8 | CL131: 3.447 | CM131: 5.531362595 | CN131: 477909.7282 | CO131: 100 | CP131: 100 | CQ131: =CO131-BX131 -> 0 | CR131: -10.11369341 | CS131: 3271273 | CT131: 7214919 | CU131: 39547 | CV131: 39547 | CX131: 336.11 | CY131: 9.97 | CZ131: 6 | DB131: 3.8 | DC131: 3.447 | DD131: 8.918384162 | DE131: 770548.3916 | DF131: 100 | DG131: 99.647 | DH131: =DF131-CO131 -> 0 | DI131: 3.387021567 | DL131: 0 | DM131: 0 | DN131: 331.56 | DO131: 5.42 | DR131: 1.72 | DS131: 1.367 | DV131: 45.26315789 | DW131: 44.91015789 | DX131: -54.73684211 | EB131: -68167335 | EC131: -68167335 | ED131: 336.08 | EE131: 9.94 | EF131: 5 | EG131: 21.4 | EH131: 3.8 | EI131: 3.447 | EJ131: =((ED131-336)^(3/2))*1.838*133 -> 5.531362595 | EK131: 477909.7282 | EL131: 100 | EM131: 99.647 | EN131: 54.73684211 | EO131: 4.164362595 | EP131: 10614 | EQ131: 20376 | ER131: 30990 | ES131: 336.1 | ET131: 9.96 | EW131: 3.8 | EX131: 3.447 | EY131: =((ES131-336)^(3/2))*1.838*133 -> 7.730314231 | EZ131: 667899.1496 | FA131: 100 | FB131: 100 | FC131: 0 | FD131: 4.283314231 | FE131: 11429 | FF131: 10685 | FG131: 22114 | FH131: 336.32 | FI131: 10.18 | FJ131: 0 | FK131: 26 | FL131: 3.8 | FM131: 3.447 | FN131: =((FH131-336)^(3/2))*1.838*133 -> 44.25090076 | FO131: 3823277.826 | FP131: 100 | FQ131: 100 | FR131: 0 | FS131: 40.80390076 | FT131: 13325 | FU131: 18355 | FV131: 31680 | GK131: 0
A132: 2024-02-06 | B132: 2024-02-06 | C132: 336 | D132: 327 | E132: 0.353 | F132: 10 | G132: 12 | H132: 336.14 | I132: 0 | J132: 336.12 | K132: 9.98 | M132: 3.9 | N132: 3.547 | O132: 10.16176195 | P132: 877976.2329 | Q132: =(M132/3.9)*100 -> 100 | R132: 1.091384615 | S132: 336.09 | T132: 9.95 | U132: 21 | V132: 3.9 | W132: 3.25 | X132: 6.600258 | Y132: 570262.2912 | Z132: 100 | AA132: 100 | AD132: 0 | AE132: -3.561503955 | AF132: 336 | AH132: 336.29 | AI132: 10.15 | AJ132: 124 | AK132: 13.4 | AL132: 3.9 | AM132: =AL132-E132 -> 3.547 | AN132: 38.17632726 | AO132: 3298434.675 | AP132: 100 | AQ132: 109.1384615 | AR132: =AP132-Z132 -> 0 | AS132: =AN132-X132 -> 31.57606926 | AT132: 8429384 | AU132: 4082715 | AV132: =AT133+AU133-(AT132+AU132) -> 33460 | AW132: 33460 | AY132: =336-(9.86-AZ132) -> 336.07 | AZ132: 9.93 | BC132: 3.9 | BD132: =BC132-V132 -> 0 | BE132: 4.527351437 | BF132: =BE132*24*3600 -> 391163.1642 | BG132: 100 | BH132: 0 | BI132: 0 | BJ132: =BE132-AN132 -> -33.64897582 | BK132: 3954592 | BL132: 1101649 | BM132: 77807 | BN132: 77807 | BP132: 336.15 | BQ132: 10.01 | BT132: 3.9 | BU132: 3.547 | BV132: 14.20149406 | BW132: 1227009.087 | BX132: 100 | BY132: 109.1384615 | BZ132: 0 | CA132: =BV132-BE132 -> 9.674142627 | CB132: 7935168 | CC132: 9104655 | CD132: 95035 | CE132: 95035 | CG132: 336.08 | CH132: 9.94 | CK132: 3.8 | CL132: 3.447 | CM132: 5.531362595 | CN132: 477909.7282 | CO132: 100 | CP132: 100 | CQ132: =CO132-BX132 -> 0 | CR132: -8.670131469 | CS132: 3286498 | CT132: 7239431 | CU132: 39737 | CV132: 39737 | CX132: 336.14 | CY132: 10 | CZ132: 50 | DB132: 3.8 | DC132: 3.447 | DD132: 12.80528361 | DE132: 1106376.504 | DF132: =(DB132/3.8)*100 -> 100 | DG132: =DF132-0.353 -> 99.647 | DH132: =DF132-CO132 -> 0 | DI132: 7.273921013 | DL132: 0 | DM132: 0 | DN132: 331.58 | DO132: 5.44 | DR132: 1.725 | DS132: 1.372 | DV132: 45.39473684 | DW132: 45.04173684 | DX132: -54.60526316 | EB132: -68167335 | EC132: -68167335 | ED132: 336.08 | EE132: 9.94 | EF132: 0 | EG132: 0 | EH132: 3.8 | EI132: 3.447 | EJ132: =((ED132-336)^(3/2))*1.838*133 -> 5.531362595 | EK132: 477909.7282 | EL132: 100 | EM132: =EL132-0.353 -> 99.647 | EN132: =EL132-DV132 -> 54.60526316 | EO132: 4.159362595 | EP132: 11560 | EQ132: 21818 | ER132: =SUM(EP132+EQ132) -> 33378 | ES132: 336.16 | ET132: 10.02 | EV132: 20 | EW132: 3.8 | EX132: 3.447 | EY132: =((ES132-336)^(3/2))*1.838*133 -> 15.645056 | EZ132: 1351732.838 | FA132: 100 | FB132: =(EX132/3.447)*100 -> 100 | FC132: =FA132-EL132 -> 0 | FD132: 12.198056 | FE132: 10978 | FF132: 4639 | FG132: 15617 | FH132: 336.19 | FI132: 10.05 | FJ132: 0 | FK132: 5 | FL132: 3.8 | FM132: 3.447 | FN132: =((FH132-336)^(3/2))*1.838*133 -> 20.24545536 | FO132: 1749207.343 | FP132: 100 | FQ132: =(FM132/3.447)*100 -> 100 | FR132: =FP132-FA132 -> 0 | FS132: 16.79845536 | FT132: 14533 | FU132: 17147 | FV132: 31680 | GK132: 0
A133: 2024-02-07 | B133: =A133 -> 2024-02-07 | C133: 336 | D133: 327 | E133: 0.353 | F133: 9.98 | H133: =336-(9.86-F133) -> 336.12 | I133: 0 | J133: 336.08 | K133: 9.94 | M133: 3.9 | N133: =M133-E133 -> 3.547 | O133: 5.531362595 | P133: 477909.7282 | Q133: 100 | R133: =N133/3.25 -> 1.091384615 | S133: 336.19 | T133: 10.05 | U133: 62 | V133: 3.9 | W133: 3.25 | X133: 20.24545536 | Y133: 1749207.343 | Z133: =(V133/3.9)*100 -> 100 | AA133: =(W133/3.25)*100 -> 100 | AD133: 0 | AE133: 14.71409277 | AF133: 336 | AH133: 336.23 | AI133: 10.09 | AL133: 3.9 | AM133: 3.547 | AN133: =((AH133-336)^(3/2))*1.838*133 -> 26.96428458 | AO133: =AN133*24*3600 -> 2329714.188 | AP133: =(AL133/3.9)*100 -> 100 | AQ133: =(AM133/3.25)*100 -> 109.1384615 | AR133: 0 | AS133: =AN133-X133 -> 6.718829217 | AT133: 8441154 | AU133: 4104405 | AV133: =AT134+AU134-(AT133+AU133) -> 36852 | AW133: =AV133 -> 36852 | AY133: 336.05 | AZ133: 9.91 | BC133: 3.9 | BD133: 0 | BE133: 2.733078807 | BF133: =BE133*24*3600 -> 236138.0089 | BG133: 100 | BH133: =(BD133/3.25)*100 -> 0 | BI133: 0 | BJ133: =BE133-AN133 -> -24.23120577 | BK133: 3970367 | BL133: 1126953 | BM133: 41079 | BN133: =BM133 -> 41079 | BP133: 336.18 | BQ133: 10.04 | BR133: 93.3 | BS133: 13 | BT133: 3.9 | BU133: =BT133-E133 -> 3.547 | BV133: 18.66834876 | BW133: =BV133*24*3600 -> 1612945.333 | BX133: 100 | BY133: =(BU133/3.25)*100 -> 109.1384615 | BZ133: 0 | CA133: =BV133-BE133 -> 15.93526995 | CB133: 7936074 | CC133: 9133129 | CD133: 29380 | CE133: 29380 | CG133: 336.29 | CH133: 10.15 | CI133: 104 | CJ133: 26.3 | CK133: 3.8 | CL133: 3.447 | CM133: =((CG133-336)^(3/2))*1.838*133 -> 38.17632726 | CN133: =CM133*24*3600 -> 3298434.675 | CO133: 100 | CP133: 100 | CQ133: =CO133-BX133 -> 0 | CR133: 19.5079785 | CS133: 3301682 | CT133: 7263508 | CU133: 39261 | CV133: =CU133 -> 39261 | CX133: 336.14 | CY133: 10 | DB133: 3.8 | DC133: =DB133-0.353 -> 3.447 | DD133: 12.80528361 | DE133: =DD133*24*3600 -> 1106376.504 | DF133: 100 | DG133: 99.647 | DH133: =DF133-CO133 -> 0 | DI133: -25.37104365 | DL133: 0 | DM133: 0 | DN133: 331.63 | DO133: 5.49 | DP133: 16 | DQ133: 22 | DR133: 1.74 | DS133: =DR133-0.353 -> 1.387 | DV133: 45.78947368 | DW133: 45.43647368 | DX133: =DV133-DF133 -> -54.21052632 | EB133: =(DZ133+EA133)-(65502786+2664549) -> -68167335 | EC133: -68167335 | ED133: 336.06 | EE133: 9.92 | EF133: 0 | EG133: 0 | EH133: 3.8 | EI133: 3.447 | EJ133: 3.592725393 | EK133: =EJ133*24*3600 -> 310411.474 | EL133: 100 | EM133: 99.647 | EN133: 54.21052632 | EO133: 2.205725393 | EP133: 11316 | EQ133: 21818 | ER133: 33134 | ES133: 336.12 | ET133: 9.98 | EV133: 8.7 | EW133: 3.8 | EX133: 3.447 | EY133: =((ES133-336)^(3/2))*1.838*133 -> 10.16176195 | EZ133: =EY133*24*3600 -> 877976.2329 | FA133: 100 | FB133: 100 | FC133: 0 | FD133: 6.714761955 | FE133: 13482 | FF133: 2411 | FG133: =SUM(FE133+FF133) -> 15893 | FH133: 336.14 | FI133: 10 | FJ133: 0 | FK133: 49 | FL133: 3.8 | FM133: 3.447 | FN133: =((FH133-336)^(3/2))*1.838*133 -> 12.80528361 | FO133: =FN133*24*3600 -> 1106376.504 | FP133: 100 | FQ133: 100 | FR133: 0 | FS133: 9.358283608 | FT133: 9216 | FU133: 11244 | FV133: 20460 | GK133: 0
A134: =A133+1 -> 2024-02-08 | B134: 2024-02-08 | C134: 336 | D134: 327 | E134: 0.353 | F134: 9.98 | G134: 4 | H134: 336.12 | I134: 0 | J134: 336.07 | K134: 9.93 | M134: 3.9 | N134: 3.547 | O134: 4.527351437 | P134: 391163.1642 | Q134: 100 | R134: 1.091384615 | S134: 336.26 | T134: 10.12 | U134: 79 | V134: 3.9 | W134: 3.25 | X134: 32.40836862 | Y134: 2800083.049 | Z134: 100 | AA134: 100 | AD134: =AB134+AC134-(AB133+AC133) -> 0 | AE134: 27.88101718 | AF134: 336 | AH134: 336.13 | AI134: 9.99 | AL134: 3.9 | AM134: 3.547 | AN134: 11.45808861 | AO134: 989978.8559 | AP134: 100 | AQ134: 109.1384615 | AR134: 0 | AS134: -20.95028001 | AT134: 8458418 | AU134: 4123993 | AV134: 36733 | AW134: 36733 | AY134: 336.07 | AZ134: 9.93 | BA134: 8.5 | BC134: 3.9 | BD134: 0 | BE134: 4.527351437 | BF134: 391163.1642 | BG134: 100 | BH134: 0 | BI134: 0 | BJ134: -6.930737172 | BK134: 3986664 | BL134: 1144492 | BM134: 33836 | BN134: 33836 | BP134: 336.14 | BQ134: 10 | BT134: 3.9 | BU134: 3.547 | BV134: 12.80528361 | BW134: 1106376.504 | BX134: 100 | BY134: 109.1384615 | BZ134: 0 | CA134: 8.277932171 | CB134: 7952305 | CC134: 9154388 | CD134: 37490 | CE134: 37490 | CG134: 336.13 | CH134: 9.99 | CI134: 29 | CJ134: 3 | CK134: 3.8 | CL134: 3.447 | CM134: 11.45808861 | CN134: 989978.8559 | CO134: 100 | CP134: 100 | CQ134: 0 | CR134: -1.347194998 | CS134: 3316932 | CT134: 7288268 | CU134: 40010 | CV134: 40010 | CX134: 336.12 | CY134: 9.98 | DB134: 3.8 | DC134: 3.447 | DD134: 10.16176195 | DE134: 877976.2329 | DF134: 100 | DG134: 99.647 | DH134: 0 | DI134: -1.296326655 | DL134: 0 | DM134: 0 | DN134: 331.74 | DO134: 5.6 | DR134: 1.77 | DS134: 1.417 | DV134: 46.57894737 | DW134: 46.22594737 | DX134: -53.42105263 | EB134: -68167335 | EC134: -68167335 | ED134: 336.08 | EE134: 9.94 | EF134: 45.2 | EG134: 21.3 | EH134: 3.8 | EI134: 3.447 | EJ134: 5.531362595 | EK134: 477909.7282 | EL134: 100 | EM134: 99.647 | EN134: 53.42105263 | EO134: 4.114362595 | EP134: 11081 | EQ134: 22799 | ER134: 33880 | ES134: 336.13 | ET134: 9.99 | EV134: 20 | EW134: 3.8 | EX134: 3.447 | EY134: 11.45808861 | EZ134: 989978.8559 | FA134: 100 | FB134: 100 | FC134: 0 | FD134: 8.011088609 | FE134: 19040 | FF134: 3360 | FG134: 22400 | FH134: 336.23 | FI134: 10.09 | FJ134: 0 | FK134: 20 | FL134: 3.8 | FM134: 3.447 | FN134: 26.96428458 | FO134: 2329714.188 | FP134: 100 | FQ134: 100 | FR134: 0 | FS134: 23.51728458 | FT134: 13321 | FU134: 17399 | FV134: 30720 | GK134: 0
A135: 2024-02-09 | B135: 2024-02-09 | C135: 336 | D135: 327 | E135: 0.353 | F135: 9.97 | H135: 336.11 | I135: 0 | J135: 336.09 | K135: 9.95 | M135: 3.9 | N135: 3.547 | O135: 6.600258 | P135: 570262.2912 | Q135: 100 | R135: 1.091384615 | S135: 336.18 | T135: 10.04 | U135: 15 | V135: 3.9 | W135: 3.25 | X135: 18.66834876 | Y135: 1612945.333 | Z135: 100 | AA135: 100 | AD135: 0 | AE135: 12.06809076 | AF135: 336 | AH135: 336.1 | AI135: 9.96 | AL135: 3.9 | AM135: 3.547 | AN135: 7.730314231 | AO135: 667899.1496 | AP135: 100 | AQ135: 109.1384615 | AR135: 0 | AS135: -10.93803453 | AT135: 8476550 | AU135: 4142594 | AV135: 24574 | AW135: 24574 | AY135: 336.04 | AZ135: 9.9 | BC135: 3.9 | BD135: 0 | BE135: 1.955632 | BF135: 168966.6048 | BG135: 100 | BH135: 0 | BI135: 0 | BJ135: -5.774682231 | BK135: 4004410 | BL135: 1169144 | BM135: =BK136+BL136-(BK135+BL135) -> 37401 | BN135: 37401 | BP135: 336.15 | BQ135: 10.01 | BR135: 7 | BS135: 4 | BT135: 3.9 | BU135: 3.547 | BV135: 14.20149406 | BW135: 1227009.087 | BX135: 100 | BY135: 109.1384615 | BZ135: 0 | CA135: =BV135-BE135 -> 12.24586206 | CB135: 7968603 | CC135: 9176330 | CD135: =CB136+CC136-(CB135+CC135) -> 24677 | CE135: =CD135 -> 24677 | CG135: 336.2 | CH135: 10.06 | CI135: 30.1 | CJ135: 66.3 | CK135: 3.8 | CL135: 3.447 | CM135: 21.86463045 | CN135: 1889104.071 | CO135: 100 | CP135: 100 | CQ135: 0 | CR135: 7.663136391 | CS135: 3332108 | CT135: 7312976 | CU135: 39884 | CV135: 39884 | CX135: 336.12 | CY135: 9.98 | DB135: 3.8 | DC135: 3.447 | DD135: 10.16176195 | DE135: 877976.2329 | DF135: 100 | DG135: 99.647 | DH135: 0 | DI135: -11.7028685 | DL135: 0 | DM135: 0 | DN135: 331.91 | DO135: 5.77 | DP135: 13 | DQ135: 32 | DR135: 1.81 | DS135: 1.457 | DV135: 47.63157895 | DW135: 47.27857895 | DX135: -52.36842105 | EB135: -68167335 | EC135: -68167335 | ED135: 336.07 | EE135: 9.93 | EF135: 21 | EG135: 0 | EH135: 3.8 | EI135: 3.447 | EJ135: 4.527351437 | EK135: 391163.1642 | EL135: 100 | EM135: 99.647 | EN135: 52.36842105 | EO135: 3.070351437 | EP135: 10956 | EQ135: 26272 | ER135: 37228 | ES135: 336.1 | ET135: 9.96 | EW135: 3.8 | EX135: 3.447 | EY135: 7.730314231 | EZ135: 667899.1496 | FA135: 100 | FB135: 100 | FC135: 0 | FD135: 4.283314231 | FE135: 13447 | FF135: 20767 | FG135: 34214 | FH135: 336.13 | FI135: 9.99 | FJ135: 0 | FK135: 0 | FL135: 3.8 | FM135: 3.447 | FN135: 11.45808861 | FO135: 989978.8559 | FP135: 100 | FQ135: 100 | FR135: 0 | FS135: 8.011088609 | FT135: 14342 | FU135: 16858 | FV135: 31200 | GK135: 0
A136: 2024-02-10 | B136: 2024-02-10 | C136: 336 | D136: 327 | E136: 0.353 | F136: 10.01 | G136: 25.5 | H136: 336.15 | I136: 0 | J136: 336.14 | K136: 10 | M136: 3.9 | N136: 3.547 | O136: 12.80528361 | P136: 1106376.504 | Q136: 100 | R136: 1.091384615 | S136: 336.19 | T136: 10.05 | V136: 3.9 | W136: 3.25 | X136: 20.24545536 | Y136: 1749207.343 | Z136: 100 | AA136: 100 | AD136: 0 | AE136: 7.440171757 | AF136: 336 | AH136: 336.09 | AI136: 9.95 | AL136: 3.9 | AM136: 3.547 | AN136: 6.600258 | AO136: 570262.2912 | AP136: 100 | AQ136: 109.1384615 | AR136: 0 | AS136: -13.64519736 | AT136: 8488732 | AU136: 4154986 | AV136: 34107 | AW136: 34107 | AY136: 336.05 | AZ136: 9.91 | BA136: 19 | BB136: 28.1 | BC136: 3.9 | BD136: 0 | BE136: 2.733078807 | BF136: 236138.0089 | BG136: 100 | BH136: 0 | BI136: 0 | BJ136: -3.867179193 | BK136: 4020198 | BL136: 1190757 | BM136: =BK137+BL137-(BK136+BL136) -> 42466 | BN136: 42466 | BP136: 336.19 | BQ136: 10.05 | BR136: 11 | BS136: 4.3 | BT136: 3.9 | BU136: 3.547 | BV136: 20.24545536 | BW136: 1749207.343 | BX136: 100 | BY136: 109.1384615 | BZ136: 0 | CA136: 17.51237656 | CB136: 7984805 | CC136: 9184805 | CD136: =CB137+CC137-(CB136+CC136) -> 42381 | CE136: 42381 | CG136: 336.13 | CH136: 9.99 | CI136: 7 | CJ136: 8.4 | CK136: 3.8 | CL136: 3.447 | CM136: 11.45808861 | CN136: 989978.8559 | CO136: 100 | CP136: 100 | CQ136: 0 | CR136: -8.787366755 | CS136: 3346907 | CT136: 7337153 | CU136: 38976 | CV136: 38976 | CX136: 336.23 | CY136: 10.09 | DB136: 3.8 | DC136: 3.447 | DD136: 26.96428458 | DE136: 2329714.188 | DF136: 100 | DG136: 99.647 | DH136: 0 | DI136: 15.50619597 | DL136: 0 | DM136: 0 | DN136: 331.99 | DO136: 5.85 | DP136: 2.1 | DR136: 1.835 | DS136: 1.482 | DV136: 48.28947368 | DW136: 47.93647368 | DX136: -51.71052632 | EB136: -68167335 | EC136: -68167335 | ED136: 336.15 | EE136: 10.01 | EF136: 110 | EG136: 28.1 | EH136: 3.8 | EI136: 3.447 | EJ136: 14.20149406 | EK136: 1227009.087 | EL136: 100 | EM136: 99.647 | EN136: 51.71052632 | EO136: 12.71949406 | EP136: 10988 | EQ136: 25022 | ER136: 36010 | ES136: 336.09 | ET136: 9.95 | EW136: 3.8 | EX136: 3.447 | EY136: 6.600258 | EZ136: 570262.2912 | FA136: 100 | FB136: 100 | FC136: 0 | FD136: 3.153258 | FE136: 9261 | FF136: 16153 | FG136: 25414 | FH136: 336.11 | FI136: 9.97 | FJ136: 0 | FK136: 0 | FL136: 3.8 | FM136: 3.447 | FN136: 8.918384162 | FO136: 770548.3916 | FP136: 100 | FQ136: 100 | FR136: 0 | FS136: 5.471384162 | FT136: 10995 | FU136: 16485 | FV136: 27480 | GK136: 0
A137: 2024-02-11 | B137: 2024-02-11 | C137: 336 | D137: 327 | E137: 0.353 | F137: 10.07 | H137: 336.21 | I137: 0 | J137: 336.24 | K137: 10.1 | M137: 3.9 | N137: 3.547 | O137: 28.74180315 | P137: 2483291.792 | Q137: 100 | R137: 1.091384615 | S137: 336.17 | T137: 10.03 | U137: 38 | V137: 3.9 | W137: 3.25 | X137: 17.13446426 | Y137: 1480417.712 | Z137: 100 | AA137: 100 | AD137: 0 | AE137: -11.60733888 | AF137: 336 | AH137: 336.09 | AI137: 9.95 | AL137: 3.9 | AM137: 3.547 | AN137: 6.600258 | AO137: 570262.2912 | AP137: 100 | AQ137: 109.1384615 | AR137: 0 | AS137: -10.53420626 | AT137: 8504042 | AU137: 4173783 | AV137: 37506 | AW137: 37506 | AY137: 336.06 | AZ137: 9.92 | BA137: 49 | BB137: 7 | BC137: 3.9 | BD137: 0 | BE137: 3.592725393 | BF137: 310411.474 | BG137: 100 | BH137: 0 | BI137: 0 | BJ137: -3.007532607 | BK137: 4038715 | BL137: 1214706 | BM137: =BK138+BL138-(BK137+BL137) -> 42872 | BN137: 42872 | BP137: 336.14 | BQ137: 10 | BT137: 3.9 | BU137: 3.547 | BV137: 12.80528361 | BW137: 1106376.504 | BX137: 100 | BY137: 109.1384615 | BZ137: 0 | CA137: 9.212558214 | CB137: 7999169 | CC137: 9212822 | CD137: =CB138+CC138-(CB137+CC137) -> 40826 | CE137: 40826 | CG137: 336.26 | CH137: 10.12 | CI137: 100 | CK137: 3.8 | CL137: 3.447 | CM137: 32.40836862 | CN137: 2800083.049 | CO137: 100 | CP137: 100 | CQ137: 0 | CR137: 19.60308501 | CS137: 3350658 | CT137: 7342305 | CU137: 8903 | CV137: 8903 | CX137: 336.22 | CY137: 10.08 | DB137: 3.8 | DC137: 3.447 | DD137: 25.22499967 | DE137: 2179439.972 | DF137: 100 | DG137: 99.647 | DH137: 0 | DI137: -7.183368949 | DL137: 0 | DM137: 0 | DN137: 332 | DO137: 5.86 | DP137: 8 | DR137: 1.837 | DS137: 1.484 | DV137: 48.34210526 | DW137: 47.98910526 | DX137: -51.65789474 | EB137: -68167335 | EC137: -68167335 | ED137: 336.1 | EE137: 9.96 | EF137: 3.2 | EG137: 3.2 | EH137: 3.8 | EI137: 3.447 | EJ137: 7.730314231 | EK137: 667899.1496 | EL137: 100 | EM137: 99.647 | EN137: 51.65789474 | EO137: 6.246314231 | EP137: 10915 | EQ137: 24984 | ER137: 35899 | ES137: 336.1 | ET137: 9.96 | EW137: 3.8 | EX137: 3.447 | EY137: 7.730314231 | EZ137: 667899.1496 | FA137: 100 | FB137: 100 | FC137: 0 | FD137: 4.283314231 | FE137: 7197 | FF137: 16047 | FG137: 23244 | FH137: 336.1 | FI137: 9.96 | FJ137: 0 | FK137: 0 | FL137: 3.8 | FM137: 3.447 | FN137: 7.730314231 | FO137: 667899.1496 | FP137: 100 | FQ137: 100 | FR137: 0 | FS137: 4.283314231 | FT137: 9507 | FU137: 11293 | FV137: 20800 | GK137: 0
A138: 2024-02-12 | B138: 2024-02-12 | C138: 336 | D138: 327 | E138: 0.353 | F138: 10.01 | G138: 51 | H138: 336.15 | I138: 0 | J138: 336.14 | K138: 10 | M138: 3.9 | N138: 3.547 | O138: 12.80528361 | P138: 1106376.504 | Q138: 100 | R138: 1.091384615 | S138: 336.19 | T138: 10.05 | U138: 115 | V138: 3.9 | W138: 3.25 | X138: 20.24545536 | Y138: 1749207.343 | Z138: 100 | AA138: 100 | AD138: 0 | AE138: 7.440171757 | AF138: 336 | AH138: 336.09 | AI138: 9.95 | AL138: 3.9 | AM138: 3.547 | AN138: 6.600258 | AO138: 570262.2912 | AP138: 100 | AQ138: 109.1384615 | AR138: 0 | AS138: -13.64519736 | AT138: 8520146 | AU138: 4195185 | AV138: 38679 | AW138: 38679 | AY138: 336.05 | AZ138: 9.91 | BC138: 3.9 | BD138: 0 | BE138: 2.733078807 | BF138: 236138.0089 | BG138: 100 | BH138: 0 | BI138: 0 | BJ138: -3.867179193 | BK138: 4057820 | BL138: 1238473 | BM138: =BK139+BL139-(BK138+BL138) -> 41840 | BN138: 41840 | BP138: 336.13 | BQ138: 9.99 | BT138: 3.9 | BU138: 3.547 | BV138: 11.45808861 | BW138: 989978.8559 | BX138: 100 | BY138: 109.1384615 | BZ138: 0 | CA138: 8.725009803 | CB138: 8016519 | CC138: 9236298 | CD138: =CB139+CC139-(CB138+CC138) -> 41077 | CE138: 41077 | CG138: 336.13 | CH138: 9.99 | CK138: 3.8 | CL138: 3.447 | CM138: 11.45808861 | CN138: 989978.8559 | CO138: 100 | CP138: 100 | CQ138: 0 | CR138: 0 | CS138: 3365065 | CT138: 7367543 | CU138: 39645 | CV138: 39645 | CX138: 336.17 | CY138: 10.03 | DB138: 3.8 | DC138: 3.447 | DD138: 17.13446426 | DE138: 1480417.712 | DF138: 100 | DG138: 99.647 | DH138: 0 | DI138: 5.676375655 | DL138: 0 | DM138: 0 | DN138: 332.06 | DO138: 5.92 | DP138: 17 | DQ138: 3 | DR138: 1.85 | DS138: 1.497 | DV138: 48.68421053 | DW138: 48.33121053 | DX138: -51.31578947 | EB138: -68167335 | EC138: -68167335 | ED138: 336.1 | EE138: 9.96 | EF138: 7 | EG138: 3.4 | EH138: 3.8 | EI138: 3.447 | EJ138: 7.730314231 | EK138: 667899.1496 | EL138: 100 | EM138: 99.647 | EN138: 51.31578947 | EO138: 6.233314231 | EP138: 13354 | EQ138: 24376 | ER138: 37730 | ES138: 336.13 | ET138: 9.99 | EW138: 3.8 | EX138: 3.447 | EY138: 11.45808861 | EZ138: 989978.8559 | FA138: 100 | FB138: 100 | FC138: 0 | FD138: 8.011088609 | FE138: 7276 | FF138: 17705 | FG138: 24981 | FH138: 336.19 | FI138: 10.05 | FJ138: 0 | FK138: 5 | FL138: 3.8 | FM138: 3.447 | FN138: 20.24545536 | FO138: 1749207.343 | FP138: 100 | FQ138: 100 | FR138: 0 | FS138: 16.79845536 | FT138: 17433 | FU138: 15447 | FV138: 32880 | GK138: 0
A139: 2024-02-13 | B139: 2024-02-13 | C139: 336 | D139: 327 | E139: 0.353 | F139: 9.99 | G139: 8 | H139: 336.13 | I139: 0 | J139: 336.19 | K139: 10.05 | M139: 3.9 | N139: 3.547 | O139: 20.24545536 | P139: 1749207.343 | Q139: 100 | R139: 1.091384615 | S139: 336.15 | T139: 10.01 | V139: 3.9 | W139: 3.25 | X139: 14.20149406 | Y139: 1227009.087 | Z139: 100 | AA139: 100 | AD139: 0 | AE139: -6.043961301 | AF139: 336 | AH139: 336.09 | AI139: 9.95 | AL139: 3.9 | AM139: 3.547 | AN139: 6.600258 | AO139: 570262.2912 | AP139: 100 | AQ139: 109.1384615 | AR139: 0 | AS139: -7.601236064 | AT139: 8538984 | AU139: 4215026 | AV139: =AT139+AU139-(AT138+AU138) -> 38679 | AW139: 38679 | AY139: 336.04 | AZ139: 9.9 | BA139: 4 | BB139: 2.2 | BC139: 3.9 | BD139: 0 | BE139: 1.955632 | BF139: 168966.6048 | BG139: 100 | BH139: 0 | BI139: 0 | BJ139: -4.644626 | BK139: 4075055 | BL139: 1263078 | BM139: =BK139+BL139-(BK138+BL138) -> 41840 | BN139: 41840 | BP139: 336.14 | BQ139: 10 | BT139: 3.9 | BU139: 3.547 | BV139: 12.80528361 | BW139: 1106376.504 | BX139: 100 | BY139: 109.1384615 | BZ139: 0 | CA139: 10.84965161 | CB139: 8033932 | CC139: 9259962 | CD139: =CB139+CC139-(CB138+CC138) -> 41077 | CE139: 41077 | CG139: 336.13 | CH139: 9.99 | CK139: 3.8 | CL139: 3.447 | CM139: 11.45808861 | CN139: 989978.8559 | CO139: 100 | CP139: 100 | CQ139: 0 | CR139: -1.347194998 | CS139: 3374225 | CT139: 7393320 | CU139: 34937 | CV139: 34937 | CX139: 336.13 | CY139: 9.99 | CZ139: 17 | DA139: 6 | DB139: 3.8 | DC139: 3.447 | DD139: 11.45808861 | DE139: 989978.8559 | DF139: 100 | DG139: 99.647 | DH139: 0 | DI139: 0 | DL139: 0 | DM139: 0 | DN139: 332.18 | DO139: 6.04 | DR139: 1.885 | DS139: 1.532 | DV139: 49.60526316 | DW139: 49.25226316 | DX139: -50.39473684 | EB139: -68167335 | EC139: -68167335 | ED139: 336.16 | EE139: 10.02 | EH139: 3.8 | EI139: =EH139-0.353 -> 3.447 | EJ139: 15.645056 | EK139: 1351732.838 | EL139: 100 | EM139: 99.647 | EN139: 50.39473684 | EO139: 14.113056 | EP139: 13376 | EQ139: 23508 | ER139: 36884 | ES139: 336.1 | ET139: 9.96 | EW139: 3.8 | EX139: 3.447 | EY139: 7.730314231 | EZ139: 667899.1496 | FA139: 100 | FB139: 100 | FC139: 0 | FD139: 4.283314231 | FE139: 9109 | FF139: 19769 | FG139: 28878 | FH139: 336.25 | FI139: 10.11 | FJ139: 0 | FK139: 10 | FL139: 3.8 | FM139: 3.447 | FN139: 30.55675 | FO139: 2640103.2 | FP139: 100 | FQ139: 100 | FR139: 0 | FS139: 27.10975 | FT139: 13375 | FU139: 16625 | FV139: 30000 | GK139: 0
A140: 2024-02-14 | B140: 2024-02-14 | C140: 336 | D140: 327 | E140: 0.353 | F140: 9.98 | H140: 336.12 | I140: 0 | J140: 336.24 | K140: 10.1 | M140: 3.9 | N140: 3.547 | O140: 28.74180315 | P140: 2483291.792 | Q140: 100 | R140: 1.091384615 | S140: 336.16 | T140: 10.02 | U140: 53 | V140: 3.9 | W140: 3.25 | X140: 15.645056 | Y140: 1351732.838 | Z140: 100 | AA140: 100 | AD140: 0 | AE140: -13.09674715 | AF140: 336 | AH140: 336.08 | AI140: 9.94 | AL140: 3.9 | AM140: 3.547 | AN140: 5.531362595 | AO140: 477909.7282 | AP140: 100 | AQ140: 109.1384615 | AR140: 0 | AS140: -10.11369341 | AT140: 8553264 | AU140: 4228789 | AV140: 28043 | AW140: 28043 | AY140: 336.02 | AZ140: 9.88 | BC140: 3.9 | BD140: 0 | BE140: =((AY140-336)^(3/2))*1.838*133 -> 0.6914203244 | BF140: 59738.71602 | BG140: 100 | BH140: 0 | BI140: 0 | BJ140: -4.83994227 | BK140: 4091947 | BL140: 1286045 | BM140: 39859 | BN140: 39859 | BP140: 336.22 | BQ140: 10.08 | BR140: 73 | BS140: 20 | BT140: 3.9 | BU140: 3.547 | BV140: 25.22499967 | BW140: 2179439.972 | BX140: 100 | BY140: 109.1384615 | BZ140: 0 | CA140: 24.53357935 | CB140: 8048014 | CC140: 9279366 | CD140: 33486 | CE140: 33486 | CG140: 336.12 | CH140: 9.98 | CK140: 3.8 | CL140: 3.447 | CM140: 10.16176195 | CN140: 877976.2329 | CO140: 100 | CP140: 100 | CQ140: 0 | CR140: -15.06323772 | CS140: 3388982 | CT140: 7420253 | CU140: 41690 | CV140: 41690 | CX140: 336.12 | CY140: 9.98 | CZ140: 0.3 | DB140: 3.8 | DC140: 3.447 | DD140: 10.16176195 | DE140: 877976.2329 | DF140: 100 | DG140: 99.647 | DH140: 0 | DI140: 0 | DL140: 0 | DM140: 0 | DN140: 332.29 | DO140: 6.15 | DR140: 1.95 | DS140: 1.597 | DV140: 51.31578947 | DW140: 50.96278947 | DX140: -48.68421053 | EB140: -68167335 | EC140: -68167335 | ED140: 336.21 | EE140: 10.07 | EF140: 50 | EG140: 59.6 | EH140: 3.8 | EI140: 3.447 | EJ140: 23.52480814 | EK140: 2032543.423 | EL140: 100 | EM140: 99.647 | EN140: 48.68421053 | EO140: 21.92780814 | EP140: 10770 | EQ140: 24354 | ER140: 35124 | ES140: 336.12 | ET140: 9.98 | EW140: 3.8 | EX140: 3.447 | EY140: 10.16176195 | EZ140: 877976.2329 | FA140: 100 | FB140: 100 | FC140: 0 | FD140: 6.714761955 | FE140: 9862 | FF140: 21175 | FG140: 31037 | FH140: 336.18 | FI140: 10.04 | FJ140: 0 | FK140: 10 | FL140: 3.8 | FM140: 3.447 | FN140: 18.66834876 | FO140: 1612945.333 | FP140: 100 | FQ140: 100 | FR140: 0 | FS140: 15.22134876 | FT140: 13903 | FU140: 16217 | FV140: 30120 | GK140: 0
A141: 2024-02-15 | B141: 2024-02-15 | C141: 336 | D141: 327 | E141: 0.353 | F141: 9.96 | H141: 336.1 | I141: 0 | J141: 336.29 | K141: 10.15 | M141: 3.9 | N141: 3.547 | O141: 38.17632726 | P141: 3298434.675 | Q141: 100 | R141: 1.091384615 | S141: 336.13 | T141: 9.99 | V141: 3.9 | W141: 3.25 | X141: 11.45808861 | Y141: 989978.8559 | Z141: 100 | AA141: 100 | AD141: 0 | AE141: -26.71823865 | AF141: 336 | AH141: 336.08 | AI141: 9.94 | AL141: 3.9 | AM141: 3.547 | AN141: 5.531362595 | AO141: 477909.7282 | AP141: 100 | AQ141: 109.1384615 | AR141: 0 | AS141: -5.926726015 | AT141: 8572138 | AU141: 4248903 | AV141: 38988 | AW141: 38988 | AY141: 336.03 | AZ141: 9.89 | BC141: 3.9 | BD141: 0 | BE141: 1.270220244 | BF141: 109747.0291 | BG141: 100 | BH141: 0 | BI141: 0 | BJ141: -4.26114235 | BK141: 4110993 | BL141: 1311810 | BM141: 44811 | BN141: 44811 | BP141: 336.39 | BQ141: 10.25 | BR141: 50.1 | BS141: 65.3 | BT141: 3.9 | BU141: 3.547 | BV141: 59.53797489 | BW141: 5144081.03 | BX141: 100 | BY141: 109.1384615 | BZ141: 0 | CA141: 58.26775464 | CB141: 9299640 | CC141: 8063618 | CD141: 35878 | CE141: 35878 | CG141: 336.11 | CH141: 9.97 | CK141: 3.8 | CL141: 3.447 | CM141: 8.918384162 | CN141: 770548.3916 | CO141: 100 | CP141: 100 | CQ141: 0 | CR141: -50.61959073 | CS141: 3403207 | CT141: 7447373 | CU141: 41345 | CV141: 41345 | CX141: 336.1 | CY141: 9.96 | DB141: 3.8 | DC141: 3.447 | DD141: 7.730314231 | DE141: 667899.1496 | DF141: 100 | DG141: 99.647 | DH141: 0 | DI141: -1.18806993 | DL141: 0 | DM141: 0 | DN141: 332.38 | DO141: 6.24 | DR141: 2.02 | DS141: 1.667 | DV141: 53.15789474 | DW141: 52.80489474 | DX141: -46.84210526 | EB141: -68167335 | EC141: -68167335 | ED141: 336.19 | EE141: 10.05 | EG141: 10 | EH141: 3.8 | EI141: 3.447 | EJ141: 20.24545536 | EK141: 1749207.343 | EL141: 100 | EM141: 99.647 | EN141: 46.84210526 | EO141: 18.57845536 | EP141: 2556 | EQ141: 5793 | ER141: 8349 | ES141: 336.12 | ET141: 9.98 | EV141: 21 | EW141: 3.8 | EX141: 3.447 | EY141: 10.16176195 | EZ141: 877976.2329 | FA141: 100 | FB141: 100 | FC141: 0 | FD141: 6.714761955 | FE141: 11952 | FF141: 21483 | FG141: 33435 | FH141: 336.14 | FI141: 10 | FJ141: 0 | FK141: 0 | FL141: 3.8 | FM141: 3.447 | FN141: 12.80528361 | FO141: 1106376.504 | FP141: 100 | FQ141: 100 | FR141: 0 | FS141: 9.358283608 | FT141: 9856 | FU141: 13544 | FV141: 23400 | GK141: 0
A142: 2024-02-16 | B142: 2024-02-16 | C142: 336 | D142: 327 | E142: 0.353 | F142: 10.03 | G142: 31 | H142: 336.17 | I142: 0 | J142: 336.28 | K142: 10.14 | M142: 3.9 | N142: 3.547 | O142: 36.2188115 | P142: 3129305.313 | Q142: 100 | R142: 1.091384615 | S142: 336.11 | T142: 9.97 | U142: 7 | V142: 3.9 | W142: 3.25 | X142: 8.918384162 | Y142: 770548.3916 | Z142: 100 | AA142: 100 | AD142: 0 | AE142: -27.30042733 | AF142: 336 | AH142: 336.08 | AI142: 9.94 | AL142: 3.9 | AM142: 3.547 | AN142: =((AH142-336)^(3/2))*1.838*133 -> 5.531362595 | AO142: 477909.7282 | AP142: 100 | AQ142: 109.1384615 | AR142: 0 | AS142: -3.387021567 | AT142: 8589160 | AU142: 4267089 | AV142: 35208 | AW142: 35208 | AY142: 336.03 | AZ142: 9.89 | BC142: 3.9 | BD142: 0 | BE142: 1.270220244 | BF142: 109747.0291 | BG142: 100 | BH142: 0 | BI142: 0 | BJ142: -4.26114235 | BK142: 4124915 | BL142: 1323617 | BM142: 25729 | BN142: 25729 | BP142: 336.25 | BQ142: 10.11 | BS142: 14.3 | BT142: 3.9 | BU142: 3.547 | BV142: 30.55675 | BW142: 2640103.2 | BX142: 100 | BY142: 109.1384615 | BZ142: 0 | CA142: 29.28652976 | CB142: 9322912 | CC142: 8080953 | CD142: 40607 | CE142: 40607 | CG142: 336.11 | CH142: 9.97 | CK142: 3.8 | CL142: 3.447 | CM142: 8.918384162 | CN142: 770548.3916 | CO142: 100 | CP142: 100 | CQ142: 0 | CR142: -21.63836584 | CS142: 3416658 | CT142: 7473931 | CU142: 40009 | CV142: 40009 | CX142: 336.16 | CY142: 10.02 | CZ142: 42.2 | DB142: 3.8 | DC142: 3.447 | DD142: 15.645056 | DE142: 1351732.838 | DF142: 100 | DG142: 99.647 | DH142: 0 | DI142: 6.726671838 | DL142: 0 | DM142: 0 | DN142: 332.43 | DO142: 6.29 | DR142: 2.035 | DS142: 1.682 | DV142: 53.55263158 | DW142: 53.19963158 | DX142: -46.44736842 | EB142: -68167335 | EC142: -68167335 | ED142: 336.15 | EE142: 10.01 | EF142: 22 | EG142: 2.3 | EH142: 3.8 | EI142: 3.447 | EJ142: 14.20149406 | EK142: 1227009.087 | EL142: 100 | EM142: 99.647 | EN142: 46.44736842 | EO142: 12.51949406 | EP142: 13632 | EQ142: 20683 | ER142: 34315 | ES142: 336.14 | ET142: 10 | EU142: 10 | EV142: 15 | EW142: 3.8 | EX142: 3.447 | EY142: 12.80528361 | EZ142: 1106376.504 | FA142: 100 | FB142: 100 | FC142: 0 | FD142: 9.358283608 | FE142: 10409 | FF142: 20606 | FG142: 31015 | FH142: 336.14 | FI142: 10 | FJ142: 0 | FK142: 0 | FL142: 3.8 | FM142: 3.447 | FN142: 12.80528361 | FO142: 1106376.504 | FP142: 100 | FQ142: 100 | FR142: 0 | FS142: 9.358283608 | FT142: 13385 | FU142: 15520 | FV142: 28905 | GK142: 0
A143: 2024-02-17 | B143: 2024-02-17 | C143: 336 | D143: 327 | E143: 0.353 | F143: 10.09 | G143: 32 | H143: 336.23 | I143: 0 | J143: 336.34 | K143: 10.2 | M143: 3.9 | N143: 3.547 | O143: 48.46358349 | P143: 4187253.614 | Q143: 100 | R143: 1.091384615 | S143: 336.14 | T143: 10 | U143: 20 | V143: 3.9 | W143: 3.25 | X143: 12.80528361 | Y143: 1106376.504 | Z143: 100 | AA143: 100 | AD143: 0 | AE143: -35.65829989 | AF143: 336 | AH143: 336.11 | AI143: 9.97 | AJ143: 59 | AL143: 3.9 | AM143: 3.547 | AN143: 8.918384162 | AO143: 770548.3916 | AP143: 100 | AQ143: 109.1384615 | AR143: 0 | AS143: -3.886899446 | AT143: 8604664 | AU143: 4287170 | AV143: 35585 | AW143: 35585 | AY143: 336.02 | AZ143: 9.88 | BA143: 9 | BC143: 3.9 | BD143: 0 | BE143: =((AY143-336)^(3/2))*1.838*133 -> 0.6914203244 | BF143: 59738.71602 | BG143: 100 | BH143: 0 | BI143: 0 | BJ143: -8.226963837 | BK143: 4142295 | BL143: 1351686 | BM143: 45449 | BN143: 45449 | BP143: 336.19 | BQ143: 10.05 | BR143: 15.2 | BS143: 8 | BT143: 3.9 | BU143: 3.547 | BV143: 20.24545536 | BW143: 1749207.343 | BX143: 100 | BY143: 109.1384615 | BZ143: 0 | CA143: 19.55403504 | CB143: 9346462 | CC143: 8098285 | CD143: 40882 | CE143: 40882 | CG143: 336.1 | CH143: 9.96 | CK143: 3.8 | CL143: 3.447 | CM143: 7.730314231 | CN143: 667899.1496 | CO143: 100 | CP143: 100 | CQ143: 0 | CR143: -12.51514113 | CS143: 3429739 | CT143: 7501134 | CU143: 40284 | CV143: 40284 | CX143: 336.13 | CY143: 9.99 | DB143: 3.8 | DC143: 3.447 | DD143: 11.45808861 | DE143: 989978.8559 | DF143: 100 | DG143: 99.647 | DH143: 0 | DI143: 3.727774378 | DL143: 0 | DM143: 0 | DN143: 332.44 | DO143: 6.3 | DR143: 2.038 | DS143: 1.685 | DV143: 53.63157895 | DW143: 53.27857895 | DX143: -46.36842105 | EB143: -68167335 | EC143: -68167335 | ED143: 336.15 | EE143: 10.01 | EG143: 0 | EH143: 3.8 | EI143: 3.447 | EJ143: 14.20149406 | EK143: 1227009.087 | EL143: 100 | EM143: 99.647 | EN143: 46.36842105 | EO143: 12.51649406 | EP143: 12012 | EQ143: 24114 | ER143: 36126 | ES143: 336.16 | ET143: 10.02 | EU143: 2 | EV143: 32.2 | EW143: 3.8 | EX143: 3.447 | EY143: 15.645056 | EZ143: 1351732.838 | FA143: 100 | FB143: 100 | FC143: 0 | FD143: 12.198056 | FE143: 11636 | FF143: 21201 | FG143: 32837 | FH143: 336.14 | FI143: 10 | FJ143: 0 | FK143: 0 | FL143: 3.8 | FM143: 3.447 | FN143: 12.80528361 | FO143: 1106376.504 | FP143: 100 | FQ143: 100 | FR143: 0 | FS143: 9.358283608 | FT143: 12649 | FU143: 16676 | FV143: 29325 | GK143: 0
A144: 2024-02-18 | B144: 2024-02-18 | C144: 336 | D144: 327 | E144: 0.353 | F144: 10.09 | G144: 16 | H144: 336.23 | I144: 0 | J144: 336.34 | K144: 10.2 | M144: 3.9 | N144: 3.547 | O144: 48.46358349 | P144: 4187253.614 | Q144: 100 | R144: 1.091384615 | S144: 336.15 | T144: 10.01 | U144: 7 | V144: 3.9 | W144: 3.25 | X144: 14.20149406 | Y144: 1227009.087 | Z144: 100 | AA144: 100 | AD144: 0 | AE144: -34.26208943 | AF144: 336 | AH144: 336.1 | AI144: 9.96 | AJ144: 58.2 | AL144: 3.9 | AM144: 3.547 | AN144: 7.730314231 | AO144: 667899.1496 | AP144: 100 | AQ144: 109.1384615 | AR144: 0 | AS144: -6.471179832 | AT144: 8619306 | AU144: 4301783 | AV144: 29255 | AW144: 29255 | AY144: 336.02 | AZ144: 9.88 | BA144: 11 | BC144: 3.9 | BD144: 0 | BE144: 0.6914203244 | BF144: 59738.71602 | BG144: 100 | BH144: 0 | BI144: 0 | BJ144: -7.038893907 | BK144: 4158465 | BL144: 1376306 | BM144: 40790 | BN144: 40790 | BP144: 336.17 | BQ144: 10.03 | BT144: 3.9 | BU144: 3.547 | BV144: 17.13446426 | BW144: 1480417.712 | BX144: 100 | BY144: 109.1384615 | BZ144: 0 | CA144: 16.44304394 | CB144: 9370403 | CC144: 8115698 | CD144: 41354 | CE144: 41354 | CG144: 336.11 | CH144: 9.97 | CK144: 3.8 | CL144: 3.447 | CM144: 8.918384162 | CN144: 770548.3916 | CO144: 100 | CP144: 100 | CQ144: 0 | CR144: -8.216080103 | CS144: 3443352 | CT144: 7524369 | CU144: =(CS144+CT144)-(CS143+CT143) -> 36848 | CV144: 36848 | CX144: 336.13 | CY144: 9.99 | DB144: 3.8 | DC144: 3.447 | DD144: 11.45808861 | DE144: 989978.8559 | DF144: 100 | DG144: 99.647 | DH144: 0 | DI144: 2.539704448 | DL144: =(DJ144+DK144)-(DJ143+DK143) -> 0 | DM144: 0 | DN144: 332.47 | DO144: 6.33 | DR144: 2.05 | DS144: 1.697 | DV144: 53.94736842 | DW144: 53.59436842 | DX144: -46.05263158 | EB144: -68167335 | EC144: -68167335 | ED144: 336.12 | EE144: 9.98 | EH144: 3.8 | EI144: 3.447 | EJ144: 10.16176195 | EK144: 877976.2329 | EL144: 100 | EM144: 99.647 | EN144: 46.05263158 | EO144: 8.464761955 | EP144: 15028 | EQ144: 20372 | ER144: 35400 | ES144: 336.14 | ET144: 10 | EW144: 3.8 | EX144: 3.447 | EY144: 12.80528361 | EZ144: 1106376.504 | FA144: 100 | FB144: 100 | FC144: 0 | FD144: 9.358283608 | FE144: 13448 | FF144: 23091 | FG144: 36539 | FH144: 336.14 | FI144: 10 | FJ144: 0 | FK144: 0 | FL144: 3.8 | FM144: 3.447 | FN144: 12.80528361 | FO144: 1106376.504 | FP144: 100 | FQ144: 100 | FR144: 0 | FS144: 9.358283608 | FT144: 12353 | FU144: 15772 | FV144: 28125 | GK144: 0
